Workbook

Sheet General
B1: Módulo de Ingreso de Información
B5: Código | C5: 3
B6: Nombre | C6: Prueba 1 | E6: Permisos Ambiental obtenida | F6: NO
B7: Fecha Radicación | C7: 2022-02-08
B8: Hora Radicación | C8: 12:35:00
B9: Capacidad (MW) | C9: 50
B10: Tecnología | C10: Solar FV | E10: Costo Activos de Uso ($COP) | F10: 0
B11: Barra 1 | C11: Chinú | E11: Delta pérdidas (GWh) | F11: 100
B12: Código Asociado | E12: Reducción Marginal VPN ($COP) | F12: 1000000
B13: FPO | C13: 2025-12-31
B14: FPO 2 | C14: 2026-12-31
B15: Obligaciones | C15: NO
B16: Requiere Expansión | C16: NO
B17: Área Eléctrica | C17: Antioquia

Sheet Tablas
B1: Tecnologia | C1: Factor de planta | D1: Iflex | E1: IE-RP | F1: Factor ENFICC | G1: Factor emisiones | H1: Oferta promedio | I1: Comentarios | J1: Area Eléctrica | N1: FPO | P1: Fecha Radicacion | Q1: Hora Radicacion | S1: Gestion Ambiental | U1: Consulta Previa | W1: Permiso Arquelogico
B2: Solar FV | C2: 0.26 | D2: 0 | E2: 0.3190502279 | F2: 0.15 | G2: 0 | H2: 83577.2 | I2: Los parámetros fueron calculados conforme a la metodología presentada en la Circular UPME 057 de 2022. | J2: Altántico | L2: SI | N2: 2023-01-01 | P2: 2022-01-01 | Q2: 00:00:00 | S2: No hay avances | U2: No hay avances | W2: No hay avances
B3: Eólico Onshore | C3: 0.57 | D3: 0 | E3: 0.3190502279 | F3: 0.06 | G3: 0 | H3: 83577.2 | I3: Los parámetros fueron calculados conforme a la metodología presentada en la Circular UPME 057 de 2022. | J3: Bolívar | L3: NO | N3: 2037-12-31 | P3: 2022-03-31 | Q3: 23:59:59 | S3: EIA | U3: Resolución. No Procede | W3: Aprobado
B4: Eólico Offshore | C4: 0.57 | D4: 0 | E4: 0.3190502279 | F4: 0.06 | G4: 0 | H4: 83577.2 | I4: Los parámetros fueron calculados conforme a la metodología presentada en la Circular UPME 057 de 2022. | J4: Córdoba - Sucre, Chinú | S4: LA | U4: Resolución. Si Procede | W4: No Aplica
B5: Biomasa y Residuos | C5: 0.7 | D5: 0.25 | E5: 0.3190502279 | F5: 0.83 | G5: 0.37 | H5: 83577.2 | I5: Los parámetros fueron calculados conforme a la metodología presentada en la Circular UPME 057 de 2022. | J5: Córdoba - Sucre, Cerromatoso | S5: PA | U5: Finalizada
B6: Geotérmica | C6: 0.8 | D6: 0.25 | E6: 0.3190502279 | F6: 0.7 | G6: 0 | H6: 83577.2 | I6: Los parámetros fueron calculados conforme a la metodología presentada en la Circular UPME 057 de 2022. | J6: Guajira - Cesar - Madgalena | S6: No Aplica
B7: PCH | C7: 0.54 | D7: 0.61 | E7: 0.1550930337 | F7: 0.15 | G7: 0 | H7: 158280.5 | I7: Los parámetros fueron calculados conforme a la metodología presentada en la Circular UPME 057 de 2022. | J7: Santander
B8: Termica - Ciclo abierto | C8: 0.85 | D8: 0.4 | E8: -0.5761741581 | F8: 0.83 | G8: 0.95 | H8: 267152.5 | I8: Los parámetros fueron calculados conforme a la metodología presentada en la Circular UPME 057 de 2022. | J8: Norte de Santander
B9: Termica - Ciclo combinado | C9: 0.85 | D9: 0.27 | E9: -0.5761741581 | F9: 0.83 | G9: 0.95 | H9: 267152.5 | I9: Los parámetros fueron calculados conforme a la metodología presentada en la Circular UPME 057 de 2022. | J9: Boyacá - Casanare
B10: Termica a vapor | C10: 0.85 | D10: 0.25 | E10: -0.5761741581 | F10: 0.83 | G10: 0.37 | H10: 267152.5 | I10: Los parámetros fueron calculados conforme a la metodología presentada en la Circular UPME 057 de 2022. | J10: Arauca
B11: Termica - diesel | C11: 0.85 | D11: 0.6 | E11: -4.282826571 | F11: 0.83 | G11: 0.77 | H11: 709472.9 | I11: Los parámetros fueron calculados conforme a la metodología presentada en la Circular UPME 057 de 2022. | J11: Antioquia
B12: Hidraulica | C12: 0.6 | D12: 0.61 | E12: 0.1550930337 | F12: 0.31 | G12: 0 | H12: 158280.5 | I12: Los parámetros fueron calculados conforme a la metodología presentada en la Circular UPME 057 de 2022. | J12: Chocó
B13: Cogeneracion | C13: 0.85 | D13: 0.1 | E13: 0.3190502279 | F13: 0.83 | G13: 0.37 | H13: 83577.2 | I13: Los parámetros fueron calculados conforme a la metodología presentada en la Circular UPME 057 de 2022. | J13: Bogotá
J14: Meta - Guaviare
J15: Caldas - Quidio - Risaralda
J16: Valle
J17: Cauca - Nariño
J18: Tolima - Huila Caquetá
J19: Putumayo

Sheet InfoPro
A1: Código | B1: Nombre | C1: Fecha Radicación | D1: Hora Radicación | E1: Capacidad | F1: Tipo | G1: Barra 1 | H1: Código Asociado | I1: FPO | J1: FPO 2 | K1: Obligaciones | L1: Requiere Expansión | M1: Area Eléctrica | N1: Permisos Ambiental obtenida | O1: Costo Activos de Uso | P1: Pérdidas STN | Q1: orden llegada
A2: SC_487_A1 | B2: PARQUE SOLAR EL VALLE 80 MW | C2: 2022-05-23 | D2: 08:57:00 | E2: 80 | F2: Solar FV | G2: Aguablanca 115 | I2: 2025-12-31 | J2: 2025-12-31 | K2: NO | L2: 2 | M2: Valle | N2: NO | O2: 0 | P2: -33.5658 | Q2: 1
A3: SC_1140_A2 | B3: Zarzal Solar 100 MW | C3: 2022-07-15 | D3: 09:28:00 | E3: 100 | F3: Solar FV | G3: Zarzal 115 | I3: 2027-12-31 | J3: 2027-12-31 | K3: NO | L3: 2 | M3: Valle | N3: NO | O3: 0 | P3: -46.61127 | Q3: 2
A4: SC_1259_A1 | B4: DOMINICA DE 99.9 MW | C4: 2022-07-15 | D4: 12:47:00 | E4: 99.9 | F4: Solar FV | G4: San Marcos 220 | H4: SC_1259_A2 | I4: 2026-12-31 | J4: 2026-12-31 | K4: NO | L4: 2 | M4: Valle | N4: NO | O4: 0 | P4: -4.64 | Q4: 3
A5: SC_1259_A2 | B5: DOMINICA DE 99.9 MW | C5: 2022-07-15 | D5: 12:47:00 | E5: 99.9 | F5: Solar FV | G5: San Marcos 115 | H5: SC_1259_A1 | I5: 2026-12-31 | J5: 2026-12-31 | K5: NO | L5: 2 | M5: Valle | N5: NO | O5: 0 | P5: -5.064 | Q5: 4
A6: SC_1265_A1 | B6: LANZAROTE de 80 MW | C6: 2022-07-15 | D6: 14:01:00 | E6: 80 | F6: Solar FV | G6: Alferez II 115 | H6: SC_1265_A2 | I6: 2026-12-31 | J6: 2026-12-31 | K6: NO | L6: 2 | M6: Valle | N6: NO | O6: 0 | P6: -5.256 | Q6: 5
A7: SC_1265_A2 | B7: LANZAROTE de 80 MW | C7: 2022-07-15 | D7: 14:01:00 | E7: 80 | F7: Solar FV | G7: Alferez I 115 | H7: SC_1265_A1 | I7: 2026-12-31 | J7: 2026-12-31 | K7: NO | L7: 2 | M7: Valle | N7: NO | O7: 0 | P7: -5.376 | Q7: 6
A8: SC_612_A1 | B8: PARQUE SOLAR SAN JOSE | C8: 2022-07-15 | D8: 14:36:00 | E8: 9.9 | F8: Solar FV | G8: Roldanillo 13.2 | H8: SC_612_A2 | I8: 2024-06-05 | J8: 2024-06-05 | K8: NO | L8: 2 | M8: Valle | N8: NO | O8: 0 | P8: -0.0004344 | Q8: 7
A9: SC_612_A2 | B9: PARQUE SOLAR SAN JOSE | C9: 2022-07-15 | D9: 14:36:00 | E9: 9.9 | F9: Solar FV | G9: La Union 115 | H9: SC_612_A1 | I9: 2024-06-05 | J9: 2024-06-05 | K9: NO | L9: 2 | M9: Valle | N9: NO | O9: 0 | P9: -0.0004327 | Q9: 8
A10: SC_1254_A1 | B10: Solar La Victoria 3 de 19.9 MW | C10: 2022-07-15 | D10: 17:24:00 | E10: 19.9 | F10: Solar FV | G10: Zarzal 115 | I10: 2023-12-31 | J10: 2023-12-31 | K10: NO | L10: 2 | M10: Valle | N10: SI | O10: 0 | P10: -1.1318 | Q10: 9
A11: SC_1292_A1 | B11: Solar El Carmelo 2 | C11: 2022-07-15 | D11: 18:30:00 | E11: 19.9 | F11: Solar FV | G11: Carmelo 34.5 | I11: 2023-12-31 | J11: 2023-12-31 | K11: NO | L11: 2 | M11: Valle | N11: SI | O11: 0 | P11: -1.1019 | Q11: 10
A12: SC_1401_A1 | B12: CSF CONTINUA OBANDO 90MW | C12: 2022-07-16 | D12: 10:20:00 | E12: 90 | F12: Solar FV | G12: Cartago 115 | H12: SC_1401_A2 | I12: 2025-07-31 | J12: 2025-07-31 | K12: NO | L12: 2 | M12: Valle | N12: SI | O12: 0 | P12: 0.3 | Q12: 11
A13: SC_1401_A2 | B13: CSF CONTINUA OBANDO 90MW | C13: 2022-07-16 | D13: 10:20:00 | E13: 90 | F13: Solar FV | G13: Cartago 220 | H13: SC_1401_A1 | I13: 2025-07-31 | J13: 2025-07-31 | K13: NO | L13: 2 | M13: Valle | N13: SI | O13: 0 | P13: 0.33 | Q13: 12
A14: SC_1413_A1 | B14: CSF CONTINUA LA VIRGINIA 120MW | C14: 2022-07-16 | D14: 12:15:00 | E14: 120 | F14: Solar FV | G14: Cartago 220 | I14: 2026-12-31 | J14: 2026-12-31 | K14: NO | L14: 2 | M14: Valle | N14: NO | O14: 0 | P14: 0.734 | Q14: 13
A15: SC_1454_A1 | B15: CE SAN MARCOS 80MW | C15: 2022-07-16 | D15: 17:22:00 | E15: 80 | F15: Eólico Onshore | G15: San Marcos 115 | H15: SC_1454_A2 | I15: 2027-12-31 | J15: 2027-12-31 | K15: NO | L15: 2 | M15: Valle | N15: NO | O15: 0 | P15: -11.289 | Q15: 14
A16: SC_1454_A2 | B16: CE SAN MARCOS 80MW | C16: 2022-07-16 | D16: 17:22:00 | E16: 80 | F16: Eólico Onshore | G16: San Marcos 220 | H16: SC_1454_A1 | I16: 2027-12-31 | J16: 2027-12-31 | K16: NO | L16: 2 | M16: Valle | N16: NO | O16: 0 | P16: -8.0919 | Q16: 15
A17: SC_1325_A1 | B17: Solar El Carmelo 3 | C17: 2022-07-16 | D17: 18:29:00 | E17: 19.9 | F17: Solar FV | G17: Carmelo 34.5 | I17: 2025-12-31 | J17: 2025-12-31 | K17: NO | L17: 2 | M17: Valle | N17: NO | O17: 0 | P17: -0.6114 | Q17: 16
A18: SC_1517_A1 | B18: Autogenerador Solar Palmira 3 | C18: 2022-07-17 | D18: 15:06:00 | E18: 7.3 | F18: Solar FV | G18: Amcor 34.5 | I18: 2025-12-30 | J18: 2025-12-30 | K18: NO | L18: 2 | M18: Valle | N18: NO | O18: 0 | P18: -0.217 | Q18: 17
A19: SC_1502_A1 | B19: Solar El Carmelo 5 | C19: 2022-07-17 | D19: 15:08:00 | E19: 19.9 | F19: Solar FV | G19: El Carmelo 115 | I19: 2025-12-31 | J19: 2025-12-31 | K19: NO | L19: 2 | M19: Valle | N19: NO | O19: 0 | P19: -0.6299 | Q19: 18
A20: SC_1503_A1 | B20: Solar El Carmelo 6 | C20: 2022-07-17 | D20: 15:09:00 | E20: 19.9 | F20: Solar FV | G20: El Carmelo 115 | I20: 2025-12-31 | J20: 2025-12-31 | K20: NO | L20: 2 | M20: Valle | N20: NO | O20: 0 | P20: -0.631 | Q20: 19
A21: SC_1601_A1 | B21: Autogenerador Solar Palmira 1 de 19,9MW | C21: 2022-07-18 | D21: 11:09:00 | E21: 19.9 | F21: Solar FV | G21: Guachal 115 | I21: 2023-12-31 | J21: 2023-12-31 | K21: NO | L21: 2 | M21: Valle | N21: NO | O21: 0 | P21: 0 | Q21: 20
A22: SC_1658_A2 | B22: Parque Solar Fotovoltaico La Virginia I | C22: 2022-07-18 | D22: 16:32:00 | E22: 100 | F22: Solar FV | G22: Cartago 220 | I22: 2027-12-31 | J22: 2027-12-31 | K22: NO | L22: 2 | M22: Valle | N22: NO | O22: 0 | P22: -1.90144 | Q22: 21
A23: SC_1572_A1 | B23: CONDOR - 165 MW | C23: 2022-07-18 | D23: 18:14:00 | E23: 165 | F23: Eólico Onshore | G23: San Marcos 220 | H23: SC_1572_A2 | I23: 2026-12-31 | J23: 2026-12-31 | K23: NO | L23: 2 | M23: Valle | N23: NO | O23: 0 | P23: -7.76 | Q23: 22
A24: SC_1572_A2 | B24: CONDOR - 165 MW | C24: 2022-07-18 | D24: 18:14:00 | E24: 165 | F24: Eólico Onshore | G24: San Marcos 500 | H24: SC_1572_A1 | I24: 2026-12-31 | J24: 2026-12-31 | K24: NO | L24: 2 | M24: Valle | N24: NO | O24: 0 | P24: -7.17 | Q24: 23
A25: SC_1501_A1 | B25: Autogenerador Solar Palmira 4 | C25: 2022-07-18 | D25: 18:39:00 | E25: 19.9 | F25: Solar FV | G25: Sucromiles 115 | I25: 2025-12-31 | J25: 2025-12-31 | K25: NO | L25: 2 | M25: Valle | N25: NO | O25: 0 | P25: -98.01 | Q25: 24
A26: SC_1490_A1 | B26: Farallones Solar DE 50 mw | C26: 2022-07-21 | D26: 14:17:00 | E26: 50 | F26: Solar FV | G26: Estambul 115 | I26: 2026-12-31 | J26: 2026-12-31 | K26: NO | L26: 2 | M26: Valle | N26: NO | O26: 0 | P26: -0.56511 | Q26: 25
A27: SC_1883_A1 | B27: Parque Eólico Valle | C27: 2022-07-28 | D27: 16:20:00 | E27: 250 | F27: Eólico Onshore | G27: San Marcos 500 | H27: SC_1883_A2 | I27: 2027-03-31 | J27: 2027-03-31 | K27: NO | L27: 2 | M27: Valle | N27: NO | O27: 0 | P27: -44.95957 | Q27: 26
A28: SC_1883_A2 | B28: Parque Eólico Valle | C28: 2022-07-28 | D28: 16:20:00 | E28: 250 | F28: Eólico Onshore | G28: San Marcos 220 | H28: SC_1883_A1 | I28: 2027-03-31 | J28: 2027-03-31 | K28: NO | L28: 2 | M28: Valle | N28: NO | O28: 0 | P28: -48.08708 | Q28: 27
A29: SC_1947_A1 | B29: Solar La Victoria 4 de 19.9MW | C29: 2022-08-16 | D29: 14:00:00 | E29: 19.9 | F29: Solar FV | G29: La Union 34.5 | I29: 2023-12-31 | J29: 2023-12-31 | K29: NO | L29: 2 | M29: Valle | N29: NO | O29: 0 | P29: -0.6047 | Q29: 28
A30: SC_1950_A1 | B30: Autogenerador Solar Candelaria | C30: 2022-08-16 | D30: 14:14:00 | E30: 19.9 | F30: Solar FV | G30: Papel Cauca 115 | I30: 2025-12-31 | J30: 2025-12-31 | K30: NO | L30: 2 | M30: Valle | N30: NO | O30: 0 | P30: -0.295 | Q30: 29
A31: SC_2008_A1 | B31: Solar Ginebra | C31: 2022-08-16 | D31: 14:58:00 | E31: 9.9 | F31: Solar FV | G31: Costa Rica 34.5 | I31: 2023-12-31 | J31: 2023-12-31 | K31: NO | L31: 2 | M31: Valle | N31: NO | O31: 0 | P31: -0.505 | Q31: 30
A32: SC_2098_A1 | B32: Solar El Cerrito 1 | C32: 2022-08-16 | D32: 15:09:00 | E32: 19.9 | F32: Solar FV | G32: Cerrito 34.5 | I32: 2025-12-31 | J32: 2025-12-31 | K32: NO | L32: 2 | M32: Valle | N32: NO | O32: 0 | P32: -0.826 | Q32: 31
A33: SC_2208_A1 | B33: Solar El Carmelo 4 19.9 | C33: 2022-08-16 | D33: 15:22:00 | E33: 19.9 | F33: Solar FV | G33: Carmelo 34.5 | I33: 2025-12-31 | J33: 2025-12-31 | K33: NO | L33: 2 | M33: Valle | N33: NO | O33: 0 | P33: -0.6856 | Q33: 32
A34: SC_2210_A1 | B34: Solar La Victoria 5 19.9 | C34: 2022-08-16 | D34: 15:25:00 | E34: 19.9 | F34: Solar FV | G34: La Union 34.5 | I34: 2023-12-31 | J34: 2023-12-31 | K34: NO | L34: 2 | M34: Valle | N34: NO | O34: 0 | P34: -0.687 | Q34: 33
A35: SC_2214_A1 | B35: Autogenerador Solar Palmira 2 | C35: 2022-08-16 | D35: 15:55:00 | E35: 9.9 | F35: Solar FV | G35: Guachal 34.5 | I35: 2023-12-31 | J35: 2023-12-31 | K35: NO | L35: 2 | M35: Valle | N35: NO | O35: 0 | P35: -0.54 | Q35: 34
A36: SC_1816_A1 | B36: COG.001.2022 AZAHAR I 4.99 MW | C36: 2022-08-16 | D36: 22:37:00 | E36: 4.99 | F36: Solar FV | G36: Planta Diesel 13.2 | H36: SC_1816_A2 | I36: 2024-12-31 | J36: 2024-12-31 | K36: NO | L36: 2 | M36: Valle | N36: NO | O36: 0 | P36: 0.00010528 | Q36: 35
A37: SC_1816_A2 | B37: COG.001.2022 AZAHAR I 4.99 MW | C37: 2022-08-16 | D37: 22:37:00 | E37: 4.99 | F37: Solar FV | G37: Santa Maria 34.5 | H37: SC_1816_A1 | I37: 2024-12-31 | J37: 2024-12-31 | K37: NO | L37: 2 | M37: Valle | N37: NO | O37: 0 | P37: 3.614e-05 | Q37: 36
A38: SC_2296_A2 | B38: Parque Solar San Mateo 80 MW | C38: 2022-08-22 | D38: 14:43:00 | E38: 80 | F38: Solar FV | G38: Cartago 220 | I38: 2025-12-31 | J38: 2025-12-31 | K38: NO | L38: 2 | M38: Valle | N38: NO | O38: 0 | P38: -1.047 | Q38: 37
A39: SC_2228_A1 | B39: MFC Solar | C39: 2022-08-24 | D39: 11:49:00 | E39: 250 | F39: Solar FV | G39: San Marcos 500 | H39: SC_2228_A2 | I39: 2027-12-31 | J39: 2027-12-31 | K39: NO | L39: 2 | M39: Valle | N39: NO | O39: 0 | P39: -15.72 | Q39: 38
A40: SC_2228_A2 | B40: MFC Solar | C40: 2022-08-24 | D40: 11:49:00 | E40: 250 | F40: Solar FV | G40: San Marcos 220 | H40: SC_2228_A1 | I40: 2027-12-31 | J40: 2027-12-31 | K40: NO | L40: 2 | M40: Valle | N40: NO | O40: 0 | P40: -18.306 | Q40: 39
A41: SC_2113_A1 | B41: Coloradas II 98 MW | C41: 2022-08-31 | D41: 10:12:00 | E41: 98 | F41: Solar FV | G41: Zarzal 115 | I41: 2026-12-01 | J41: 2026-12-01 | K41: NO | L41: 2 | M41: Valle | N41: NO | O41: 0 | P41: -2.367 | Q41: 40
A42: SC_2315_A1 | B42: HELIOS SAN MARCOS - 300 MW | C42: 2022-08-31 | D42: 11:10:00 | E42: 300 | F42: Solar FV | G42: San Marcos 220 | H42: SC_2315_A2 | I42: 2025-12-30 | J42: 2025-12-30 | K42: NO | L42: 2 | M42: Valle | N42: NO | O42: 0 | P42: 23.198179 | Q42: 41
A43: SC_2315_A2 | B43: HELIOS SAN MARCOS - 300 MW | C43: 2022-08-31 | D43: 11:10:00 | E43: 300 | F43: Solar FV | G43: Yumbo 220 | H43: SC_2315_A1 | I43: 2025-12-30 | J43: 2025-12-30 | K43: NO | L43: 2 | M43: Valle | N43: NO | O43: 0 | P43: 22.878459 | Q43: 42

Sheet Hoja1 (hidden)
B1: a | C1: b | D1: c | E1: d | F1: e | L1: a | M1: b | T1: a | U1: b | V1: c | W1: d
B2: SC_170 | C2: 0 | D2: =COUNTIF(InfoPro!$H$2:$H$156,Hoja1!B2) -> 0 | E2: =COUNTIF(InfoPro!$H$2:$H$156,Hoja1!C2) -> 0 | F2: =IF(E2=0,IF(D2=0,"NO","SI"),"SI") -> NO | J2: SC_1753 | L2: SC_1753 | M2: =COUNTIF($J$2:$J$144,L2) -> 2 | T2: SC_9 | U2: =COUNTIF($B$2:$B$85,T2) -> 0 | V2: =COUNTIF($C$1:$C$84,T2) -> 0 | W2: =SUM(U2:V2) -> 0
B3: SC_314 | C3: SC_829 | D3: =COUNTIF(InfoPro!$H$2:$H$156,Hoja1!B3) -> 0 | E3: =COUNTIF(InfoPro!$H$2:$H$156,Hoja1!C3) -> 0 | F3: =IF(E3=0,IF(D3=0,"NO","SI"),"SI") -> NO | J3: SC_1753 | L3: SC_1753 | M3: =COUNTIF($J$2:$J$144,L3) -> 2 | T3: SC_36 | U3: =COUNTIF($B$2:$B$85,T3) -> 0 | V3: =COUNTIF($C$1:$C$84,T3) -> 0 | W3: =SUM(U3:V3) -> 0
B4: SC_436 | C4: 0 | D4: =COUNTIF(InfoPro!$H$2:$H$156,Hoja1!B4) -> 0 | E4: =COUNTIF(InfoPro!$H$2:$H$156,Hoja1!C4) -> 0 | F4: NO | J4: SC_1754 | L4: SC_1754 | M4: 2 | T4: SC_57 | U4: 0 | V4: 0 | W4: 0
B5: SC_484 | C5: 0 | D5: =COUNTIF(InfoPro!$H$2:$H$156,Hoja1!B5) -> 0 | E5: =COUNTIF(InfoPro!$H$2:$H$156,Hoja1!C5) -> 0 | F5: NO | J5: SC_1754 | L5: SC_1754 | M5: 2 | T5: SC_128 | U5: 0 | V5: 0 | W5: 0
B6: SC_501 | C6: 0 | D6: =COUNTIF(InfoPro!$H$2:$H$156,Hoja1!B6) -> 0 | E6: =COUNTIF(InfoPro!$H$2:$H$156,Hoja1!C6) -> 0 | F6: NO | J6: SC_1307 | L6: SC_1307 | M6: 2 | T6: SC_193 | U6: 0 | V6: 0 | W6: 0
B7: SC_640 | C7: SC_1753 | D7: =COUNTIF(InfoPro!$H$2:$H$156,Hoja1!B7) -> 0 | E7: =COUNTIF(InfoPro!$H$2:$H$156,Hoja1!C7) -> 0 | F7: NO | J7: SC_1307 | L7: SC_1307 | M7: 2 | T7: SC_204 | U7: 0 | V7: 0 | W7: 0
B8: SC_864 | C8: SC_1754 | D8: =COUNTIF(InfoPro!$H$2:$H$156,Hoja1!B8) -> 0 | E8: =COUNTIF(InfoPro!$H$2:$H$156,Hoja1!C8) -> 0 | F8: NO | J8: SC_1607 | L8: SC_1607 | M8: 2 | T8: SC_217 | U8: 0 | V8: 0 | W8: 0
B9: SC_646 | C9: SC_1307 | D9: =COUNTIF(InfoPro!$H$2:$H$156,Hoja1!B9) -> 0 | E9: =COUNTIF(InfoPro!$H$2:$H$156,Hoja1!C9) -> 0 | F9: NO | J9: SC_1607 | L9: SC_1607 | M9: 2 | T9: SC_919 | U9: 0 | V9: 0 | W9: 0
B10: SC_678 | C10: SC_1607 | D10: =COUNTIF(InfoPro!$H$2:$H$156,Hoja1!B10) -> 0 | E10: =COUNTIF(InfoPro!$H$2:$H$156,Hoja1!C10) -> 0 | F10: NO | J10: SC_1003 | L10: SC_1003 | M10: 2 | T10: SC_848 | U10: 0 | V10: 0 | W10: 0
B11: SC_1003 | C11: 0 | D11: =COUNTIF(InfoPro!$H$2:$H$156,Hoja1!B11) -> 0 | E11: =COUNTIF(InfoPro!$H$2:$H$156,Hoja1!C11) -> 0 | F11: NO | J11: SC_1003 | L11: SC_1003 | M11: 2 | T11: SC_947 | U11: 0 | V11: 0 | W11: 0
B12: SC_577 | C12: SC_2068 | D12: =COUNTIF(InfoPro!$H$2:$H$156,Hoja1!B12) -> 0 | E12: =COUNTIF(InfoPro!$H$2:$H$156,Hoja1!C12) -> 0 | F12: NO | J12: SC_2068 | L12: SC_2068 | M12: 2 | T12: SC_955 | U12: 0 | V12: 0 | W12: 0
B13: SC_545 | C13: 0 | D13: =COUNTIF(InfoPro!$H$2:$H$156,Hoja1!B13) -> 0 | E13: =COUNTIF(InfoPro!$H$2:$H$156,Hoja1!C13) -> 0 | F13: NO | J13: SC_2068 | L13: SC_2068 | M13: 2 | T13: SC_956 | U13: 1 | V13: 0 | W13: 1
B14: SC_969 | C14: 0 | D14: =COUNTIF(InfoPro!$H$2:$H$156,Hoja1!B14) -> 0 | E14: =COUNTIF(InfoPro!$H$2:$H$156,Hoja1!C14) -> 0 | F14: NO | J14: SC_969 | L14: SC_969 | M14: 2 | T14: SC_823 | U14: 0 | V14: 0 | W14: 0
B15: SC_970 | C15: 0 | D15: =COUNTIF(InfoPro!$H$2:$H$156,Hoja1!B15) -> 0 | E15: =COUNTIF(InfoPro!$H$2:$H$156,Hoja1!C15) -> 0 | F15: NO | J15: SC_969 | L15: SC_969 | M15: 2 | T15: SC_999 | U15: 0 | V15: 0 | W15: 0
B16: SC_385 | C16: SC_1372 | D16: =COUNTIF(InfoPro!$H$2:$H$156,Hoja1!B16) -> 0 | E16: =COUNTIF(InfoPro!$H$2:$H$156,Hoja1!C16) -> 0 | F16: NO | J16: SC_970 | L16: SC_970 | M16: 1 | T16: SC_1078 | U16: 0 | V16: 0 | W16: 0
B17: SC_537 | C17: 0 | D17: =COUNTIF(InfoPro!$H$2:$H$156,Hoja1!B17) -> 0 | E17: =COUNTIF(InfoPro!$H$2:$H$156,Hoja1!C17) -> 0 | F17: NO | J17: SC_537 | L17: SC_1372 | M17: 0 | T17: SC_1096 | U17: 0 | V17: 0 | W17: 0
B18: SC_765 | C18: 0 | D18: =COUNTIF(InfoPro!$H$2:$H$156,Hoja1!B18) -> 0 | E18: =COUNTIF(InfoPro!$H$2:$H$156,Hoja1!C18) -> 0 | F18: NO | J18: SC_765 | L18: SC_1372 | M18: 0 | T18: SC_1153 | U18: 0 | V18: 0 | W18: 0
B19: SC_784 | C19: 0 | D19: =COUNTIF(InfoPro!$H$2:$H$156,Hoja1!B19) -> 0 | E19: =COUNTIF(InfoPro!$H$2:$H$156,Hoja1!C19) -> 0 | F19: NO | J19: SC_765 | L19: SC_537 | M19: 1 | T19: SC_1213 | U19: 0 | V19: 0 | W19: 0
B20: SC_579 | C20: SC_1776 | D20: =COUNTIF(InfoPro!$H$2:$H$156,Hoja1!B20) -> 0 | E20: =COUNTIF(InfoPro!$H$2:$H$156,Hoja1!C20) -> 0 | F20: NO | J20: SC_784 | L20: SC_537 | M20: 1 | T20: SC_1225 | U20: 0 | V20: 0 | W20: 0
B21: SC_588 | C21: 0 | D21: =COUNTIF(InfoPro!$H$2:$H$156,Hoja1!B21) -> 0 | E21: =COUNTIF(InfoPro!$H$2:$H$156,Hoja1!C21) -> 0 | F21: NO | J21: SC_784 | L21: SC_765 | M21: 2 | T21: SC_1257 | U21: 0 | V21: 0 | W21: 0
B22: SC_629 | C22: 0 | D22: =COUNTIF(InfoPro!$H$2:$H$156,Hoja1!B22) -> 0 | E22: =COUNTIF(InfoPro!$H$2:$H$156,Hoja1!C22) -> 0 | F22: NO | J22: SC_1776 | L22: SC_765 | M22: 2 | T22: SC_1282 | U22: 0 | V22: 0 | W22: 0
B23: SC_631 | C23: 0 | D23: =COUNTIF(InfoPro!$H$2:$H$156,Hoja1!B23) -> 0 | E23: =COUNTIF(InfoPro!$H$2:$H$156,Hoja1!C23) -> 0 | F23: NO | J23: SC_1776 | L23: SC_784 | M23: 2 | T23: SC_1283 | U23: 0 | V23: 0 | W23: 0
B24: SC_647 | C24: SC_1705 | D24: =COUNTIF(InfoPro!$H$2:$H$156,Hoja1!B24) -> 0 | E24: =COUNTIF(InfoPro!$H$2:$H$156,Hoja1!C24) -> 0 | F24: NO | J24: SC_588 | L24: SC_784 | M24: 2 | T24: SC_1381 | U24: 0 | V24: 0 | W24: 0
B25: SC_674 | C25: SC_1795 | D25: =COUNTIF(InfoPro!$H$2:$H$156,Hoja1!B25) -> 0 | E25: =COUNTIF(InfoPro!$H$2:$H$156,Hoja1!C25) -> 0 | F25: NO | J25: SC_588 | L25: SC_1776 | M25: 2 | T25: SC_1386 | U25: 0 | V25: 0 | W25: 0
B26: SC_956 | C26: SC_1806 | D26: =COUNTIF(InfoPro!$H$2:$H$156,Hoja1!B26) -> 0 | E26: =COUNTIF(InfoPro!$H$2:$H$156,Hoja1!C26) -> 0 | F26: NO | J26: SC_629 | L26: SC_1776 | M26: 2 | T26: SC_1399 | U26: 0 | V26: 0 | W26: 0
B27: SC_960 | C27: 0 | D27: =COUNTIF(InfoPro!$H$2:$H$156,Hoja1!B27) -> 0 | E27: =COUNTIF(InfoPro!$H$2:$H$156,Hoja1!C27) -> 0 | F27: NO | J27: SC_629 | L27: SC_588 | M27: 2 | T27: SC_1407 | U27: 0 | V27: 0 | W27: 0
B28: SC_980 | C28: 0 | D28: =COUNTIF(InfoPro!$H$2:$H$156,Hoja1!B28) -> 0 | E28: =COUNTIF(InfoPro!$H$2:$H$156,Hoja1!C28) -> 0 | F28: NO | J28: SC_631 | L28: SC_588 | M28: 2 | T28: SC_1415 | U28: 0 | V28: 0 | W28: 0
B29: SC_995 | C29: 0 | D29: =COUNTIF(InfoPro!$H$2:$H$156,Hoja1!B29) -> 0 | E29: =COUNTIF(InfoPro!$H$2:$H$156,Hoja1!C29) -> 0 | F29: NO | J29: SC_631 | L29: SC_629 | M29: 2 | T29: SC_1420 | U29: 0 | V29: 0 | W29: 0
B30: SC_997 | C30: SC_1909 | D30: =COUNTIF(InfoPro!$H$2:$H$156,Hoja1!B30) -> 0 | E30: =COUNTIF(InfoPro!$H$2:$H$156,Hoja1!C30) -> 0 | F30: NO | J30: SC_1705 | L30: SC_629 | M30: 2 | T30: SC_1541 | U30: 0 | V30: 0 | W30: 0
B31: SC_1053 | C31: SC_1903 | D31: =COUNTIF(InfoPro!$H$2:$H$156,Hoja1!B31) -> 0 | E31: =COUNTIF(InfoPro!$H$2:$H$156,Hoja1!C31) -> 0 | F31: NO | J31: SC_1705 | L31: SC_631 | M31: 2 | T31: SC_1543 | U31: 0 | V31: 0 | W31: 0
B32: SC_1084 | C32: SC_1939 | D32: =COUNTIF(InfoPro!$H$2:$H$156,Hoja1!B32) -> 0 | E32: =COUNTIF(InfoPro!$H$2:$H$156,Hoja1!C32) -> 0 | F32: NO | J32: SC_1795 | L32: SC_631 | M32: 2 | T32: SC_1450 | U32: 0 | V32: 0 | W32: 0
B33: SC_831 | C33: 0 | D33: =COUNTIF(InfoPro!$H$2:$H$156,Hoja1!B33) -> 0 | E33: =COUNTIF(InfoPro!$H$2:$H$156,Hoja1!C33) -> 0 | F33: NO | J33: SC_1795 | L33: SC_1705 | M33: 2 | T33: SC_1570 | U33: 0 | V33: 0 | W33: 0
B34: SC_1101 | C34: 0 | D34: =COUNTIF(InfoPro!$H$2:$H$156,Hoja1!B34) -> 0 | E34: =COUNTIF(InfoPro!$H$2:$H$156,Hoja1!C34) -> 0 | F34: NO | J34: SC_960 | L34: SC_1795 | M34: 2 | T34: SC_1566 | U34: 0 | V34: 0 | W34: 0
B35: SC_1123 | C35: 0 | D35: =COUNTIF(InfoPro!$H$2:$H$156,Hoja1!B35) -> 0 | E35: =COUNTIF(InfoPro!$H$2:$H$156,Hoja1!C35) -> 0 | F35: NO | J35: SC_980 | L35: SC_1795 | M35: 2 | T35: SC_1598 | U35: 0 | V35: 0 | W35: 0
B36: SC_1143 | C36: SC_1896 | D36: =COUNTIF(InfoPro!$H$2:$H$156,Hoja1!B36) -> 0 | E36: =COUNTIF(InfoPro!$H$2:$H$156,Hoja1!C36) -> 0 | F36: NO | J36: SC_980 | L36: SC_1806 | M36: 0 | T36: SC_1602 | U36: 0 | V36: 0 | W36: 0
B37: SC_1146 | C37: SC_1915 | D37: =COUNTIF(InfoPro!$H$2:$H$156,Hoja1!B37) -> 0 | E37: =COUNTIF(InfoPro!$H$2:$H$156,Hoja1!C37) -> 0 | F37: NO | J37: SC_995 | L37: SC_1806 | M37: 0 | T37: SC_1603 | U37: 0 | V37: 0 | W37: 0
B38: SC_1149 | C38: SC_2003 | D38: =COUNTIF(InfoPro!$H$2:$H$156,Hoja1!B38) -> 0 | E38: =COUNTIF(InfoPro!$H$2:$H$156,Hoja1!C38) -> 0 | F38: NO | J38: SC_1909 | L38: SC_960 | M38: 1 | T38: SC_1616 | U38: 0 | V38: 0 | W38: 0
B39: SC_1151 | C39: SC_1929 | D39: =COUNTIF(InfoPro!$H$2:$H$156,Hoja1!B39) -> 0 | E39: =COUNTIF(InfoPro!$H$2:$H$156,Hoja1!C39) -> 0 | F39: NO | J39: SC_1909 | L39: SC_980 | M39: 2 | T39: SC_1651 | U39: 0 | V39: 0 | W39: 0
B40: SC_1156 | C40: SC_1963 | D40: =COUNTIF(InfoPro!$H$2:$H$156,Hoja1!B40) -> 0 | E40: =COUNTIF(InfoPro!$H$2:$H$156,Hoja1!C40) -> 0 | F40: NO | J40: SC_1903 | L40: SC_980 | M40: 2 | T40: SC_1673 | U40: 0 | V40: 0 | W40: 0
B41: SC_1157 | C41: SC_1969 | D41: =COUNTIF(InfoPro!$H$2:$H$156,Hoja1!B41) -> 0 | E41: =COUNTIF(InfoPro!$H$2:$H$156,Hoja1!C41) -> 0 | F41: NO | J41: SC_1903 | L41: SC_995 | M41: 1 | T41: SC_1681 | U41: 0 | V41: 0 | W41: 0
B42: SC_1159 | C42: SC_1975 | D42: =COUNTIF(InfoPro!$H$2:$H$156,Hoja1!B42) -> 0 | E42: =COUNTIF(InfoPro!$H$2:$H$156,Hoja1!C42) -> 0 | F42: NO | J42: SC_1939 | L42: SC_1909 | M42: 2 | T42: SC_1687 | U42: 0 | V42: 0 | W42: 0
B43: SC_1163 | C43: SC_1976 | D43: =COUNTIF(InfoPro!$H$2:$H$156,Hoja1!B43) -> 0 | E43: =COUNTIF(InfoPro!$H$2:$H$156,Hoja1!C43) -> 0 | F43: NO | J43: SC_831 | L43: SC_1909 | M43: 2 | T43: SC_1688 | U43: 1 | V43: 0 | W43: 1
B44: SC_1166 | C44: SC_1801 | D44: =COUNTIF(InfoPro!$H$2:$H$156,Hoja1!B44) -> 0 | E44: =COUNTIF(InfoPro!$H$2:$H$156,Hoja1!C44) -> 0 | F44: NO | J44: SC_831 | L44: SC_1903 | M44: 2 | T44: SC_1726 | U44: 0 | V44: 0 | W44: 0
B45: SC_1170 | C45: SC_1832 | D45: =COUNTIF(InfoPro!$H$2:$H$156,Hoja1!B45) -> 0 | E45: =COUNTIF(InfoPro!$H$2:$H$156,Hoja1!C45) -> 0 | F45: NO | J45: SC_1101 | L45: SC_1903 | M45: 2 | T45: SC_1734 | U45: 0 | V45: 0 | W45: 0
B46: SC_1172 | C46: SC_1841 | D46: =COUNTIF(InfoPro!$H$2:$H$156,Hoja1!B46) -> 0 | E46: =COUNTIF(InfoPro!$H$2:$H$156,Hoja1!C46) -> 0 | F46: NO | J46: SC_1101 | L46: SC_1939 | M46: 1 | T46: SC_1748 | U46: 0 | V46: 0 | W46: 0
B47: SC_1184 | C47: 0 | D47: =COUNTIF(InfoPro!$H$2:$H$156,Hoja1!B47) -> 0 | E47: =COUNTIF(InfoPro!$H$2:$H$156,Hoja1!C47) -> 0 | F47: NO | J47: SC_1123 | L47: SC_831 | M47: 2 | T47: SC_1001 | U47: 0 | V47: 0 | W47: 0
B48: SC_1193 | C48: SC_2097 | D48: =COUNTIF(InfoPro!$H$2:$H$156,Hoja1!B48) -> 0 | E48: =COUNTIF(InfoPro!$H$2:$H$156,Hoja1!C48) -> 0 | F48: NO | J48: SC_1896 | L48: SC_831 | M48: 2 | T48: SC_1030 | U48: 0 | V48: 0 | W48: 0
B49: SC_1196 | C49: 0 | D49: =COUNTIF(InfoPro!$H$2:$H$156,Hoja1!B49) -> 0 | E49: =COUNTIF(InfoPro!$H$2:$H$156,Hoja1!C49) -> 0 | F49: NO | J49: SC_1896 | L49: SC_1101 | M49: 2 | T49: SC_1623 | U49: 0 | V49: 0 | W49: 0
B50: SC_1209 | C50: 0 | D50: =COUNTIF(InfoPro!$H$2:$H$156,Hoja1!B50) -> 0 | E50: =COUNTIF(InfoPro!$H$2:$H$156,Hoja1!C50) -> 0 | F50: NO | J50: SC_1915 | L50: SC_1101 | M50: 2 | T50: SC_1639 | U50: 0 | V50: 0 | W50: 0
B51: SC_1210 | C51: SC_1813 | D51: =COUNTIF(InfoPro!$H$2:$H$156,Hoja1!B51) -> 0 | E51: =COUNTIF(InfoPro!$H$2:$H$156,Hoja1!C51) -> 0 | F51: NO | J51: SC_2003 | L51: SC_1123 | M51: 1 | T51: SC_1646 | U51: 0 | V51: 0 | W51: 0
B52: SC_1240 | C52: SC_2285 | D52: =COUNTIF(InfoPro!$H$2:$H$156,Hoja1!B52) -> 0 | E52: =COUNTIF(InfoPro!$H$2:$H$156,Hoja1!C52) -> 0 | F52: NO | J52: SC_2003 | L52: SC_1896 | M52: 2 | T52: SC_2269 | U52: 0 | V52: 0 | W52: 0
B53: SC_1241 | C53: 0 | D53: =COUNTIF(InfoPro!$H$2:$H$156,Hoja1!B53) -> 0 | E53: =COUNTIF(InfoPro!$H$2:$H$156,Hoja1!C53) -> 0 | F53: NO | J53: SC_1929 | L53: SC_1896 | M53: 2 | T53: SC_1613 | U53: 0 | V53: 0 | W53: 0
B54: SC_1260 | C54: 0 | D54: =COUNTIF(InfoPro!$H$2:$H$156,Hoja1!B54) -> 0 | E54: =COUNTIF(InfoPro!$H$2:$H$156,Hoja1!C54) -> 0 | F54: NO | J54: SC_1963 | L54: SC_1915 | M54: 1 | T54: SC_1079 | U54: 0 | V54: 0 | W54: 0
B55: SC_1290 | C55: 0 | D55: =COUNTIF(InfoPro!$H$2:$H$156,Hoja1!B55) -> 0 | E55: =COUNTIF(InfoPro!$H$2:$H$156,Hoja1!C55) -> 0 | F55: NO | J55: SC_1963 | L55: SC_2003 | M55: 2 | T55: SC_1659 | U55: 0 | V55: 0 | W55: 0
B56: SC_1428 | C56: 0 | D56: =COUNTIF(InfoPro!$H$2:$H$156,Hoja1!B56) -> 0 | E56: =COUNTIF(InfoPro!$H$2:$H$156,Hoja1!C56) -> 0 | F56: NO | J56: SC_1969 | L56: SC_2003 | M56: 2 | T56: SC_1751 | U56: 0 | V56: 0 | W56: 0
B57: SC_1437 | C57: SC_2045 | D57: =COUNTIF(InfoPro!$H$2:$H$156,Hoja1!B57) -> 0 | E57: =COUNTIF(InfoPro!$H$2:$H$156,Hoja1!C57) -> 0 | F57: NO | J57: SC_1969 | L57: SC_1929 | M57: 1 | T57: SC_1565 | U57: 0 | V57: 0 | W57: 0
B58: SC_1441 | C58: SC_2047 | D58: =COUNTIF(InfoPro!$H$2:$H$156,Hoja1!B58) -> 0 | E58: =COUNTIF(InfoPro!$H$2:$H$156,Hoja1!C58) -> 0 | F58: NO | J58: SC_1975 | L58: SC_1963 | M58: 2 | T58: SC_1686 | U58: 0 | V58: 0 | W58: 0
B59: SC_1443 | C59: SC_2048 | D59: =COUNTIF(InfoPro!$H$2:$H$156,Hoja1!B59) -> 0 | E59: =COUNTIF(InfoPro!$H$2:$H$156,Hoja1!C59) -> 0 | F59: NO | J59: SC_1975 | L59: SC_1963 | M59: 2 | T59: SC_1708 | U59: 0 | V59: 0 | W59: 0
B60: SC_1440 | C60: SC_2009 | D60: =COUNTIF(InfoPro!$H$2:$H$156,Hoja1!B60) -> 0 | E60: =COUNTIF(InfoPro!$H$2:$H$156,Hoja1!C60) -> 0 | F60: NO | J60: SC_1976 | L60: SC_1969 | M60: 2 | T60: SC_1692 | U60: 0 | V60: 0 | W60: 0
B61: SC_1453 | C61: SC_2022 | D61: =COUNTIF(InfoPro!$H$2:$H$156,Hoja1!B61) -> 0 | E61: =COUNTIF(InfoPro!$H$2:$H$156,Hoja1!C61) -> 0 | F61: NO | J61: SC_1976 | L61: SC_1969 | M61: 2 | T61: SC_1595 | U61: 0 | V61: 0 | W61: 0
B62: SC_1458 | C62: SC_2034 | D62: =COUNTIF(InfoPro!$H$2:$H$156,Hoja1!B62) -> 0 | E62: =COUNTIF(InfoPro!$H$2:$H$156,Hoja1!C62) -> 0 | F62: NO | J62: SC_1801 | L62: SC_1975 | M62: 2 | T62: SC_1700 | U62: 0 | V62: 0 | W62: 0
B63: SC_1460 | C63: SC_2036 | D63: =COUNTIF(InfoPro!$H$2:$H$156,Hoja1!B63) -> 0 | E63: =COUNTIF(InfoPro!$H$2:$H$156,Hoja1!C63) -> 0 | F63: NO | J63: SC_1832 | L63: SC_1975 | M63: 2 | T63: SC_2061 | U63: 0 | V63: 0 | W63: 0
B64: SC_1524 | C64: SC_2099 | D64: =COUNTIF(InfoPro!$H$2:$H$156,Hoja1!B64) -> 0 | E64: =COUNTIF(InfoPro!$H$2:$H$156,Hoja1!C64) -> 0 | F64: NO | J64: SC_1832 | L64: SC_1976 | M64: 2 | T64: SC_2129 | U64: 0 | V64: 0 | W64: 0
B65: SC_1525 | C65: 0 | D65: =COUNTIF(InfoPro!$H$2:$H$156,Hoja1!B65) -> 0 | E65: =COUNTIF(InfoPro!$H$2:$H$156,Hoja1!C65) -> 0 | F65: NO | J65: SC_1841 | L65: SC_1976 | M65: 2 | T65: SC_1805 | U65: 0 | V65: 0 | W65: 0
B66: SC_1486 | C66: SC_1945 | D66: =COUNTIF(InfoPro!$H$2:$H$156,Hoja1!B66) -> 0 | E66: =COUNTIF(InfoPro!$H$2:$H$156,Hoja1!C66) -> 0 | F66: NO | J66: SC_1841 | L66: SC_1801 | M66: 1 | T66: SC_1806 | U66: 0 | V66: 1 | W66: 1
B67: SC_1488 | C67: SC_2012 | D67: =COUNTIF(InfoPro!$H$2:$H$156,Hoja1!B67) -> 0 | E67: =COUNTIF(InfoPro!$H$2:$H$156,Hoja1!C67) -> 0 | F67: =IF(E67=0,IF(D67=0,"NO","SI"),"SI") -> NO | J67: SC_1184 | L67: SC_1832 | M67: =COUNTIF($J$2:$J$144,L67) -> 2 | T67: SC_1803 | U67: =COUNTIF($B$2:$B$85,T67) -> 0 | V67: =COUNTIF($C$1:$C$84,T67) -> 0 | W67: =SUM(U67:V67) -> 0
B68: SC_1516 | C68: SC_2179 | D68: =COUNTIF(InfoPro!$H$2:$H$156,Hoja1!B68) -> 0 | E68: =COUNTIF(InfoPro!$H$2:$H$156,Hoja1!C68) -> 0 | F68: NO | J68: SC_1184 | L68: SC_1832 | M68: 2 | T68: SC_2274 | U68: 0 | V68: 0 | W68: 0
B69: SC_1521 | C69: 0 | D69: =COUNTIF(InfoPro!$H$2:$H$156,Hoja1!B69) -> 0 | E69: =COUNTIF(InfoPro!$H$2:$H$156,Hoja1!C69) -> 0 | F69: NO | J69: SC_2097 | L69: SC_1841 | M69: 2 | T69: SC_1814 | U69: 0 | V69: 0 | W69: 0
B70: SC_1522 | C70: SC_2201 | D70: =COUNTIF(InfoPro!$H$2:$H$156,Hoja1!B70) -> 0 | E70: =COUNTIF(InfoPro!$H$2:$H$156,Hoja1!C70) -> 0 | F70: NO | J70: SC_2097 | L70: SC_1841 | M70: 2 | T70: SC_1932 | U70: 0 | V70: 0 | W70: 0
B71: SC_1574 | C71: SC_2203 | D71: =COUNTIF(InfoPro!$H$2:$H$156,Hoja1!B71) -> 0 | E71: =COUNTIF(InfoPro!$H$2:$H$156,Hoja1!C71) -> 0 | F71: NO | J71: SC_1196 | L71: SC_1184 | M71: 2 | T71: SC_1940 | U71: 0 | V71: 0 | W71: 0
B72: SC_1576 | C72: SC_2204 | D72: =COUNTIF(InfoPro!$H$2:$H$156,Hoja1!B72) -> 0 | E72: =COUNTIF(InfoPro!$H$2:$H$156,Hoja1!C72) -> 0 | F72: NO | J72: SC_1196 | L72: SC_1184 | M72: 2 | T72: SC_2052 | U72: 0 | V72: 0 | W72: 0
B73: SC_1562 | C73: SC_2146 | D73: =COUNTIF(InfoPro!$H$2:$H$156,Hoja1!B73) -> 0 | E73: =COUNTIF(InfoPro!$H$2:$H$156,Hoja1!C73) -> 0 | F73: NO | J73: SC_1209 | L73: SC_2097 | M73: 2 | T73: SC_2053 | U73: 0 | V73: 0 | W73: 0
B74: SC_1582 | C74: SC_2000 | D74: =COUNTIF(InfoPro!$H$2:$H$156,Hoja1!B74) -> 0 | E74: =COUNTIF(InfoPro!$H$2:$H$156,Hoja1!C74) -> 0 | F74: NO | J74: SC_1209 | L74: SC_2097 | M74: 2 | T74: SC_1785 | U74: 0 | V74: 0 | W74: 0
B75: SC_1586 | C75: SC_2019 | D75: =COUNTIF(InfoPro!$H$2:$H$156,Hoja1!B75) -> 0 | E75: =COUNTIF(InfoPro!$H$2:$H$156,Hoja1!C75) -> 0 | F75: NO | J75: SC_2285 | L75: SC_1196 | M75: 2 | T75: SC_2152 | U75: 0 | V75: 0 | W75: 0
B76: SC_1589 | C76: SC_2027 | D76: =COUNTIF(InfoPro!$H$2:$H$156,Hoja1!B76) -> 0 | E76: =COUNTIF(InfoPro!$H$2:$H$156,Hoja1!C76) -> 0 | F76: NO | J76: SC_1241 | L76: SC_1196 | M76: 2 | T76: SC_2154 | U76: 0 | V76: 0 | W76: 0
B77: SC_1641 | C77: SC_2256 | D77: =COUNTIF(InfoPro!$H$2:$H$156,Hoja1!B77) -> 0 | E77: =COUNTIF(InfoPro!$H$2:$H$156,Hoja1!C77) -> 0 | F77: NO | J77: SC_1241 | L77: SC_1209 | M77: 2 | T77: SC_2030 | U77: 0 | V77: 0 | W77: 0
B78: SC_1660 | C78: SC_2336 | D78: =COUNTIF(InfoPro!$H$2:$H$156,Hoja1!B78) -> 0 | E78: =COUNTIF(InfoPro!$H$2:$H$156,Hoja1!C78) -> 0 | F78: NO | J78: SC_1260 | L78: SC_1209 | M78: 2 | T78: SC_2096 | U78: 0 | V78: 0 | W78: 0
B79: SC_1669 | C79: SC_2186 | D79: =COUNTIF(InfoPro!$H$2:$H$156,Hoja1!B79) -> 0 | E79: =COUNTIF(InfoPro!$H$2:$H$156,Hoja1!C79) -> 0 | F79: NO | J79: SC_1260 | L79: SC_1813 | M79: 0 | T79: SC_2199 | U79: 0 | V79: 0 | W79: 0
B80: SC_1688 | C80: 0 | D80: =COUNTIF(InfoPro!$H$2:$H$156,Hoja1!B80) -> 0 | E80: =COUNTIF(InfoPro!$H$2:$H$156,Hoja1!C80) -> 0 | F80: NO | J80: SC_1290 | L80: SC_1813 | M80: 0 | T80: SC_2221 | U80: 0 | V80: 0 | W80: 0
B81: SC_1690 | C81: SC_2192 | D81: =COUNTIF(InfoPro!$H$2:$H$156,Hoja1!B81) -> 0 | E81: =COUNTIF(InfoPro!$H$2:$H$156,Hoja1!C81) -> 0 | F81: NO | J81: SC_1428 | L81: SC_2285 | M81: 1 | T81: SC_1973 | U81: 0 | V81: 0 | W81: 0
B82: SC_1701 | C82: SC_2216 | D82: =COUNTIF(InfoPro!$H$2:$H$156,Hoja1!B82) -> 0 | E82: =COUNTIF(InfoPro!$H$2:$H$156,Hoja1!C82) -> 0 | F82: NO | J82: SC_1428 | L82: SC_1241 | M82: 2 | T82: SC_1984 | U82: 0 | V82: 0 | W82: 0
B83: SC_1736 | C83: SC_2187 | D83: =COUNTIF(InfoPro!$H$2:$H$156,Hoja1!B83) -> 0 | E83: =COUNTIF(InfoPro!$H$2:$H$156,Hoja1!C83) -> 0 | F83: NO | J83: SC_2045 | L83: SC_1241 | M83: 2 | T83: SC_2091 | U83: 0 | V83: 0 | W83: 0
B84: SC_1739 | C84: SC_2122 | D84: =COUNTIF(InfoPro!$H$2:$H$156,Hoja1!B84) -> 0 | E84: =COUNTIF(InfoPro!$H$2:$H$156,Hoja1!C84) -> 0 | F84: NO | J84: SC_2045 | L84: SC_1260 | M84: 2 | T84: SC_2106 | U84: 0 | V84: 0 | W84: 0
B85: SC_1741 | C85: 0 | D85: =COUNTIF(InfoPro!$H$2:$H$156,Hoja1!B85) -> 0 | E85: =COUNTIF(InfoPro!$H$2:$H$156,Hoja1!C85) -> 0 | F85: NO | J85: SC_2047 | L85: SC_1260 | M85: 2 | T85: SC_1996 | U85: 0 | V85: 0 | W85: 0
J86: SC_2047 | L86: SC_1290 | M86: 1 | T86: SC_2243 | U86: 0 | V86: 0 | W86: 0
J87: SC_2048 | L87: SC_1428 | M87: 2 | T87: SC_2148 | U87: 0 | V87: 0 | W87: 0
J88: SC_2048 | L88: SC_1428 | M88: 2 | T88: SC_2050 | U88: 0 | V88: 0 | W88: 0
J89: SC_2009 | L89: SC_2045 | M89: 2 | T89: SC_2093 | U89: 0 | V89: 0 | W89: 0
J90: SC_2009 | L90: SC_2045 | M90: 2 | T90: SC_2092 | U90: 0 | V90: 0 | W90: 0
J91: SC_2022 | L91: SC_2047 | M91: 2 | T91: SC_2141 | U91: 0 | V91: 0 | W91: 0
J92: SC_2022 | L92: SC_2047 | M92: 2 | T92: SC_2073 | U92: 0 | V92: 0 | W92: 0
J93: SC_2034 | L93: SC_2048 | M93: 2 | T93: SC_2181 | U93: 0 | V93: 0 | W93: 0
J94: SC_2034 | L94: SC_2048 | M94: 2 | T94: SC_2164 | U94: 0 | V94: 0 | W94: 0
J95: SC_2036 | L95: SC_2009 | M95: 2 | T95: SC_2182 | U95: 0 | V95: 0 | W95: 0
J96: SC_2036 | L96: SC_2009 | M96: 2 | T96: SC_2230 | U96: 0 | V96: 0 | W96: 0
J97: SC_2099 | L97: SC_2022 | M97: 2 | T97: SC_2244 | U97: 0 | V97: 0 | W97: 0
J98: SC_2099 | L98: SC_2022 | M98: 2 | T98: SC_2161 | U98: 0 | V98: 0 | W98: 0
J99: SC_1525 | L99: SC_2034 | M99: 2 | T99: SC_2196 | U99: 0 | V99: 0 | W99: 0
J100: SC_1525 | L100: SC_2034 | M100: 2 | T100: SC_1890 | U100: 0 | V100: 0 | W100: 0
J101: SC_1945 | L101: SC_2036 | M101: 2 | T101: SC_1893 | U101: 0 | V101: 0 | W101: 0
J102: SC_1945 | L102: SC_2036 | M102: 2 | T102: SC_2082 | U102: 0 | V102: 0 | W102: 0
J103: SC_2179 | L103: SC_2099 | M103: 2 | T103: SC_2142 | U103: 0 | V103: 0 | W103: 0
J104: SC_2179 | L104: SC_2099 | M104: 2 | T104: SC_2197 | U104: 0 | V104: 0 | W104: 0
J105: SC_1521 | L105: SC_1525 | M105: 2 | T105: SC_2282 | U105: 0 | V105: 0 | W105: 0
J106: SC_2201 | L106: SC_1525 | M106: 2 | T106: SC_2134 | U106: 0 | V106: 0 | W106: 0
J107: SC_2201 | L107: SC_1945 | M107: 2 | T107: SC_1871 | U107: 0 | V107: 0 | W107: 0
J108: SC_2203 | L108: SC_1945 | M108: 2
J109: SC_2203 | L109: SC_2012 | M109: 0
J110: SC_2146 | L110: SC_2012 | M110: 0
J111: SC_2146 | L111: SC_2179 | M111: 2
J112: SC_2000 | L112: SC_2179 | M112: 2
J113: SC_2000 | L113: SC_1521 | M113: 1
J114: SC_2019 | L114: SC_2201 | M114: 2
J115: SC_2019 | L115: SC_2201 | M115: 2
J116: SC_2256 | L116: SC_2203 | M116: 2
J117: SC_2256 | L117: SC_2203 | M117: 2
J118: SC_2336 | L118: SC_2204 | M118: 0
J119: SC_2336 | L119: SC_2204 | M119: 0
J120: SC_2186 | L120: SC_2146 | M120: 2
J121: SC_2186 | L121: SC_2146 | M121: 2
J122: SC_1688 | L122: SC_2000 | M122: 2
J123: SC_1688 | L123: SC_2000 | M123: 2
J124: SC_2192 | L124: SC_2019 | M124: 2
J125: SC_2192 | L125: SC_2019 | M125: 2
J126: SC_2216 | L126: SC_2027 | M126: 0
J127: SC_2216 | L127: SC_2027 | M127: 0
J128: SC_2187 | L128: SC_2027 | M128: 0
J129: SC_2187 | L129: SC_2256 | M129: 2
J130: SC_2122 | L130: SC_2256 | M130: 2
J131: SC_2122 | L131: SC_2336 | M131: =COUNTIF($J$2:$J$144,L131) -> 2
J132: SC_1741 | L132: SC_2336 | M132: 2
J133: SC_1741 | L133: SC_2186 | M133: 2
J134: SC_170 | L134: SC_2186 | M134: 2
J135: SC_170 | L135: SC_1688 | M135: 2
J136: SC_829 | L136: SC_1688 | M136: 2
J137: SC_829 | L137: SC_2192 | M137: 2
J138: SC_436 | L138: SC_2192 | M138: 2
J139: SC_436 | L139: SC_2216 | M139: 2
J140: SC_484 | L140: SC_2216 | M140: 2
J141: SC_501 | L141: SC_2187 | M141: 2
J142: SC_501 | L142: SC_2187 | M142: 2
J143: SC_545 | L143: SC_2122 | M143: 2
J144: SC_545 | L144: SC_2122 | M144: 2
L145: SC_1741 | M145: 2
L146: SC_1741 | M146: 2
L147: SC_68 | M147: 0
L148: SC_170 | M148: 2
L149: SC_170 | M149: 2
L150: SC_829 | M150: 2
L151: SC_829 | M151: 2
L152: SC_436 | M152: 2
L153: SC_436 | M153: 2
L154: SC_484 | M154: 1
L155: SC_501 | M155: 2
L156: SC_501 | M156: 2
L157: SC_545 | M157: 2
L158: SC_545 | M158: 2

Sheet IT-TA
B1: Codigo | C1: Nombre | D1: Capacidad | E1: Licencia Ambiental obtenida | F1: Año de entrada | G1: P | H1: Total | J1: Año de Referencia
B2: =IF(ISBLANK(InfoPro!A2),"",InfoPro!A2) -> SC_487_A1 | C2: =IF(ISBLANK(InfoPro!B2),"",InfoPro!B2) -> PARQUE SOLAR EL VALLE 80 MW | D2: =IF(ISBLANK(InfoPro!E2),"",InfoPro!E2) -> 80 | E2: =IF(ISBLANK(InfoPro!N2),"",InfoPro!N2) -> NO | F2: =IF(ISBLANK(InfoPro!I2),"",YEAR(InfoPro!I2)-$J$2) -> 2 | G2: =IF(E2="SI",100,IF(E2="NO",0,"")) -> 0 | H2: =IF(G2="","",(G2)) -> 0 | J2: 2023
B3: =IF(ISBLANK(InfoPro!A3),"",InfoPro!A3) -> SC_1140_A2 | C3: =IF(ISBLANK(InfoPro!B3),"",InfoPro!B3) -> Zarzal Solar 100 MW | D3: =IF(ISBLANK(InfoPro!E3),"",InfoPro!E3) -> 100 | E3: =IF(ISBLANK(InfoPro!N3),"",InfoPro!N3) -> NO | F3: =IF(ISBLANK(InfoPro!I3),"",YEAR(InfoPro!I3)-$J$2) -> 4 | G3: =IF(E3="SI",100,IF(E3="NO",0,"")) -> 0 | H3: =IF(G3="","",(G3)) -> 0
B4: =IF(ISBLANK(InfoPro!A4),"",InfoPro!A4) -> SC_1259_A1 | C4: =IF(ISBLANK(InfoPro!B4),"",InfoPro!B4) -> DOMINICA DE 99.9 MW | D4: =IF(ISBLANK(InfoPro!E4),"",InfoPro!E4) -> 99.9 | E4: =IF(ISBLANK(InfoPro!N4),"",InfoPro!N4) -> NO | F4: =IF(ISBLANK(InfoPro!I4),"",YEAR(InfoPro!I4)-$J$2) -> 3 | G4: 0 | H4: 0
B5: =IF(ISBLANK(InfoPro!A5),"",InfoPro!A5) -> SC_1259_A2 | C5: =IF(ISBLANK(InfoPro!B5),"",InfoPro!B5) -> DOMINICA DE 99.9 MW | D5: =IF(ISBLANK(InfoPro!E5),"",InfoPro!E5) -> 99.9 | E5: =IF(ISBLANK(InfoPro!N5),"",InfoPro!N5) -> NO | F5: =IF(ISBLANK(InfoPro!I5),"",YEAR(InfoPro!I5)-$J$2) -> 3 | G5: 0 | H5: 0
B6: =IF(ISBLANK(InfoPro!A6),"",InfoPro!A6) -> SC_1265_A1 | C6: =IF(ISBLANK(InfoPro!B6),"",InfoPro!B6) -> LANZAROTE de 80 MW | D6: =IF(ISBLANK(InfoPro!E6),"",InfoPro!E6) -> 80 | E6: =IF(ISBLANK(InfoPro!N6),"",InfoPro!N6) -> NO | F6: =IF(ISBLANK(InfoPro!I6),"",YEAR(InfoPro!I6)-$J$2) -> 3 | G6: 0 | H6: 0
B7: =IF(ISBLANK(InfoPro!A7),"",InfoPro!A7) -> SC_1265_A2 | C7: =IF(ISBLANK(InfoPro!B7),"",InfoPro!B7) -> LANZAROTE de 80 MW | D7: =IF(ISBLANK(InfoPro!E7),"",InfoPro!E7) -> 80 | E7: =IF(ISBLANK(InfoPro!N7),"",InfoPro!N7) -> NO | F7: =IF(ISBLANK(InfoPro!I7),"",YEAR(InfoPro!I7)-$J$2) -> 3 | G7: 0 | H7: 0
B8: =IF(ISBLANK(InfoPro!A8),"",InfoPro!A8) -> SC_612_A1 | C8: =IF(ISBLANK(InfoPro!B8),"",InfoPro!B8) -> PARQUE SOLAR SAN JOSE | D8: =IF(ISBLANK(InfoPro!E8),"",InfoPro!E8) -> 9.9 | E8: =IF(ISBLANK(InfoPro!N8),"",InfoPro!N8) -> NO | F8: =IF(ISBLANK(InfoPro!I8),"",YEAR(InfoPro!I8)-$J$2) -> 1 | G8: 0 | H8: 0
B9: =IF(ISBLANK(InfoPro!A9),"",InfoPro!A9) -> SC_612_A2 | C9: =IF(ISBLANK(InfoPro!B9),"",InfoPro!B9) -> PARQUE SOLAR SAN JOSE | D9: =IF(ISBLANK(InfoPro!E9),"",InfoPro!E9) -> 9.9 | E9: =IF(ISBLANK(InfoPro!N9),"",InfoPro!N9) -> NO | F9: =IF(ISBLANK(InfoPro!I9),"",YEAR(InfoPro!I9)-$J$2) -> 1 | G9: 0 | H9: 0
B10: =IF(ISBLANK(InfoPro!A10),"",InfoPro!A10) -> SC_1254_A1 | C10: =IF(ISBLANK(InfoPro!B10),"",InfoPro!B10) -> Solar La Victoria 3 de 19.9 MW | D10: =IF(ISBLANK(InfoPro!E10),"",InfoPro!E10) -> 19.9 | E10: =IF(ISBLANK(InfoPro!N10),"",InfoPro!N10) -> SI | F10: =IF(ISBLANK(InfoPro!I10),"",YEAR(InfoPro!I10)-$J$2) -> 0 | G10: 100 | H10: 100
B11: =IF(ISBLANK(InfoPro!A11),"",InfoPro!A11) -> SC_1292_A1 | C11: =IF(ISBLANK(InfoPro!B11),"",InfoPro!B11) -> Solar El Carmelo 2 | D11: =IF(ISBLANK(InfoPro!E11),"",InfoPro!E11) -> 19.9 | E11: =IF(ISBLANK(InfoPro!N11),"",InfoPro!N11) -> SI | F11: =IF(ISBLANK(InfoPro!I11),"",YEAR(InfoPro!I11)-$J$2) -> 0 | G11: 100 | H11: 100
B12: =IF(ISBLANK(InfoPro!A12),"",InfoPro!A12) -> SC_1401_A1 | C12: =IF(ISBLANK(InfoPro!B12),"",InfoPro!B12) -> CSF CONTINUA OBANDO 90MW | D12: =IF(ISBLANK(InfoPro!E12),"",InfoPro!E12) -> 90 | E12: =IF(ISBLANK(InfoPro!N12),"",InfoPro!N12) -> SI | F12: =IF(ISBLANK(InfoPro!I12),"",YEAR(InfoPro!I12)-$J$2) -> 2 | G12: 100 | H12: 100
B13: =IF(ISBLANK(InfoPro!A13),"",InfoPro!A13) -> SC_1401_A2 | C13: =IF(ISBLANK(InfoPro!B13),"",InfoPro!B13) -> CSF CONTINUA OBANDO 90MW | D13: =IF(ISBLANK(InfoPro!E13),"",InfoPro!E13) -> 90 | E13: =IF(ISBLANK(InfoPro!N13),"",InfoPro!N13) -> SI | F13: =IF(ISBLANK(InfoPro!I13),"",YEAR(InfoPro!I13)-$J$2) -> 2 | G13: 100 | H13: 100
B14: =IF(ISBLANK(InfoPro!A14),"",InfoPro!A14) -> SC_1413_A1 | C14: =IF(ISBLANK(InfoPro!B14),"",InfoPro!B14) -> CSF CONTINUA LA VIRGINIA 120MW | D14: =IF(ISBLANK(InfoPro!E14),"",InfoPro!E14) -> 120 | E14: =IF(ISBLANK(InfoPro!N14),"",InfoPro!N14) -> NO | F14: =IF(ISBLANK(InfoPro!I14),"",YEAR(InfoPro!I14)-$J$2) -> 3 | G14: 0 | H14: 0
B15: =IF(ISBLANK(InfoPro!A15),"",InfoPro!A15) -> SC_1454_A1 | C15: =IF(ISBLANK(InfoPro!B15),"",InfoPro!B15) -> CE SAN MARCOS 80MW | D15: =IF(ISBLANK(InfoPro!E15),"",InfoPro!E15) -> 80 | E15: =IF(ISBLANK(InfoPro!N15),"",InfoPro!N15) -> NO | F15: =IF(ISBLANK(InfoPro!I15),"",YEAR(InfoPro!I15)-$J$2) -> 4 | G15: 0 | H15: 0
B16: =IF(ISBLANK(InfoPro!A16),"",InfoPro!A16) -> SC_1454_A2 | C16: =IF(ISBLANK(InfoPro!B16),"",InfoPro!B16) -> CE SAN MARCOS 80MW | D16: =IF(ISBLANK(InfoPro!E16),"",InfoPro!E16) -> 80 | E16: =IF(ISBLANK(InfoPro!N16),"",InfoPro!N16) -> NO | F16: =IF(ISBLANK(InfoPro!I16),"",YEAR(InfoPro!I16)-$J$2) -> 4 | G16: 0 | H16: 0
B17: =IF(ISBLANK(InfoPro!A17),"",InfoPro!A17) -> SC_1325_A1 | C17: =IF(ISBLANK(InfoPro!B17),"",InfoPro!B17) -> Solar El Carmelo 3 | D17: =IF(ISBLANK(InfoPro!E17),"",InfoPro!E17) -> 19.9 | E17: =IF(ISBLANK(InfoPro!N17),"",InfoPro!N17) -> NO | F17: =IF(ISBLANK(InfoPro!I17),"",YEAR(InfoPro!I17)-$J$2) -> 2 | G17: 0 | H17: 0
B18: =IF(ISBLANK(InfoPro!A18),"",InfoPro!A18) -> SC_1517_A1 | C18: =IF(ISBLANK(InfoPro!B18),"",InfoPro!B18) -> Autogenerador Solar Palmira 3 | D18: =IF(ISBLANK(InfoPro!E18),"",InfoPro!E18) -> 7.3 | E18: =IF(ISBLANK(InfoPro!N18),"",InfoPro!N18) -> NO | F18: =IF(ISBLANK(InfoPro!I18),"",YEAR(InfoPro!I18)-$J$2) -> 2 | G18: 0 | H18: 0
B19: =IF(ISBLANK(InfoPro!A19),"",InfoPro!A19) -> SC_1502_A1 | C19: =IF(ISBLANK(InfoPro!B19),"",InfoPro!B19) -> Solar El Carmelo 5 | D19: =IF(ISBLANK(InfoPro!E19),"",InfoPro!E19) -> 19.9 | E19: =IF(ISBLANK(InfoPro!N19),"",InfoPro!N19) -> NO | F19: =IF(ISBLANK(InfoPro!I19),"",YEAR(InfoPro!I19)-$J$2) -> 2 | G19: 0 | H19: 0
B20: =IF(ISBLANK(InfoPro!A20),"",InfoPro!A20) -> SC_1503_A1 | C20: =IF(ISBLANK(InfoPro!B20),"",InfoPro!B20) -> Solar El Carmelo 6 | D20: =IF(ISBLANK(InfoPro!E20),"",InfoPro!E20) -> 19.9 | E20: =IF(ISBLANK(InfoPro!N20),"",InfoPro!N20) -> NO | F20: =IF(ISBLANK(InfoPro!I20),"",YEAR(InfoPro!I20)-$J$2) -> 2 | G20: 0 | H20: 0
B21: =IF(ISBLANK(InfoPro!A21),"",InfoPro!A21) -> SC_1601_A1 | C21: =IF(ISBLANK(InfoPro!B21),"",InfoPro!B21) -> Autogenerador Solar Palmira 1 de 19,9MW | D21: =IF(ISBLANK(InfoPro!E21),"",InfoPro!E21) -> 19.9 | E21: =IF(ISBLANK(InfoPro!N21),"",InfoPro!N21) -> NO | F21: =IF(ISBLANK(InfoPro!I21),"",YEAR(InfoPro!I21)-$J$2) -> 0 | G21: 0 | H21: 0
B22: =IF(ISBLANK(InfoPro!A22),"",InfoPro!A22) -> SC_1658_A2 | C22: =IF(ISBLANK(InfoPro!B22),"",InfoPro!B22) -> Parque Solar Fotovoltaico La Virginia I | D22: =IF(ISBLANK(InfoPro!E22),"",InfoPro!E22) -> 100 | E22: =IF(ISBLANK(InfoPro!N22),"",InfoPro!N22) -> NO | F22: =IF(ISBLANK(InfoPro!I22),"",YEAR(InfoPro!I22)-$J$2) -> 4 | G22: 0 | H22: 0
B23: =IF(ISBLANK(InfoPro!A23),"",InfoPro!A23) -> SC_1572_A1 | C23: =IF(ISBLANK(InfoPro!B23),"",InfoPro!B23) -> CONDOR - 165 MW | D23: =IF(ISBLANK(InfoPro!E23),"",InfoPro!E23) -> 165 | E23: =IF(ISBLANK(InfoPro!N23),"",InfoPro!N23) -> NO | F23: =IF(ISBLANK(InfoPro!I23),"",YEAR(InfoPro!I23)-$J$2) -> 3 | G23: 0 | H23: 0
B24: =IF(ISBLANK(InfoPro!A24),"",InfoPro!A24) -> SC_1572_A2 | C24: =IF(ISBLANK(InfoPro!B24),"",InfoPro!B24) -> CONDOR - 165 MW | D24: =IF(ISBLANK(InfoPro!E24),"",InfoPro!E24) -> 165 | E24: =IF(ISBLANK(InfoPro!N24),"",InfoPro!N24) -> NO | F24: =IF(ISBLANK(InfoPro!I24),"",YEAR(InfoPro!I24)-$J$2) -> 3 | G24: 0 | H24: 0
B25: =IF(ISBLANK(InfoPro!A25),"",InfoPro!A25) -> SC_1501_A1 | C25: =IF(ISBLANK(InfoPro!B25),"",InfoPro!B25) -> Autogenerador Solar Palmira 4 | D25: =IF(ISBLANK(InfoPro!E25),"",InfoPro!E25) -> 19.9 | E25: =IF(ISBLANK(InfoPro!N25),"",InfoPro!N25) -> NO | F25: =IF(ISBLANK(InfoPro!I25),"",YEAR(InfoPro!I25)-$J$2) -> 2 | G25: 0 | H25: 0
B26: =IF(ISBLANK(InfoPro!A26),"",InfoPro!A26) -> SC_1490_A1 | C26: =IF(ISBLANK(InfoPro!B26),"",InfoPro!B26) -> Farallones Solar DE 50 mw | D26: =IF(ISBLANK(InfoPro!E26),"",InfoPro!E26) -> 50 | E26: =IF(ISBLANK(InfoPro!N26),"",InfoPro!N26) -> NO | F26: =IF(ISBLANK(InfoPro!I26),"",YEAR(InfoPro!I26)-$J$2) -> 3 | G26: 0 | H26: 0
B27: =IF(ISBLANK(InfoPro!A27),"",InfoPro!A27) -> SC_1883_A1 | C27: =IF(ISBLANK(InfoPro!B27),"",InfoPro!B27) -> Parque Eólico Valle | D27: =IF(ISBLANK(InfoPro!E27),"",InfoPro!E27) -> 250 | E27: =IF(ISBLANK(InfoPro!N27),"",InfoPro!N27) -> NO | F27: =IF(ISBLANK(InfoPro!I27),"",YEAR(InfoPro!I27)-$J$2) -> 4 | G27: 0 | H27: 0
B28: =IF(ISBLANK(InfoPro!A28),"",InfoPro!A28) -> SC_1883_A2 | C28: =IF(ISBLANK(InfoPro!B28),"",InfoPro!B28) -> Parque Eólico Valle | D28: =IF(ISBLANK(InfoPro!E28),"",InfoPro!E28) -> 250 | E28: =IF(ISBLANK(InfoPro!N28),"",InfoPro!N28) -> NO | F28: =IF(ISBLANK(InfoPro!I28),"",YEAR(InfoPro!I28)-$J$2) -> 4 | G28: 0 | H28: 0
B29: =IF(ISBLANK(InfoPro!A29),"",InfoPro!A29) -> SC_1947_A1 | C29: =IF(ISBLANK(InfoPro!B29),"",InfoPro!B29) -> Solar La Victoria 4 de 19.9MW | D29: =IF(ISBLANK(InfoPro!E29),"",InfoPro!E29) -> 19.9 | E29: =IF(ISBLANK(InfoPro!N29),"",InfoPro!N29) -> NO | F29: =IF(ISBLANK(InfoPro!I29),"",YEAR(InfoPro!I29)-$J$2) -> 0 | G29: 0 | H29: 0
B30: =IF(ISBLANK(InfoPro!A30),"",InfoPro!A30) -> SC_1950_A1 | C30: =IF(ISBLANK(InfoPro!B30),"",InfoPro!B30) -> Autogenerador Solar Candelaria | D30: =IF(ISBLANK(InfoPro!E30),"",InfoPro!E30) -> 19.9 | E30: =IF(ISBLANK(InfoPro!N30),"",InfoPro!N30) -> NO | F30: =IF(ISBLANK(InfoPro!I30),"",YEAR(InfoPro!I30)-$J$2) -> 2 | G30: 0 | H30: 0
B31: =IF(ISBLANK(InfoPro!A31),"",InfoPro!A31) -> SC_2008_A1 | C31: =IF(ISBLANK(InfoPro!B31),"",InfoPro!B31) -> Solar Ginebra | D31: =IF(ISBLANK(InfoPro!E31),"",InfoPro!E31) -> 9.9 | E31: =IF(ISBLANK(InfoPro!N31),"",InfoPro!N31) -> NO | F31: =IF(ISBLANK(InfoPro!I31),"",YEAR(InfoPro!I31)-$J$2) -> 0 | G31: 0 | H31: 0
B32: =IF(ISBLANK(InfoPro!A32),"",InfoPro!A32) -> SC_2098_A1 | C32: =IF(ISBLANK(InfoPro!B32),"",InfoPro!B32) -> Solar El Cerrito 1 | D32: =IF(ISBLANK(InfoPro!E32),"",InfoPro!E32) -> 19.9 | E32: =IF(ISBLANK(InfoPro!N32),"",InfoPro!N32) -> NO | F32: =IF(ISBLANK(InfoPro!I32),"",YEAR(InfoPro!I32)-$J$2) -> 2 | G32: 0 | H32: 0
B33: =IF(ISBLANK(InfoPro!A33),"",InfoPro!A33) -> SC_2208_A1 | C33: =IF(ISBLANK(InfoPro!B33),"",InfoPro!B33) -> Solar El Carmelo 4 19.9 | D33: =IF(ISBLANK(InfoPro!E33),"",InfoPro!E33) -> 19.9 | E33: =IF(ISBLANK(InfoPro!N33),"",InfoPro!N33) -> NO | F33: =IF(ISBLANK(InfoPro!I33),"",YEAR(InfoPro!I33)-$J$2) -> 2 | G33: 0 | H33: 0
B34: =IF(ISBLANK(InfoPro!A34),"",InfoPro!A34) -> SC_2210_A1 | C34: =IF(ISBLANK(InfoPro!B34),"",InfoPro!B34) -> Solar La Victoria 5 19.9 | D34: =IF(ISBLANK(InfoPro!E34),"",InfoPro!E34) -> 19.9 | E34: =IF(ISBLANK(InfoPro!N34),"",InfoPro!N34) -> NO | F34: =IF(ISBLANK(InfoPro!I34),"",YEAR(InfoPro!I34)-$J$2) -> 0 | G34: 0 | H34: 0
B35: =IF(ISBLANK(InfoPro!A35),"",InfoPro!A35) -> SC_2214_A1 | C35: =IF(ISBLANK(InfoPro!B35),"",InfoPro!B35) -> Autogenerador Solar Palmira 2 | D35: =IF(ISBLANK(InfoPro!E35),"",InfoPro!E35) -> 9.9 | E35: =IF(ISBLANK(InfoPro!N35),"",InfoPro!N35) -> NO | F35: =IF(ISBLANK(InfoPro!I35),"",YEAR(InfoPro!I35)-$J$2) -> 0 | G35: 0 | H35: 0
B36: =IF(ISBLANK(InfoPro!A36),"",InfoPro!A36) -> SC_1816_A1 | C36: =IF(ISBLANK(InfoPro!B36),"",InfoPro!B36) -> COG.001.2022 AZAHAR I 4.99 MW | D36: =IF(ISBLANK(InfoPro!E36),"",InfoPro!E36) -> 4.99 | E36: =IF(ISBLANK(InfoPro!N36),"",InfoPro!N36) -> NO | F36: =IF(ISBLANK(InfoPro!I36),"",YEAR(InfoPro!I36)-$J$2) -> 1 | G36: 0 | H36: 0
B37: =IF(ISBLANK(InfoPro!A37),"",InfoPro!A37) -> SC_1816_A2 | C37: =IF(ISBLANK(InfoPro!B37),"",InfoPro!B37) -> COG.001.2022 AZAHAR I 4.99 MW | D37: =IF(ISBLANK(InfoPro!E37),"",InfoPro!E37) -> 4.99 | E37: =IF(ISBLANK(InfoPro!N37),"",InfoPro!N37) -> NO | F37: =IF(ISBLANK(InfoPro!I37),"",YEAR(InfoPro!I37)-$J$2) -> 1 | G37: 0 | H37: 0
B38: =IF(ISBLANK(InfoPro!A38),"",InfoPro!A38) -> SC_2296_A2 | C38: =IF(ISBLANK(InfoPro!B38),"",InfoPro!B38) -> Parque Solar San Mateo 80 MW | D38: =IF(ISBLANK(InfoPro!E38),"",InfoPro!E38) -> 80 | E38: =IF(ISBLANK(InfoPro!N38),"",InfoPro!N38) -> NO | F38: =IF(ISBLANK(InfoPro!I38),"",YEAR(InfoPro!I38)-$J$2) -> 2 | G38: 0 | H38: 0
B39: =IF(ISBLANK(InfoPro!A39),"",InfoPro!A39) -> SC_2228_A1 | C39: =IF(ISBLANK(InfoPro!B39),"",InfoPro!B39) -> MFC Solar | D39: =IF(ISBLANK(InfoPro!E39),"",InfoPro!E39) -> 250 | E39: =IF(ISBLANK(InfoPro!N39),"",InfoPro!N39) -> NO | F39: =IF(ISBLANK(InfoPro!I39),"",YEAR(InfoPro!I39)-$J$2) -> 4 | G39: 0 | H39: 0
B40: =IF(ISBLANK(InfoPro!A40),"",InfoPro!A40) -> SC_2228_A2 | C40: =IF(ISBLANK(InfoPro!B40),"",InfoPro!B40) -> MFC Solar | D40: =IF(ISBLANK(InfoPro!E40),"",InfoPro!E40) -> 250 | E40: =IF(ISBLANK(InfoPro!N40),"",InfoPro!N40) -> NO | F40: =IF(ISBLANK(InfoPro!I40),"",YEAR(InfoPro!I40)-$J$2) -> 4 | G40: 0 | H40: 0
B41: =IF(ISBLANK(InfoPro!A41),"",InfoPro!A41) -> SC_2113_A1 | C41: =IF(ISBLANK(InfoPro!B41),"",InfoPro!B41) -> Coloradas II 98 MW | D41: =IF(ISBLANK(InfoPro!E41),"",InfoPro!E41) -> 98 | E41: =IF(ISBLANK(InfoPro!N41),"",InfoPro!N41) -> NO | F41: =IF(ISBLANK(InfoPro!I41),"",YEAR(InfoPro!I41)-$J$2) -> 3 | G41: 0 | H41: 0
B42: =IF(ISBLANK(InfoPro!A42),"",InfoPro!A42) -> SC_2315_A1 | C42: =IF(ISBLANK(InfoPro!B42),"",InfoPro!B42) -> HELIOS SAN MARCOS - 300 MW | D42: =IF(ISBLANK(InfoPro!E42),"",InfoPro!E42) -> 300 | E42: =IF(ISBLANK(InfoPro!N42),"",InfoPro!N42) -> NO | F42: =IF(ISBLANK(InfoPro!I42),"",YEAR(InfoPro!I42)-$J$2) -> 2 | G42: 0 | H42: 0
B43: =IF(ISBLANK(InfoPro!A43),"",InfoPro!A43) -> SC_2315_A2 | C43: =IF(ISBLANK(InfoPro!B43),"",InfoPro!B43) -> HELIOS SAN MARCOS - 300 MW | D43: =IF(ISBLANK(InfoPro!E43),"",InfoPro!E43) -> 300 | E43: =IF(ISBLANK(InfoPro!N43),"",InfoPro!N43) -> NO | F43: =IF(ISBLANK(InfoPro!I43),"",YEAR(InfoPro!I43)-$J$2) -> 2 | G43: 0 | H43: 0
B44: =IF(ISBLANK(InfoPro!A44),"",InfoPro!A44) ->  | C44: =IF(ISBLANK(InfoPro!B44),"",InfoPro!B44) ->  | D44: =IF(ISBLANK(InfoPro!E44),"",InfoPro!E44) ->  | E44: =IF(ISBLANK(InfoPro!N44),"",InfoPro!N44) ->  | F44: =IF(ISBLANK(InfoPro!I44),"",YEAR(InfoPro!I44)-$J$2) -> 
B45: =IF(ISBLANK(InfoPro!A45),"",InfoPro!A45) ->  | C45: =IF(ISBLANK(InfoPro!B45),"",InfoPro!B45) ->  | D45: =IF(ISBLANK(InfoPro!E45),"",InfoPro!E45) ->  | E45: =IF(ISBLANK(InfoPro!N45),"",InfoPro!N45) ->  | F45: =IF(ISBLANK(InfoPro!I45),"",YEAR(InfoPro!I45)-$J$2) -> 
B46: =IF(ISBLANK(InfoPro!A46),"",InfoPro!A46) ->  | C46: =IF(ISBLANK(InfoPro!B46),"",InfoPro!B46) ->  | D46: =IF(ISBLANK(InfoPro!E46),"",InfoPro!E46) ->  | E46: =IF(ISBLANK(InfoPro!N46),"",InfoPro!N46) ->  | F46: =IF(ISBLANK(InfoPro!I46),"",YEAR(InfoPro!I46)-$J$2) -> 
B47: =IF(ISBLANK(InfoPro!A47),"",InfoPro!A47) ->  | C47: =IF(ISBLANK(InfoPro!B47),"",InfoPro!B47) ->  | D47: =IF(ISBLANK(InfoPro!E47),"",InfoPro!E47) ->  | E47: =IF(ISBLANK(InfoPro!N47),"",InfoPro!N47) ->  | F47: =IF(ISBLANK(InfoPro!I47),"",YEAR(InfoPro!I47)-$J$2) -> 
B48: =IF(ISBLANK(InfoPro!A48),"",InfoPro!A48) ->  | C48: =IF(ISBLANK(InfoPro!B48),"",InfoPro!B48) ->  | D48: =IF(ISBLANK(InfoPro!E48),"",InfoPro!E48) ->  | E48: =IF(ISBLANK(InfoPro!N48),"",InfoPro!N48) ->  | F48: =IF(ISBLANK(InfoPro!I48),"",YEAR(InfoPro!I48)-$J$2) -> 
B49: =IF(ISBLANK(InfoPro!A49),"",InfoPro!A49) ->  | C49: =IF(ISBLANK(InfoPro!B49),"",InfoPro!B49) ->  | D49: =IF(ISBLANK(InfoPro!E49),"",InfoPro!E49) ->  | E49: =IF(ISBLANK(InfoPro!N49),"",InfoPro!N49) ->  | F49: =IF(ISBLANK(InfoPro!I49),"",YEAR(InfoPro!I49)-$J$2) -> 
B50: =IF(ISBLANK(InfoPro!A50),"",InfoPro!A50) ->  | C50: =IF(ISBLANK(InfoPro!B50),"",InfoPro!B50) ->  | D50: =IF(ISBLANK(InfoPro!E50),"",InfoPro!E50) ->  | E50: =IF(ISBLANK(InfoPro!N50),"",InfoPro!N50) ->  | F50: =IF(ISBLANK(InfoPro!I50),"",YEAR(InfoPro!I50)-$J$2) -> 
B51: =IF(ISBLANK(InfoPro!A51),"",InfoPro!A51) ->  | C51: =IF(ISBLANK(InfoPro!B51),"",InfoPro!B51) ->  | D51: =IF(ISBLANK(InfoPro!E51),"",InfoPro!E51) ->  | E51: =IF(ISBLANK(InfoPro!N51),"",InfoPro!N51) ->  | F51: =IF(ISBLANK(InfoPro!I51),"",YEAR(InfoPro!I51)-$J$2) -> 
B52: =IF(ISBLANK(InfoPro!A52),"",InfoPro!A52) ->  | C52: =IF(ISBLANK(InfoPro!B52),"",InfoPro!B52) ->  | D52: =IF(ISBLANK(InfoPro!E52),"",InfoPro!E52) ->  | E52: =IF(ISBLANK(InfoPro!N52),"",InfoPro!N52) ->  | F52: =IF(ISBLANK(InfoPro!I52),"",YEAR(InfoPro!I52)-$J$2) -> 
B53: =IF(ISBLANK(InfoPro!A53),"",InfoPro!A53) ->  | C53: =IF(ISBLANK(InfoPro!B53),"",InfoPro!B53) ->  | D53: =IF(ISBLANK(InfoPro!E53),"",InfoPro!E53) ->  | E53: =IF(ISBLANK(InfoPro!N53),"",InfoPro!N53) ->  | F53: =IF(ISBLANK(InfoPro!I53),"",YEAR(InfoPro!I53)-$J$2) -> 
B54: =IF(ISBLANK(InfoPro!A54),"",InfoPro!A54) ->  | C54: =IF(ISBLANK(InfoPro!B54),"",InfoPro!B54) ->  | D54: =IF(ISBLANK(InfoPro!E54),"",InfoPro!E54) ->  | E54: =IF(ISBLANK(InfoPro!N54),"",InfoPro!N54) ->  | F54: =IF(ISBLANK(InfoPro!I54),"",YEAR(InfoPro!I54)-$J$2) -> 
B55: =IF(ISBLANK(InfoPro!A55),"",InfoPro!A55) ->  | C55: =IF(ISBLANK(InfoPro!B55),"",InfoPro!B55) ->  | D55: =IF(ISBLANK(InfoPro!E55),"",InfoPro!E55) ->  | E55: =IF(ISBLANK(InfoPro!N55),"",InfoPro!N55) ->  | F55: =IF(ISBLANK(InfoPro!I55),"",YEAR(InfoPro!I55)-$J$2) -> 
B56: =IF(ISBLANK(InfoPro!A56),"",InfoPro!A56) ->  | C56: =IF(ISBLANK(InfoPro!B56),"",InfoPro!B56) ->  | D56: =IF(ISBLANK(InfoPro!E56),"",InfoPro!E56) ->  | E56: =IF(ISBLANK(InfoPro!N56),"",InfoPro!N56) ->  | F56: =IF(ISBLANK(InfoPro!I56),"",YEAR(InfoPro!I56)-$J$2) -> 
B57: =IF(ISBLANK(InfoPro!A57),"",InfoPro!A57) ->  | C57: =IF(ISBLANK(InfoPro!B57),"",InfoPro!B57) ->  | D57: =IF(ISBLANK(InfoPro!E57),"",InfoPro!E57) ->  | E57: =IF(ISBLANK(InfoPro!N57),"",InfoPro!N57) ->  | F57: =IF(ISBLANK(InfoPro!I57),"",YEAR(InfoPro!I57)-$J$2) -> 
B58: =IF(ISBLANK(InfoPro!A58),"",InfoPro!A58) ->  | C58: =IF(ISBLANK(InfoPro!B58),"",InfoPro!B58) ->  | D58: =IF(ISBLANK(InfoPro!E58),"",InfoPro!E58) ->  | E58: =IF(ISBLANK(InfoPro!N58),"",InfoPro!N58) ->  | F58: =IF(ISBLANK(InfoPro!I58),"",YEAR(InfoPro!I58)-$J$2) -> 
B59: =IF(ISBLANK(InfoPro!A59),"",InfoPro!A59) ->  | C59: =IF(ISBLANK(InfoPro!B59),"",InfoPro!B59) ->  | D59: =IF(ISBLANK(InfoPro!E59),"",InfoPro!E59) ->  | E59: =IF(ISBLANK(InfoPro!N59),"",InfoPro!N59) ->  | F59: =IF(ISBLANK(InfoPro!I59),"",YEAR(InfoPro!I59)-$J$2) -> 
B60: =IF(ISBLANK(InfoPro!A60),"",InfoPro!A60) ->  | C60: =IF(ISBLANK(InfoPro!B60),"",InfoPro!B60) ->  | D60: =IF(ISBLANK(InfoPro!E60),"",InfoPro!E60) ->  | E60: =IF(ISBLANK(InfoPro!N60),"",InfoPro!N60) ->  | F60: =IF(ISBLANK(InfoPro!I60),"",YEAR(InfoPro!I60)-$J$2) -> 
B61: =IF(ISBLANK(InfoPro!A61),"",InfoPro!A61) ->  | C61: =IF(ISBLANK(InfoPro!B61),"",InfoPro!B61) ->  | D61: =IF(ISBLANK(InfoPro!E61),"",InfoPro!E61) ->  | E61: =IF(ISBLANK(InfoPro!N61),"",InfoPro!N61) ->  | F61: =IF(ISBLANK(InfoPro!I61),"",YEAR(InfoPro!I61)-$J$2) -> 
B62: =IF(ISBLANK(InfoPro!A62),"",InfoPro!A62) ->  | C62: =IF(ISBLANK(InfoPro!B62),"",InfoPro!B62) ->  | D62: =IF(ISBLANK(InfoPro!E62),"",InfoPro!E62) ->  | E62: =IF(ISBLANK(InfoPro!N62),"",InfoPro!N62) ->  | F62: =IF(ISBLANK(InfoPro!I62),"",YEAR(InfoPro!I62)-$J$2) -> 
B63: =IF(ISBLANK(InfoPro!A63),"",InfoPro!A63) ->  | C63: =IF(ISBLANK(InfoPro!B63),"",InfoPro!B63) ->  | D63: =IF(ISBLANK(InfoPro!E63),"",InfoPro!E63) ->  | E63: =IF(ISBLANK(InfoPro!N63),"",InfoPro!N63) ->  | F63: =IF(ISBLANK(InfoPro!I63),"",YEAR(InfoPro!I63)-$J$2) -> 
B64: =IF(ISBLANK(InfoPro!A64),"",InfoPro!A64) ->  | C64: =IF(ISBLANK(InfoPro!B64),"",InfoPro!B64) ->  | D64: =IF(ISBLANK(InfoPro!E64),"",InfoPro!E64) ->  | E64: =IF(ISBLANK(InfoPro!N64),"",InfoPro!N64) ->  | F64: =IF(ISBLANK(InfoPro!I64),"",YEAR(InfoPro!I64)-$J$2) -> 
B65: =IF(ISBLANK(InfoPro!A65),"",InfoPro!A65) ->  | C65: =IF(ISBLANK(InfoPro!B65),"",InfoPro!B65) ->  | D65: =IF(ISBLANK(InfoPro!E65),"",InfoPro!E65) ->  | E65: =IF(ISBLANK(InfoPro!N65),"",InfoPro!N65) ->  | F65: =IF(ISBLANK(InfoPro!I65),"",YEAR(InfoPro!I65)-$J$2) -> 
B66: =IF(ISBLANK(InfoPro!A66),"",InfoPro!A66) ->  | C66: =IF(ISBLANK(InfoPro!B66),"",InfoPro!B66) ->  | D66: =IF(ISBLANK(InfoPro!E66),"",InfoPro!E66) ->  | E66: =IF(ISBLANK(InfoPro!N66),"",InfoPro!N66) ->  | F66: =IF(ISBLANK(InfoPro!I66),"",YEAR(InfoPro!I66)-$J$2) -> 
B67: =IF(ISBLANK(InfoPro!A67),"",InfoPro!A67) ->  | C67: =IF(ISBLANK(InfoPro!B67),"",InfoPro!B67) ->  | D67: =IF(ISBLANK(InfoPro!E67),"",InfoPro!E67) ->  | E67: =IF(ISBLANK(InfoPro!N67),"",InfoPro!N67) ->  | F67: =IF(ISBLANK(InfoPro!I67),"",YEAR(InfoPro!I67)-$J$2) ->  | G67: =IF(E67="SI",100,IF(E67="NO",0,"")) ->  | H67: =IF(G67="","",(G67)) -> 
B68: =IF(ISBLANK(InfoPro!A68),"",InfoPro!A68) ->  | C68: =IF(ISBLANK(InfoPro!B68),"",InfoPro!B68) ->  | D68: =IF(ISBLANK(InfoPro!E68),"",InfoPro!E68) ->  | E68: =IF(ISBLANK(InfoPro!N68),"",InfoPro!N68) ->  | F68: =IF(ISBLANK(InfoPro!I68),"",YEAR(InfoPro!I68)-$J$2) -> 
B69: =IF(ISBLANK(InfoPro!A69),"",InfoPro!A69) ->  | C69: =IF(ISBLANK(InfoPro!B69),"",InfoPro!B69) ->  | D69: =IF(ISBLANK(InfoPro!E69),"",InfoPro!E69) ->  | E69: =IF(ISBLANK(InfoPro!N69),"",InfoPro!N69) ->  | F69: =IF(ISBLANK(InfoPro!I69),"",YEAR(InfoPro!I69)-$J$2) -> 
B70: =IF(ISBLANK(InfoPro!A70),"",InfoPro!A70) ->  | C70: =IF(ISBLANK(InfoPro!B70),"",InfoPro!B70) ->  | D70: =IF(ISBLANK(InfoPro!E70),"",InfoPro!E70) ->  | E70: =IF(ISBLANK(InfoPro!N70),"",InfoPro!N70) ->  | F70: =IF(ISBLANK(InfoPro!I70),"",YEAR(InfoPro!I70)-$J$2) -> 
B71: =IF(ISBLANK(InfoPro!A71),"",InfoPro!A71) ->  | C71: =IF(ISBLANK(InfoPro!B71),"",InfoPro!B71) ->  | D71: =IF(ISBLANK(InfoPro!E71),"",InfoPro!E71) ->  | E71: =IF(ISBLANK(InfoPro!N71),"",InfoPro!N71) ->  | F71: =IF(ISBLANK(InfoPro!I71),"",YEAR(InfoPro!I71)-$J$2) -> 
B72: =IF(ISBLANK(InfoPro!A72),"",InfoPro!A72) ->  | C72: =IF(ISBLANK(InfoPro!B72),"",InfoPro!B72) ->  | D72: =IF(ISBLANK(InfoPro!E72),"",InfoPro!E72) ->  | E72: =IF(ISBLANK(InfoPro!N72),"",InfoPro!N72) ->  | F72: =IF(ISBLANK(InfoPro!I72),"",YEAR(InfoPro!I72)-$J$2) -> 
B73: =IF(ISBLANK(InfoPro!A73),"",InfoPro!A73) ->  | C73: =IF(ISBLANK(InfoPro!B73),"",InfoPro!B73) ->  | D73: =IF(ISBLANK(InfoPro!E73),"",InfoPro!E73) ->  | E73: =IF(ISBLANK(InfoPro!N73),"",InfoPro!N73) ->  | F73: =IF(ISBLANK(InfoPro!I73),"",YEAR(InfoPro!I73)-$J$2) -> 
B74: =IF(ISBLANK(InfoPro!A74),"",InfoPro!A74) ->  | C74: =IF(ISBLANK(InfoPro!B74),"",InfoPro!B74) ->  | D74: =IF(ISBLANK(InfoPro!E74),"",InfoPro!E74) ->  | E74: =IF(ISBLANK(InfoPro!N74),"",InfoPro!N74) ->  | F74: =IF(ISBLANK(InfoPro!I74),"",YEAR(InfoPro!I74)-$J$2) -> 
B75: =IF(ISBLANK(InfoPro!A75),"",InfoPro!A75) ->  | C75: =IF(ISBLANK(InfoPro!B75),"",InfoPro!B75) ->  | D75: =IF(ISBLANK(InfoPro!E75),"",InfoPro!E75) ->  | E75: =IF(ISBLANK(InfoPro!N75),"",InfoPro!N75) ->  | F75: =IF(ISBLANK(InfoPro!I75),"",YEAR(InfoPro!I75)-$J$2) -> 
B76: =IF(ISBLANK(InfoPro!A76),"",InfoPro!A76) ->  | C76: =IF(ISBLANK(InfoPro!B76),"",InfoPro!B76) ->  | D76: =IF(ISBLANK(InfoPro!E76),"",InfoPro!E76) ->  | E76: =IF(ISBLANK(InfoPro!N76),"",InfoPro!N76) ->  | F76: =IF(ISBLANK(InfoPro!I76),"",YEAR(InfoPro!I76)-$J$2) -> 
B77: =IF(ISBLANK(InfoPro!A77),"",InfoPro!A77) ->  | C77: =IF(ISBLANK(InfoPro!B77),"",InfoPro!B77) ->  | D77: =IF(ISBLANK(InfoPro!E77),"",InfoPro!E77) ->  | E77: =IF(ISBLANK(InfoPro!N77),"",InfoPro!N77) ->  | F77: =IF(ISBLANK(InfoPro!I77),"",YEAR(InfoPro!I77)-$J$2) -> 
B78: =IF(ISBLANK(InfoPro!A78),"",InfoPro!A78) ->  | C78: =IF(ISBLANK(InfoPro!B78),"",InfoPro!B78) ->  | D78: =IF(ISBLANK(InfoPro!E78),"",InfoPro!E78) ->  | E78: =IF(ISBLANK(InfoPro!N78),"",InfoPro!N78) ->  | F78: =IF(ISBLANK(InfoPro!I78),"",YEAR(InfoPro!I78)-$J$2) -> 
B79: =IF(ISBLANK(InfoPro!A79),"",InfoPro!A79) ->  | C79: =IF(ISBLANK(InfoPro!B79),"",InfoPro!B79) ->  | D79: =IF(ISBLANK(InfoPro!E79),"",InfoPro!E79) ->  | E79: =IF(ISBLANK(InfoPro!N79),"",InfoPro!N79) ->  | F79: =IF(ISBLANK(InfoPro!I79),"",YEAR(InfoPro!I79)-$J$2) -> 
B80: =IF(ISBLANK(InfoPro!A80),"",InfoPro!A80) ->  | C80: =IF(ISBLANK(InfoPro!B80),"",InfoPro!B80) ->  | D80: =IF(ISBLANK(InfoPro!E80),"",InfoPro!E80) ->  | E80: =IF(ISBLANK(InfoPro!N80),"",InfoPro!N80) ->  | F80: =IF(ISBLANK(InfoPro!I80),"",YEAR(InfoPro!I80)-$J$2) -> 
B81: =IF(ISBLANK(InfoPro!A81),"",InfoPro!A81) ->  | C81: =IF(ISBLANK(InfoPro!B81),"",InfoPro!B81) ->  | D81: =IF(ISBLANK(InfoPro!E81),"",InfoPro!E81) ->  | E81: =IF(ISBLANK(InfoPro!N81),"",InfoPro!N81) ->  | F81: =IF(ISBLANK(InfoPro!I81),"",YEAR(InfoPro!I81)-$J$2) -> 
B82: =IF(ISBLANK(InfoPro!A82),"",InfoPro!A82) ->  | C82: =IF(ISBLANK(InfoPro!B82),"",InfoPro!B82) ->  | D82: =IF(ISBLANK(InfoPro!E82),"",InfoPro!E82) ->  | E82: =IF(ISBLANK(InfoPro!N82),"",InfoPro!N82) ->  | F82: =IF(ISBLANK(InfoPro!I82),"",YEAR(InfoPro!I82)-$J$2) -> 
B83: =IF(ISBLANK(InfoPro!A83),"",InfoPro!A83) ->  | C83: =IF(ISBLANK(InfoPro!B83),"",InfoPro!B83) ->  | D83: =IF(ISBLANK(InfoPro!E83),"",InfoPro!E83) ->  | E83: =IF(ISBLANK(InfoPro!N83),"",InfoPro!N83) ->  | F83: =IF(ISBLANK(InfoPro!I83),"",YEAR(InfoPro!I83)-$J$2) -> 
B84: =IF(ISBLANK(InfoPro!A84),"",InfoPro!A84) ->  | C84: =IF(ISBLANK(InfoPro!B84),"",InfoPro!B84) ->  | D84: =IF(ISBLANK(InfoPro!E84),"",InfoPro!E84) ->  | E84: =IF(ISBLANK(InfoPro!N84),"",InfoPro!N84) ->  | F84: =IF(ISBLANK(InfoPro!I84),"",YEAR(InfoPro!I84)-$J$2) -> 
B85: =IF(ISBLANK(InfoPro!A85),"",InfoPro!A85) ->  | C85: =IF(ISBLANK(InfoPro!B85),"",InfoPro!B85) ->  | D85: =IF(ISBLANK(InfoPro!E85),"",InfoPro!E85) ->  | E85: =IF(ISBLANK(InfoPro!N85),"",InfoPro!N85) ->  | F85: =IF(ISBLANK(InfoPro!I85),"",YEAR(InfoPro!I85)-$J$2) -> 
B86: =IF(ISBLANK(InfoPro!A86),"",InfoPro!A86) ->  | C86: =IF(ISBLANK(InfoPro!B86),"",InfoPro!B86) ->  | D86: =IF(ISBLANK(InfoPro!E86),"",InfoPro!E86) ->  | E86: =IF(ISBLANK(InfoPro!N86),"",InfoPro!N86) ->  | F86: =IF(ISBLANK(InfoPro!I86),"",YEAR(InfoPro!I86)-$J$2) -> 
B87: =IF(ISBLANK(InfoPro!A87),"",InfoPro!A87) ->  | C87: =IF(ISBLANK(InfoPro!B87),"",InfoPro!B87) ->  | D87: =IF(ISBLANK(InfoPro!E87),"",InfoPro!E87) ->  | E87: =IF(ISBLANK(InfoPro!N87),"",InfoPro!N87) ->  | F87: =IF(ISBLANK(InfoPro!I87),"",YEAR(InfoPro!I87)-$J$2) -> 
B88: =IF(ISBLANK(InfoPro!A88),"",InfoPro!A88) ->  | C88: =IF(ISBLANK(InfoPro!B88),"",InfoPro!B88) ->  | D88: =IF(ISBLANK(InfoPro!E88),"",InfoPro!E88) ->  | E88: =IF(ISBLANK(InfoPro!N88),"",InfoPro!N88) ->  | F88: =IF(ISBLANK(InfoPro!I88),"",YEAR(InfoPro!I88)-$J$2) -> 
B89: =IF(ISBLANK(InfoPro!A89),"",InfoPro!A89) ->  | C89: =IF(ISBLANK(InfoPro!B89),"",InfoPro!B89) ->  | D89: =IF(ISBLANK(InfoPro!E89),"",InfoPro!E89) ->  | E89: =IF(ISBLANK(InfoPro!N89),"",InfoPro!N89) ->  | F89: =IF(ISBLANK(InfoPro!I89),"",YEAR(InfoPro!I89)-$J$2) -> 
B90: =IF(ISBLANK(InfoPro!A90),"",InfoPro!A90) ->  | C90: =IF(ISBLANK(InfoPro!B90),"",InfoPro!B90) ->  | D90: =IF(ISBLANK(InfoPro!E90),"",InfoPro!E90) ->  | E90: =IF(ISBLANK(InfoPro!N90),"",InfoPro!N90) ->  | F90: =IF(ISBLANK(InfoPro!I90),"",YEAR(InfoPro!I90)-$J$2) -> 
B91: =IF(ISBLANK(InfoPro!A91),"",InfoPro!A91) ->  | C91: =IF(ISBLANK(InfoPro!B91),"",InfoPro!B91) ->  | D91: =IF(ISBLANK(InfoPro!E91),"",InfoPro!E91) ->  | E91: =IF(ISBLANK(InfoPro!N91),"",InfoPro!N91) ->  | F91: =IF(ISBLANK(InfoPro!I91),"",YEAR(InfoPro!I91)-$J$2) -> 
B92: =IF(ISBLANK(InfoPro!A92),"",InfoPro!A92) ->  | C92: =IF(ISBLANK(InfoPro!B92),"",InfoPro!B92) ->  | D92: =IF(ISBLANK(InfoPro!E92),"",InfoPro!E92) ->  | E92: =IF(ISBLANK(InfoPro!N92),"",InfoPro!N92) ->  | F92: =IF(ISBLANK(InfoPro!I92),"",YEAR(InfoPro!I92)-$J$2) -> 
B93: =IF(ISBLANK(InfoPro!A93),"",InfoPro!A93) ->  | C93: =IF(ISBLANK(InfoPro!B93),"",InfoPro!B93) ->  | D93: =IF(ISBLANK(InfoPro!E93),"",InfoPro!E93) ->  | E93: =IF(ISBLANK(InfoPro!N93),"",InfoPro!N93) ->  | F93: =IF(ISBLANK(InfoPro!I93),"",YEAR(InfoPro!I93)-$J$2) -> 
B94: =IF(ISBLANK(InfoPro!A94),"",InfoPro!A94) ->  | C94: =IF(ISBLANK(InfoPro!B94),"",InfoPro!B94) ->  | D94: =IF(ISBLANK(InfoPro!E94),"",InfoPro!E94) ->  | E94: =IF(ISBLANK(InfoPro!N94),"",InfoPro!N94) ->  | F94: =IF(ISBLANK(InfoPro!I94),"",YEAR(InfoPro!I94)-$J$2) -> 
B95: =IF(ISBLANK(InfoPro!A95),"",InfoPro!A95) ->  | C95: =IF(ISBLANK(InfoPro!B95),"",InfoPro!B95) ->  | D95: =IF(ISBLANK(InfoPro!E95),"",InfoPro!E95) ->  | E95: =IF(ISBLANK(InfoPro!N95),"",InfoPro!N95) ->  | F95: =IF(ISBLANK(InfoPro!I95),"",YEAR(InfoPro!I95)-$J$2) -> 
B96: =IF(ISBLANK(InfoPro!A96),"",InfoPro!A96) ->  | C96: =IF(ISBLANK(InfoPro!B96),"",InfoPro!B96) ->  | D96: =IF(ISBLANK(InfoPro!E96),"",InfoPro!E96) ->  | E96: =IF(ISBLANK(InfoPro!N96),"",InfoPro!N96) ->  | F96: =IF(ISBLANK(InfoPro!I96),"",YEAR(InfoPro!I96)-$J$2) -> 
B97: =IF(ISBLANK(InfoPro!A97),"",InfoPro!A97) ->  | C97: =IF(ISBLANK(InfoPro!B97),"",InfoPro!B97) ->  | D97: =IF(ISBLANK(InfoPro!E97),"",InfoPro!E97) ->  | E97: =IF(ISBLANK(InfoPro!N97),"",InfoPro!N97) ->  | F97: =IF(ISBLANK(InfoPro!I97),"",YEAR(InfoPro!I97)-$J$2) -> 
B98: =IF(ISBLANK(InfoPro!A98),"",InfoPro!A98) ->  | C98: =IF(ISBLANK(InfoPro!B98),"",InfoPro!B98) ->  | D98: =IF(ISBLANK(InfoPro!E98),"",InfoPro!E98) ->  | E98: =IF(ISBLANK(InfoPro!N98),"",InfoPro!N98) ->  | F98: =IF(ISBLANK(InfoPro!I98),"",YEAR(InfoPro!I98)-$J$2) -> 
B99: =IF(ISBLANK(InfoPro!A99),"",InfoPro!A99) ->  | C99: =IF(ISBLANK(InfoPro!B99),"",InfoPro!B99) ->  | D99: =IF(ISBLANK(InfoPro!E99),"",InfoPro!E99) ->  | E99: =IF(ISBLANK(InfoPro!N99),"",InfoPro!N99) ->  | F99: =IF(ISBLANK(InfoPro!I99),"",YEAR(InfoPro!I99)-$J$2) -> 
B100: =IF(ISBLANK(InfoPro!A100),"",InfoPro!A100) ->  | C100: =IF(ISBLANK(InfoPro!B100),"",InfoPro!B100) ->  | D100: =IF(ISBLANK(InfoPro!E100),"",InfoPro!E100) ->  | E100: =IF(ISBLANK(InfoPro!N100),"",InfoPro!N100) ->  | F100: =IF(ISBLANK(InfoPro!I100),"",YEAR(InfoPro!I100)-$J$2) -> 
B101: =IF(ISBLANK(InfoPro!A101),"",InfoPro!A101) ->  | C101: =IF(ISBLANK(InfoPro!B101),"",InfoPro!B101) ->  | D101: =IF(ISBLANK(InfoPro!E101),"",InfoPro!E101) ->  | E101: =IF(ISBLANK(InfoPro!N101),"",InfoPro!N101) ->  | F101: =IF(ISBLANK(InfoPro!I101),"",YEAR(InfoPro!I101)-$J$2) -> 
B102: =IF(ISBLANK(InfoPro!A102),"",InfoPro!A102) ->  | C102: =IF(ISBLANK(InfoPro!B102),"",InfoPro!B102) ->  | D102: =IF(ISBLANK(InfoPro!E102),"",InfoPro!E102) ->  | E102: =IF(ISBLANK(InfoPro!N102),"",InfoPro!N102) ->  | F102: =IF(ISBLANK(InfoPro!I102),"",YEAR(InfoPro!I102)-$J$2) -> 
B103: =IF(ISBLANK(InfoPro!A103),"",InfoPro!A103) ->  | C103: =IF(ISBLANK(InfoPro!B103),"",InfoPro!B103) ->  | D103: =IF(ISBLANK(InfoPro!E103),"",InfoPro!E103) ->  | E103: =IF(ISBLANK(InfoPro!N103),"",InfoPro!N103) ->  | F103: =IF(ISBLANK(InfoPro!I103),"",YEAR(InfoPro!I103)-$J$2) -> 
B104: =IF(ISBLANK(InfoPro!A104),"",InfoPro!A104) ->  | C104: =IF(ISBLANK(InfoPro!B104),"",InfoPro!B104) ->  | D104: =IF(ISBLANK(InfoPro!E104),"",InfoPro!E104) ->  | E104: =IF(ISBLANK(InfoPro!N104),"",InfoPro!N104) ->  | F104: =IF(ISBLANK(InfoPro!I104),"",YEAR(InfoPro!I104)-$J$2) -> 
B105: =IF(ISBLANK(InfoPro!A105),"",InfoPro!A105) ->  | C105: =IF(ISBLANK(InfoPro!B105),"",InfoPro!B105) ->  | D105: =IF(ISBLANK(InfoPro!E105),"",InfoPro!E105) ->  | E105: =IF(ISBLANK(InfoPro!N105),"",InfoPro!N105) ->  | F105: =IF(ISBLANK(InfoPro!I105),"",YEAR(InfoPro!I105)-$J$2) -> 
B106: =IF(ISBLANK(InfoPro!A106),"",InfoPro!A106) ->  | C106: =IF(ISBLANK(InfoPro!B106),"",InfoPro!B106) ->  | D106: =IF(ISBLANK(InfoPro!E106),"",InfoPro!E106) ->  | E106: =IF(ISBLANK(InfoPro!N106),"",InfoPro!N106) ->  | F106: =IF(ISBLANK(InfoPro!I106),"",YEAR(InfoPro!I106)-$J$2) -> 
B107: =IF(ISBLANK(InfoPro!A107),"",InfoPro!A107) ->  | C107: =IF(ISBLANK(InfoPro!B107),"",InfoPro!B107) ->  | D107: =IF(ISBLANK(InfoPro!E107),"",InfoPro!E107) ->  | E107: =IF(ISBLANK(InfoPro!N107),"",InfoPro!N107) ->  | F107: =IF(ISBLANK(InfoPro!I107),"",YEAR(InfoPro!I107)-$J$2) -> 
B108: =IF(ISBLANK(InfoPro!A108),"",InfoPro!A108) ->  | C108: =IF(ISBLANK(InfoPro!B108),"",InfoPro!B108) ->  | D108: =IF(ISBLANK(InfoPro!E108),"",InfoPro!E108) ->  | E108: =IF(ISBLANK(InfoPro!N108),"",InfoPro!N108) ->  | F108: =IF(ISBLANK(InfoPro!I108),"",YEAR(InfoPro!I108)-$J$2) -> 
B109: =IF(ISBLANK(InfoPro!A109),"",InfoPro!A109) ->  | C109: =IF(ISBLANK(InfoPro!B109),"",InfoPro!B109) ->  | D109: =IF(ISBLANK(InfoPro!E109),"",InfoPro!E109) ->  | E109: =IF(ISBLANK(InfoPro!N109),"",InfoPro!N109) ->  | F109: =IF(ISBLANK(InfoPro!I109),"",YEAR(InfoPro!I109)-$J$2) -> 
B110: =IF(ISBLANK(InfoPro!A110),"",InfoPro!A110) ->  | C110: =IF(ISBLANK(InfoPro!B110),"",InfoPro!B110) ->  | D110: =IF(ISBLANK(InfoPro!E110),"",InfoPro!E110) ->  | E110: =IF(ISBLANK(InfoPro!N110),"",InfoPro!N110) ->  | F110: =IF(ISBLANK(InfoPro!I110),"",YEAR(InfoPro!I110)-$J$2) -> 
B111: =IF(ISBLANK(InfoPro!A111),"",InfoPro!A111) ->  | C111: =IF(ISBLANK(InfoPro!B111),"",InfoPro!B111) ->  | D111: =IF(ISBLANK(InfoPro!E111),"",InfoPro!E111) ->  | E111: =IF(ISBLANK(InfoPro!N111),"",InfoPro!N111) ->  | F111: =IF(ISBLANK(InfoPro!I111),"",YEAR(InfoPro!I111)-$J$2) -> 
B112: =IF(ISBLANK(InfoPro!A112),"",InfoPro!A112) ->  | C112: =IF(ISBLANK(InfoPro!B112),"",InfoPro!B112) ->  | D112: =IF(ISBLANK(InfoPro!E112),"",InfoPro!E112) ->  | E112: =IF(ISBLANK(InfoPro!N112),"",InfoPro!N112) ->  | F112: =IF(ISBLANK(InfoPro!I112),"",YEAR(InfoPro!I112)-$J$2) -> 
B113: =IF(ISBLANK(InfoPro!A113),"",InfoPro!A113) ->  | C113: =IF(ISBLANK(InfoPro!B113),"",InfoPro!B113) ->  | D113: =IF(ISBLANK(InfoPro!E113),"",InfoPro!E113) ->  | E113: =IF(ISBLANK(InfoPro!N113),"",InfoPro!N113) ->  | F113: =IF(ISBLANK(InfoPro!I113),"",YEAR(InfoPro!I113)-$J$2) -> 
B114: =IF(ISBLANK(InfoPro!A114),"",InfoPro!A114) ->  | C114: =IF(ISBLANK(InfoPro!B114),"",InfoPro!B114) ->  | D114: =IF(ISBLANK(InfoPro!E114),"",InfoPro!E114) ->  | E114: =IF(ISBLANK(InfoPro!N114),"",InfoPro!N114) ->  | F114: =IF(ISBLANK(InfoPro!I114),"",YEAR(InfoPro!I114)-$J$2) -> 
B115: =IF(ISBLANK(InfoPro!A115),"",InfoPro!A115) ->  | C115: =IF(ISBLANK(InfoPro!B115),"",InfoPro!B115) ->  | D115: =IF(ISBLANK(InfoPro!E115),"",InfoPro!E115) ->  | E115: =IF(ISBLANK(InfoPro!N115),"",InfoPro!N115) ->  | F115: =IF(ISBLANK(InfoPro!I115),"",YEAR(InfoPro!I115)-$J$2) -> 
B116: =IF(ISBLANK(InfoPro!A116),"",InfoPro!A116) ->  | C116: =IF(ISBLANK(InfoPro!B116),"",InfoPro!B116) ->  | D116: =IF(ISBLANK(InfoPro!E116),"",InfoPro!E116) ->  | E116: =IF(ISBLANK(InfoPro!N116),"",InfoPro!N116) ->  | F116: =IF(ISBLANK(InfoPro!I116),"",YEAR(InfoPro!I116)-$J$2) -> 
B117: =IF(ISBLANK(InfoPro!A117),"",InfoPro!A117) ->  | C117: =IF(ISBLANK(InfoPro!B117),"",InfoPro!B117) ->  | D117: =IF(ISBLANK(InfoPro!E117),"",InfoPro!E117) ->  | E117: =IF(ISBLANK(InfoPro!N117),"",InfoPro!N117) ->  | F117: =IF(ISBLANK(InfoPro!I117),"",YEAR(InfoPro!I117)-$J$2) -> 
B118: =IF(ISBLANK(InfoPro!A118),"",InfoPro!A118) ->  | C118: =IF(ISBLANK(InfoPro!B118),"",InfoPro!B118) ->  | D118: =IF(ISBLANK(InfoPro!E118),"",InfoPro!E118) ->  | E118: =IF(ISBLANK(InfoPro!N118),"",InfoPro!N118) ->  | F118: =IF(ISBLANK(InfoPro!I118),"",YEAR(InfoPro!I118)-$J$2) -> 
B119: =IF(ISBLANK(InfoPro!A119),"",InfoPro!A119) ->  | C119: =IF(ISBLANK(InfoPro!B119),"",InfoPro!B119) ->  | D119: =IF(ISBLANK(InfoPro!E119),"",InfoPro!E119) ->  | E119: =IF(ISBLANK(InfoPro!N119),"",InfoPro!N119) ->  | F119: =IF(ISBLANK(InfoPro!I119),"",YEAR(InfoPro!I119)-$J$2) -> 
B120: =IF(ISBLANK(InfoPro!A120),"",InfoPro!A120) ->  | C120: =IF(ISBLANK(InfoPro!B120),"",InfoPro!B120) ->  | D120: =IF(ISBLANK(InfoPro!E120),"",InfoPro!E120) ->  | E120: =IF(ISBLANK(InfoPro!N120),"",InfoPro!N120) ->  | F120: =IF(ISBLANK(InfoPro!I120),"",YEAR(InfoPro!I120)-$J$2) -> 
B121: =IF(ISBLANK(InfoPro!A121),"",InfoPro!A121) ->  | C121: =IF(ISBLANK(InfoPro!B121),"",InfoPro!B121) ->  | D121: =IF(ISBLANK(InfoPro!E121),"",InfoPro!E121) ->  | E121: =IF(ISBLANK(InfoPro!N121),"",InfoPro!N121) ->  | F121: =IF(ISBLANK(InfoPro!I121),"",YEAR(InfoPro!I121)-$J$2) -> 
B122: =IF(ISBLANK(InfoPro!A122),"",InfoPro!A122) ->  | C122: =IF(ISBLANK(InfoPro!B122),"",InfoPro!B122) ->  | D122: =IF(ISBLANK(InfoPro!E122),"",InfoPro!E122) ->  | E122: =IF(ISBLANK(InfoPro!N122),"",InfoPro!N122) ->  | F122: =IF(ISBLANK(InfoPro!I122),"",YEAR(InfoPro!I122)-$J$2) -> 
B123: =IF(ISBLANK(InfoPro!A123),"",InfoPro!A123) ->  | C123: =IF(ISBLANK(InfoPro!B123),"",InfoPro!B123) ->  | D123: =IF(ISBLANK(InfoPro!E123),"",InfoPro!E123) ->  | E123: =IF(ISBLANK(InfoPro!N123),"",InfoPro!N123) ->  | F123: =IF(ISBLANK(InfoPro!I123),"",YEAR(InfoPro!I123)-$J$2) -> 
B124: =IF(ISBLANK(InfoPro!A124),"",InfoPro!A124) ->  | C124: =IF(ISBLANK(InfoPro!B124),"",InfoPro!B124) ->  | D124: =IF(ISBLANK(InfoPro!E124),"",InfoPro!E124) ->  | E124: =IF(ISBLANK(InfoPro!N124),"",InfoPro!N124) ->  | F124: =IF(ISBLANK(InfoPro!I124),"",YEAR(InfoPro!I124)-$J$2) -> 
B125: =IF(ISBLANK(InfoPro!A125),"",InfoPro!A125) ->  | C125: =IF(ISBLANK(InfoPro!B125),"",InfoPro!B125) ->  | D125: =IF(ISBLANK(InfoPro!E125),"",InfoPro!E125) ->  | E125: =IF(ISBLANK(InfoPro!N125),"",InfoPro!N125) ->  | F125: =IF(ISBLANK(InfoPro!I125),"",YEAR(InfoPro!I125)-$J$2) -> 
B126: =IF(ISBLANK(InfoPro!A126),"",InfoPro!A126) ->  | C126: =IF(ISBLANK(InfoPro!B126),"",InfoPro!B126) ->  | D126: =IF(ISBLANK(InfoPro!E126),"",InfoPro!E126) ->  | E126: =IF(ISBLANK(InfoPro!N126),"",InfoPro!N126) ->  | F126: =IF(ISBLANK(InfoPro!I126),"",YEAR(InfoPro!I126)-$J$2) -> 
B127: =IF(ISBLANK(InfoPro!A127),"",InfoPro!A127) ->  | C127: =IF(ISBLANK(InfoPro!B127),"",InfoPro!B127) ->  | D127: =IF(ISBLANK(InfoPro!E127),"",InfoPro!E127) ->  | E127: =IF(ISBLANK(InfoPro!N127),"",InfoPro!N127) ->  | F127: =IF(ISBLANK(InfoPro!I127),"",YEAR(InfoPro!I127)-$J$2) -> 
B128: =IF(ISBLANK(InfoPro!A128),"",InfoPro!A128) ->  | C128: =IF(ISBLANK(InfoPro!B128),"",InfoPro!B128) ->  | D128: =IF(ISBLANK(InfoPro!E128),"",InfoPro!E128) ->  | E128: =IF(ISBLANK(InfoPro!N128),"",InfoPro!N128) ->  | F128: =IF(ISBLANK(InfoPro!I128),"",YEAR(InfoPro!I128)-$J$2) -> 
B129: =IF(ISBLANK(InfoPro!A129),"",InfoPro!A129) ->  | C129: =IF(ISBLANK(InfoPro!B129),"",InfoPro!B129) ->  | D129: =IF(ISBLANK(InfoPro!E129),"",InfoPro!E129) ->  | E129: =IF(ISBLANK(InfoPro!N129),"",InfoPro!N129) ->  | F129: =IF(ISBLANK(InfoPro!I129),"",YEAR(InfoPro!I129)-$J$2) -> 
B130: =IF(ISBLANK(InfoPro!A130),"",InfoPro!A130) ->  | C130: =IF(ISBLANK(InfoPro!B130),"",InfoPro!B130) ->  | D130: =IF(ISBLANK(InfoPro!E130),"",InfoPro!E130) ->  | E130: =IF(ISBLANK(InfoPro!N130),"",InfoPro!N130) ->  | F130: =IF(ISBLANK(InfoPro!I130),"",YEAR(InfoPro!I130)-$J$2) -> 
B131: =IF(ISBLANK(InfoPro!A131),"",InfoPro!A131) ->  | C131: =IF(ISBLANK(InfoPro!B131),"",InfoPro!B131) ->  | D131: =IF(ISBLANK(InfoPro!E131),"",InfoPro!E131) ->  | E131: =IF(ISBLANK(InfoPro!N131),"",InfoPro!N131) ->  | F131: =IF(ISBLANK(InfoPro!I131),"",YEAR(InfoPro!I131)-$J$2) ->  | G131: =IF(E131="SI",100,IF(E131="NO",0,"")) ->  | H131: =IF(G131="","",(G131)) -> 
B132: =IF(ISBLANK(InfoPro!A132),"",InfoPro!A132) ->  | C132: =IF(ISBLANK(InfoPro!B132),"",InfoPro!B132) ->  | D132: =IF(ISBLANK(InfoPro!E132),"",InfoPro!E132) ->  | E132: =IF(ISBLANK(InfoPro!N132),"",InfoPro!N132) ->  | F132: =IF(ISBLANK(InfoPro!I132),"",YEAR(InfoPro!I132)-$J$2) -> 
B133: =IF(ISBLANK(InfoPro!A133),"",InfoPro!A133) ->  | C133: =IF(ISBLANK(InfoPro!B133),"",InfoPro!B133) ->  | D133: =IF(ISBLANK(InfoPro!E133),"",InfoPro!E133) ->  | E133: =IF(ISBLANK(InfoPro!N133),"",InfoPro!N133) ->  | F133: =IF(ISBLANK(InfoPro!I133),"",YEAR(InfoPro!I133)-$J$2) -> 
B134: =IF(ISBLANK(InfoPro!A134),"",InfoPro!A134) ->  | C134: =IF(ISBLANK(InfoPro!B134),"",InfoPro!B134) ->  | D134: =IF(ISBLANK(InfoPro!E134),"",InfoPro!E134) ->  | E134: =IF(ISBLANK(InfoPro!N134),"",InfoPro!N134) ->  | F134: =IF(ISBLANK(InfoPro!I134),"",YEAR(InfoPro!I134)-$J$2) -> 
B135: =IF(ISBLANK(InfoPro!A135),"",InfoPro!A135) ->  | C135: =IF(ISBLANK(InfoPro!B135),"",InfoPro!B135) ->  | D135: =IF(ISBLANK(InfoPro!E135),"",InfoPro!E135) ->  | E135: =IF(ISBLANK(InfoPro!N135),"",InfoPro!N135) ->  | F135: =IF(ISBLANK(InfoPro!I135),"",YEAR(InfoPro!I135)-$J$2) -> 
B136: =IF(ISBLANK(InfoPro!A136),"",InfoPro!A136) ->  | C136: =IF(ISBLANK(InfoPro!B136),"",InfoPro!B136) ->  | D136: =IF(ISBLANK(InfoPro!E136),"",InfoPro!E136) ->  | E136: =IF(ISBLANK(InfoPro!N136),"",InfoPro!N136) ->  | F136: =IF(ISBLANK(InfoPro!I136),"",YEAR(InfoPro!I136)-$J$2) -> 
B137: =IF(ISBLANK(InfoPro!A137),"",InfoPro!A137) ->  | C137: =IF(ISBLANK(InfoPro!B137),"",InfoPro!B137) ->  | D137: =IF(ISBLANK(InfoPro!E137),"",InfoPro!E137) ->  | E137: =IF(ISBLANK(InfoPro!N137),"",InfoPro!N137) ->  | F137: =IF(ISBLANK(InfoPro!I137),"",YEAR(InfoPro!I137)-$J$2) -> 
B138: =IF(ISBLANK(InfoPro!A138),"",InfoPro!A138) ->  | C138: =IF(ISBLANK(InfoPro!B138),"",InfoPro!B138) ->  | D138: =IF(ISBLANK(InfoPro!E138),"",InfoPro!E138) ->  | E138: =IF(ISBLANK(InfoPro!N138),"",InfoPro!N138) ->  | F138: =IF(ISBLANK(InfoPro!I138),"",YEAR(InfoPro!I138)-$J$2) -> 
B139: =IF(ISBLANK(InfoPro!A139),"",InfoPro!A139) ->  | C139: =IF(ISBLANK(InfoPro!B139),"",InfoPro!B139) ->  | D139: =IF(ISBLANK(InfoPro!E139),"",InfoPro!E139) ->  | E139: =IF(ISBLANK(InfoPro!N139),"",InfoPro!N139) ->  | F139: =IF(ISBLANK(InfoPro!I139),"",YEAR(InfoPro!I139)-$J$2) -> 
B140: =IF(ISBLANK(InfoPro!A140),"",InfoPro!A140) ->  | C140: =IF(ISBLANK(InfoPro!B140),"",InfoPro!B140) ->  | D140: =IF(ISBLANK(InfoPro!E140),"",InfoPro!E140) ->  | E140: =IF(ISBLANK(InfoPro!N140),"",InfoPro!N140) ->  | F140: =IF(ISBLANK(InfoPro!I140),"",YEAR(InfoPro!I140)-$J$2) -> 
B141: =IF(ISBLANK(InfoPro!A141),"",InfoPro!A141) ->  | C141: =IF(ISBLANK(InfoPro!B141),"",InfoPro!B141) ->  | D141: =IF(ISBLANK(InfoPro!E141),"",InfoPro!E141) ->  | E141: =IF(ISBLANK(InfoPro!N141),"",InfoPro!N141) ->  | F141: =IF(ISBLANK(InfoPro!I141),"",YEAR(InfoPro!I141)-$J$2) -> 
B142: =IF(ISBLANK(InfoPro!A142),"",InfoPro!A142) ->  | C142: =IF(ISBLANK(InfoPro!B142),"",InfoPro!B142) ->  | D142: =IF(ISBLANK(InfoPro!E142),"",InfoPro!E142) ->  | E142: =IF(ISBLANK(InfoPro!N142),"",InfoPro!N142) ->  | F142: =IF(ISBLANK(InfoPro!I142),"",YEAR(InfoPro!I142)-$J$2) -> 
B143: =IF(ISBLANK(InfoPro!A143),"",InfoPro!A143) ->  | C143: =IF(ISBLANK(InfoPro!B143),"",InfoPro!B143) ->  | D143: =IF(ISBLANK(InfoPro!E143),"",InfoPro!E143) ->  | E143: =IF(ISBLANK(InfoPro!N143),"",InfoPro!N143) ->  | F143: =IF(ISBLANK(InfoPro!I143),"",YEAR(InfoPro!I143)-$J$2) -> 
B144: =IF(ISBLANK(InfoPro!A144),"",InfoPro!A144) ->  | C144: =IF(ISBLANK(InfoPro!B144),"",InfoPro!B144) ->  | D144: =IF(ISBLANK(InfoPro!E144),"",InfoPro!E144) ->  | E144: =IF(ISBLANK(InfoPro!N144),"",InfoPro!N144) ->  | F144: =IF(ISBLANK(InfoPro!I144),"",YEAR(InfoPro!I144)-$J$2) -> 
B145: =IF(ISBLANK(InfoPro!A145),"",InfoPro!A145) ->  | C145: =IF(ISBLANK(InfoPro!B145),"",InfoPro!B145) ->  | D145: =IF(ISBLANK(InfoPro!E145),"",InfoPro!E145) ->  | E145: =IF(ISBLANK(InfoPro!N145),"",InfoPro!N145) ->  | F145: =IF(ISBLANK(InfoPro!I145),"",YEAR(InfoPro!I145)-$J$2) ->  | G145: =IF(E145="SI",100,IF(E145="NO",0,"")) ->  | H145: =IF(G145="","",(G145)) -> 
B146: =IF(ISBLANK(InfoPro!A146),"",InfoPro!A146) ->  | C146: =IF(ISBLANK(InfoPro!B146),"",InfoPro!B146) ->  | D146: =IF(ISBLANK(InfoPro!E146),"",InfoPro!E146) ->  | E146: =IF(ISBLANK(InfoPro!N146),"",InfoPro!N146) ->  | F146: =IF(ISBLANK(InfoPro!I146),"",YEAR(InfoPro!I146)-$J$2) -> 
B147: =IF(ISBLANK(InfoPro!A147),"",InfoPro!A147) ->  | C147: =IF(ISBLANK(InfoPro!B147),"",InfoPro!B147) ->  | D147: =IF(ISBLANK(InfoPro!E147),"",InfoPro!E147) ->  | E147: =IF(ISBLANK(InfoPro!N147),"",InfoPro!N147) ->  | F147: =IF(ISBLANK(InfoPro!I147),"",YEAR(InfoPro!I147)-$J$2) -> 

Sheet EC-RE
B3: Factor emisiones sistema | C3: 0.127283 | D3: Ton/MWh | F3: Año de Referencia | G3: 2023
B4: Tasa de descuento | C4: 0.118 | F4: Mínimo | G4: =MIN(Z9:Z348) -> 534412.8609
B5: Costo emisiones Ton | C5: 91.94 | D5: USD/Ton
B6: TRM | C6: 4070 | D6: COP/USD
J7: 0 | K7: 1 | L7: 2 | M7: 3 | N7: 4 | O7: 5 | P7: 6 | Q7: 7 | R7: 8 | S7: 9 | T7: 10 | U7: 11 | V7: 12 | W7: 13 | X7: 14
A8: Codigo | B8: Nombre | C8: capacidad | D8: tipo | E8: Año de entrada | F8: FP | G8: Factor emisiones | H8: Produccion media/a MWh/a | I8: Emisiones evitadas Ton/a | J8: Flujo Descontado 0 | K8: Flujo Descontado 1 | L8: Flujo Descontado 2 | M8: Flujo Descontado 3 | N8: Flujo Descontado 4 | O8: Flujo Descontado 5 | P8: Flujo Descontado 6 | Q8: Flujo Descontado 7 | R8: Flujo Descontado 8 | S8: Flujo Descontado 9 | T8: Flujo Descontado 10 | U8: Flujo Descontado 11 | V8: Flujo Descontado 12 | W8: Flujo Descontado 13 | X8: Flujo Descontado 14 | Y8: VPN | Z8: (Beneficio)/kW
A9: =IF(ISBLANK(InfoPro!A2),"",InfoPro!A2) -> SC_487_A1 | B9: =IF(ISBLANK(InfoPro!B2),"",InfoPro!B2) -> PARQUE SOLAR EL VALLE 80 MW | C9: =IF(ISBLANK(InfoPro!E2),"",InfoPro!E2) -> 80 | D9: =IF(ISBLANK(InfoPro!F2),"",InfoPro!F2) -> Solar FV | E9: =IF(ISBLANK(InfoPro!I2),"",YEAR(InfoPro!I2)-$G$3) -> 2 | F9: =IF(B9="","",VLOOKUP(D9,Tablas!$B$2:$E$13,2,FALSE)) -> 0.26 | G9: =IF(B9="","",VLOOKUP(D9,Tablas!$B$2:$G$13,6,FALSE)) -> 0 | H9: =IF(C9="","",+C9*F9*24*365) -> 182208 | I9: =IF(H9="","",+H9*($C$3-G9)) -> 23191.98086 | J9: =IF($I9="","",(1/(1+$C$4)^(J$7+$E9))*$I9*$C$5) -> 1705920.296 | K9: =IF($I9="","",(1/(1+$C$4)^(K$7+$E9))*$I9*$C$5) -> 1525867.886 | L9: 1364819.218 | M9: 1220768.531 | N9: 1091921.763 | O9: 976674.207 | P9: 873590.525 | Q9: 781386.8739 | R9: 698914.914 | S9: 625147.5081 | T9: 559165.9285 | U9: 500148.4155 | V9: 447359.9423 | W9: 400143.0611 | X9: 357909.7147 | Y9: =IF(X9="","",SUM(J9:X9)*$C$6) -> 5.343803686e+10 | Z9: =IF(C9=0,0,IF(Y9="","",Y9/(C9*1000))) -> 667975.4607
A10: =IF(ISBLANK(InfoPro!A3),"",InfoPro!A3) -> SC_1140_A2 | B10: =IF(ISBLANK(InfoPro!B3),"",InfoPro!B3) -> Zarzal Solar 100 MW | C10: =IF(ISBLANK(InfoPro!E3),"",InfoPro!E3) -> 100 | D10: =IF(ISBLANK(InfoPro!F3),"",InfoPro!F3) -> Solar FV | E10: =IF(ISBLANK(InfoPro!I3),"",YEAR(InfoPro!I3)-$G$3) -> 4 | F10: =IF(B10="","",VLOOKUP(D10,Tablas!$B$2:$E$13,2,FALSE)) -> 0.26 | G10: =IF(B10="","",VLOOKUP(D10,Tablas!$B$2:$G$13,6,FALSE)) -> 0 | H10: =IF(C10="","",+C10*F10*24*365) -> 227760 | I10: =IF(H10="","",+H10*($C$3-G10)) -> 28989.97608 | J10: 1706024.023 | K10: 1525960.664 | L10: 1364902.204 | M10: 1220842.759 | N10: 1091988.156 | O10: 976733.5924 | P10: 873643.6425 | Q10: 781434.3851 | R10: 698957.4106 | S10: 625185.5194 | T10: 559199.9279 | U10: 500178.8264 | V10: 447387.1434 | W10: 400167.3913 | X10: 357931.477 | Y10: =IF(X10="","",SUM(J10:X10)*$C$6) -> 5.344128609e+10 | Z10: =IF(C10=0,0,IF(Y10="","",Y10/(C10*1000))) -> 534412.8609
A11: =IF(ISBLANK(InfoPro!A4),"",InfoPro!A4) -> SC_1259_A1 | B11: =IF(ISBLANK(InfoPro!B4),"",InfoPro!B4) -> DOMINICA DE 99.9 MW | C11: =IF(ISBLANK(InfoPro!E4),"",InfoPro!E4) -> 99.9 | D11: =IF(ISBLANK(InfoPro!F4),"",InfoPro!F4) -> Solar FV | E11: =IF(ISBLANK(InfoPro!I4),"",YEAR(InfoPro!I4)-$G$3) -> 3 | F11: =IF(B11="","",VLOOKUP(D11,Tablas!$B$2:$E$13,2,FALSE)) -> 0.26 | G11: =IF(B11="","",VLOOKUP(D11,Tablas!$B$2:$G$13,6,FALSE)) -> 0 | H11: =IF(C11="","",+C11*F11*24*365) -> 227532.24 | I11: 28960.9861 | J11: 1905427.523 | K11: 1704317.999 | L11: 1524434.704 | M11: 1363537.302 | N11: 1219621.916 | O11: 1090896.168 | P11: 975756.8588 | Q11: 872769.9989 | R11: 780652.9507 | S11: 698258.4532 | T11: 624560.3338 | U11: 558640.7279 | V11: 499678.6475 | W11: 446939.7563 | X11: 399767.2239 | Y11: 5.968761049e+10 | Z11: 597473.5785
A12: =IF(ISBLANK(InfoPro!A5),"",InfoPro!A5) -> SC_1259_A2 | B12: =IF(ISBLANK(InfoPro!B5),"",InfoPro!B5) -> DOMINICA DE 99.9 MW | C12: =IF(ISBLANK(InfoPro!E5),"",InfoPro!E5) -> 99.9 | D12: =IF(ISBLANK(InfoPro!F5),"",InfoPro!F5) -> Solar FV | E12: =IF(ISBLANK(InfoPro!I5),"",YEAR(InfoPro!I5)-$G$3) -> 3 | F12: =IF(B12="","",VLOOKUP(D12,Tablas!$B$2:$E$13,2,FALSE)) -> 0.26 | G12: =IF(B12="","",VLOOKUP(D12,Tablas!$B$2:$G$13,6,FALSE)) -> 0 | H12: 227532.24 | I12: 28960.9861 | J12: 1905427.523 | K12: 1704317.999 | L12: 1524434.704 | M12: 1363537.302 | N12: 1219621.916 | O12: 1090896.168 | P12: 975756.8588 | Q12: 872769.9989 | R12: 780652.9507 | S12: 698258.4532 | T12: 624560.3338 | U12: 558640.7279 | V12: 499678.6475 | W12: 446939.7563 | X12: 399767.2239 | Y12: 5.968761049e+10 | Z12: 597473.5785
A13: =IF(ISBLANK(InfoPro!A6),"",InfoPro!A6) -> SC_1265_A1 | B13: =IF(ISBLANK(InfoPro!B6),"",InfoPro!B6) -> LANZAROTE de 80 MW | C13: =IF(ISBLANK(InfoPro!E6),"",InfoPro!E6) -> 80 | D13: =IF(ISBLANK(InfoPro!F6),"",InfoPro!F6) -> Solar FV | E13: =IF(ISBLANK(InfoPro!I6),"",YEAR(InfoPro!I6)-$G$3) -> 3 | F13: =IF(B13="","",VLOOKUP(D13,Tablas!$B$2:$E$13,2,FALSE)) -> 0.26 | G13: =IF(B13="","",VLOOKUP(D13,Tablas!$B$2:$G$13,6,FALSE)) -> 0 | H13: 182208 | I13: 23191.98086 | J13: 1525867.886 | K13: 1364819.218 | L13: 1220768.531 | M13: 1091921.763 | N13: 976674.207 | O13: 873590.525 | P13: 781386.8739 | Q13: 698914.914 | R13: 625147.5081 | S13: 559165.9285 | T13: 500148.4155 | U13: 447359.9423 | V13: 400143.0611 | W13: 357909.7147 | X13: 320133.913 | Y13: 4.779788628e+10 | Z13: 597473.5785
A14: =IF(ISBLANK(InfoPro!A7),"",InfoPro!A7) -> SC_1265_A2 | B14: =IF(ISBLANK(InfoPro!B7),"",InfoPro!B7) -> LANZAROTE de 80 MW | C14: =IF(ISBLANK(InfoPro!E7),"",InfoPro!E7) -> 80 | D14: =IF(ISBLANK(InfoPro!F7),"",InfoPro!F7) -> Solar FV | E14: =IF(ISBLANK(InfoPro!I7),"",YEAR(InfoPro!I7)-$G$3) -> 3 | F14: =IF(B14="","",VLOOKUP(D14,Tablas!$B$2:$E$13,2,FALSE)) -> 0.26 | G14: =IF(B14="","",VLOOKUP(D14,Tablas!$B$2:$G$13,6,FALSE)) -> 0 | H14: 182208 | I14: 23191.98086 | J14: 1525867.886 | K14: 1364819.218 | L14: 1220768.531 | M14: 1091921.763 | N14: 976674.207 | O14: 873590.525 | P14: 781386.8739 | Q14: 698914.914 | R14: 625147.5081 | S14: 559165.9285 | T14: 500148.4155 | U14: 447359.9423 | V14: 400143.0611 | W14: 357909.7147 | X14: 320133.913 | Y14: 4.779788628e+10 | Z14: 597473.5785
A15: =IF(ISBLANK(InfoPro!A8),"",InfoPro!A8) -> SC_612_A1 | B15: =IF(ISBLANK(InfoPro!B8),"",InfoPro!B8) -> PARQUE SOLAR SAN JOSE | C15: =IF(ISBLANK(InfoPro!E8),"",InfoPro!E8) -> 9.9 | D15: =IF(ISBLANK(InfoPro!F8),"",InfoPro!F8) -> Solar FV | E15: =IF(ISBLANK(InfoPro!I8),"",YEAR(InfoPro!I8)-$G$3) -> 1 | F15: =IF(B15="","",VLOOKUP(D15,Tablas!$B$2:$E$13,2,FALSE)) -> 0.26 | G15: =IF(B15="","",VLOOKUP(D15,Tablas!$B$2:$G$13,6,FALSE)) -> 0 | H15: 22548.24 | I15: 2870.007632 | J15: 236018.3378 | K15: 211107.6367 | L15: 188826.1509 | M15: 168896.3782 | N15: 151070.1058 | O15: 135125.3182 | P15: 120863.4331 | Q15: 108106.8275 | R15: 96696.62564 | S15: 86490.72061 | T15: 77362.00413 | U15: 69196.78365 | V15: 61893.36642 | W15: 55360.79286 | X15: 49517.70381 | Y15: 7393285994 | Z15: 746796.5651
A16: =IF(ISBLANK(InfoPro!A9),"",InfoPro!A9) -> SC_612_A2 | B16: =IF(ISBLANK(InfoPro!B9),"",InfoPro!B9) -> PARQUE SOLAR SAN JOSE | C16: =IF(ISBLANK(InfoPro!E9),"",InfoPro!E9) -> 9.9 | D16: =IF(ISBLANK(InfoPro!F9),"",InfoPro!F9) -> Solar FV | E16: =IF(ISBLANK(InfoPro!I9),"",YEAR(InfoPro!I9)-$G$3) -> 1 | F16: =IF(B16="","",VLOOKUP(D16,Tablas!$B$2:$E$13,2,FALSE)) -> 0.26 | G16: =IF(B16="","",VLOOKUP(D16,Tablas!$B$2:$G$13,6,FALSE)) -> 0 | H16: 22548.24 | I16: 2870.007632 | J16: 236018.3378 | K16: 211107.6367 | L16: 188826.1509 | M16: 168896.3782 | N16: 151070.1058 | O16: 135125.3182 | P16: 120863.4331 | Q16: 108106.8275 | R16: 96696.62564 | S16: 86490.72061 | T16: 77362.00413 | U16: 69196.78365 | V16: 61893.36642 | W16: 55360.79286 | X16: 49517.70381 | Y16: 7393285994 | Z16: 746796.5651
A17: =IF(ISBLANK(InfoPro!A10),"",InfoPro!A10) -> SC_1254_A1 | B17: =IF(ISBLANK(InfoPro!B10),"",InfoPro!B10) -> Solar La Victoria 3 de 19.9 MW | C17: =IF(ISBLANK(InfoPro!E10),"",InfoPro!E10) -> 19.9 | D17: =IF(ISBLANK(InfoPro!F10),"",InfoPro!F10) -> Solar FV | E17: =IF(ISBLANK(InfoPro!I10),"",YEAR(InfoPro!I10)-$G$3) -> 0 | F17: =IF(B17="","",VLOOKUP(D17,Tablas!$B$2:$E$13,2,FALSE)) -> 0.26 | G17: =IF(B17="","",VLOOKUP(D17,Tablas!$B$2:$G$13,6,FALSE)) -> 0 | H17: 45324.24 | I17: 5769.00524 | J17: 530402.3418 | K17: 474420.6992 | L17: 424347.6737 | M17: 379559.6366 | N17: 339498.7805 | O17: 303666.1722 | P17: 271615.5386 | Q17: 242947.709 | R17: 217305.6431 | S17: 194369.9849 | T17: 173855.0849 | U17: 155505.4426 | V17: 139092.5247 | W17: 124411.9184 | X17: 111280.7856 | Y17: 1.661487934e+10 | Z17: 834918.5598
A18: =IF(ISBLANK(InfoPro!A11),"",InfoPro!A11) -> SC_1292_A1 | B18: =IF(ISBLANK(InfoPro!B11),"",InfoPro!B11) -> Solar El Carmelo 2 | C18: =IF(ISBLANK(InfoPro!E11),"",InfoPro!E11) -> 19.9 | D18: =IF(ISBLANK(InfoPro!F11),"",InfoPro!F11) -> Solar FV | E18: =IF(ISBLANK(InfoPro!I11),"",YEAR(InfoPro!I11)-$G$3) -> 0 | F18: =IF(B18="","",VLOOKUP(D18,Tablas!$B$2:$E$13,2,FALSE)) -> 0.26 | G18: =IF(B18="","",VLOOKUP(D18,Tablas!$B$2:$G$13,6,FALSE)) -> 0 | H18: 45324.24 | I18: 5769.00524 | J18: 530402.3418 | K18: 474420.6992 | L18: 424347.6737 | M18: 379559.6366 | N18: 339498.7805 | O18: 303666.1722 | P18: 271615.5386 | Q18: 242947.709 | R18: 217305.6431 | S18: 194369.9849 | T18: 173855.0849 | U18: 155505.4426 | V18: 139092.5247 | W18: 124411.9184 | X18: 111280.7856 | Y18: 1.661487934e+10 | Z18: 834918.5598
A19: =IF(ISBLANK(InfoPro!A12),"",InfoPro!A12) -> SC_1401_A1 | B19: =IF(ISBLANK(InfoPro!B12),"",InfoPro!B12) -> CSF CONTINUA OBANDO 90MW | C19: =IF(ISBLANK(InfoPro!E12),"",InfoPro!E12) -> 90 | D19: =IF(ISBLANK(InfoPro!F12),"",InfoPro!F12) -> Solar FV | E19: =IF(ISBLANK(InfoPro!I12),"",YEAR(InfoPro!I12)-$G$3) -> 2 | F19: =IF(B19="","",VLOOKUP(D19,Tablas!$B$2:$E$13,2,FALSE)) -> 0.26 | G19: =IF(B19="","",VLOOKUP(D19,Tablas!$B$2:$G$13,6,FALSE)) -> 0 | H19: 204984 | I19: 26090.97847 | J19: =IF($I19="","",(1/(1+$C$4)^(J$7+$E19))*$I19*$C$5) -> 1919160.334 | K19: 1716601.372 | L19: 1535421.62 | M19: 1373364.598 | N19: 1228411.984 | O19: 1098758.483 | P19: 982789.3406 | Q19: 879060.2331 | R19: 786279.2783 | S19: 703290.9466 | T19: 629061.6696 | U19: 562666.9674 | V19: 503279.9351 | W19: 450160.9437 | X19: 402648.4291 | Y19: 6.011779146e+10 | Z19: 667975.4607
A20: =IF(ISBLANK(InfoPro!A13),"",InfoPro!A13) -> SC_1401_A2 | B20: =IF(ISBLANK(InfoPro!B13),"",InfoPro!B13) -> CSF CONTINUA OBANDO 90MW | C20: =IF(ISBLANK(InfoPro!E13),"",InfoPro!E13) -> 90 | D20: =IF(ISBLANK(InfoPro!F13),"",InfoPro!F13) -> Solar FV | E20: =IF(ISBLANK(InfoPro!I13),"",YEAR(InfoPro!I13)-$G$3) -> 2 | F20: =IF(B20="","",VLOOKUP(D20,Tablas!$B$2:$E$13,2,FALSE)) -> 0.26 | G20: =IF(B20="","",VLOOKUP(D20,Tablas!$B$2:$G$13,6,FALSE)) -> 0 | H20: 204984 | I20: 26090.97847 | J20: 1919160.334 | K20: 1716601.372 | L20: 1535421.62 | M20: 1373364.598 | N20: 1228411.984 | O20: 1098758.483 | P20: 982789.3406 | Q20: 879060.2331 | R20: 786279.2783 | S20: 703290.9466 | T20: 629061.6696 | U20: 562666.9674 | V20: 503279.9351 | W20: 450160.9437 | X20: 402648.4291 | Y20: 6.011779146e+10 | Z20: 667975.4607
A21: =IF(ISBLANK(InfoPro!A14),"",InfoPro!A14) -> SC_1413_A1 | B21: =IF(ISBLANK(InfoPro!B14),"",InfoPro!B14) -> CSF CONTINUA LA VIRGINIA 120MW | C21: =IF(ISBLANK(InfoPro!E14),"",InfoPro!E14) -> 120 | D21: =IF(ISBLANK(InfoPro!F14),"",InfoPro!F14) -> Solar FV | E21: =IF(ISBLANK(InfoPro!I14),"",YEAR(InfoPro!I14)-$G$3) -> 3 | F21: =IF(B21="","",VLOOKUP(D21,Tablas!$B$2:$E$13,2,FALSE)) -> 0.26 | G21: =IF(B21="","",VLOOKUP(D21,Tablas!$B$2:$G$13,6,FALSE)) -> 0 | H21: 273312 | I21: 34787.9713 | J21: 2288801.829 | K21: 2047228.827 | L21: 1831152.797 | M21: 1637882.645 | N21: 1465011.31 | O21: 1310385.788 | P21: 1172080.311 | Q21: 1048372.371 | R21: 937721.2621 | S21: 838748.8928 | T21: 750222.6232 | U21: 671039.9134 | V21: 600214.5916 | W21: 536864.5721 | X21: 480200.8695 | Y21: 7.169682941e+10 | Z21: 597473.5785
A22: =IF(ISBLANK(InfoPro!A15),"",InfoPro!A15) -> SC_1454_A1 | B22: =IF(ISBLANK(InfoPro!B15),"",InfoPro!B15) -> CE SAN MARCOS 80MW | C22: =IF(ISBLANK(InfoPro!E15),"",InfoPro!E15) -> 80 | D22: =IF(ISBLANK(InfoPro!F15),"",InfoPro!F15) -> Eólico Onshore | E22: =IF(ISBLANK(InfoPro!I15),"",YEAR(InfoPro!I15)-$G$3) -> 4 | F22: =IF(B22="","",VLOOKUP(D22,Tablas!$B$2:$E$13,2,FALSE)) -> 0.57 | G22: =IF(B22="","",VLOOKUP(D22,Tablas!$B$2:$G$13,6,FALSE)) -> 0 | H22: 399456 | I22: 50843.95805 | J22: 2992103.671 | K22: 2676300.242 | L22: 2393828.481 | M22: 2141170.377 | N22: 1915179.228 | O22: 1713040.454 | P22: 1532236.542 | Q22: 1370515.691 | R22: 1225863.766 | S22: 1096479.219 | T22: 980750.6427 | U22: 877236.7109 | V22: 784648.2208 | W22: 701832.0401 | X22: 627756.7442 | Y22: 9.372779406e+10 | Z22: 1171597.426
A23: =IF(ISBLANK(InfoPro!A16),"",InfoPro!A16) -> SC_1454_A2 | B23: =IF(ISBLANK(InfoPro!B16),"",InfoPro!B16) -> CE SAN MARCOS 80MW | C23: =IF(ISBLANK(InfoPro!E16),"",InfoPro!E16) -> 80 | D23: =IF(ISBLANK(InfoPro!F16),"",InfoPro!F16) -> Eólico Onshore | E23: =IF(ISBLANK(InfoPro!I16),"",YEAR(InfoPro!I16)-$G$3) -> 4 | F23: =IF(B23="","",VLOOKUP(D23,Tablas!$B$2:$E$13,2,FALSE)) -> 0.57 | G23: =IF(B23="","",VLOOKUP(D23,Tablas!$B$2:$G$13,6,FALSE)) -> 0 | H23: 399456 | I23: 50843.95805 | J23: 2992103.671 | K23: 2676300.242 | L23: 2393828.481 | M23: 2141170.377 | N23: 1915179.228 | O23: 1713040.454 | P23: 1532236.542 | Q23: 1370515.691 | R23: 1225863.766 | S23: 1096479.219 | T23: 980750.6427 | U23: 877236.7109 | V23: 784648.2208 | W23: 701832.0401 | X23: 627756.7442 | Y23: 9.372779406e+10 | Z23: 1171597.426
A24: =IF(ISBLANK(InfoPro!A17),"",InfoPro!A17) -> SC_1325_A1 | B24: =IF(ISBLANK(InfoPro!B17),"",InfoPro!B17) -> Solar El Carmelo 3 | C24: =IF(ISBLANK(InfoPro!E17),"",InfoPro!E17) -> 19.9 | D24: =IF(ISBLANK(InfoPro!F17),"",InfoPro!F17) -> Solar FV | E24: =IF(ISBLANK(InfoPro!I17),"",YEAR(InfoPro!I17)-$G$3) -> 2 | F24: =IF(B24="","",VLOOKUP(D24,Tablas!$B$2:$E$13,2,FALSE)) -> 0.26 | G24: =IF(B24="","",VLOOKUP(D24,Tablas!$B$2:$G$13,6,FALSE)) -> 0 | H24: 45324.24 | I24: 5769.00524 | J24: 424347.6737 | K24: 379559.6366 | L24: 339498.7805 | M24: 303666.1722 | N24: 271615.5386 | O24: 242947.709 | P24: 217305.6431 | Q24: 194369.9849 | R24: 173855.0849 | S24: 155505.4426 | T24: 139092.5247 | U24: 124411.9184 | V24: 111280.7856 | W24: 99535.58645 | X24: 89030.04154 | Y24: 1.329271167e+10 | Z24: 667975.4607
A25: =IF(ISBLANK(InfoPro!A18),"",InfoPro!A18) -> SC_1517_A1 | B25: =IF(ISBLANK(InfoPro!B18),"",InfoPro!B18) -> Autogenerador Solar Palmira 3 | C25: =IF(ISBLANK(InfoPro!E18),"",InfoPro!E18) -> 7.3 | D25: =IF(ISBLANK(InfoPro!F18),"",InfoPro!F18) -> Solar FV | E25: =IF(ISBLANK(InfoPro!I18),"",YEAR(InfoPro!I18)-$G$3) -> 2 | F25: =IF(B25="","",VLOOKUP(D25,Tablas!$B$2:$E$13,2,FALSE)) -> 0.26 | G25: =IF(B25="","",VLOOKUP(D25,Tablas!$B$2:$G$13,6,FALSE)) -> 0 | H25: 16626.48 | I25: 2116.268254 | J25: 155665.2271 | K25: 139235.4446 | L25: 124539.7537 | M25: 111395.1285 | N25: 99637.86091 | O25: 89121.52139 | P25: 79715.13541 | Q25: 71301.55224 | R25: 63775.98591 | S25: 57044.71011 | T25: 51023.89098 | U25: 45638.54291 | V25: 40821.59473 | W25: 36513.05432 | X25: 32659.26147 | Y25: 4876220863 | Z25: 667975.4607
A26: =IF(ISBLANK(InfoPro!A19),"",InfoPro!A19) -> SC_1502_A1 | B26: =IF(ISBLANK(InfoPro!B19),"",InfoPro!B19) -> Solar El Carmelo 5 | C26: =IF(ISBLANK(InfoPro!E19),"",InfoPro!E19) -> 19.9 | D26: =IF(ISBLANK(InfoPro!F19),"",InfoPro!F19) -> Solar FV | E26: =IF(ISBLANK(InfoPro!I19),"",YEAR(InfoPro!I19)-$G$3) -> 2 | F26: =IF(B26="","",VLOOKUP(D26,Tablas!$B$2:$E$13,2,FALSE)) -> 0.26 | G26: =IF(B26="","",VLOOKUP(D26,Tablas!$B$2:$G$13,6,FALSE)) -> 0 | H26: 45324.24 | I26: 5769.00524 | J26: 424347.6737 | K26: 379559.6366 | L26: 339498.7805 | M26: 303666.1722 | N26: 271615.5386 | O26: 242947.709 | P26: 217305.6431 | Q26: 194369.9849 | R26: 173855.0849 | S26: 155505.4426 | T26: 139092.5247 | U26: 124411.9184 | V26: 111280.7856 | W26: 99535.58645 | X26: 89030.04154 | Y26: 1.329271167e+10 | Z26: 667975.4607
A27: =IF(ISBLANK(InfoPro!A20),"",InfoPro!A20) -> SC_1503_A1 | B27: =IF(ISBLANK(InfoPro!B20),"",InfoPro!B20) -> Solar El Carmelo 6 | C27: =IF(ISBLANK(InfoPro!E20),"",InfoPro!E20) -> 19.9 | D27: =IF(ISBLANK(InfoPro!F20),"",InfoPro!F20) -> Solar FV | E27: =IF(ISBLANK(InfoPro!I20),"",YEAR(InfoPro!I20)-$G$3) -> 2 | F27: =IF(B27="","",VLOOKUP(D27,Tablas!$B$2:$E$13,2,FALSE)) -> 0.26 | G27: =IF(B27="","",VLOOKUP(D27,Tablas!$B$2:$G$13,6,FALSE)) -> 0 | H27: 45324.24 | I27: 5769.00524 | J27: 424347.6737 | K27: 379559.6366 | L27: 339498.7805 | M27: 303666.1722 | N27: 271615.5386 | O27: 242947.709 | P27: 217305.6431 | Q27: 194369.9849 | R27: 173855.0849 | S27: 155505.4426 | T27: 139092.5247 | U27: 124411.9184 | V27: 111280.7856 | W27: 99535.58645 | X27: 89030.04154 | Y27: 1.329271167e+10 | Z27: 667975.4607
A28: =IF(ISBLANK(InfoPro!A21),"",InfoPro!A21) -> SC_1601_A1 | B28: =IF(ISBLANK(InfoPro!B21),"",InfoPro!B21) -> Autogenerador Solar Palmira 1 de 19,9MW | C28: =IF(ISBLANK(InfoPro!E21),"",InfoPro!E21) -> 19.9 | D28: =IF(ISBLANK(InfoPro!F21),"",InfoPro!F21) -> Solar FV | E28: =IF(ISBLANK(InfoPro!I21),"",YEAR(InfoPro!I21)-$G$3) -> 0 | F28: =IF(B28="","",VLOOKUP(D28,Tablas!$B$2:$E$13,2,FALSE)) -> 0.26 | G28: =IF(B28="","",VLOOKUP(D28,Tablas!$B$2:$G$13,6,FALSE)) -> 0 | H28: 45324.24 | I28: 5769.00524 | J28: 530402.3418 | K28: 474420.6992 | L28: 424347.6737 | M28: 379559.6366 | N28: 339498.7805 | O28: 303666.1722 | P28: 271615.5386 | Q28: 242947.709 | R28: 217305.6431 | S28: 194369.9849 | T28: 173855.0849 | U28: 155505.4426 | V28: 139092.5247 | W28: 124411.9184 | X28: 111280.7856 | Y28: 1.661487934e+10 | Z28: 834918.5598
A29: =IF(ISBLANK(InfoPro!A22),"",InfoPro!A22) -> SC_1658_A2 | B29: =IF(ISBLANK(InfoPro!B22),"",InfoPro!B22) -> Parque Solar Fotovoltaico La Virginia I | C29: =IF(ISBLANK(InfoPro!E22),"",InfoPro!E22) -> 100 | D29: =IF(ISBLANK(InfoPro!F22),"",InfoPro!F22) -> Solar FV | E29: =IF(ISBLANK(InfoPro!I22),"",YEAR(InfoPro!I22)-$G$3) -> 4 | F29: =IF(B29="","",VLOOKUP(D29,Tablas!$B$2:$E$13,2,FALSE)) -> 0.26 | G29: =IF(B29="","",VLOOKUP(D29,Tablas!$B$2:$G$13,6,FALSE)) -> 0 | H29: 227760 | I29: 28989.97608 | J29: =IF($I29="","",(1/(1+$C$4)^(J$7+$E29))*$I29*$C$5) -> 1706024.023 | K29: 1525960.664 | L29: 1364902.204 | M29: 1220842.759 | N29: 1091988.156 | O29: 976733.5924 | P29: 873643.6425 | Q29: 781434.3851 | R29: 698957.4106 | S29: 625185.5194 | T29: 559199.9279 | U29: 500178.8264 | V29: 447387.1434 | W29: 400167.3913 | X29: 357931.477 | Y29: 5.344128609e+10 | Z29: 534412.8609
A30: =IF(ISBLANK(InfoPro!A23),"",InfoPro!A23) -> SC_1572_A1 | B30: =IF(ISBLANK(InfoPro!B23),"",InfoPro!B23) -> CONDOR - 165 MW | C30: =IF(ISBLANK(InfoPro!E23),"",InfoPro!E23) -> 165 | D30: =IF(ISBLANK(InfoPro!F23),"",InfoPro!F23) -> Eólico Onshore | E30: =IF(ISBLANK(InfoPro!I23),"",YEAR(InfoPro!I23)-$G$3) -> 3 | F30: =IF(B30="","",VLOOKUP(D30,Tablas!$B$2:$E$13,2,FALSE)) -> 0.57 | G30: =IF(B30="","",VLOOKUP(D30,Tablas!$B$2:$G$13,6,FALSE)) -> 0 | H30: 823878 | I30: 104865.6635 | J30: 6899417.051 | K30: 6171213.821 | L30: 5519869.249 | M30: 4937271.243 | N30: 4416163.902 | O30: 3950057.158 | P30: 3533145.937 | Q30: 3160237.869 | R30: 2826688.612 | S30: 2528344.018 | T30: 2261488.388 | U30: 2022798.201 | V30: 1809300.716 | W30: 1618336.955 | X30: 1447528.583 | Y30: 2.161245771e+11 | Z30: 1309845.922
A31: =IF(ISBLANK(InfoPro!A24),"",InfoPro!A24) -> SC_1572_A2 | B31: =IF(ISBLANK(InfoPro!B24),"",InfoPro!B24) -> CONDOR - 165 MW | C31: =IF(ISBLANK(InfoPro!E24),"",InfoPro!E24) -> 165 | D31: =IF(ISBLANK(InfoPro!F24),"",InfoPro!F24) -> Eólico Onshore | E31: =IF(ISBLANK(InfoPro!I24),"",YEAR(InfoPro!I24)-$G$3) -> 3 | F31: =IF(B31="","",VLOOKUP(D31,Tablas!$B$2:$E$13,2,FALSE)) -> 0.57 | G31: =IF(B31="","",VLOOKUP(D31,Tablas!$B$2:$G$13,6,FALSE)) -> 0 | H31: 823878 | I31: 104865.6635 | J31: 6899417.051 | K31: 6171213.821 | L31: 5519869.249 | M31: 4937271.243 | N31: 4416163.902 | O31: 3950057.158 | P31: 3533145.937 | Q31: 3160237.869 | R31: 2826688.612 | S31: 2528344.018 | T31: 2261488.388 | U31: 2022798.201 | V31: 1809300.716 | W31: 1618336.955 | X31: 1447528.583 | Y31: 2.161245771e+11 | Z31: 1309845.922
A32: =IF(ISBLANK(InfoPro!A25),"",InfoPro!A25) -> SC_1501_A1 | B32: =IF(ISBLANK(InfoPro!B25),"",InfoPro!B25) -> Autogenerador Solar Palmira 4 | C32: =IF(ISBLANK(InfoPro!E25),"",InfoPro!E25) -> 19.9 | D32: =IF(ISBLANK(InfoPro!F25),"",InfoPro!F25) -> Solar FV | E32: =IF(ISBLANK(InfoPro!I25),"",YEAR(InfoPro!I25)-$G$3) -> 2 | F32: =IF(B32="","",VLOOKUP(D32,Tablas!$B$2:$E$13,2,FALSE)) -> 0.26 | G32: =IF(B32="","",VLOOKUP(D32,Tablas!$B$2:$G$13,6,FALSE)) -> 0 | H32: 45324.24 | I32: 5769.00524 | J32: 424347.6737 | K32: 379559.6366 | L32: 339498.7805 | M32: 303666.1722 | N32: 271615.5386 | O32: 242947.709 | P32: 217305.6431 | Q32: 194369.9849 | R32: 173855.0849 | S32: 155505.4426 | T32: 139092.5247 | U32: 124411.9184 | V32: 111280.7856 | W32: 99535.58645 | X32: 89030.04154 | Y32: 1.329271167e+10 | Z32: 667975.4607
A33: =IF(ISBLANK(InfoPro!A26),"",InfoPro!A26) -> SC_1490_A1 | B33: =IF(ISBLANK(InfoPro!B26),"",InfoPro!B26) -> Farallones Solar DE 50 mw | C33: =IF(ISBLANK(InfoPro!E26),"",InfoPro!E26) -> 50 | D33: =IF(ISBLANK(InfoPro!F26),"",InfoPro!F26) -> Solar FV | E33: =IF(ISBLANK(InfoPro!I26),"",YEAR(InfoPro!I26)-$G$3) -> 3 | F33: =IF(B33="","",VLOOKUP(D33,Tablas!$B$2:$E$13,2,FALSE)) -> 0.26 | G33: =IF(B33="","",VLOOKUP(D33,Tablas!$B$2:$G$13,6,FALSE)) -> 0 | H33: 113880 | I33: 14494.98804 | J33: 953667.4287 | K33: 853012.0114 | L33: 762980.3322 | M33: 682451.1021 | N33: 610421.3794 | O33: 545994.0781 | P33: 488366.7962 | Q33: 436821.8213 | R33: 390717.1926 | S33: 349478.7053 | T33: 312592.7597 | U33: 279599.9639 | V33: 250089.4132 | W33: 223693.5717 | X33: 200083.6956 | Y33: 2.987367892e+10 | Z33: 597473.5785
A34: =IF(ISBLANK(InfoPro!A27),"",InfoPro!A27) -> SC_1883_A1 | B34: =IF(ISBLANK(InfoPro!B27),"",InfoPro!B27) -> Parque Eólico Valle | C34: =IF(ISBLANK(InfoPro!E27),"",InfoPro!E27) -> 250 | D34: =IF(ISBLANK(InfoPro!F27),"",InfoPro!F27) -> Eólico Onshore | E34: =IF(ISBLANK(InfoPro!I27),"",YEAR(InfoPro!I27)-$G$3) -> 4 | F34: =IF(B34="","",VLOOKUP(D34,Tablas!$B$2:$E$13,2,FALSE)) -> 0.57 | G34: =IF(B34="","",VLOOKUP(D34,Tablas!$B$2:$G$13,6,FALSE)) -> 0 | H34: 1248300 | I34: 158887.3689 | J34: 9350323.971 | K34: 8363438.256 | L34: 7480714.004 | M34: 6691157.428 | N34: 5984935.087 | O34: 5353251.42 | P34: 4788239.195 | Q34: 4282861.534 | R34: 3830824.27 | S34: 3426497.558 | T34: 3064845.759 | U34: 2741364.721 | V34: 2452025.69 | W34: 2193225.125 | X34: 1961739.826 | Y34: 2.928993564e+11 | Z34: 1171597.426
A35: =IF(ISBLANK(InfoPro!A28),"",InfoPro!A28) -> SC_1883_A2 | B35: =IF(ISBLANK(InfoPro!B28),"",InfoPro!B28) -> Parque Eólico Valle | C35: =IF(ISBLANK(InfoPro!E28),"",InfoPro!E28) -> 250 | D35: =IF(ISBLANK(InfoPro!F28),"",InfoPro!F28) -> Eólico Onshore | E35: =IF(ISBLANK(InfoPro!I28),"",YEAR(InfoPro!I28)-$G$3) -> 4 | F35: =IF(B35="","",VLOOKUP(D35,Tablas!$B$2:$E$13,2,FALSE)) -> 0.57 | G35: =IF(B35="","",VLOOKUP(D35,Tablas!$B$2:$G$13,6,FALSE)) -> 0 | H35: 1248300 | I35: 158887.3689 | J35: 9350323.971 | K35: 8363438.256 | L35: 7480714.004 | M35: 6691157.428 | N35: 5984935.087 | O35: 5353251.42 | P35: 4788239.195 | Q35: 4282861.534 | R35: 3830824.27 | S35: 3426497.558 | T35: 3064845.759 | U35: 2741364.721 | V35: 2452025.69 | W35: 2193225.125 | X35: 1961739.826 | Y35: 2.928993564e+11 | Z35: 1171597.426
A36: =IF(ISBLANK(InfoPro!A29),"",InfoPro!A29) -> SC_1947_A1 | B36: =IF(ISBLANK(InfoPro!B29),"",InfoPro!B29) -> Solar La Victoria 4 de 19.9MW | C36: =IF(ISBLANK(InfoPro!E29),"",InfoPro!E29) -> 19.9 | D36: =IF(ISBLANK(InfoPro!F29),"",InfoPro!F29) -> Solar FV | E36: =IF(ISBLANK(InfoPro!I29),"",YEAR(InfoPro!I29)-$G$3) -> 0 | F36: =IF(B36="","",VLOOKUP(D36,Tablas!$B$2:$E$13,2,FALSE)) -> 0.26 | G36: =IF(B36="","",VLOOKUP(D36,Tablas!$B$2:$G$13,6,FALSE)) -> 0 | H36: 45324.24 | I36: 5769.00524 | J36: 530402.3418 | K36: 474420.6992 | L36: 424347.6737 | M36: 379559.6366 | N36: 339498.7805 | O36: 303666.1722 | P36: 271615.5386 | Q36: 242947.709 | R36: 217305.6431 | S36: 194369.9849 | T36: 173855.0849 | U36: 155505.4426 | V36: 139092.5247 | W36: 124411.9184 | X36: 111280.7856 | Y36: 1.661487934e+10 | Z36: 834918.5598
A37: =IF(ISBLANK(InfoPro!A30),"",InfoPro!A30) -> SC_1950_A1 | B37: =IF(ISBLANK(InfoPro!B30),"",InfoPro!B30) -> Autogenerador Solar Candelaria | C37: =IF(ISBLANK(InfoPro!E30),"",InfoPro!E30) -> 19.9 | D37: =IF(ISBLANK(InfoPro!F30),"",InfoPro!F30) -> Solar FV | E37: =IF(ISBLANK(InfoPro!I30),"",YEAR(InfoPro!I30)-$G$3) -> 2 | F37: =IF(B37="","",VLOOKUP(D37,Tablas!$B$2:$E$13,2,FALSE)) -> 0.26 | G37: =IF(B37="","",VLOOKUP(D37,Tablas!$B$2:$G$13,6,FALSE)) -> 0 | H37: 45324.24 | I37: 5769.00524 | J37: 424347.6737 | K37: 379559.6366 | L37: 339498.7805 | M37: 303666.1722 | N37: 271615.5386 | O37: 242947.709 | P37: 217305.6431 | Q37: 194369.9849 | R37: 173855.0849 | S37: 155505.4426 | T37: 139092.5247 | U37: 124411.9184 | V37: 111280.7856 | W37: 99535.58645 | X37: 89030.04154 | Y37: 1.329271167e+10 | Z37: 667975.4607
A38: =IF(ISBLANK(InfoPro!A31),"",InfoPro!A31) -> SC_2008_A1 | B38: =IF(ISBLANK(InfoPro!B31),"",InfoPro!B31) -> Solar Ginebra | C38: =IF(ISBLANK(InfoPro!E31),"",InfoPro!E31) -> 9.9 | D38: =IF(ISBLANK(InfoPro!F31),"",InfoPro!F31) -> Solar FV | E38: =IF(ISBLANK(InfoPro!I31),"",YEAR(InfoPro!I31)-$G$3) -> 0 | F38: =IF(B38="","",VLOOKUP(D38,Tablas!$B$2:$E$13,2,FALSE)) -> 0.26 | G38: =IF(B38="","",VLOOKUP(D38,Tablas!$B$2:$G$13,6,FALSE)) -> 0 | H38: 22548.24 | I38: 2870.007632 | J38: 263868.5017 | K38: 236018.3378 | L38: 211107.6367 | M38: 188826.1509 | N38: 168896.3782 | O38: 151070.1058 | P38: 135125.3182 | Q38: 120863.4331 | R38: 108106.8275 | S38: 96696.62564 | T38: 86490.72061 | U38: 77362.00413 | V38: 69196.78365 | W38: 61893.36642 | X38: 55360.79286 | Y38: 8265693742 | Z38: 834918.5598
A39: =IF(ISBLANK(InfoPro!A32),"",InfoPro!A32) -> SC_2098_A1 | B39: =IF(ISBLANK(InfoPro!B32),"",InfoPro!B32) -> Solar El Cerrito 1 | C39: =IF(ISBLANK(InfoPro!E32),"",InfoPro!E32) -> 19.9 | D39: =IF(ISBLANK(InfoPro!F32),"",InfoPro!F32) -> Solar FV | E39: =IF(ISBLANK(InfoPro!I32),"",YEAR(InfoPro!I32)-$G$3) -> 2 | F39: =IF(B39="","",VLOOKUP(D39,Tablas!$B$2:$E$13,2,FALSE)) -> 0.26 | G39: =IF(B39="","",VLOOKUP(D39,Tablas!$B$2:$G$13,6,FALSE)) -> 0 | H39: 45324.24 | I39: 5769.00524 | J39: =IF($I39="","",(1/(1+$C$4)^(J$7+$E39))*$I39*$C$5) -> 424347.6737 | K39: 379559.6366 | L39: 339498.7805 | M39: 303666.1722 | N39: 271615.5386 | O39: 242947.709 | P39: 217305.6431 | Q39: 194369.9849 | R39: 173855.0849 | S39: 155505.4426 | T39: 139092.5247 | U39: 124411.9184 | V39: 111280.7856 | W39: 99535.58645 | X39: 89030.04154 | Y39: 1.329271167e+10 | Z39: 667975.4607
A40: =IF(ISBLANK(InfoPro!A33),"",InfoPro!A33) -> SC_2208_A1 | B40: =IF(ISBLANK(InfoPro!B33),"",InfoPro!B33) -> Solar El Carmelo 4 19.9 | C40: =IF(ISBLANK(InfoPro!E33),"",InfoPro!E33) -> 19.9 | D40: =IF(ISBLANK(InfoPro!F33),"",InfoPro!F33) -> Solar FV | E40: =IF(ISBLANK(InfoPro!I33),"",YEAR(InfoPro!I33)-$G$3) -> 2 | F40: =IF(B40="","",VLOOKUP(D40,Tablas!$B$2:$E$13,2,FALSE)) -> 0.26 | G40: =IF(B40="","",VLOOKUP(D40,Tablas!$B$2:$G$13,6,FALSE)) -> 0 | H40: 45324.24 | I40: 5769.00524 | J40: 424347.6737 | K40: 379559.6366 | L40: 339498.7805 | M40: 303666.1722 | N40: 271615.5386 | O40: 242947.709 | P40: 217305.6431 | Q40: 194369.9849 | R40: 173855.0849 | S40: 155505.4426 | T40: 139092.5247 | U40: 124411.9184 | V40: 111280.7856 | W40: 99535.58645 | X40: 89030.04154 | Y40: 1.329271167e+10 | Z40: 667975.4607
A41: =IF(ISBLANK(InfoPro!A34),"",InfoPro!A34) -> SC_2210_A1 | B41: =IF(ISBLANK(InfoPro!B34),"",InfoPro!B34) -> Solar La Victoria 5 19.9 | C41: =IF(ISBLANK(InfoPro!E34),"",InfoPro!E34) -> 19.9 | D41: =IF(ISBLANK(InfoPro!F34),"",InfoPro!F34) -> Solar FV | E41: =IF(ISBLANK(InfoPro!I34),"",YEAR(InfoPro!I34)-$G$3) -> 0 | F41: =IF(B41="","",VLOOKUP(D41,Tablas!$B$2:$E$13,2,FALSE)) -> 0.26 | G41: =IF(B41="","",VLOOKUP(D41,Tablas!$B$2:$G$13,6,FALSE)) -> 0 | H41: =IF(C41="","",+C41*F41*24*365) -> 45324.24 | I41: =IF(H41="","",+H41*($C$3-G41)) -> 5769.00524 | J41: 530402.3418 | K41: 474420.6992 | L41: 424347.6737 | M41: 379559.6366 | N41: 339498.7805 | O41: 303666.1722 | P41: 271615.5386 | Q41: 242947.709 | R41: 217305.6431 | S41: 194369.9849 | T41: 173855.0849 | U41: 155505.4426 | V41: 139092.5247 | W41: 124411.9184 | X41: 111280.7856 | Y41: 1.661487934e+10 | Z41: 834918.5598
A42: =IF(ISBLANK(InfoPro!A35),"",InfoPro!A35) -> SC_2214_A1 | B42: =IF(ISBLANK(InfoPro!B35),"",InfoPro!B35) -> Autogenerador Solar Palmira 2 | C42: =IF(ISBLANK(InfoPro!E35),"",InfoPro!E35) -> 9.9 | D42: =IF(ISBLANK(InfoPro!F35),"",InfoPro!F35) -> Solar FV | E42: =IF(ISBLANK(InfoPro!I35),"",YEAR(InfoPro!I35)-$G$3) -> 0 | F42: =IF(B42="","",VLOOKUP(D42,Tablas!$B$2:$E$13,2,FALSE)) -> 0.26 | G42: =IF(B42="","",VLOOKUP(D42,Tablas!$B$2:$G$13,6,FALSE)) -> 0 | H42: 22548.24 | I42: 2870.007632 | J42: 263868.5017 | K42: 236018.3378 | L42: 211107.6367 | M42: 188826.1509 | N42: 168896.3782 | O42: 151070.1058 | P42: 135125.3182 | Q42: 120863.4331 | R42: 108106.8275 | S42: 96696.62564 | T42: 86490.72061 | U42: 77362.00413 | V42: 69196.78365 | W42: 61893.36642 | X42: 55360.79286 | Y42: 8265693742 | Z42: 834918.5598
A43: =IF(ISBLANK(InfoPro!A36),"",InfoPro!A36) -> SC_1816_A1 | B43: =IF(ISBLANK(InfoPro!B36),"",InfoPro!B36) -> COG.001.2022 AZAHAR I 4.99 MW | C43: =IF(ISBLANK(InfoPro!E36),"",InfoPro!E36) -> 4.99 | D43: =IF(ISBLANK(InfoPro!F36),"",InfoPro!F36) -> Solar FV | E43: =IF(ISBLANK(InfoPro!I36),"",YEAR(InfoPro!I36)-$G$3) -> 1 | F43: =IF(B43="","",VLOOKUP(D43,Tablas!$B$2:$E$13,2,FALSE)) -> 0.26 | G43: =IF(B43="","",VLOOKUP(D43,Tablas!$B$2:$G$13,6,FALSE)) -> 0 | H43: 11365.224 | I43: 1446.599806 | J43: 118962.7784 | K43: 106406.7785 | L43: 95176.00938 | M43: 85130.59873 | N43: 76145.43715 | O43: 68108.61999 | P43: 60920.05366 | Q43: 54490.209 | R43: 48739.00626 | S43: 43594.81776 | T43: 38993.57582 | U43: 34877.97479 | V43: 31196.75742 | W43: 27904.0764 | X43: 24958.92344 | Y43: 3726514860 | Z43: 746796.5651
A44: =IF(ISBLANK(InfoPro!A37),"",InfoPro!A37) -> SC_1816_A2 | B44: =IF(ISBLANK(InfoPro!B37),"",InfoPro!B37) -> COG.001.2022 AZAHAR I 4.99 MW | C44: =IF(ISBLANK(InfoPro!E37),"",InfoPro!E37) -> 4.99 | D44: =IF(ISBLANK(InfoPro!F37),"",InfoPro!F37) -> Solar FV | E44: =IF(ISBLANK(InfoPro!I37),"",YEAR(InfoPro!I37)-$G$3) -> 1 | F44: =IF(B44="","",VLOOKUP(D44,Tablas!$B$2:$E$13,2,FALSE)) -> 0.26 | G44: =IF(B44="","",VLOOKUP(D44,Tablas!$B$2:$G$13,6,FALSE)) -> 0 | H44: 11365.224 | I44: 1446.599806 | J44: 118962.7784 | K44: 106406.7785 | L44: 95176.00938 | M44: 85130.59873 | N44: 76145.43715 | O44: 68108.61999 | P44: 60920.05366 | Q44: 54490.209 | R44: 48739.00626 | S44: 43594.81776 | T44: 38993.57582 | U44: 34877.97479 | V44: 31196.75742 | W44: 27904.0764 | X44: 24958.92344 | Y44: 3726514860 | Z44: 746796.5651
A45: =IF(ISBLANK(InfoPro!A38),"",InfoPro!A38) -> SC_2296_A2 | B45: =IF(ISBLANK(InfoPro!B38),"",InfoPro!B38) -> Parque Solar San Mateo 80 MW | C45: =IF(ISBLANK(InfoPro!E38),"",InfoPro!E38) -> 80 | D45: =IF(ISBLANK(InfoPro!F38),"",InfoPro!F38) -> Solar FV | E45: =IF(ISBLANK(InfoPro!I38),"",YEAR(InfoPro!I38)-$G$3) -> 2 | F45: =IF(B45="","",VLOOKUP(D45,Tablas!$B$2:$E$13,2,FALSE)) -> 0.26 | G45: =IF(B45="","",VLOOKUP(D45,Tablas!$B$2:$G$13,6,FALSE)) -> 0 | H45: 182208 | I45: 23191.98086 | J45: 1705920.296 | K45: 1525867.886 | L45: 1364819.218 | M45: 1220768.531 | N45: 1091921.763 | O45: 976674.207 | P45: 873590.525 | Q45: 781386.8739 | R45: 698914.914 | S45: 625147.5081 | T45: 559165.9285 | U45: 500148.4155 | V45: 447359.9423 | W45: 400143.0611 | X45: 357909.7147 | Y45: 5.343803686e+10 | Z45: 667975.4607
A46: =IF(ISBLANK(InfoPro!A39),"",InfoPro!A39) -> SC_2228_A1 | B46: =IF(ISBLANK(InfoPro!B39),"",InfoPro!B39) -> MFC Solar | C46: =IF(ISBLANK(InfoPro!E39),"",InfoPro!E39) -> 250 | D46: =IF(ISBLANK(InfoPro!F39),"",InfoPro!F39) -> Solar FV | E46: =IF(ISBLANK(InfoPro!I39),"",YEAR(InfoPro!I39)-$G$3) -> 4 | F46: =IF(B46="","",VLOOKUP(D46,Tablas!$B$2:$E$13,2,FALSE)) -> 0.26 | G46: =IF(B46="","",VLOOKUP(D46,Tablas!$B$2:$G$13,6,FALSE)) -> 0 | H46: 569400 | I46: 72474.9402 | J46: 4265060.057 | K46: 3814901.661 | L46: 3412255.511 | M46: 3052106.897 | N46: 2729970.391 | O46: 2441833.981 | P46: 2184109.106 | Q46: 1953585.963 | R46: 1747393.527 | S46: 1562963.798 | T46: 1397999.82 | U46: 1250447.066 | V46: 1118467.859 | W46: 1000418.478 | X46: 894828.6925 | Y46: 1.336032152e+11 | Z46: 534412.8609
A47: =IF(ISBLANK(InfoPro!A40),"",InfoPro!A40) -> SC_2228_A2 | B47: =IF(ISBLANK(InfoPro!B40),"",InfoPro!B40) -> MFC Solar | C47: =IF(ISBLANK(InfoPro!E40),"",InfoPro!E40) -> 250 | D47: =IF(ISBLANK(InfoPro!F40),"",InfoPro!F40) -> Solar FV | E47: =IF(ISBLANK(InfoPro!I40),"",YEAR(InfoPro!I40)-$G$3) -> 4 | F47: =IF(B47="","",VLOOKUP(D47,Tablas!$B$2:$E$13,2,FALSE)) -> 0.26 | G47: =IF(B47="","",VLOOKUP(D47,Tablas!$B$2:$G$13,6,FALSE)) -> 0 | H47: 569400 | I47: 72474.9402 | J47: 4265060.057 | K47: 3814901.661 | L47: 3412255.511 | M47: 3052106.897 | N47: 2729970.391 | O47: 2441833.981 | P47: 2184109.106 | Q47: 1953585.963 | R47: 1747393.527 | S47: 1562963.798 | T47: 1397999.82 | U47: 1250447.066 | V47: 1118467.859 | W47: 1000418.478 | X47: 894828.6925 | Y47: 1.336032152e+11 | Z47: 534412.8609
A48: =IF(ISBLANK(InfoPro!A41),"",InfoPro!A41) -> SC_2113_A1 | B48: =IF(ISBLANK(InfoPro!B41),"",InfoPro!B41) -> Coloradas II 98 MW | C48: =IF(ISBLANK(InfoPro!E41),"",InfoPro!E41) -> 98 | D48: =IF(ISBLANK(InfoPro!F41),"",InfoPro!F41) -> Solar FV | E48: =IF(ISBLANK(InfoPro!I41),"",YEAR(InfoPro!I41)-$G$3) -> 3 | F48: =IF(B48="","",VLOOKUP(D48,Tablas!$B$2:$E$13,2,FALSE)) -> 0.26 | G48: =IF(B48="","",VLOOKUP(D48,Tablas!$B$2:$G$13,6,FALSE)) -> 0 | H48: 223204.8 | I48: 28410.17656 | J48: 1869188.16 | K48: 1671903.542 | L48: 1495441.451 | M48: 1337604.16 | N48: 1196425.904 | O48: 1070148.393 | P48: 957198.9205 | Q48: 856170.7697 | R48: 765805.6974 | S48: 684978.2624 | T48: 612681.809 | U48: 548015.9293 | V48: 490175.2498 | W48: 438439.4006 | X48: 392164.0434 | Y48: 5.855241069e+10 | Z48: 597473.5785
A49: =IF(ISBLANK(InfoPro!A42),"",InfoPro!A42) -> SC_2315_A1 | B49: =IF(ISBLANK(InfoPro!B42),"",InfoPro!B42) -> HELIOS SAN MARCOS - 300 MW | C49: =IF(ISBLANK(InfoPro!E42),"",InfoPro!E42) -> 300 | D49: =IF(ISBLANK(InfoPro!F42),"",InfoPro!F42) -> Solar FV | E49: =IF(ISBLANK(InfoPro!I42),"",YEAR(InfoPro!I42)-$G$3) -> 2 | F49: =IF(B49="","",VLOOKUP(D49,Tablas!$B$2:$E$13,2,FALSE)) -> 0.26 | G49: =IF(B49="","",VLOOKUP(D49,Tablas!$B$2:$G$13,6,FALSE)) -> 0 | H49: 683280 | I49: 86969.92824 | J49: =IF($I49="","",(1/(1+$C$4)^(J$7+$E49))*$I49*$C$5) -> 6397201.112 | K49: 5722004.572 | L49: 5118072.068 | M49: 4577881.993 | N49: 4094706.613 | O49: 3662528.276 | P49: 3275964.469 | Q49: 2930200.777 | R49: 2620930.928 | S49: 2344303.155 | T49: 2096872.232 | U49: 1875556.558 | V49: 1677599.784 | W49: 1500536.479 | X49: 1342161.43 | Y49: 2.003926382e+11 | Z49: 667975.4607
A50: =IF(ISBLANK(InfoPro!A43),"",InfoPro!A43) -> SC_2315_A2 | B50: =IF(ISBLANK(InfoPro!B43),"",InfoPro!B43) -> HELIOS SAN MARCOS - 300 MW | C50: =IF(ISBLANK(InfoPro!E43),"",InfoPro!E43) -> 300 | D50: =IF(ISBLANK(InfoPro!F43),"",InfoPro!F43) -> Solar FV | E50: =IF(ISBLANK(InfoPro!I43),"",YEAR(InfoPro!I43)-$G$3) -> 2 | F50: =IF(B50="","",VLOOKUP(D50,Tablas!$B$2:$E$13,2,FALSE)) -> 0.26 | G50: =IF(B50="","",VLOOKUP(D50,Tablas!$B$2:$G$13,6,FALSE)) -> 0 | H50: 683280 | I50: 86969.92824 | J50: 6397201.112 | K50: 5722004.572 | L50: 5118072.068 | M50: 4577881.993 | N50: 4094706.613 | O50: 3662528.276 | P50: 3275964.469 | Q50: 2930200.777 | R50: 2620930.928 | S50: 2344303.155 | T50: 2096872.232 | U50: 1875556.558 | V50: 1677599.784 | W50: 1500536.479 | X50: 1342161.43 | Y50: 2.003926382e+11 | Z50: 667975.4607
A51: =IF(ISBLANK(InfoPro!A44),"",InfoPro!A44) ->  | B51: =IF(ISBLANK(InfoPro!B44),"",InfoPro!B44) ->  | C51: =IF(ISBLANK(InfoPro!E44),"",InfoPro!E44) ->  | D51: =IF(ISBLANK(InfoPro!F44),"",InfoPro!F44) ->  | E51: =IF(ISBLANK(InfoPro!I44),"",YEAR(InfoPro!I44)-$G$3) ->  | F51: =IF(B51="","",VLOOKUP(D51,Tablas!$B$2:$E$13,2,FALSE)) ->  | G51: =IF(B51="","",VLOOKUP(D51,Tablas!$B$2:$G$13,6,FALSE)) -> 
A52: =IF(ISBLANK(InfoPro!A45),"",InfoPro!A45) ->  | B52: =IF(ISBLANK(InfoPro!B45),"",InfoPro!B45) ->  | C52: =IF(ISBLANK(InfoPro!E45),"",InfoPro!E45) ->  | D52: =IF(ISBLANK(InfoPro!F45),"",InfoPro!F45) ->  | E52: =IF(ISBLANK(InfoPro!I45),"",YEAR(InfoPro!I45)-$G$3) ->  | F52: =IF(B52="","",VLOOKUP(D52,Tablas!$B$2:$E$13,2,FALSE)) ->  | G52: =IF(B52="","",VLOOKUP(D52,Tablas!$B$2:$G$13,6,FALSE)) -> 
A53: =IF(ISBLANK(InfoPro!A46),"",InfoPro!A46) ->  | B53: =IF(ISBLANK(InfoPro!B46),"",InfoPro!B46) ->  | C53: =IF(ISBLANK(InfoPro!E46),"",InfoPro!E46) ->  | D53: =IF(ISBLANK(InfoPro!F46),"",InfoPro!F46) ->  | E53: =IF(ISBLANK(InfoPro!I46),"",YEAR(InfoPro!I46)-$G$3) ->  | F53: =IF(B53="","",VLOOKUP(D53,Tablas!$B$2:$E$13,2,FALSE)) ->  | G53: =IF(B53="","",VLOOKUP(D53,Tablas!$B$2:$G$13,6,FALSE)) -> 
A54: =IF(ISBLANK(InfoPro!A47),"",InfoPro!A47) ->  | B54: =IF(ISBLANK(InfoPro!B47),"",InfoPro!B47) ->  | C54: =IF(ISBLANK(InfoPro!E47),"",InfoPro!E47) ->  | D54: =IF(ISBLANK(InfoPro!F47),"",InfoPro!F47) ->  | E54: =IF(ISBLANK(InfoPro!I47),"",YEAR(InfoPro!I47)-$G$3) ->  | F54: =IF(B54="","",VLOOKUP(D54,Tablas!$B$2:$E$13,2,FALSE)) ->  | G54: =IF(B54="","",VLOOKUP(D54,Tablas!$B$2:$G$13,6,FALSE)) -> 
A55: =IF(ISBLANK(InfoPro!A48),"",InfoPro!A48) ->  | B55: =IF(ISBLANK(InfoPro!B48),"",InfoPro!B48) ->  | C55: =IF(ISBLANK(InfoPro!E48),"",InfoPro!E48) ->  | D55: =IF(ISBLANK(InfoPro!F48),"",InfoPro!F48) ->  | E55: =IF(ISBLANK(InfoPro!I48),"",YEAR(InfoPro!I48)-$G$3) ->  | F55: =IF(B55="","",VLOOKUP(D55,Tablas!$B$2:$E$13,2,FALSE)) ->  | G55: =IF(B55="","",VLOOKUP(D55,Tablas!$B$2:$G$13,6,FALSE)) -> 
A56: =IF(ISBLANK(InfoPro!A49),"",InfoPro!A49) ->  | B56: =IF(ISBLANK(InfoPro!B49),"",InfoPro!B49) ->  | C56: =IF(ISBLANK(InfoPro!E49),"",InfoPro!E49) ->  | D56: =IF(ISBLANK(InfoPro!F49),"",InfoPro!F49) ->  | E56: =IF(ISBLANK(InfoPro!I49),"",YEAR(InfoPro!I49)-$G$3) ->  | F56: =IF(B56="","",VLOOKUP(D56,Tablas!$B$2:$E$13,2,FALSE)) ->  | G56: =IF(B56="","",VLOOKUP(D56,Tablas!$B$2:$G$13,6,FALSE)) -> 
A57: =IF(ISBLANK(InfoPro!A50),"",InfoPro!A50) ->  | B57: =IF(ISBLANK(InfoPro!B50),"",InfoPro!B50) ->  | C57: =IF(ISBLANK(InfoPro!E50),"",InfoPro!E50) ->  | D57: =IF(ISBLANK(InfoPro!F50),"",InfoPro!F50) ->  | E57: =IF(ISBLANK(InfoPro!I50),"",YEAR(InfoPro!I50)-$G$3) ->  | F57: =IF(B57="","",VLOOKUP(D57,Tablas!$B$2:$E$13,2,FALSE)) ->  | G57: =IF(B57="","",VLOOKUP(D57,Tablas!$B$2:$G$13,6,FALSE)) -> 
A58: =IF(ISBLANK(InfoPro!A51),"",InfoPro!A51) ->  | B58: =IF(ISBLANK(InfoPro!B51),"",InfoPro!B51) ->  | C58: =IF(ISBLANK(InfoPro!E51),"",InfoPro!E51) ->  | D58: =IF(ISBLANK(InfoPro!F51),"",InfoPro!F51) ->  | E58: =IF(ISBLANK(InfoPro!I51),"",YEAR(InfoPro!I51)-$G$3) ->  | F58: =IF(B58="","",VLOOKUP(D58,Tablas!$B$2:$E$13,2,FALSE)) ->  | G58: =IF(B58="","",VLOOKUP(D58,Tablas!$B$2:$G$13,6,FALSE)) -> 
A59: =IF(ISBLANK(InfoPro!A52),"",InfoPro!A52) ->  | B59: =IF(ISBLANK(InfoPro!B52),"",InfoPro!B52) ->  | C59: =IF(ISBLANK(InfoPro!E52),"",InfoPro!E52) ->  | D59: =IF(ISBLANK(InfoPro!F52),"",InfoPro!F52) ->  | E59: =IF(ISBLANK(InfoPro!I52),"",YEAR(InfoPro!I52)-$G$3) ->  | F59: =IF(B59="","",VLOOKUP(D59,Tablas!$B$2:$E$13,2,FALSE)) ->  | G59: =IF(B59="","",VLOOKUP(D59,Tablas!$B$2:$G$13,6,FALSE)) ->  | J59: =IF($I59="","",(1/(1+$C$4)^(J$7+$E59))*$I59*$C$5) -> 
A60: =IF(ISBLANK(InfoPro!A53),"",InfoPro!A53) ->  | B60: =IF(ISBLANK(InfoPro!B53),"",InfoPro!B53) ->  | C60: =IF(ISBLANK(InfoPro!E53),"",InfoPro!E53) ->  | D60: =IF(ISBLANK(InfoPro!F53),"",InfoPro!F53) ->  | E60: =IF(ISBLANK(InfoPro!I53),"",YEAR(InfoPro!I53)-$G$3) ->  | F60: =IF(B60="","",VLOOKUP(D60,Tablas!$B$2:$E$13,2,FALSE)) ->  | G60: =IF(B60="","",VLOOKUP(D60,Tablas!$B$2:$G$13,6,FALSE)) -> 
A61: =IF(ISBLANK(InfoPro!A54),"",InfoPro!A54) ->  | B61: =IF(ISBLANK(InfoPro!B54),"",InfoPro!B54) ->  | C61: =IF(ISBLANK(InfoPro!E54),"",InfoPro!E54) ->  | D61: =IF(ISBLANK(InfoPro!F54),"",InfoPro!F54) ->  | E61: =IF(ISBLANK(InfoPro!I54),"",YEAR(InfoPro!I54)-$G$3) ->  | F61: =IF(B61="","",VLOOKUP(D61,Tablas!$B$2:$E$13,2,FALSE)) ->  | G61: =IF(B61="","",VLOOKUP(D61,Tablas!$B$2:$G$13,6,FALSE)) -> 
A62: =IF(ISBLANK(InfoPro!A55),"",InfoPro!A55) ->  | B62: =IF(ISBLANK(InfoPro!B55),"",InfoPro!B55) ->  | C62: =IF(ISBLANK(InfoPro!E55),"",InfoPro!E55) ->  | D62: =IF(ISBLANK(InfoPro!F55),"",InfoPro!F55) ->  | E62: =IF(ISBLANK(InfoPro!I55),"",YEAR(InfoPro!I55)-$G$3) ->  | F62: =IF(B62="","",VLOOKUP(D62,Tablas!$B$2:$E$13,2,FALSE)) ->  | G62: =IF(B62="","",VLOOKUP(D62,Tablas!$B$2:$G$13,6,FALSE)) -> 
A63: =IF(ISBLANK(InfoPro!A56),"",InfoPro!A56) ->  | B63: =IF(ISBLANK(InfoPro!B56),"",InfoPro!B56) ->  | C63: =IF(ISBLANK(InfoPro!E56),"",InfoPro!E56) ->  | D63: =IF(ISBLANK(InfoPro!F56),"",InfoPro!F56) ->  | E63: =IF(ISBLANK(InfoPro!I56),"",YEAR(InfoPro!I56)-$G$3) ->  | F63: =IF(B63="","",VLOOKUP(D63,Tablas!$B$2:$E$13,2,FALSE)) ->  | G63: =IF(B63="","",VLOOKUP(D63,Tablas!$B$2:$G$13,6,FALSE)) -> 
A64: =IF(ISBLANK(InfoPro!A57),"",InfoPro!A57) ->  | B64: =IF(ISBLANK(InfoPro!B57),"",InfoPro!B57) ->  | C64: =IF(ISBLANK(InfoPro!E57),"",InfoPro!E57) ->  | D64: =IF(ISBLANK(InfoPro!F57),"",InfoPro!F57) ->  | E64: =IF(ISBLANK(InfoPro!I57),"",YEAR(InfoPro!I57)-$G$3) ->  | F64: =IF(B64="","",VLOOKUP(D64,Tablas!$B$2:$E$13,2,FALSE)) ->  | G64: =IF(B64="","",VLOOKUP(D64,Tablas!$B$2:$G$13,6,FALSE)) -> 
A65: =IF(ISBLANK(InfoPro!A58),"",InfoPro!A58) ->  | B65: =IF(ISBLANK(InfoPro!B58),"",InfoPro!B58) ->  | C65: =IF(ISBLANK(InfoPro!E58),"",InfoPro!E58) ->  | D65: =IF(ISBLANK(InfoPro!F58),"",InfoPro!F58) ->  | E65: =IF(ISBLANK(InfoPro!I58),"",YEAR(InfoPro!I58)-$G$3) ->  | F65: =IF(B65="","",VLOOKUP(D65,Tablas!$B$2:$E$13,2,FALSE)) ->  | G65: =IF(B65="","",VLOOKUP(D65,Tablas!$B$2:$G$13,6,FALSE)) -> 
A66: =IF(ISBLANK(InfoPro!A59),"",InfoPro!A59) ->  | B66: =IF(ISBLANK(InfoPro!B59),"",InfoPro!B59) ->  | C66: =IF(ISBLANK(InfoPro!E59),"",InfoPro!E59) ->  | D66: =IF(ISBLANK(InfoPro!F59),"",InfoPro!F59) ->  | E66: =IF(ISBLANK(InfoPro!I59),"",YEAR(InfoPro!I59)-$G$3) ->  | F66: =IF(B66="","",VLOOKUP(D66,Tablas!$B$2:$E$13,2,FALSE)) ->  | G66: =IF(B66="","",VLOOKUP(D66,Tablas!$B$2:$G$13,6,FALSE)) -> 
A67: =IF(ISBLANK(InfoPro!A60),"",InfoPro!A60) ->  | B67: =IF(ISBLANK(InfoPro!B60),"",InfoPro!B60) ->  | C67: =IF(ISBLANK(InfoPro!E60),"",InfoPro!E60) ->  | D67: =IF(ISBLANK(InfoPro!F60),"",InfoPro!F60) ->  | E67: =IF(ISBLANK(InfoPro!I60),"",YEAR(InfoPro!I60)-$G$3) ->  | F67: =IF(B67="","",VLOOKUP(D67,Tablas!$B$2:$E$13,2,FALSE)) ->  | G67: =IF(B67="","",VLOOKUP(D67,Tablas!$B$2:$G$13,6,FALSE)) -> 
A68: =IF(ISBLANK(InfoPro!A61),"",InfoPro!A61) ->  | B68: =IF(ISBLANK(InfoPro!B61),"",InfoPro!B61) ->  | C68: =IF(ISBLANK(InfoPro!E61),"",InfoPro!E61) ->  | D68: =IF(ISBLANK(InfoPro!F61),"",InfoPro!F61) ->  | E68: =IF(ISBLANK(InfoPro!I61),"",YEAR(InfoPro!I61)-$G$3) ->  | F68: =IF(B68="","",VLOOKUP(D68,Tablas!$B$2:$E$13,2,FALSE)) ->  | G68: =IF(B68="","",VLOOKUP(D68,Tablas!$B$2:$G$13,6,FALSE)) -> 
A69: =IF(ISBLANK(InfoPro!A62),"",InfoPro!A62) ->  | B69: =IF(ISBLANK(InfoPro!B62),"",InfoPro!B62) ->  | C69: =IF(ISBLANK(InfoPro!E62),"",InfoPro!E62) ->  | D69: =IF(ISBLANK(InfoPro!F62),"",InfoPro!F62) ->  | E69: =IF(ISBLANK(InfoPro!I62),"",YEAR(InfoPro!I62)-$G$3) ->  | F69: =IF(B69="","",VLOOKUP(D69,Tablas!$B$2:$E$13,2,FALSE)) ->  | G69: =IF(B69="","",VLOOKUP(D69,Tablas!$B$2:$G$13,6,FALSE)) ->  | J69: =IF($I69="","",(1/(1+$C$4)^(J$7+$E69))*$I69*$C$5) -> 
A70: =IF(ISBLANK(InfoPro!A63),"",InfoPro!A63) ->  | B70: =IF(ISBLANK(InfoPro!B63),"",InfoPro!B63) ->  | C70: =IF(ISBLANK(InfoPro!E63),"",InfoPro!E63) ->  | D70: =IF(ISBLANK(InfoPro!F63),"",InfoPro!F63) ->  | E70: =IF(ISBLANK(InfoPro!I63),"",YEAR(InfoPro!I63)-$G$3) ->  | F70: =IF(B70="","",VLOOKUP(D70,Tablas!$B$2:$E$13,2,FALSE)) ->  | G70: =IF(B70="","",VLOOKUP(D70,Tablas!$B$2:$G$13,6,FALSE)) -> 
A71: =IF(ISBLANK(InfoPro!A64),"",InfoPro!A64) ->  | B71: =IF(ISBLANK(InfoPro!B64),"",InfoPro!B64) ->  | C71: =IF(ISBLANK(InfoPro!E64),"",InfoPro!E64) ->  | D71: =IF(ISBLANK(InfoPro!F64),"",InfoPro!F64) ->  | E71: =IF(ISBLANK(InfoPro!I64),"",YEAR(InfoPro!I64)-$G$3) ->  | F71: =IF(B71="","",VLOOKUP(D71,Tablas!$B$2:$E$13,2,FALSE)) ->  | G71: =IF(B71="","",VLOOKUP(D71,Tablas!$B$2:$G$13,6,FALSE)) -> 
A72: =IF(ISBLANK(InfoPro!A65),"",InfoPro!A65) ->  | B72: =IF(ISBLANK(InfoPro!B65),"",InfoPro!B65) ->  | C72: =IF(ISBLANK(InfoPro!E65),"",InfoPro!E65) ->  | D72: =IF(ISBLANK(InfoPro!F65),"",InfoPro!F65) ->  | E72: =IF(ISBLANK(InfoPro!I65),"",YEAR(InfoPro!I65)-$G$3) ->  | F72: =IF(B72="","",VLOOKUP(D72,Tablas!$B$2:$E$13,2,FALSE)) ->  | G72: =IF(B72="","",VLOOKUP(D72,Tablas!$B$2:$G$13,6,FALSE)) -> 
A73: =IF(ISBLANK(InfoPro!A66),"",InfoPro!A66) ->  | B73: =IF(ISBLANK(InfoPro!B66),"",InfoPro!B66) ->  | C73: =IF(ISBLANK(InfoPro!E66),"",InfoPro!E66) ->  | D73: =IF(ISBLANK(InfoPro!F66),"",InfoPro!F66) ->  | E73: =IF(ISBLANK(InfoPro!I66),"",YEAR(InfoPro!I66)-$G$3) ->  | F73: =IF(B73="","",VLOOKUP(D73,Tablas!$B$2:$E$13,2,FALSE)) ->  | G73: =IF(B73="","",VLOOKUP(D73,Tablas!$B$2:$G$13,6,FALSE)) ->  | H73: =IF(C73="","",+C73*F73*24*365) ->  | I73: =IF(H73="","",+H73*($C$3-G73)) -> 
A74: =IF(ISBLANK(InfoPro!A67),"",InfoPro!A67) ->  | B74: =IF(ISBLANK(InfoPro!B67),"",InfoPro!B67) ->  | C74: =IF(ISBLANK(InfoPro!E67),"",InfoPro!E67) ->  | D74: =IF(ISBLANK(InfoPro!F67),"",InfoPro!F67) ->  | E74: =IF(ISBLANK(InfoPro!I67),"",YEAR(InfoPro!I67)-$G$3) ->  | F74: =IF(B74="","",VLOOKUP(D74,Tablas!$B$2:$E$13,2,FALSE)) ->  | G74: =IF(B74="","",VLOOKUP(D74,Tablas!$B$2:$G$13,6,FALSE)) ->  | Y74: =IF(X74="","",SUM(J74:X74)*$C$6) ->  | Z74: =IF(C74=0,0,IF(Y74="","",Y74/(C74*1000))) -> 
A75: =IF(ISBLANK(InfoPro!A68),"",InfoPro!A68) ->  | B75: =IF(ISBLANK(InfoPro!B68),"",InfoPro!B68) ->  | C75: =IF(ISBLANK(InfoPro!E68),"",InfoPro!E68) ->  | D75: =IF(ISBLANK(InfoPro!F68),"",InfoPro!F68) ->  | E75: =IF(ISBLANK(InfoPro!I68),"",YEAR(InfoPro!I68)-$G$3) ->  | F75: =IF(B75="","",VLOOKUP(D75,Tablas!$B$2:$E$13,2,FALSE)) ->  | G75: =IF(B75="","",VLOOKUP(D75,Tablas!$B$2:$G$13,6,FALSE)) -> 
A76: =IF(ISBLANK(InfoPro!A69),"",InfoPro!A69) ->  | B76: =IF(ISBLANK(InfoPro!B69),"",InfoPro!B69) ->  | C76: =IF(ISBLANK(InfoPro!E69),"",InfoPro!E69) ->  | D76: =IF(ISBLANK(InfoPro!F69),"",InfoPro!F69) ->  | E76: =IF(ISBLANK(InfoPro!I69),"",YEAR(InfoPro!I69)-$G$3) ->  | F76: =IF(B76="","",VLOOKUP(D76,Tablas!$B$2:$E$13,2,FALSE)) ->  | G76: =IF(B76="","",VLOOKUP(D76,Tablas!$B$2:$G$13,6,FALSE)) -> 
A77: =IF(ISBLANK(InfoPro!A70),"",InfoPro!A70) ->  | B77: =IF(ISBLANK(InfoPro!B70),"",InfoPro!B70) ->  | C77: =IF(ISBLANK(InfoPro!E70),"",InfoPro!E70) ->  | D77: =IF(ISBLANK(InfoPro!F70),"",InfoPro!F70) ->  | E77: =IF(ISBLANK(InfoPro!I70),"",YEAR(InfoPro!I70)-$G$3) ->  | F77: =IF(B77="","",VLOOKUP(D77,Tablas!$B$2:$E$13,2,FALSE)) ->  | G77: =IF(B77="","",VLOOKUP(D77,Tablas!$B$2:$G$13,6,FALSE)) -> 
A78: =IF(ISBLANK(InfoPro!A71),"",InfoPro!A71) ->  | B78: =IF(ISBLANK(InfoPro!B71),"",InfoPro!B71) ->  | C78: =IF(ISBLANK(InfoPro!E71),"",InfoPro!E71) ->  | D78: =IF(ISBLANK(InfoPro!F71),"",InfoPro!F71) ->  | E78: =IF(ISBLANK(InfoPro!I71),"",YEAR(InfoPro!I71)-$G$3) ->  | F78: =IF(B78="","",VLOOKUP(D78,Tablas!$B$2:$E$13,2,FALSE)) ->  | G78: =IF(B78="","",VLOOKUP(D78,Tablas!$B$2:$G$13,6,FALSE)) -> 
A79: =IF(ISBLANK(InfoPro!A72),"",InfoPro!A72) ->  | B79: =IF(ISBLANK(InfoPro!B72),"",InfoPro!B72) ->  | C79: =IF(ISBLANK(InfoPro!E72),"",InfoPro!E72) ->  | D79: =IF(ISBLANK(InfoPro!F72),"",InfoPro!F72) ->  | E79: =IF(ISBLANK(InfoPro!I72),"",YEAR(InfoPro!I72)-$G$3) ->  | F79: =IF(B79="","",VLOOKUP(D79,Tablas!$B$2:$E$13,2,FALSE)) ->  | G79: =IF(B79="","",VLOOKUP(D79,Tablas!$B$2:$G$13,6,FALSE)) ->  | J79: =IF($I79="","",(1/(1+$C$4)^(J$7+$E79))*$I79*$C$5) -> 
A80: =IF(ISBLANK(InfoPro!A73),"",InfoPro!A73) ->  | B80: =IF(ISBLANK(InfoPro!B73),"",InfoPro!B73) ->  | C80: =IF(ISBLANK(InfoPro!E73),"",InfoPro!E73) ->  | D80: =IF(ISBLANK(InfoPro!F73),"",InfoPro!F73) ->  | E80: =IF(ISBLANK(InfoPro!I73),"",YEAR(InfoPro!I73)-$G$3) ->  | F80: =IF(B80="","",VLOOKUP(D80,Tablas!$B$2:$E$13,2,FALSE)) ->  | G80: =IF(B80="","",VLOOKUP(D80,Tablas!$B$2:$G$13,6,FALSE)) -> 
A81: =IF(ISBLANK(InfoPro!A74),"",InfoPro!A74) ->  | B81: =IF(ISBLANK(InfoPro!B74),"",InfoPro!B74) ->  | C81: =IF(ISBLANK(InfoPro!E74),"",InfoPro!E74) ->  | D81: =IF(ISBLANK(InfoPro!F74),"",InfoPro!F74) ->  | E81: =IF(ISBLANK(InfoPro!I74),"",YEAR(InfoPro!I74)-$G$3) ->  | F81: =IF(B81="","",VLOOKUP(D81,Tablas!$B$2:$E$13,2,FALSE)) ->  | G81: =IF(B81="","",VLOOKUP(D81,Tablas!$B$2:$G$13,6,FALSE)) -> 
A82: =IF(ISBLANK(InfoPro!A75),"",InfoPro!A75) ->  | B82: =IF(ISBLANK(InfoPro!B75),"",InfoPro!B75) ->  | C82: =IF(ISBLANK(InfoPro!E75),"",InfoPro!E75) ->  | D82: =IF(ISBLANK(InfoPro!F75),"",InfoPro!F75) ->  | E82: =IF(ISBLANK(InfoPro!I75),"",YEAR(InfoPro!I75)-$G$3) ->  | F82: =IF(B82="","",VLOOKUP(D82,Tablas!$B$2:$E$13,2,FALSE)) ->  | G82: =IF(B82="","",VLOOKUP(D82,Tablas!$B$2:$G$13,6,FALSE)) -> 
A83: =IF(ISBLANK(InfoPro!A76),"",InfoPro!A76) ->  | B83: =IF(ISBLANK(InfoPro!B76),"",InfoPro!B76) ->  | C83: =IF(ISBLANK(InfoPro!E76),"",InfoPro!E76) ->  | D83: =IF(ISBLANK(InfoPro!F76),"",InfoPro!F76) ->  | E83: =IF(ISBLANK(InfoPro!I76),"",YEAR(InfoPro!I76)-$G$3) ->  | F83: =IF(B83="","",VLOOKUP(D83,Tablas!$B$2:$E$13,2,FALSE)) ->  | G83: =IF(B83="","",VLOOKUP(D83,Tablas!$B$2:$G$13,6,FALSE)) -> 
A84: =IF(ISBLANK(InfoPro!A77),"",InfoPro!A77) ->  | B84: =IF(ISBLANK(InfoPro!B77),"",InfoPro!B77) ->  | C84: =IF(ISBLANK(InfoPro!E77),"",InfoPro!E77) ->  | D84: =IF(ISBLANK(InfoPro!F77),"",InfoPro!F77) ->  | E84: =IF(ISBLANK(InfoPro!I77),"",YEAR(InfoPro!I77)-$G$3) ->  | F84: =IF(B84="","",VLOOKUP(D84,Tablas!$B$2:$E$13,2,FALSE)) ->  | G84: =IF(B84="","",VLOOKUP(D84,Tablas!$B$2:$G$13,6,FALSE)) -> 
A85: =IF(ISBLANK(InfoPro!A78),"",InfoPro!A78) ->  | B85: =IF(ISBLANK(InfoPro!B78),"",InfoPro!B78) ->  | C85: =IF(ISBLANK(InfoPro!E78),"",InfoPro!E78) ->  | D85: =IF(ISBLANK(InfoPro!F78),"",InfoPro!F78) ->  | E85: =IF(ISBLANK(InfoPro!I78),"",YEAR(InfoPro!I78)-$G$3) ->  | F85: =IF(B85="","",VLOOKUP(D85,Tablas!$B$2:$E$13,2,FALSE)) ->  | G85: =IF(B85="","",VLOOKUP(D85,Tablas!$B$2:$G$13,6,FALSE)) -> 
A86: =IF(ISBLANK(InfoPro!A79),"",InfoPro!A79) ->  | B86: =IF(ISBLANK(InfoPro!B79),"",InfoPro!B79) ->  | C86: =IF(ISBLANK(InfoPro!E79),"",InfoPro!E79) ->  | D86: =IF(ISBLANK(InfoPro!F79),"",InfoPro!F79) ->  | E86: =IF(ISBLANK(InfoPro!I79),"",YEAR(InfoPro!I79)-$G$3) ->  | F86: =IF(B86="","",VLOOKUP(D86,Tablas!$B$2:$E$13,2,FALSE)) ->  | G86: =IF(B86="","",VLOOKUP(D86,Tablas!$B$2:$G$13,6,FALSE)) -> 
A87: =IF(ISBLANK(InfoPro!A80),"",InfoPro!A80) ->  | B87: =IF(ISBLANK(InfoPro!B80),"",InfoPro!B80) ->  | C87: =IF(ISBLANK(InfoPro!E80),"",InfoPro!E80) ->  | D87: =IF(ISBLANK(InfoPro!F80),"",InfoPro!F80) ->  | E87: =IF(ISBLANK(InfoPro!I80),"",YEAR(InfoPro!I80)-$G$3) ->  | F87: =IF(B87="","",VLOOKUP(D87,Tablas!$B$2:$E$13,2,FALSE)) ->  | G87: =IF(B87="","",VLOOKUP(D87,Tablas!$B$2:$G$13,6,FALSE)) -> 
A88: =IF(ISBLANK(InfoPro!A81),"",InfoPro!A81) ->  | B88: =IF(ISBLANK(InfoPro!B81),"",InfoPro!B81) ->  | C88: =IF(ISBLANK(InfoPro!E81),"",InfoPro!E81) ->  | D88: =IF(ISBLANK(InfoPro!F81),"",InfoPro!F81) ->  | E88: =IF(ISBLANK(InfoPro!I81),"",YEAR(InfoPro!I81)-$G$3) ->  | F88: =IF(B88="","",VLOOKUP(D88,Tablas!$B$2:$E$13,2,FALSE)) ->  | G88: =IF(B88="","",VLOOKUP(D88,Tablas!$B$2:$G$13,6,FALSE)) -> 
A89: =IF(ISBLANK(InfoPro!A82),"",InfoPro!A82) ->  | B89: =IF(ISBLANK(InfoPro!B82),"",InfoPro!B82) ->  | C89: =IF(ISBLANK(InfoPro!E82),"",InfoPro!E82) ->  | D89: =IF(ISBLANK(InfoPro!F82),"",InfoPro!F82) ->  | E89: =IF(ISBLANK(InfoPro!I82),"",YEAR(InfoPro!I82)-$G$3) ->  | F89: =IF(B89="","",VLOOKUP(D89,Tablas!$B$2:$E$13,2,FALSE)) ->  | G89: =IF(B89="","",VLOOKUP(D89,Tablas!$B$2:$G$13,6,FALSE)) ->  | J89: =IF($I89="","",(1/(1+$C$4)^(J$7+$E89))*$I89*$C$5) -> 
A90: =IF(ISBLANK(InfoPro!A83),"",InfoPro!A83) ->  | B90: =IF(ISBLANK(InfoPro!B83),"",InfoPro!B83) ->  | C90: =IF(ISBLANK(InfoPro!E83),"",InfoPro!E83) ->  | D90: =IF(ISBLANK(InfoPro!F83),"",InfoPro!F83) ->  | E90: =IF(ISBLANK(InfoPro!I83),"",YEAR(InfoPro!I83)-$G$3) ->  | F90: =IF(B90="","",VLOOKUP(D90,Tablas!$B$2:$E$13,2,FALSE)) ->  | G90: =IF(B90="","",VLOOKUP(D90,Tablas!$B$2:$G$13,6,FALSE)) -> 
A91: =IF(ISBLANK(InfoPro!A84),"",InfoPro!A84) ->  | B91: =IF(ISBLANK(InfoPro!B84),"",InfoPro!B84) ->  | C91: =IF(ISBLANK(InfoPro!E84),"",InfoPro!E84) ->  | D91: =IF(ISBLANK(InfoPro!F84),"",InfoPro!F84) ->  | E91: =IF(ISBLANK(InfoPro!I84),"",YEAR(InfoPro!I84)-$G$3) ->  | F91: =IF(B91="","",VLOOKUP(D91,Tablas!$B$2:$E$13,2,FALSE)) ->  | G91: =IF(B91="","",VLOOKUP(D91,Tablas!$B$2:$G$13,6,FALSE)) -> 
A92: =IF(ISBLANK(InfoPro!A85),"",InfoPro!A85) ->  | B92: =IF(ISBLANK(InfoPro!B85),"",InfoPro!B85) ->  | C92: =IF(ISBLANK(InfoPro!E85),"",InfoPro!E85) ->  | D92: =IF(ISBLANK(InfoPro!F85),"",InfoPro!F85) ->  | E92: =IF(ISBLANK(InfoPro!I85),"",YEAR(InfoPro!I85)-$G$3) ->  | F92: =IF(B92="","",VLOOKUP(D92,Tablas!$B$2:$E$13,2,FALSE)) ->  | G92: =IF(B92="","",VLOOKUP(D92,Tablas!$B$2:$G$13,6,FALSE)) -> 
A93: =IF(ISBLANK(InfoPro!A86),"",InfoPro!A86) ->  | B93: =IF(ISBLANK(InfoPro!B86),"",InfoPro!B86) ->  | C93: =IF(ISBLANK(InfoPro!E86),"",InfoPro!E86) ->  | D93: =IF(ISBLANK(InfoPro!F86),"",InfoPro!F86) ->  | E93: =IF(ISBLANK(InfoPro!I86),"",YEAR(InfoPro!I86)-$G$3) ->  | F93: =IF(B93="","",VLOOKUP(D93,Tablas!$B$2:$E$13,2,FALSE)) ->  | G93: =IF(B93="","",VLOOKUP(D93,Tablas!$B$2:$G$13,6,FALSE)) -> 
A94: =IF(ISBLANK(InfoPro!A87),"",InfoPro!A87) ->  | B94: =IF(ISBLANK(InfoPro!B87),"",InfoPro!B87) ->  | C94: =IF(ISBLANK(InfoPro!E87),"",InfoPro!E87) ->  | D94: =IF(ISBLANK(InfoPro!F87),"",InfoPro!F87) ->  | E94: =IF(ISBLANK(InfoPro!I87),"",YEAR(InfoPro!I87)-$G$3) ->  | F94: =IF(B94="","",VLOOKUP(D94,Tablas!$B$2:$E$13,2,FALSE)) ->  | G94: =IF(B94="","",VLOOKUP(D94,Tablas!$B$2:$G$13,6,FALSE)) -> 
A95: =IF(ISBLANK(InfoPro!A88),"",InfoPro!A88) ->  | B95: =IF(ISBLANK(InfoPro!B88),"",InfoPro!B88) ->  | C95: =IF(ISBLANK(InfoPro!E88),"",InfoPro!E88) ->  | D95: =IF(ISBLANK(InfoPro!F88),"",InfoPro!F88) ->  | E95: =IF(ISBLANK(InfoPro!I88),"",YEAR(InfoPro!I88)-$G$3) ->  | F95: =IF(B95="","",VLOOKUP(D95,Tablas!$B$2:$E$13,2,FALSE)) ->  | G95: =IF(B95="","",VLOOKUP(D95,Tablas!$B$2:$G$13,6,FALSE)) ->  | H95: =IF(C95="","",+C95*F95*24*365) -> 
A96: =IF(ISBLANK(InfoPro!A89),"",InfoPro!A89) ->  | B96: =IF(ISBLANK(InfoPro!B89),"",InfoPro!B89) ->  | C96: =IF(ISBLANK(InfoPro!E89),"",InfoPro!E89) ->  | D96: =IF(ISBLANK(InfoPro!F89),"",InfoPro!F89) ->  | E96: =IF(ISBLANK(InfoPro!I89),"",YEAR(InfoPro!I89)-$G$3) ->  | F96: =IF(B96="","",VLOOKUP(D96,Tablas!$B$2:$E$13,2,FALSE)) ->  | G96: =IF(B96="","",VLOOKUP(D96,Tablas!$B$2:$G$13,6,FALSE)) -> 
A97: =IF(ISBLANK(InfoPro!A90),"",InfoPro!A90) ->  | B97: =IF(ISBLANK(InfoPro!B90),"",InfoPro!B90) ->  | C97: =IF(ISBLANK(InfoPro!E90),"",InfoPro!E90) ->  | D97: =IF(ISBLANK(InfoPro!F90),"",InfoPro!F90) ->  | E97: =IF(ISBLANK(InfoPro!I90),"",YEAR(InfoPro!I90)-$G$3) ->  | F97: =IF(B97="","",VLOOKUP(D97,Tablas!$B$2:$E$13,2,FALSE)) ->  | G97: =IF(B97="","",VLOOKUP(D97,Tablas!$B$2:$G$13,6,FALSE)) -> 
A98: =IF(ISBLANK(InfoPro!A91),"",InfoPro!A91) ->  | B98: =IF(ISBLANK(InfoPro!B91),"",InfoPro!B91) ->  | C98: =IF(ISBLANK(InfoPro!E91),"",InfoPro!E91) ->  | D98: =IF(ISBLANK(InfoPro!F91),"",InfoPro!F91) ->  | E98: =IF(ISBLANK(InfoPro!I91),"",YEAR(InfoPro!I91)-$G$3) ->  | F98: =IF(B98="","",VLOOKUP(D98,Tablas!$B$2:$E$13,2,FALSE)) ->  | G98: =IF(B98="","",VLOOKUP(D98,Tablas!$B$2:$G$13,6,FALSE)) -> 
A99: =IF(ISBLANK(InfoPro!A92),"",InfoPro!A92) ->  | B99: =IF(ISBLANK(InfoPro!B92),"",InfoPro!B92) ->  | C99: =IF(ISBLANK(InfoPro!E92),"",InfoPro!E92) ->  | D99: =IF(ISBLANK(InfoPro!F92),"",InfoPro!F92) ->  | E99: =IF(ISBLANK(InfoPro!I92),"",YEAR(InfoPro!I92)-$G$3) ->  | F99: =IF(B99="","",VLOOKUP(D99,Tablas!$B$2:$E$13,2,FALSE)) ->  | G99: =IF(B99="","",VLOOKUP(D99,Tablas!$B$2:$G$13,6,FALSE)) ->  | J99: =IF($I99="","",(1/(1+$C$4)^(J$7+$E99))*$I99*$C$5) -> 
A100: =IF(ISBLANK(InfoPro!A93),"",InfoPro!A93) ->  | B100: =IF(ISBLANK(InfoPro!B93),"",InfoPro!B93) ->  | C100: =IF(ISBLANK(InfoPro!E93),"",InfoPro!E93) ->  | D100: =IF(ISBLANK(InfoPro!F93),"",InfoPro!F93) ->  | E100: =IF(ISBLANK(InfoPro!I93),"",YEAR(InfoPro!I93)-$G$3) ->  | F100: =IF(B100="","",VLOOKUP(D100,Tablas!$B$2:$E$13,2,FALSE)) ->  | G100: =IF(B100="","",VLOOKUP(D100,Tablas!$B$2:$G$13,6,FALSE)) -> 
A101: =IF(ISBLANK(InfoPro!A94),"",InfoPro!A94) ->  | B101: =IF(ISBLANK(InfoPro!B94),"",InfoPro!B94) ->  | C101: =IF(ISBLANK(InfoPro!E94),"",InfoPro!E94) ->  | D101: =IF(ISBLANK(InfoPro!F94),"",InfoPro!F94) ->  | E101: =IF(ISBLANK(InfoPro!I94),"",YEAR(InfoPro!I94)-$G$3) ->  | F101: =IF(B101="","",VLOOKUP(D101,Tablas!$B$2:$E$13,2,FALSE)) ->  | G101: =IF(B101="","",VLOOKUP(D101,Tablas!$B$2:$G$13,6,FALSE)) -> 
A102: =IF(ISBLANK(InfoPro!A95),"",InfoPro!A95) ->  | B102: =IF(ISBLANK(InfoPro!B95),"",InfoPro!B95) ->  | C102: =IF(ISBLANK(InfoPro!E95),"",InfoPro!E95) ->  | D102: =IF(ISBLANK(InfoPro!F95),"",InfoPro!F95) ->  | E102: =IF(ISBLANK(InfoPro!I95),"",YEAR(InfoPro!I95)-$G$3) ->  | F102: =IF(B102="","",VLOOKUP(D102,Tablas!$B$2:$E$13,2,FALSE)) ->  | G102: =IF(B102="","",VLOOKUP(D102,Tablas!$B$2:$G$13,6,FALSE)) -> 
A103: =IF(ISBLANK(InfoPro!A96),"",InfoPro!A96) ->  | B103: =IF(ISBLANK(InfoPro!B96),"",InfoPro!B96) ->  | C103: =IF(ISBLANK(InfoPro!E96),"",InfoPro!E96) ->  | D103: =IF(ISBLANK(InfoPro!F96),"",InfoPro!F96) ->  | E103: =IF(ISBLANK(InfoPro!I96),"",YEAR(InfoPro!I96)-$G$3) ->  | F103: =IF(B103="","",VLOOKUP(D103,Tablas!$B$2:$E$13,2,FALSE)) ->  | G103: =IF(B103="","",VLOOKUP(D103,Tablas!$B$2:$G$13,6,FALSE)) -> 
A104: =IF(ISBLANK(InfoPro!A97),"",InfoPro!A97) ->  | B104: =IF(ISBLANK(InfoPro!B97),"",InfoPro!B97) ->  | C104: =IF(ISBLANK(InfoPro!E97),"",InfoPro!E97) ->  | D104: =IF(ISBLANK(InfoPro!F97),"",InfoPro!F97) ->  | E104: =IF(ISBLANK(InfoPro!I97),"",YEAR(InfoPro!I97)-$G$3) ->  | F104: =IF(B104="","",VLOOKUP(D104,Tablas!$B$2:$E$13,2,FALSE)) ->  | G104: =IF(B104="","",VLOOKUP(D104,Tablas!$B$2:$G$13,6,FALSE)) -> 
A105: =IF(ISBLANK(InfoPro!A98),"",InfoPro!A98) ->  | B105: =IF(ISBLANK(InfoPro!B98),"",InfoPro!B98) ->  | C105: =IF(ISBLANK(InfoPro!E98),"",InfoPro!E98) ->  | D105: =IF(ISBLANK(InfoPro!F98),"",InfoPro!F98) ->  | E105: =IF(ISBLANK(InfoPro!I98),"",YEAR(InfoPro!I98)-$G$3) ->  | F105: =IF(B105="","",VLOOKUP(D105,Tablas!$B$2:$E$13,2,FALSE)) ->  | G105: =IF(B105="","",VLOOKUP(D105,Tablas!$B$2:$G$13,6,FALSE)) ->  | I105: =IF(H105="","",+H105*($C$3-G105)) -> 
A106: =IF(ISBLANK(InfoPro!A99),"",InfoPro!A99) ->  | B106: =IF(ISBLANK(InfoPro!B99),"",InfoPro!B99) ->  | C106: =IF(ISBLANK(InfoPro!E99),"",InfoPro!E99) ->  | D106: =IF(ISBLANK(InfoPro!F99),"",InfoPro!F99) ->  | E106: =IF(ISBLANK(InfoPro!I99),"",YEAR(InfoPro!I99)-$G$3) ->  | F106: =IF(B106="","",VLOOKUP(D106,Tablas!$B$2:$E$13,2,FALSE)) ->  | G106: =IF(B106="","",VLOOKUP(D106,Tablas!$B$2:$G$13,6,FALSE)) -> 
A107: =IF(ISBLANK(InfoPro!A100),"",InfoPro!A100) ->  | B107: =IF(ISBLANK(InfoPro!B100),"",InfoPro!B100) ->  | C107: =IF(ISBLANK(InfoPro!E100),"",InfoPro!E100) ->  | D107: =IF(ISBLANK(InfoPro!F100),"",InfoPro!F100) ->  | E107: =IF(ISBLANK(InfoPro!I100),"",YEAR(InfoPro!I100)-$G$3) ->  | F107: =IF(B107="","",VLOOKUP(D107,Tablas!$B$2:$E$13,2,FALSE)) ->  | G107: =IF(B107="","",VLOOKUP(D107,Tablas!$B$2:$G$13,6,FALSE)) -> 
A108: =IF(ISBLANK(InfoPro!A101),"",InfoPro!A101) ->  | B108: =IF(ISBLANK(InfoPro!B101),"",InfoPro!B101) ->  | C108: =IF(ISBLANK(InfoPro!E101),"",InfoPro!E101) ->  | D108: =IF(ISBLANK(InfoPro!F101),"",InfoPro!F101) ->  | E108: =IF(ISBLANK(InfoPro!I101),"",YEAR(InfoPro!I101)-$G$3) ->  | F108: =IF(B108="","",VLOOKUP(D108,Tablas!$B$2:$E$13,2,FALSE)) ->  | G108: =IF(B108="","",VLOOKUP(D108,Tablas!$B$2:$G$13,6,FALSE)) -> 
A109: =IF(ISBLANK(InfoPro!A102),"",InfoPro!A102) ->  | B109: =IF(ISBLANK(InfoPro!B102),"",InfoPro!B102) ->  | C109: =IF(ISBLANK(InfoPro!E102),"",InfoPro!E102) ->  | D109: =IF(ISBLANK(InfoPro!F102),"",InfoPro!F102) ->  | E109: =IF(ISBLANK(InfoPro!I102),"",YEAR(InfoPro!I102)-$G$3) ->  | F109: =IF(B109="","",VLOOKUP(D109,Tablas!$B$2:$E$13,2,FALSE)) ->  | G109: =IF(B109="","",VLOOKUP(D109,Tablas!$B$2:$G$13,6,FALSE)) ->  | H109: =IF(C109="","",+C109*F109*24*365) ->  | I109: =IF(H109="","",+H109*($C$3-G109)) ->  | Y109: =IF(X109="","",SUM(J109:X109)*$C$6) ->  | Z109: =IF(C109=0,0,IF(Y109="","",Y109/(C109*1000))) -> 
A110: =IF(ISBLANK(InfoPro!A103),"",InfoPro!A103) ->  | B110: =IF(ISBLANK(InfoPro!B103),"",InfoPro!B103) ->  | C110: =IF(ISBLANK(InfoPro!E103),"",InfoPro!E103) ->  | D110: =IF(ISBLANK(InfoPro!F103),"",InfoPro!F103) ->  | E110: =IF(ISBLANK(InfoPro!I103),"",YEAR(InfoPro!I103)-$G$3) ->  | F110: =IF(B110="","",VLOOKUP(D110,Tablas!$B$2:$E$13,2,FALSE)) ->  | G110: =IF(B110="","",VLOOKUP(D110,Tablas!$B$2:$G$13,6,FALSE)) -> 
A111: =IF(ISBLANK(InfoPro!A104),"",InfoPro!A104) ->  | B111: =IF(ISBLANK(InfoPro!B104),"",InfoPro!B104) ->  | C111: =IF(ISBLANK(InfoPro!E104),"",InfoPro!E104) ->  | D111: =IF(ISBLANK(InfoPro!F104),"",InfoPro!F104) ->  | E111: =IF(ISBLANK(InfoPro!I104),"",YEAR(InfoPro!I104)-$G$3) ->  | F111: =IF(B111="","",VLOOKUP(D111,Tablas!$B$2:$E$13,2,FALSE)) ->  | G111: =IF(B111="","",VLOOKUP(D111,Tablas!$B$2:$G$13,6,FALSE)) ->  | H111: =IF(C111="","",+C111*F111*24*365) ->  | I111: =IF(H111="","",+H111*($C$3-G111)) ->  | Y111: =IF(X111="","",SUM(J111:X111)*$C$6) ->  | Z111: =IF(C111=0,0,IF(Y111="","",Y111/(C111*1000))) -> 
A112: =IF(ISBLANK(InfoPro!A105),"",InfoPro!A105) ->  | B112: =IF(ISBLANK(InfoPro!B105),"",InfoPro!B105) ->  | C112: =IF(ISBLANK(InfoPro!E105),"",InfoPro!E105) ->  | D112: =IF(ISBLANK(InfoPro!F105),"",InfoPro!F105) ->  | E112: =IF(ISBLANK(InfoPro!I105),"",YEAR(InfoPro!I105)-$G$3) ->  | F112: =IF(B112="","",VLOOKUP(D112,Tablas!$B$2:$E$13,2,FALSE)) ->  | G112: =IF(B112="","",VLOOKUP(D112,Tablas!$B$2:$G$13,6,FALSE)) -> 
A113: =IF(ISBLANK(InfoPro!A106),"",InfoPro!A106) ->  | B113: =IF(ISBLANK(InfoPro!B106),"",InfoPro!B106) ->  | C113: =IF(ISBLANK(InfoPro!E106),"",InfoPro!E106) ->  | D113: =IF(ISBLANK(InfoPro!F106),"",InfoPro!F106) ->  | E113: =IF(ISBLANK(InfoPro!I106),"",YEAR(InfoPro!I106)-$G$3) ->  | F113: =IF(B113="","",VLOOKUP(D113,Tablas!$B$2:$E$13,2,FALSE)) ->  | G113: =IF(B113="","",VLOOKUP(D113,Tablas!$B$2:$G$13,6,FALSE)) -> 
A114: =IF(ISBLANK(InfoPro!A107),"",InfoPro!A107) ->  | B114: =IF(ISBLANK(InfoPro!B107),"",InfoPro!B107) ->  | C114: =IF(ISBLANK(InfoPro!E107),"",InfoPro!E107) ->  | D114: =IF(ISBLANK(InfoPro!F107),"",InfoPro!F107) ->  | E114: =IF(ISBLANK(InfoPro!I107),"",YEAR(InfoPro!I107)-$G$3) ->  | F114: =IF(B114="","",VLOOKUP(D114,Tablas!$B$2:$E$13,2,FALSE)) ->  | G114: =IF(B114="","",VLOOKUP(D114,Tablas!$B$2:$G$13,6,FALSE)) -> 
A115: =IF(ISBLANK(InfoPro!A108),"",InfoPro!A108) ->  | B115: =IF(ISBLANK(InfoPro!B108),"",InfoPro!B108) ->  | C115: =IF(ISBLANK(InfoPro!E108),"",InfoPro!E108) ->  | D115: =IF(ISBLANK(InfoPro!F108),"",InfoPro!F108) ->  | E115: =IF(ISBLANK(InfoPro!I108),"",YEAR(InfoPro!I108)-$G$3) ->  | F115: =IF(B115="","",VLOOKUP(D115,Tablas!$B$2:$E$13,2,FALSE)) ->  | G115: =IF(B115="","",VLOOKUP(D115,Tablas!$B$2:$G$13,6,FALSE)) ->  | J115: =IF($I115="","",(1/(1+$C$4)^(J$7+$E115))*$I115*$C$5) -> 
A116: =IF(ISBLANK(InfoPro!A109),"",InfoPro!A109) ->  | B116: =IF(ISBLANK(InfoPro!B109),"",InfoPro!B109) ->  | C116: =IF(ISBLANK(InfoPro!E109),"",InfoPro!E109) ->  | D116: =IF(ISBLANK(InfoPro!F109),"",InfoPro!F109) ->  | E116: =IF(ISBLANK(InfoPro!I109),"",YEAR(InfoPro!I109)-$G$3) ->  | F116: =IF(B116="","",VLOOKUP(D116,Tablas!$B$2:$E$13,2,FALSE)) ->  | G116: =IF(B116="","",VLOOKUP(D116,Tablas!$B$2:$G$13,6,FALSE)) -> 
A117: =IF(ISBLANK(InfoPro!A110),"",InfoPro!A110) ->  | B117: =IF(ISBLANK(InfoPro!B110),"",InfoPro!B110) ->  | C117: =IF(ISBLANK(InfoPro!E110),"",InfoPro!E110) ->  | D117: =IF(ISBLANK(InfoPro!F110),"",InfoPro!F110) ->  | E117: =IF(ISBLANK(InfoPro!I110),"",YEAR(InfoPro!I110)-$G$3) ->  | F117: =IF(B117="","",VLOOKUP(D117,Tablas!$B$2:$E$13,2,FALSE)) ->  | G117: =IF(B117="","",VLOOKUP(D117,Tablas!$B$2:$G$13,6,FALSE)) -> 
A118: =IF(ISBLANK(InfoPro!A111),"",InfoPro!A111) ->  | B118: =IF(ISBLANK(InfoPro!B111),"",InfoPro!B111) ->  | C118: =IF(ISBLANK(InfoPro!E111),"",InfoPro!E111) ->  | D118: =IF(ISBLANK(InfoPro!F111),"",InfoPro!F111) ->  | E118: =IF(ISBLANK(InfoPro!I111),"",YEAR(InfoPro!I111)-$G$3) ->  | F118: =IF(B118="","",VLOOKUP(D118,Tablas!$B$2:$E$13,2,FALSE)) ->  | G118: =IF(B118="","",VLOOKUP(D118,Tablas!$B$2:$G$13,6,FALSE)) -> 
A119: =IF(ISBLANK(InfoPro!A112),"",InfoPro!A112) ->  | B119: =IF(ISBLANK(InfoPro!B112),"",InfoPro!B112) ->  | C119: =IF(ISBLANK(InfoPro!E112),"",InfoPro!E112) ->  | D119: =IF(ISBLANK(InfoPro!F112),"",InfoPro!F112) ->  | E119: =IF(ISBLANK(InfoPro!I112),"",YEAR(InfoPro!I112)-$G$3) ->  | F119: =IF(B119="","",VLOOKUP(D119,Tablas!$B$2:$E$13,2,FALSE)) ->  | G119: =IF(B119="","",VLOOKUP(D119,Tablas!$B$2:$G$13,6,FALSE)) -> 
A120: =IF(ISBLANK(InfoPro!A113),"",InfoPro!A113) ->  | B120: =IF(ISBLANK(InfoPro!B113),"",InfoPro!B113) ->  | C120: =IF(ISBLANK(InfoPro!E113),"",InfoPro!E113) ->  | D120: =IF(ISBLANK(InfoPro!F113),"",InfoPro!F113) ->  | E120: =IF(ISBLANK(InfoPro!I113),"",YEAR(InfoPro!I113)-$G$3) ->  | F120: =IF(B120="","",VLOOKUP(D120,Tablas!$B$2:$E$13,2,FALSE)) ->  | G120: =IF(B120="","",VLOOKUP(D120,Tablas!$B$2:$G$13,6,FALSE)) -> 
A121: =IF(ISBLANK(InfoPro!A114),"",InfoPro!A114) ->  | B121: =IF(ISBLANK(InfoPro!B114),"",InfoPro!B114) ->  | C121: =IF(ISBLANK(InfoPro!E114),"",InfoPro!E114) ->  | D121: =IF(ISBLANK(InfoPro!F114),"",InfoPro!F114) ->  | E121: =IF(ISBLANK(InfoPro!I114),"",YEAR(InfoPro!I114)-$G$3) ->  | F121: =IF(B121="","",VLOOKUP(D121,Tablas!$B$2:$E$13,2,FALSE)) ->  | G121: =IF(B121="","",VLOOKUP(D121,Tablas!$B$2:$G$13,6,FALSE)) -> 
A122: =IF(ISBLANK(InfoPro!A115),"",InfoPro!A115) ->  | B122: =IF(ISBLANK(InfoPro!B115),"",InfoPro!B115) ->  | C122: =IF(ISBLANK(InfoPro!E115),"",InfoPro!E115) ->  | D122: =IF(ISBLANK(InfoPro!F115),"",InfoPro!F115) ->  | E122: =IF(ISBLANK(InfoPro!I115),"",YEAR(InfoPro!I115)-$G$3) ->  | F122: =IF(B122="","",VLOOKUP(D122,Tablas!$B$2:$E$13,2,FALSE)) ->  | G122: =IF(B122="","",VLOOKUP(D122,Tablas!$B$2:$G$13,6,FALSE)) -> 
A123: =IF(ISBLANK(InfoPro!A116),"",InfoPro!A116) ->  | B123: =IF(ISBLANK(InfoPro!B116),"",InfoPro!B116) ->  | C123: =IF(ISBLANK(InfoPro!E116),"",InfoPro!E116) ->  | D123: =IF(ISBLANK(InfoPro!F116),"",InfoPro!F116) ->  | E123: =IF(ISBLANK(InfoPro!I116),"",YEAR(InfoPro!I116)-$G$3) ->  | F123: =IF(B123="","",VLOOKUP(D123,Tablas!$B$2:$E$13,2,FALSE)) ->  | G123: =IF(B123="","",VLOOKUP(D123,Tablas!$B$2:$G$13,6,FALSE)) -> 
A124: =IF(ISBLANK(InfoPro!A117),"",InfoPro!A117) ->  | B124: =IF(ISBLANK(InfoPro!B117),"",InfoPro!B117) ->  | C124: =IF(ISBLANK(InfoPro!E117),"",InfoPro!E117) ->  | D124: =IF(ISBLANK(InfoPro!F117),"",InfoPro!F117) ->  | E124: =IF(ISBLANK(InfoPro!I117),"",YEAR(InfoPro!I117)-$G$3) ->  | F124: =IF(B124="","",VLOOKUP(D124,Tablas!$B$2:$E$13,2,FALSE)) ->  | G124: =IF(B124="","",VLOOKUP(D124,Tablas!$B$2:$G$13,6,FALSE)) -> 
A125: =IF(ISBLANK(InfoPro!A118),"",InfoPro!A118) ->  | B125: =IF(ISBLANK(InfoPro!B118),"",InfoPro!B118) ->  | C125: =IF(ISBLANK(InfoPro!E118),"",InfoPro!E118) ->  | D125: =IF(ISBLANK(InfoPro!F118),"",InfoPro!F118) ->  | E125: =IF(ISBLANK(InfoPro!I118),"",YEAR(InfoPro!I118)-$G$3) ->  | F125: =IF(B125="","",VLOOKUP(D125,Tablas!$B$2:$E$13,2,FALSE)) ->  | G125: =IF(B125="","",VLOOKUP(D125,Tablas!$B$2:$G$13,6,FALSE)) -> 
A126: =IF(ISBLANK(InfoPro!A119),"",InfoPro!A119) ->  | B126: =IF(ISBLANK(InfoPro!B119),"",InfoPro!B119) ->  | C126: =IF(ISBLANK(InfoPro!E119),"",InfoPro!E119) ->  | D126: =IF(ISBLANK(InfoPro!F119),"",InfoPro!F119) ->  | E126: =IF(ISBLANK(InfoPro!I119),"",YEAR(InfoPro!I119)-$G$3) ->  | F126: =IF(B126="","",VLOOKUP(D126,Tablas!$B$2:$E$13,2,FALSE)) ->  | G126: =IF(B126="","",VLOOKUP(D126,Tablas!$B$2:$G$13,6,FALSE)) -> 
A127: =IF(ISBLANK(InfoPro!A120),"",InfoPro!A120) ->  | B127: =IF(ISBLANK(InfoPro!B120),"",InfoPro!B120) ->  | C127: =IF(ISBLANK(InfoPro!E120),"",InfoPro!E120) ->  | D127: =IF(ISBLANK(InfoPro!F120),"",InfoPro!F120) ->  | E127: =IF(ISBLANK(InfoPro!I120),"",YEAR(InfoPro!I120)-$G$3) ->  | F127: =IF(B127="","",VLOOKUP(D127,Tablas!$B$2:$E$13,2,FALSE)) ->  | G127: =IF(B127="","",VLOOKUP(D127,Tablas!$B$2:$G$13,6,FALSE)) -> 
A128: =IF(ISBLANK(InfoPro!A121),"",InfoPro!A121) ->  | B128: =IF(ISBLANK(InfoPro!B121),"",InfoPro!B121) ->  | C128: =IF(ISBLANK(InfoPro!E121),"",InfoPro!E121) ->  | D128: =IF(ISBLANK(InfoPro!F121),"",InfoPro!F121) ->  | E128: =IF(ISBLANK(InfoPro!I121),"",YEAR(InfoPro!I121)-$G$3) ->  | F128: =IF(B128="","",VLOOKUP(D128,Tablas!$B$2:$E$13,2,FALSE)) ->  | G128: =IF(B128="","",VLOOKUP(D128,Tablas!$B$2:$G$13,6,FALSE)) -> 
A129: =IF(ISBLANK(InfoPro!A122),"",InfoPro!A122) ->  | B129: =IF(ISBLANK(InfoPro!B122),"",InfoPro!B122) ->  | C129: =IF(ISBLANK(InfoPro!E122),"",InfoPro!E122) ->  | D129: =IF(ISBLANK(InfoPro!F122),"",InfoPro!F122) ->  | E129: =IF(ISBLANK(InfoPro!I122),"",YEAR(InfoPro!I122)-$G$3) ->  | F129: =IF(B129="","",VLOOKUP(D129,Tablas!$B$2:$E$13,2,FALSE)) ->  | G129: =IF(B129="","",VLOOKUP(D129,Tablas!$B$2:$G$13,6,FALSE)) -> 
A130: =IF(ISBLANK(InfoPro!A123),"",InfoPro!A123) ->  | B130: =IF(ISBLANK(InfoPro!B123),"",InfoPro!B123) ->  | C130: =IF(ISBLANK(InfoPro!E123),"",InfoPro!E123) ->  | D130: =IF(ISBLANK(InfoPro!F123),"",InfoPro!F123) ->  | E130: =IF(ISBLANK(InfoPro!I123),"",YEAR(InfoPro!I123)-$G$3) ->  | F130: =IF(B130="","",VLOOKUP(D130,Tablas!$B$2:$E$13,2,FALSE)) ->  | G130: =IF(B130="","",VLOOKUP(D130,Tablas!$B$2:$G$13,6,FALSE)) -> 
A131: =IF(ISBLANK(InfoPro!A124),"",InfoPro!A124) ->  | B131: =IF(ISBLANK(InfoPro!B124),"",InfoPro!B124) ->  | C131: =IF(ISBLANK(InfoPro!E124),"",InfoPro!E124) ->  | D131: =IF(ISBLANK(InfoPro!F124),"",InfoPro!F124) ->  | E131: =IF(ISBLANK(InfoPro!I124),"",YEAR(InfoPro!I124)-$G$3) ->  | F131: =IF(B131="","",VLOOKUP(D131,Tablas!$B$2:$E$13,2,FALSE)) ->  | G131: =IF(B131="","",VLOOKUP(D131,Tablas!$B$2:$G$13,6,FALSE)) -> 
A132: =IF(ISBLANK(InfoPro!A125),"",InfoPro!A125) ->  | B132: =IF(ISBLANK(InfoPro!B125),"",InfoPro!B125) ->  | C132: =IF(ISBLANK(InfoPro!E125),"",InfoPro!E125) ->  | D132: =IF(ISBLANK(InfoPro!F125),"",InfoPro!F125) ->  | E132: =IF(ISBLANK(InfoPro!I125),"",YEAR(InfoPro!I125)-$G$3) ->  | F132: =IF(B132="","",VLOOKUP(D132,Tablas!$B$2:$E$13,2,FALSE)) ->  | G132: =IF(B132="","",VLOOKUP(D132,Tablas!$B$2:$G$13,6,FALSE)) ->  | J132: =IF($I132="","",(1/(1+$C$4)^(J$7+$E132))*$I132*$C$5) -> 
A133: =IF(ISBLANK(InfoPro!A126),"",InfoPro!A126) ->  | B133: =IF(ISBLANK(InfoPro!B126),"",InfoPro!B126) ->  | C133: =IF(ISBLANK(InfoPro!E126),"",InfoPro!E126) ->  | D133: =IF(ISBLANK(InfoPro!F126),"",InfoPro!F126) ->  | E133: =IF(ISBLANK(InfoPro!I126),"",YEAR(InfoPro!I126)-$G$3) ->  | F133: =IF(B133="","",VLOOKUP(D133,Tablas!$B$2:$E$13,2,FALSE)) ->  | G133: =IF(B133="","",VLOOKUP(D133,Tablas!$B$2:$G$13,6,FALSE)) -> 
A134: =IF(ISBLANK(InfoPro!A127),"",InfoPro!A127) ->  | B134: =IF(ISBLANK(InfoPro!B127),"",InfoPro!B127) ->  | C134: =IF(ISBLANK(InfoPro!E127),"",InfoPro!E127) ->  | D134: =IF(ISBLANK(InfoPro!F127),"",InfoPro!F127) ->  | E134: =IF(ISBLANK(InfoPro!I127),"",YEAR(InfoPro!I127)-$G$3) ->  | F134: =IF(B134="","",VLOOKUP(D134,Tablas!$B$2:$E$13,2,FALSE)) ->  | G134: =IF(B134="","",VLOOKUP(D134,Tablas!$B$2:$G$13,6,FALSE)) -> 
A135: =IF(ISBLANK(InfoPro!A128),"",InfoPro!A128) ->  | B135: =IF(ISBLANK(InfoPro!B128),"",InfoPro!B128) ->  | C135: =IF(ISBLANK(InfoPro!E128),"",InfoPro!E128) ->  | D135: =IF(ISBLANK(InfoPro!F128),"",InfoPro!F128) ->  | E135: =IF(ISBLANK(InfoPro!I128),"",YEAR(InfoPro!I128)-$G$3) ->  | F135: =IF(B135="","",VLOOKUP(D135,Tablas!$B$2:$E$13,2,FALSE)) ->  | G135: =IF(B135="","",VLOOKUP(D135,Tablas!$B$2:$G$13,6,FALSE)) -> 
A136: =IF(ISBLANK(InfoPro!A129),"",InfoPro!A129) ->  | B136: =IF(ISBLANK(InfoPro!B129),"",InfoPro!B129) ->  | C136: =IF(ISBLANK(InfoPro!E129),"",InfoPro!E129) ->  | D136: =IF(ISBLANK(InfoPro!F129),"",InfoPro!F129) ->  | E136: =IF(ISBLANK(InfoPro!I129),"",YEAR(InfoPro!I129)-$G$3) ->  | F136: =IF(B136="","",VLOOKUP(D136,Tablas!$B$2:$E$13,2,FALSE)) ->  | G136: =IF(B136="","",VLOOKUP(D136,Tablas!$B$2:$G$13,6,FALSE)) -> 
A137: =IF(ISBLANK(InfoPro!A130),"",InfoPro!A130) ->  | B137: =IF(ISBLANK(InfoPro!B130),"",InfoPro!B130) ->  | C137: =IF(ISBLANK(InfoPro!E130),"",InfoPro!E130) ->  | D137: =IF(ISBLANK(InfoPro!F130),"",InfoPro!F130) ->  | E137: =IF(ISBLANK(InfoPro!I130),"",YEAR(InfoPro!I130)-$G$3) ->  | F137: =IF(B137="","",VLOOKUP(D137,Tablas!$B$2:$E$13,2,FALSE)) ->  | G137: =IF(B137="","",VLOOKUP(D137,Tablas!$B$2:$G$13,6,FALSE)) -> 
A138: =IF(ISBLANK(InfoPro!A131),"",InfoPro!A131) ->  | B138: =IF(ISBLANK(InfoPro!B131),"",InfoPro!B131) ->  | C138: =IF(ISBLANK(InfoPro!E131),"",InfoPro!E131) ->  | D138: =IF(ISBLANK(InfoPro!F131),"",InfoPro!F131) ->  | E138: =IF(ISBLANK(InfoPro!I131),"",YEAR(InfoPro!I131)-$G$3) ->  | F138: =IF(B138="","",VLOOKUP(D138,Tablas!$B$2:$E$13,2,FALSE)) ->  | G138: =IF(B138="","",VLOOKUP(D138,Tablas!$B$2:$G$13,6,FALSE)) -> 
A139: =IF(ISBLANK(InfoPro!A132),"",InfoPro!A132) ->  | B139: =IF(ISBLANK(InfoPro!B132),"",InfoPro!B132) ->  | C139: =IF(ISBLANK(InfoPro!E132),"",InfoPro!E132) ->  | D139: =IF(ISBLANK(InfoPro!F132),"",InfoPro!F132) ->  | E139: =IF(ISBLANK(InfoPro!I132),"",YEAR(InfoPro!I132)-$G$3) ->  | F139: =IF(B139="","",VLOOKUP(D139,Tablas!$B$2:$E$13,2,FALSE)) ->  | G139: =IF(B139="","",VLOOKUP(D139,Tablas!$B$2:$G$13,6,FALSE)) -> 
A140: =IF(ISBLANK(InfoPro!A133),"",InfoPro!A133) ->  | B140: =IF(ISBLANK(InfoPro!B133),"",InfoPro!B133) ->  | C140: =IF(ISBLANK(InfoPro!E133),"",InfoPro!E133) ->  | D140: =IF(ISBLANK(InfoPro!F133),"",InfoPro!F133) ->  | E140: =IF(ISBLANK(InfoPro!I133),"",YEAR(InfoPro!I133)-$G$3) ->  | F140: =IF(B140="","",VLOOKUP(D140,Tablas!$B$2:$E$13,2,FALSE)) ->  | G140: =IF(B140="","",VLOOKUP(D140,Tablas!$B$2:$G$13,6,FALSE)) -> 
A141: =IF(ISBLANK(InfoPro!A134),"",InfoPro!A134) ->  | B141: =IF(ISBLANK(InfoPro!B134),"",InfoPro!B134) ->  | C141: =IF(ISBLANK(InfoPro!E134),"",InfoPro!E134) ->  | D141: =IF(ISBLANK(InfoPro!F134),"",InfoPro!F134) ->  | E141: =IF(ISBLANK(InfoPro!I134),"",YEAR(InfoPro!I134)-$G$3) ->  | F141: =IF(B141="","",VLOOKUP(D141,Tablas!$B$2:$E$13,2,FALSE)) ->  | G141: =IF(B141="","",VLOOKUP(D141,Tablas!$B$2:$G$13,6,FALSE)) -> 
A142: =IF(ISBLANK(InfoPro!A135),"",InfoPro!A135) ->  | B142: =IF(ISBLANK(InfoPro!B135),"",InfoPro!B135) ->  | C142: =IF(ISBLANK(InfoPro!E135),"",InfoPro!E135) ->  | D142: =IF(ISBLANK(InfoPro!F135),"",InfoPro!F135) ->  | E142: =IF(ISBLANK(InfoPro!I135),"",YEAR(InfoPro!I135)-$G$3) ->  | F142: =IF(B142="","",VLOOKUP(D142,Tablas!$B$2:$E$13,2,FALSE)) ->  | G142: =IF(B142="","",VLOOKUP(D142,Tablas!$B$2:$G$13,6,FALSE)) -> 
A143: =IF(ISBLANK(InfoPro!A136),"",InfoPro!A136) ->  | B143: =IF(ISBLANK(InfoPro!B136),"",InfoPro!B136) ->  | C143: =IF(ISBLANK(InfoPro!E136),"",InfoPro!E136) ->  | D143: =IF(ISBLANK(InfoPro!F136),"",InfoPro!F136) ->  | E143: =IF(ISBLANK(InfoPro!I136),"",YEAR(InfoPro!I136)-$G$3) ->  | F143: =IF(B143="","",VLOOKUP(D143,Tablas!$B$2:$E$13,2,FALSE)) ->  | G143: =IF(B143="","",VLOOKUP(D143,Tablas!$B$2:$G$13,6,FALSE)) -> 
A144: =IF(ISBLANK(InfoPro!A137),"",InfoPro!A137) ->  | B144: =IF(ISBLANK(InfoPro!B137),"",InfoPro!B137) ->  | C144: =IF(ISBLANK(InfoPro!E137),"",InfoPro!E137) ->  | D144: =IF(ISBLANK(InfoPro!F137),"",InfoPro!F137) ->  | E144: =IF(ISBLANK(InfoPro!I137),"",YEAR(InfoPro!I137)-$G$3) ->  | F144: =IF(B144="","",VLOOKUP(D144,Tablas!$B$2:$E$13,2,FALSE)) ->  | G144: =IF(B144="","",VLOOKUP(D144,Tablas!$B$2:$G$13,6,FALSE)) -> 
A145: =IF(ISBLANK(InfoPro!A138),"",InfoPro!A138) ->  | B145: =IF(ISBLANK(InfoPro!B138),"",InfoPro!B138) ->  | C145: =IF(ISBLANK(InfoPro!E138),"",InfoPro!E138) ->  | D145: =IF(ISBLANK(InfoPro!F138),"",InfoPro!F138) ->  | E145: =IF(ISBLANK(InfoPro!I138),"",YEAR(InfoPro!I138)-$G$3) ->  | F145: =IF(B145="","",VLOOKUP(D145,Tablas!$B$2:$E$13,2,FALSE)) ->  | G145: =IF(B145="","",VLOOKUP(D145,Tablas!$B$2:$G$13,6,FALSE)) -> 
A146: =IF(ISBLANK(InfoPro!A139),"",InfoPro!A139) ->  | B146: =IF(ISBLANK(InfoPro!B139),"",InfoPro!B139) ->  | C146: =IF(ISBLANK(InfoPro!E139),"",InfoPro!E139) ->  | D146: =IF(ISBLANK(InfoPro!F139),"",InfoPro!F139) ->  | E146: =IF(ISBLANK(InfoPro!I139),"",YEAR(InfoPro!I139)-$G$3) ->  | F146: =IF(B146="","",VLOOKUP(D146,Tablas!$B$2:$E$13,2,FALSE)) ->  | G146: =IF(B146="","",VLOOKUP(D146,Tablas!$B$2:$G$13,6,FALSE)) -> 
A147: =IF(ISBLANK(InfoPro!A140),"",InfoPro!A140) ->  | B147: =IF(ISBLANK(InfoPro!B140),"",InfoPro!B140) ->  | C147: =IF(ISBLANK(InfoPro!E140),"",InfoPro!E140) ->  | D147: =IF(ISBLANK(InfoPro!F140),"",InfoPro!F140) ->  | E147: =IF(ISBLANK(InfoPro!I140),"",YEAR(InfoPro!I140)-$G$3) ->  | F147: =IF(B147="","",VLOOKUP(D147,Tablas!$B$2:$E$13,2,FALSE)) ->  | G147: =IF(B147="","",VLOOKUP(D147,Tablas!$B$2:$G$13,6,FALSE)) -> 
A148: =IF(ISBLANK(InfoPro!A141),"",InfoPro!A141) ->  | B148: =IF(ISBLANK(InfoPro!B141),"",InfoPro!B141) ->  | C148: =IF(ISBLANK(InfoPro!E141),"",InfoPro!E141) ->  | D148: =IF(ISBLANK(InfoPro!F141),"",InfoPro!F141) ->  | E148: =IF(ISBLANK(InfoPro!I141),"",YEAR(InfoPro!I141)-$G$3) ->  | F148: =IF(B148="","",VLOOKUP(D148,Tablas!$B$2:$E$13,2,FALSE)) ->  | G148: =IF(B148="","",VLOOKUP(D148,Tablas!$B$2:$G$13,6,FALSE)) -> 
A149: =IF(ISBLANK(InfoPro!A142),"",InfoPro!A142) ->  | B149: =IF(ISBLANK(InfoPro!B142),"",InfoPro!B142) ->  | C149: =IF(ISBLANK(InfoPro!E142),"",InfoPro!E142) ->  | D149: =IF(ISBLANK(InfoPro!F142),"",InfoPro!F142) ->  | E149: =IF(ISBLANK(InfoPro!I142),"",YEAR(InfoPro!I142)-$G$3) ->  | F149: =IF(B149="","",VLOOKUP(D149,Tablas!$B$2:$E$13,2,FALSE)) ->  | G149: =IF(B149="","",VLOOKUP(D149,Tablas!$B$2:$G$13,6,FALSE)) ->  | J149: =IF($I149="","",(1/(1+$C$4)^(J$7+$E149))*$I149*$C$5) -> 
A150: =IF(ISBLANK(InfoPro!A143),"",InfoPro!A143) ->  | B150: =IF(ISBLANK(InfoPro!B143),"",InfoPro!B143) ->  | C150: =IF(ISBLANK(InfoPro!E143),"",InfoPro!E143) ->  | D150: =IF(ISBLANK(InfoPro!F143),"",InfoPro!F143) ->  | E150: =IF(ISBLANK(InfoPro!I143),"",YEAR(InfoPro!I143)-$G$3) ->  | F150: =IF(B150="","",VLOOKUP(D150,Tablas!$B$2:$E$13,2,FALSE)) ->  | G150: =IF(B150="","",VLOOKUP(D150,Tablas!$B$2:$G$13,6,FALSE)) -> 
A151: =IF(ISBLANK(InfoPro!A144),"",InfoPro!A144) ->  | B151: =IF(ISBLANK(InfoPro!B144),"",InfoPro!B144) ->  | C151: =IF(ISBLANK(InfoPro!E144),"",InfoPro!E144) ->  | D151: =IF(ISBLANK(InfoPro!F144),"",InfoPro!F144) ->  | E151: =IF(ISBLANK(InfoPro!I144),"",YEAR(InfoPro!I144)-$G$3) ->  | F151: =IF(B151="","",VLOOKUP(D151,Tablas!$B$2:$E$13,2,FALSE)) ->  | G151: =IF(B151="","",VLOOKUP(D151,Tablas!$B$2:$G$13,6,FALSE)) -> 

Sheet EC-RP
B2: Precio promedio de bolsa | C2: 192057 | D2: COP/MWh
B3: Tasa de descuento | C3: 0.118 | F3: Año de Referencia | H3: 2023
F4: Mínimo | H4: =MIN(Z8:Z354) -> 1217184.646
J6: 0 | K6: 1 | L6: 2 | M6: 3 | N6: 4 | O6: 5 | P6: 6 | Q6: 7 | R6: 8 | S6: 9 | T6: 10 | U6: 11 | V6: 12 | W6: 13 | X6: 14
A7: Codigo | B7: Nombre | C7: capacidad | D7: Tecnologia | E7: Año de entrada | F7: FP | G7: Precio de oferta | H7: Desviacion | I7: Produccion media/a MWh/a | J7: Flujo Descontado 0 | K7: Flujo Descontado 1 | L7: Flujo Descontado 2 | M7: Flujo Descontado 3 | N7: Flujo Descontado 4 | O7: Flujo Descontado 5 | P7: Flujo Descontado 6 | Q7: Flujo Descontado 7 | R7: Flujo Descontado 8 | S7: Flujo Descontado 9 | T7: Flujo Descontado 10 | U7: Flujo Descontado 11 | V7: Flujo Descontado 12 | W7: Flujo Descontado 13 | X7: Flujo Descontado 14 | Y7: VPN | Z7: Beneficio/kW
A8: =IF(ISBLANK(InfoPro!A2),"",InfoPro!A2) -> SC_487_A1 | B8: =IF(ISBLANK(InfoPro!B2),"",InfoPro!B2) -> PARQUE SOLAR EL VALLE 80 MW | C8: =IF(ISBLANK(InfoPro!E2),"",InfoPro!E2) -> 80 | D8: =IF(ISBLANK(InfoPro!F2),"",InfoPro!F2) -> Solar FV | E8: =IF(ISBLANK(InfoPro!I2),"",YEAR(InfoPro!I2)-$H$3) -> 2 | F8: =IF(B8="","",VLOOKUP(D8,Tablas!$B$2:$E$13,2,FALSE)) -> 0.26 | G8: =IF(B8="","",VLOOKUP(D8,Tablas!$B$2:$H$13,7,FALSE)) -> 83577.2 | H8: =IF(B8="","",($C$2-(G8))/$C$2) -> 0.564831274 | I8: =IF(C8="","",+C8*F8*24*365) -> 182208 | J8: =IF($I8="","",(1/(1+$C$3)^(J$6+$E8))*$I8*$C$2*$H8) -> 1.581367139e+10 | K8: =IF($I8="","",(1/(1+$C$3)^(K$6+$E8))*$I8*$C$2*$H8) -> 1.414460768e+10 | L8: 1.265170634e+10 | M8: 1.131637418e+10 | N8: 1.012198048e+10 | O8: 9053649808 | P8: 8098076751 | Q8: 7243360242 | R8: 6478855315 | S8: 5795040532 | T8: 5183399403 | U8: 4636314314 | V8: 4146971658 | W8: 3709276975 | X8: =IF($I8="","",(1/(1+$C$3)^(X$6+$E8))*$I8*$C$2*$H8) -> 3317779048 | Y8: =IF(X8="","",SUM(J8:X8)) -> 1.217110641e+11 | Z8: =IF(C8=0,0,IF(Y8="","",Y8/(C8*1000))) -> 1521388.302
A9: =IF(ISBLANK(InfoPro!A3),"",InfoPro!A3) -> SC_1140_A2 | B9: =IF(ISBLANK(InfoPro!B3),"",InfoPro!B3) -> Zarzal Solar 100 MW | C9: =IF(ISBLANK(InfoPro!E3),"",InfoPro!E3) -> 100 | D9: =IF(ISBLANK(InfoPro!F3),"",InfoPro!F3) -> Solar FV | E9: =IF(ISBLANK(InfoPro!I3),"",YEAR(InfoPro!I3)-$H$3) -> 4 | F9: =IF(B9="","",VLOOKUP(D9,Tablas!$B$2:$E$13,2,FALSE)) -> 0.26 | G9: =IF(B9="","",VLOOKUP(D9,Tablas!$B$2:$H$13,7,FALSE)) -> 83577.2 | H9: =IF(B9="","",($C$2-(G9))/$C$2) -> 0.564831274 | I9: =IF(C9="","",+C9*F9*24*365) -> 227760 | J9: 1.581463292e+10 | K9: 1.414546773e+10 | L9: 1.265247561e+10 | M9: 1.131706226e+10 | N9: 1.012259594e+10 | O9: 9054200303 | P9: 8098569144 | Q9: 7243800666 | R9: 6479249254 | S9: 5795392892 | T9: 5183714573 | U9: 4636596219 | V9: 4147223809 | W9: 3709502513 | X9: 3317980781 | Y9: =IF(X9="","",SUM(J9:X9)) -> 1.217184646e+11 | Z9: =IF(C9=0,0,IF(Y9="","",Y9/(C9*1000))) -> 1217184.646
A10: =IF(ISBLANK(InfoPro!A4),"",InfoPro!A4) -> SC_1259_A1 | B10: =IF(ISBLANK(InfoPro!B4),"",InfoPro!B4) -> DOMINICA DE 99.9 MW | C10: =IF(ISBLANK(InfoPro!E4),"",InfoPro!E4) -> 99.9 | D10: =IF(ISBLANK(InfoPro!F4),"",InfoPro!F4) -> Solar FV | E10: =IF(ISBLANK(InfoPro!I4),"",YEAR(InfoPro!I4)-$H$3) -> 3 | F10: =IF(B10="","",VLOOKUP(D10,Tablas!$B$2:$E$13,2,FALSE)) -> 0.26 | G10: =IF(B10="","",VLOOKUP(D10,Tablas!$B$2:$H$13,7,FALSE)) -> 83577.2 | H10: 0.564831274 | I10: 227532.24 | J10: 1.766307884e+10 | K10: 1.579881829e+10 | L10: 1.413132226e+10 | M10: 1.263982313e+10 | N10: 1.13057452e+10 | O10: 1.011247334e+10 | P10: 9045146103 | Q10: 8090470575 | R10: 7236556865 | S10: 6472770004 | T10: 5789597499 | U10: 5178530858 | V10: 4631959623 | W10: 4143076586 | X10: 3705793010 | Y10: 1.359451622e+11 | Z10: =IF(C10=0,0,IF(Y10="","",Y10/(C10*1000))) -> 1360812.434
A11: =IF(ISBLANK(InfoPro!A5),"",InfoPro!A5) -> SC_1259_A2 | B11: =IF(ISBLANK(InfoPro!B5),"",InfoPro!B5) -> DOMINICA DE 99.9 MW | C11: =IF(ISBLANK(InfoPro!E5),"",InfoPro!E5) -> 99.9 | D11: =IF(ISBLANK(InfoPro!F5),"",InfoPro!F5) -> Solar FV | E11: =IF(ISBLANK(InfoPro!I5),"",YEAR(InfoPro!I5)-$H$3) -> 3 | F11: =IF(B11="","",VLOOKUP(D11,Tablas!$B$2:$E$13,2,FALSE)) -> 0.26 | G11: =IF(B11="","",VLOOKUP(D11,Tablas!$B$2:$H$13,7,FALSE)) -> 83577.2 | H11: 0.564831274 | I11: 227532.24 | J11: 1.766307884e+10 | K11: 1.579881829e+10 | L11: 1.413132226e+10 | M11: 1.263982313e+10 | N11: 1.13057452e+10 | O11: 1.011247334e+10 | P11: 9045146103 | Q11: 8090470575 | R11: 7236556865 | S11: 6472770004 | T11: 5789597499 | U11: 5178530858 | V11: 4631959623 | W11: 4143076586 | X11: 3705793010 | Y11: 1.359451622e+11 | Z11: 1360812.434
A12: =IF(ISBLANK(InfoPro!A6),"",InfoPro!A6) -> SC_1265_A1 | B12: =IF(ISBLANK(InfoPro!B6),"",InfoPro!B6) -> LANZAROTE de 80 MW | C12: =IF(ISBLANK(InfoPro!E6),"",InfoPro!E6) -> 80 | D12: =IF(ISBLANK(InfoPro!F6),"",InfoPro!F6) -> Solar FV | E12: =IF(ISBLANK(InfoPro!I6),"",YEAR(InfoPro!I6)-$H$3) -> 3 | F12: =IF(B12="","",VLOOKUP(D12,Tablas!$B$2:$E$13,2,FALSE)) -> 0.26 | G12: =IF(B12="","",VLOOKUP(D12,Tablas!$B$2:$H$13,7,FALSE)) -> 83577.2 | H12: 0.564831274 | I12: 182208 | J12: 1.414460768e+10 | K12: 1.265170634e+10 | L12: 1.131637418e+10 | M12: 1.012198048e+10 | N12: 9053649808 | O12: 8098076751 | P12: 7243360242 | Q12: 6478855315 | R12: 5795040532 | S12: 5183399403 | T12: 4636314314 | U12: 4146971658 | V12: 3709276975 | W12: 3317779048 | X12: 2967602010 | Y12: 1.088649947e+11 | Z12: 1360812.434
A13: =IF(ISBLANK(InfoPro!A7),"",InfoPro!A7) -> SC_1265_A2 | B13: =IF(ISBLANK(InfoPro!B7),"",InfoPro!B7) -> LANZAROTE de 80 MW | C13: =IF(ISBLANK(InfoPro!E7),"",InfoPro!E7) -> 80 | D13: =IF(ISBLANK(InfoPro!F7),"",InfoPro!F7) -> Solar FV | E13: =IF(ISBLANK(InfoPro!I7),"",YEAR(InfoPro!I7)-$H$3) -> 3 | F13: =IF(B13="","",VLOOKUP(D13,Tablas!$B$2:$E$13,2,FALSE)) -> 0.26 | G13: =IF(B13="","",VLOOKUP(D13,Tablas!$B$2:$H$13,7,FALSE)) -> 83577.2 | H13: 0.564831274 | I13: 182208 | J13: 1.414460768e+10 | K13: 1.265170634e+10 | L13: 1.131637418e+10 | M13: 1.012198048e+10 | N13: 9053649808 | O13: 8098076751 | P13: 7243360242 | Q13: 6478855315 | R13: 5795040532 | S13: 5183399403 | T13: 4636314314 | U13: 4146971658 | V13: 3709276975 | W13: 3317779048 | X13: 2967602010 | Y13: 1.088649947e+11 | Z13: 1360812.434
A14: =IF(ISBLANK(InfoPro!A8),"",InfoPro!A8) -> SC_612_A1 | B14: =IF(ISBLANK(InfoPro!B8),"",InfoPro!B8) -> PARQUE SOLAR SAN JOSE | C14: =IF(ISBLANK(InfoPro!E8),"",InfoPro!E8) -> 9.9 | D14: =IF(ISBLANK(InfoPro!F8),"",InfoPro!F8) -> Solar FV | E14: =IF(ISBLANK(InfoPro!I8),"",YEAR(InfoPro!I8)-$H$3) -> 1 | F14: =IF(B14="","",VLOOKUP(D14,Tablas!$B$2:$E$13,2,FALSE)) -> 0.26 | G14: =IF(B14="","",VLOOKUP(D14,Tablas!$B$2:$H$13,7,FALSE)) -> 83577.2 | H14: 0.564831274 | I14: 22548.24 | J14: 2187860971 | K14: 1956941835 | L14: 1750395201 | M14: 1565648659 | N14: 1400401305 | O14: 1252595085 | P14: 1120389164 | Q14: 1002136998 | R14: 896365830 | S14: 801758345.3 | T14: 717136265.9 | U14: 641445676.1 | V14: 573743896.3 | W14: 513187742.7 | X14: 459023025.7 | Y14: 1.683903e+10 | Z14: 1700912.121
A15: =IF(ISBLANK(InfoPro!A9),"",InfoPro!A9) -> SC_612_A2 | B15: =IF(ISBLANK(InfoPro!B9),"",InfoPro!B9) -> PARQUE SOLAR SAN JOSE | C15: =IF(ISBLANK(InfoPro!E9),"",InfoPro!E9) -> 9.9 | D15: =IF(ISBLANK(InfoPro!F9),"",InfoPro!F9) -> Solar FV | E15: =IF(ISBLANK(InfoPro!I9),"",YEAR(InfoPro!I9)-$H$3) -> 1 | F15: =IF(B15="","",VLOOKUP(D15,Tablas!$B$2:$E$13,2,FALSE)) -> 0.26 | G15: =IF(B15="","",VLOOKUP(D15,Tablas!$B$2:$H$13,7,FALSE)) -> 83577.2 | H15: 0.564831274 | I15: 22548.24 | J15: 2187860971 | K15: 1956941835 | L15: 1750395201 | M15: 1565648659 | N15: 1400401305 | O15: 1252595085 | P15: 1120389164 | Q15: 1002136998 | R15: 896365830 | S15: 801758345.3 | T15: 717136265.9 | U15: 641445676.1 | V15: 573743896.3 | W15: 513187742.7 | X15: 459023025.7 | Y15: 1.683903e+10 | Z15: 1700912.121
A16: =IF(ISBLANK(InfoPro!A10),"",InfoPro!A10) -> SC_1254_A1 | B16: =IF(ISBLANK(InfoPro!B10),"",InfoPro!B10) -> Solar La Victoria 3 de 19.9 MW | C16: =IF(ISBLANK(InfoPro!E10),"",InfoPro!E10) -> 19.9 | D16: =IF(ISBLANK(InfoPro!F10),"",InfoPro!F10) -> Solar FV | E16: =IF(ISBLANK(InfoPro!I10),"",YEAR(InfoPro!I10)-$H$3) -> 0 | F16: =IF(B16="","",VLOOKUP(D16,Tablas!$B$2:$E$13,2,FALSE)) -> 0.26 | G16: =IF(B16="","",VLOOKUP(D16,Tablas!$B$2:$H$13,7,FALSE)) -> 83577.2 | H16: 0.564831274 | I16: 45324.24 | J16: 4916764490 | K16: 4397821548 | L16: 3933650758 | M16: 3518471161 | N16: 3147111951 | O16: 2814948078 | P16: 2517842646 | Q16: 2252095390 | R16: 2014396592 | S16: 1801785860 | T16: 1611615260 | U16: 1441516332 | V16: 1289370601 | W16: 1153283186 | X16: 1031559200 | Y16: 3.784223305e+10 | Z16: 1901619.751
A17: =IF(ISBLANK(InfoPro!A11),"",InfoPro!A11) -> SC_1292_A1 | B17: =IF(ISBLANK(InfoPro!B11),"",InfoPro!B11) -> Solar El Carmelo 2 | C17: =IF(ISBLANK(InfoPro!E11),"",InfoPro!E11) -> 19.9 | D17: =IF(ISBLANK(InfoPro!F11),"",InfoPro!F11) -> Solar FV | E17: =IF(ISBLANK(InfoPro!I11),"",YEAR(InfoPro!I11)-$H$3) -> 0 | F17: =IF(B17="","",VLOOKUP(D17,Tablas!$B$2:$E$13,2,FALSE)) -> 0.26 | G17: =IF(B17="","",VLOOKUP(D17,Tablas!$B$2:$H$13,7,FALSE)) -> 83577.2 | H17: 0.564831274 | I17: 45324.24 | J17: 4916764490 | K17: 4397821548 | L17: 3933650758 | M17: 3518471161 | N17: 3147111951 | O17: 2814948078 | P17: 2517842646 | Q17: 2252095390 | R17: 2014396592 | S17: 1801785860 | T17: 1611615260 | U17: 1441516332 | V17: 1289370601 | W17: 1153283186 | X17: 1031559200 | Y17: 3.784223305e+10 | Z17: 1901619.751
A18: =IF(ISBLANK(InfoPro!A12),"",InfoPro!A12) -> SC_1401_A1 | B18: =IF(ISBLANK(InfoPro!B12),"",InfoPro!B12) -> CSF CONTINUA OBANDO 90MW | C18: =IF(ISBLANK(InfoPro!E12),"",InfoPro!E12) -> 90 | D18: =IF(ISBLANK(InfoPro!F12),"",InfoPro!F12) -> Solar FV | E18: =IF(ISBLANK(InfoPro!I12),"",YEAR(InfoPro!I12)-$H$3) -> 2 | F18: =IF(B18="","",VLOOKUP(D18,Tablas!$B$2:$E$13,2,FALSE)) -> 0.26 | G18: =IF(B18="","",VLOOKUP(D18,Tablas!$B$2:$H$13,7,FALSE)) -> 83577.2 | H18: 0.564831274 | I18: 204984 | J18: =IF($I18="","",(1/(1+$C$3)^(J$6+$E18))*$I18*$C$2*$H18) -> 1.779038031e+10 | K18: 1.591268364e+10 | L18: 1.423316963e+10 | M18: 1.273092095e+10 | N18: 1.138722805e+10 | O18: 1.018535603e+10 | P18: 9110336345 | Q18: 8148780273 | R18: 7288712230 | S18: 6519420599 | T18: 5831324328 | U18: 5215853603 | V18: 4665343115 | W18: 4172936597 | X18: 3732501428 | Y18: 1.369249471e+11 | Z18: 1521388.302
A19: =IF(ISBLANK(InfoPro!A13),"",InfoPro!A13) -> SC_1401_A2 | B19: =IF(ISBLANK(InfoPro!B13),"",InfoPro!B13) -> CSF CONTINUA OBANDO 90MW | C19: =IF(ISBLANK(InfoPro!E13),"",InfoPro!E13) -> 90 | D19: =IF(ISBLANK(InfoPro!F13),"",InfoPro!F13) -> Solar FV | E19: =IF(ISBLANK(InfoPro!I13),"",YEAR(InfoPro!I13)-$H$3) -> 2 | F19: =IF(B19="","",VLOOKUP(D19,Tablas!$B$2:$E$13,2,FALSE)) -> 0.26 | G19: =IF(B19="","",VLOOKUP(D19,Tablas!$B$2:$H$13,7,FALSE)) -> 83577.2 | H19: 0.564831274 | I19: 204984 | J19: 1.779038031e+10 | K19: 1.591268364e+10 | L19: 1.423316963e+10 | M19: 1.273092095e+10 | N19: 1.138722805e+10 | O19: 1.018535603e+10 | P19: 9110336345 | Q19: 8148780273 | R19: 7288712230 | S19: 6519420599 | T19: 5831324328 | U19: 5215853603 | V19: 4665343115 | W19: 4172936597 | X19: 3732501428 | Y19: 1.369249471e+11 | Z19: 1521388.302
A20: =IF(ISBLANK(InfoPro!A14),"",InfoPro!A14) -> SC_1413_A1 | B20: =IF(ISBLANK(InfoPro!B14),"",InfoPro!B14) -> CSF CONTINUA LA VIRGINIA 120MW | C20: =IF(ISBLANK(InfoPro!E14),"",InfoPro!E14) -> 120 | D20: =IF(ISBLANK(InfoPro!F14),"",InfoPro!F14) -> Solar FV | E20: =IF(ISBLANK(InfoPro!I14),"",YEAR(InfoPro!I14)-$H$3) -> 3 | F20: =IF(B20="","",VLOOKUP(D20,Tablas!$B$2:$E$13,2,FALSE)) -> 0.26 | G20: =IF(B20="","",VLOOKUP(D20,Tablas!$B$2:$H$13,7,FALSE)) -> 83577.2 | H20: 0.564831274 | I20: 273312 | J20: 2.121691152e+10 | K20: 1.89775595e+10 | L20: 1.697456127e+10 | M20: 1.518297073e+10 | N20: 1.358047471e+10 | O20: 1.214711513e+10 | P20: 1.086504036e+10 | Q20: 9718282973 | R20: 8692560799 | S20: 7775099104 | T20: 6954471471 | U20: 6220457487 | V20: 5563915463 | W20: 4976668571 | X20: 4451403015 | Y20: 1.632974921e+11 | Z20: 1360812.434
A21: =IF(ISBLANK(InfoPro!A15),"",InfoPro!A15) -> SC_1454_A1 | B21: =IF(ISBLANK(InfoPro!B15),"",InfoPro!B15) -> CE SAN MARCOS 80MW | C21: =IF(ISBLANK(InfoPro!E15),"",InfoPro!E15) -> 80 | D21: =IF(ISBLANK(InfoPro!F15),"",InfoPro!F15) -> Eólico Onshore | E21: =IF(ISBLANK(InfoPro!I15),"",YEAR(InfoPro!I15)-$H$3) -> 4 | F21: =IF(B21="","",VLOOKUP(D21,Tablas!$B$2:$E$13,2,FALSE)) -> 0.57 | G21: =IF(B21="","",VLOOKUP(D21,Tablas!$B$2:$H$13,7,FALSE)) -> 83577.2 | H21: 0.564831274 | I21: 399456 | J21: 2.773643312e+10 | K21: 2.480897417e+10 | L21: 2.219049568e+10 | M21: 1.984838612e+10 | N21: 1.775347595e+10 | O21: 1.587967438e+10 | P21: 1.420364434e+10 | Q21: 1.270451194e+10 | R21: 1.136360638e+10 | S21: 1.016422753e+10 | T21: 9091437866 | U21: 8131876445 | V21: 7273592527 | W21: 6505896715 | X21: 5819227831 | Y21: 2.13475461e+11 | Z21: 2668443.262
A22: =IF(ISBLANK(InfoPro!A16),"",InfoPro!A16) -> SC_1454_A2 | B22: =IF(ISBLANK(InfoPro!B16),"",InfoPro!B16) -> CE SAN MARCOS 80MW | C22: =IF(ISBLANK(InfoPro!E16),"",InfoPro!E16) -> 80 | D22: =IF(ISBLANK(InfoPro!F16),"",InfoPro!F16) -> Eólico Onshore | E22: =IF(ISBLANK(InfoPro!I16),"",YEAR(InfoPro!I16)-$H$3) -> 4 | F22: =IF(B22="","",VLOOKUP(D22,Tablas!$B$2:$E$13,2,FALSE)) -> 0.57 | G22: =IF(B22="","",VLOOKUP(D22,Tablas!$B$2:$H$13,7,FALSE)) -> 83577.2 | H22: 0.564831274 | I22: 399456 | J22: 2.773643312e+10 | K22: 2.480897417e+10 | L22: 2.219049568e+10 | M22: 1.984838612e+10 | N22: 1.775347595e+10 | O22: 1.587967438e+10 | P22: 1.420364434e+10 | Q22: 1.270451194e+10 | R22: 1.136360638e+10 | S22: 1.016422753e+10 | T22: 9091437866 | U22: 8131876445 | V22: 7273592527 | W22: 6505896715 | X22: 5819227831 | Y22: 2.13475461e+11 | Z22: 2668443.262
A23: =IF(ISBLANK(InfoPro!A17),"",InfoPro!A17) -> SC_1325_A1 | B23: =IF(ISBLANK(InfoPro!B17),"",InfoPro!B17) -> Solar El Carmelo 3 | C23: =IF(ISBLANK(InfoPro!E17),"",InfoPro!E17) -> 19.9 | D23: =IF(ISBLANK(InfoPro!F17),"",InfoPro!F17) -> Solar FV | E23: =IF(ISBLANK(InfoPro!I17),"",YEAR(InfoPro!I17)-$H$3) -> 2 | F23: =IF(B23="","",VLOOKUP(D23,Tablas!$B$2:$E$13,2,FALSE)) -> 0.26 | G23: =IF(B23="","",VLOOKUP(D23,Tablas!$B$2:$H$13,7,FALSE)) -> 83577.2 | H23: 0.564831274 | I23: 45324.24 | J23: 3933650758 | K23: 3518471161 | L23: 3147111951 | M23: 2814948078 | N23: 2517842646 | O23: 2252095390 | P23: 2014396592 | Q23: 1801785860 | R23: 1611615260 | S23: 1441516332 | T23: 1289370601 | U23: 1153283186 | V23: 1031559200 | W23: 922682647.6 | X23: 825297538.1 | Y23: 3.02756272e+10 | Z23: 1521388.302
A24: =IF(ISBLANK(InfoPro!A18),"",InfoPro!A18) -> SC_1517_A1 | B24: =IF(ISBLANK(InfoPro!B18),"",InfoPro!B18) -> Autogenerador Solar Palmira 3 | C24: =IF(ISBLANK(InfoPro!E18),"",InfoPro!E18) -> 7.3 | D24: =IF(ISBLANK(InfoPro!F18),"",InfoPro!F18) -> Solar FV | E24: =IF(ISBLANK(InfoPro!I18),"",YEAR(InfoPro!I18)-$H$3) -> 2 | F24: =IF(B24="","",VLOOKUP(D24,Tablas!$B$2:$E$13,2,FALSE)) -> 0.26 | G24: =IF(B24="","",VLOOKUP(D24,Tablas!$B$2:$H$13,7,FALSE)) -> 83577.2 | H24: 0.564831274 | I24: 16626.48 | J24: 1442997514 | K24: 1290695451 | L24: 1154468203 | M24: 1032619144 | N24: 923630719.3 | O24: 826145544.9 | P24: 738949503.5 | Q24: 660956622.1 | R24: 591195547.5 | S24: 528797448.6 | T24: 472985195.5 | U24: 423063681.1 | V24: 378411163.8 | W24: 338471524 | X24: 302747338.1 | Y24: 1.11061346e+10 | Z24: 1521388.302
A25: =IF(ISBLANK(InfoPro!A19),"",InfoPro!A19) -> SC_1502_A1 | B25: =IF(ISBLANK(InfoPro!B19),"",InfoPro!B19) -> Solar El Carmelo 5 | C25: =IF(ISBLANK(InfoPro!E19),"",InfoPro!E19) -> 19.9 | D25: =IF(ISBLANK(InfoPro!F19),"",InfoPro!F19) -> Solar FV | E25: =IF(ISBLANK(InfoPro!I19),"",YEAR(InfoPro!I19)-$H$3) -> 2 | F25: =IF(B25="","",VLOOKUP(D25,Tablas!$B$2:$E$13,2,FALSE)) -> 0.26 | G25: =IF(B25="","",VLOOKUP(D25,Tablas!$B$2:$H$13,7,FALSE)) -> 83577.2 | H25: 0.564831274 | I25: 45324.24 | J25: 3933650758 | K25: 3518471161 | L25: 3147111951 | M25: 2814948078 | N25: 2517842646 | O25: 2252095390 | P25: 2014396592 | Q25: 1801785860 | R25: 1611615260 | S25: 1441516332 | T25: 1289370601 | U25: 1153283186 | V25: 1031559200 | W25: 922682647.6 | X25: 825297538.1 | Y25: 3.02756272e+10 | Z25: 1521388.302
A26: =IF(ISBLANK(InfoPro!A20),"",InfoPro!A20) -> SC_1503_A1 | B26: =IF(ISBLANK(InfoPro!B20),"",InfoPro!B20) -> Solar El Carmelo 6 | C26: =IF(ISBLANK(InfoPro!E20),"",InfoPro!E20) -> 19.9 | D26: =IF(ISBLANK(InfoPro!F20),"",InfoPro!F20) -> Solar FV | E26: =IF(ISBLANK(InfoPro!I20),"",YEAR(InfoPro!I20)-$H$3) -> 2 | F26: =IF(B26="","",VLOOKUP(D26,Tablas!$B$2:$E$13,2,FALSE)) -> 0.26 | G26: =IF(B26="","",VLOOKUP(D26,Tablas!$B$2:$H$13,7,FALSE)) -> 83577.2 | H26: 0.564831274 | I26: 45324.24 | J26: 3933650758 | K26: 3518471161 | L26: 3147111951 | M26: 2814948078 | N26: 2517842646 | O26: 2252095390 | P26: 2014396592 | Q26: 1801785860 | R26: 1611615260 | S26: 1441516332 | T26: 1289370601 | U26: 1153283186 | V26: 1031559200 | W26: 922682647.6 | X26: 825297538.1 | Y26: 3.02756272e+10 | Z26: 1521388.302
A27: =IF(ISBLANK(InfoPro!A21),"",InfoPro!A21) -> SC_1601_A1 | B27: =IF(ISBLANK(InfoPro!B21),"",InfoPro!B21) -> Autogenerador Solar Palmira 1 de 19,9MW | C27: =IF(ISBLANK(InfoPro!E21),"",InfoPro!E21) -> 19.9 | D27: =IF(ISBLANK(InfoPro!F21),"",InfoPro!F21) -> Solar FV | E27: =IF(ISBLANK(InfoPro!I21),"",YEAR(InfoPro!I21)-$H$3) -> 0 | F27: =IF(B27="","",VLOOKUP(D27,Tablas!$B$2:$E$13,2,FALSE)) -> 0.26 | G27: =IF(B27="","",VLOOKUP(D27,Tablas!$B$2:$H$13,7,FALSE)) -> 83577.2 | H27: 0.564831274 | I27: 45324.24 | J27: 4916764490 | K27: 4397821548 | L27: 3933650758 | M27: 3518471161 | N27: 3147111951 | O27: 2814948078 | P27: 2517842646 | Q27: 2252095390 | R27: 2014396592 | S27: 1801785860 | T27: 1611615260 | U27: 1441516332 | V27: 1289370601 | W27: 1153283186 | X27: 1031559200 | Y27: 3.784223305e+10 | Z27: 1901619.751
A28: =IF(ISBLANK(InfoPro!A22),"",InfoPro!A22) -> SC_1658_A2 | B28: =IF(ISBLANK(InfoPro!B22),"",InfoPro!B22) -> Parque Solar Fotovoltaico La Virginia I | C28: =IF(ISBLANK(InfoPro!E22),"",InfoPro!E22) -> 100 | D28: =IF(ISBLANK(InfoPro!F22),"",InfoPro!F22) -> Solar FV | E28: =IF(ISBLANK(InfoPro!I22),"",YEAR(InfoPro!I22)-$H$3) -> 4 | F28: =IF(B28="","",VLOOKUP(D28,Tablas!$B$2:$E$13,2,FALSE)) -> 0.26 | G28: =IF(B28="","",VLOOKUP(D28,Tablas!$B$2:$H$13,7,FALSE)) -> 83577.2 | H28: 0.564831274 | I28: 227760 | J28: =IF($I28="","",(1/(1+$C$3)^(J$6+$E28))*$I28*$C$2*$H28) -> 1.581463292e+10 | K28: 1.414546773e+10 | L28: 1.265247561e+10 | M28: 1.131706226e+10 | N28: 1.012259594e+10 | O28: 9054200303 | P28: 8098569144 | Q28: 7243800666 | R28: 6479249254 | S28: 5795392892 | T28: 5183714573 | U28: 4636596219 | V28: 4147223809 | W28: 3709502513 | X28: 3317980781 | Y28: 1.217184646e+11 | Z28: 1217184.646
A29: =IF(ISBLANK(InfoPro!A23),"",InfoPro!A23) -> SC_1572_A1 | B29: =IF(ISBLANK(InfoPro!B23),"",InfoPro!B23) -> CONDOR - 165 MW | C29: =IF(ISBLANK(InfoPro!E23),"",InfoPro!E23) -> 165 | D29: =IF(ISBLANK(InfoPro!F23),"",InfoPro!F23) -> Eólico Onshore | E29: =IF(ISBLANK(InfoPro!I23),"",YEAR(InfoPro!I23)-$H$3) -> 3 | F29: =IF(B29="","",VLOOKUP(D29,Tablas!$B$2:$E$13,2,FALSE)) -> 0.57 | G29: =IF(B29="","",VLOOKUP(D29,Tablas!$B$2:$H$13,7,FALSE)) -> 83577.2 | H29: 0.564831274 | I29: 823878 | J29: 6.395674772e+10 | K29: 5.720639331e+10 | L29: 5.116850922e+10 | M29: 4.576789734e+10 | N29: 4.093729637e+10 | O29: 3.661654416e+10 | P29: 3.27518284e+10 | Q29: 2.929501646e+10 | R29: 2.620305587e+10 | S29: 2.343743817e+10 | T29: 2.096371929e+10 | U29: 1.87510906e+10 | V29: 1.677199517e+10 | W29: 1.500178459e+10 | X29: 1.341841197e+10 | Y29: 4.922477286e+11 | Z29: 2983319.567
A30: =IF(ISBLANK(InfoPro!A24),"",InfoPro!A24) -> SC_1572_A2 | B30: =IF(ISBLANK(InfoPro!B24),"",InfoPro!B24) -> CONDOR - 165 MW | C30: =IF(ISBLANK(InfoPro!E24),"",InfoPro!E24) -> 165 | D30: =IF(ISBLANK(InfoPro!F24),"",InfoPro!F24) -> Eólico Onshore | E30: =IF(ISBLANK(InfoPro!I24),"",YEAR(InfoPro!I24)-$H$3) -> 3 | F30: =IF(B30="","",VLOOKUP(D30,Tablas!$B$2:$E$13,2,FALSE)) -> 0.57 | G30: =IF(B30="","",VLOOKUP(D30,Tablas!$B$2:$H$13,7,FALSE)) -> 83577.2 | H30: 0.564831274 | I30: 823878 | J30: 6.395674772e+10 | K30: 5.720639331e+10 | L30: 5.116850922e+10 | M30: 4.576789734e+10 | N30: 4.093729637e+10 | O30: 3.661654416e+10 | P30: 3.27518284e+10 | Q30: 2.929501646e+10 | R30: 2.620305587e+10 | S30: 2.343743817e+10 | T30: 2.096371929e+10 | U30: 1.87510906e+10 | V30: 1.677199517e+10 | W30: 1.500178459e+10 | X30: 1.341841197e+10 | Y30: 4.922477286e+11 | Z30: 2983319.567
A31: =IF(ISBLANK(InfoPro!A25),"",InfoPro!A25) -> SC_1501_A1 | B31: =IF(ISBLANK(InfoPro!B25),"",InfoPro!B25) -> Autogenerador Solar Palmira 4 | C31: =IF(ISBLANK(InfoPro!E25),"",InfoPro!E25) -> 19.9 | D31: =IF(ISBLANK(InfoPro!F25),"",InfoPro!F25) -> Solar FV | E31: =IF(ISBLANK(InfoPro!I25),"",YEAR(InfoPro!I25)-$H$3) -> 2 | F31: =IF(B31="","",VLOOKUP(D31,Tablas!$B$2:$E$13,2,FALSE)) -> 0.26 | G31: =IF(B31="","",VLOOKUP(D31,Tablas!$B$2:$H$13,7,FALSE)) -> 83577.2 | H31: 0.564831274 | I31: 45324.24 | J31: 3933650758 | K31: 3518471161 | L31: 3147111951 | M31: 2814948078 | N31: 2517842646 | O31: 2252095390 | P31: 2014396592 | Q31: 1801785860 | R31: 1611615260 | S31: 1441516332 | T31: 1289370601 | U31: 1153283186 | V31: 1031559200 | W31: 922682647.6 | X31: 825297538.1 | Y31: 3.02756272e+10 | Z31: 1521388.302
A32: =IF(ISBLANK(InfoPro!A26),"",InfoPro!A26) -> SC_1490_A1 | B32: =IF(ISBLANK(InfoPro!B26),"",InfoPro!B26) -> Farallones Solar DE 50 mw | C32: =IF(ISBLANK(InfoPro!E26),"",InfoPro!E26) -> 50 | D32: =IF(ISBLANK(InfoPro!F26),"",InfoPro!F26) -> Solar FV | E32: =IF(ISBLANK(InfoPro!I26),"",YEAR(InfoPro!I26)-$H$3) -> 3 | F32: =IF(B32="","",VLOOKUP(D32,Tablas!$B$2:$E$13,2,FALSE)) -> 0.26 | G32: =IF(B32="","",VLOOKUP(D32,Tablas!$B$2:$H$13,7,FALSE)) -> 83577.2 | H32: 0.564831274 | I32: 113880 | J32: 8840379802 | K32: 7907316460 | L32: 7072733864 | M32: 6326237803 | N32: 5658531130 | O32: 5061297969 | P32: 4527100152 | Q32: 4049284572 | R32: 3621900333 | S32: 3239624627 | T32: 2897696446 | U32: 2591857286 | V32: 2318298109 | W32: 2073611905 | X32: 1854751256 | Y32: 6.804062171e+10 | Z32: 1360812.434
A33: =IF(ISBLANK(InfoPro!A27),"",InfoPro!A27) -> SC_1883_A1 | B33: =IF(ISBLANK(InfoPro!B27),"",InfoPro!B27) -> Parque Eólico Valle | C33: =IF(ISBLANK(InfoPro!E27),"",InfoPro!E27) -> 250 | D33: =IF(ISBLANK(InfoPro!F27),"",InfoPro!F27) -> Eólico Onshore | E33: =IF(ISBLANK(InfoPro!I27),"",YEAR(InfoPro!I27)-$H$3) -> 4 | F33: =IF(B33="","",VLOOKUP(D33,Tablas!$B$2:$E$13,2,FALSE)) -> 0.57 | G33: =IF(B33="","",VLOOKUP(D33,Tablas!$B$2:$H$13,7,FALSE)) -> 83577.2 | H33: 0.564831274 | I33: 1248300 | J33: 8.66763535e+10 | K33: 7.752804428e+10 | L33: 6.9345299e+10 | M33: 6.202620662e+10 | N33: 5.547961236e+10 | O33: 4.962398243e+10 | P33: 4.438638858e+10 | Q33: 3.97015998e+10 | R33: 3.551126995e+10 | S33: 3.176321104e+10 | T33: 2.841074333e+10 | U33: 2.541211389e+10 | V33: 2.272997665e+10 | W33: 2.033092723e+10 | X33: 1.818508697e+10 | Y33: 6.671108156e+11 | Z33: 2668443.262
A34: =IF(ISBLANK(InfoPro!A28),"",InfoPro!A28) -> SC_1883_A2 | B34: =IF(ISBLANK(InfoPro!B28),"",InfoPro!B28) -> Parque Eólico Valle | C34: =IF(ISBLANK(InfoPro!E28),"",InfoPro!E28) -> 250 | D34: =IF(ISBLANK(InfoPro!F28),"",InfoPro!F28) -> Eólico Onshore | E34: =IF(ISBLANK(InfoPro!I28),"",YEAR(InfoPro!I28)-$H$3) -> 4 | F34: =IF(B34="","",VLOOKUP(D34,Tablas!$B$2:$E$13,2,FALSE)) -> 0.57 | G34: =IF(B34="","",VLOOKUP(D34,Tablas!$B$2:$H$13,7,FALSE)) -> 83577.2 | H34: 0.564831274 | I34: 1248300 | J34: 8.66763535e+10 | K34: 7.752804428e+10 | L34: 6.9345299e+10 | M34: 6.202620662e+10 | N34: 5.547961236e+10 | O34: 4.962398243e+10 | P34: 4.438638858e+10 | Q34: 3.97015998e+10 | R34: 3.551126995e+10 | S34: 3.176321104e+10 | T34: 2.841074333e+10 | U34: 2.541211389e+10 | V34: 2.272997665e+10 | W34: 2.033092723e+10 | X34: 1.818508697e+10 | Y34: 6.671108156e+11 | Z34: 2668443.262
A35: =IF(ISBLANK(InfoPro!A29),"",InfoPro!A29) -> SC_1947_A1 | B35: =IF(ISBLANK(InfoPro!B29),"",InfoPro!B29) -> Solar La Victoria 4 de 19.9MW | C35: =IF(ISBLANK(InfoPro!E29),"",InfoPro!E29) -> 19.9 | D35: =IF(ISBLANK(InfoPro!F29),"",InfoPro!F29) -> Solar FV | E35: =IF(ISBLANK(InfoPro!I29),"",YEAR(InfoPro!I29)-$H$3) -> 0 | F35: =IF(B35="","",VLOOKUP(D35,Tablas!$B$2:$E$13,2,FALSE)) -> 0.26 | G35: =IF(B35="","",VLOOKUP(D35,Tablas!$B$2:$H$13,7,FALSE)) -> 83577.2 | H35: 0.564831274 | I35: 45324.24 | J35: 4916764490 | K35: 4397821548 | L35: 3933650758 | M35: 3518471161 | N35: 3147111951 | O35: 2814948078 | P35: 2517842646 | Q35: 2252095390 | R35: 2014396592 | S35: 1801785860 | T35: 1611615260 | U35: 1441516332 | V35: 1289370601 | W35: 1153283186 | X35: 1031559200 | Y35: 3.784223305e+10 | Z35: 1901619.751
A36: =IF(ISBLANK(InfoPro!A30),"",InfoPro!A30) -> SC_1950_A1 | B36: =IF(ISBLANK(InfoPro!B30),"",InfoPro!B30) -> Autogenerador Solar Candelaria | C36: =IF(ISBLANK(InfoPro!E30),"",InfoPro!E30) -> 19.9 | D36: =IF(ISBLANK(InfoPro!F30),"",InfoPro!F30) -> Solar FV | E36: =IF(ISBLANK(InfoPro!I30),"",YEAR(InfoPro!I30)-$H$3) -> 2 | F36: =IF(B36="","",VLOOKUP(D36,Tablas!$B$2:$E$13,2,FALSE)) -> 0.26 | G36: =IF(B36="","",VLOOKUP(D36,Tablas!$B$2:$H$13,7,FALSE)) -> 83577.2 | H36: 0.564831274 | I36: 45324.24 | J36: 3933650758 | K36: 3518471161 | L36: 3147111951 | M36: 2814948078 | N36: 2517842646 | O36: 2252095390 | P36: 2014396592 | Q36: 1801785860 | R36: 1611615260 | S36: 1441516332 | T36: 1289370601 | U36: 1153283186 | V36: 1031559200 | W36: 922682647.6 | X36: 825297538.1 | Y36: 3.02756272e+10 | Z36: 1521388.302
A37: =IF(ISBLANK(InfoPro!A31),"",InfoPro!A31) -> SC_2008_A1 | B37: =IF(ISBLANK(InfoPro!B31),"",InfoPro!B31) -> Solar Ginebra | C37: =IF(ISBLANK(InfoPro!E31),"",InfoPro!E31) -> 9.9 | D37: =IF(ISBLANK(InfoPro!F31),"",InfoPro!F31) -> Solar FV | E37: =IF(ISBLANK(InfoPro!I31),"",YEAR(InfoPro!I31)-$H$3) -> 0 | F37: =IF(B37="","",VLOOKUP(D37,Tablas!$B$2:$E$13,2,FALSE)) -> 0.26 | G37: =IF(B37="","",VLOOKUP(D37,Tablas!$B$2:$H$13,7,FALSE)) -> 83577.2 | H37: 0.564831274 | I37: 22548.24 | J37: 2446028566 | K37: 2187860971 | L37: 1956941835 | M37: 1750395201 | N37: 1565648659 | O37: 1400401305 | P37: 1252595085 | Q37: 1120389164 | R37: 1002136998 | S37: 896365830 | T37: 801758345.3 | U37: 717136265.9 | V37: 641445676.1 | W37: 573743896.3 | X37: 513187742.7 | Y37: 1.882603554e+10 | Z37: 1901619.751
A38: =IF(ISBLANK(InfoPro!A32),"",InfoPro!A32) -> SC_2098_A1 | B38: =IF(ISBLANK(InfoPro!B32),"",InfoPro!B32) -> Solar El Cerrito 1 | C38: =IF(ISBLANK(InfoPro!E32),"",InfoPro!E32) -> 19.9 | D38: =IF(ISBLANK(InfoPro!F32),"",InfoPro!F32) -> Solar FV | E38: =IF(ISBLANK(InfoPro!I32),"",YEAR(InfoPro!I32)-$H$3) -> 2 | F38: =IF(B38="","",VLOOKUP(D38,Tablas!$B$2:$E$13,2,FALSE)) -> 0.26 | G38: =IF(B38="","",VLOOKUP(D38,Tablas!$B$2:$H$13,7,FALSE)) -> 83577.2 | H38: 0.564831274 | I38: 45324.24 | J38: =IF($I38="","",(1/(1+$C$3)^(J$6+$E38))*$I38*$C$2*$H38) -> 3933650758 | K38: 3518471161 | L38: 3147111951 | M38: 2814948078 | N38: 2517842646 | O38: 2252095390 | P38: 2014396592 | Q38: 1801785860 | R38: 1611615260 | S38: 1441516332 | T38: 1289370601 | U38: 1153283186 | V38: 1031559200 | W38: 922682647.6 | X38: 825297538.1 | Y38: 3.02756272e+10 | Z38: 1521388.302
A39: =IF(ISBLANK(InfoPro!A33),"",InfoPro!A33) -> SC_2208_A1 | B39: =IF(ISBLANK(InfoPro!B33),"",InfoPro!B33) -> Solar El Carmelo 4 19.9 | C39: =IF(ISBLANK(InfoPro!E33),"",InfoPro!E33) -> 19.9 | D39: =IF(ISBLANK(InfoPro!F33),"",InfoPro!F33) -> Solar FV | E39: =IF(ISBLANK(InfoPro!I33),"",YEAR(InfoPro!I33)-$H$3) -> 2 | F39: =IF(B39="","",VLOOKUP(D39,Tablas!$B$2:$E$13,2,FALSE)) -> 0.26 | G39: =IF(B39="","",VLOOKUP(D39,Tablas!$B$2:$H$13,7,FALSE)) -> 83577.2 | H39: 0.564831274 | I39: 45324.24 | J39: 3933650758 | K39: 3518471161 | L39: 3147111951 | M39: 2814948078 | N39: 2517842646 | O39: 2252095390 | P39: 2014396592 | Q39: 1801785860 | R39: 1611615260 | S39: 1441516332 | T39: 1289370601 | U39: 1153283186 | V39: 1031559200 | W39: 922682647.6 | X39: 825297538.1 | Y39: 3.02756272e+10 | Z39: 1521388.302
A40: =IF(ISBLANK(InfoPro!A34),"",InfoPro!A34) -> SC_2210_A1 | B40: =IF(ISBLANK(InfoPro!B34),"",InfoPro!B34) -> Solar La Victoria 5 19.9 | C40: =IF(ISBLANK(InfoPro!E34),"",InfoPro!E34) -> 19.9 | D40: =IF(ISBLANK(InfoPro!F34),"",InfoPro!F34) -> Solar FV | E40: =IF(ISBLANK(InfoPro!I34),"",YEAR(InfoPro!I34)-$H$3) -> 0 | F40: =IF(B40="","",VLOOKUP(D40,Tablas!$B$2:$E$13,2,FALSE)) -> 0.26 | G40: =IF(B40="","",VLOOKUP(D40,Tablas!$B$2:$H$13,7,FALSE)) -> 83577.2 | H40: 0.564831274 | I40: =IF(C40="","",+C40*F40*24*365) -> 45324.24 | J40: 4916764490 | K40: 4397821548 | L40: 3933650758 | M40: 3518471161 | N40: 3147111951 | O40: 2814948078 | P40: 2517842646 | Q40: 2252095390 | R40: 2014396592 | S40: 1801785860 | T40: 1611615260 | U40: 1441516332 | V40: 1289370601 | W40: 1153283186 | X40: 1031559200 | Y40: 3.784223305e+10 | Z40: 1901619.751
A41: =IF(ISBLANK(InfoPro!A35),"",InfoPro!A35) -> SC_2214_A1 | B41: =IF(ISBLANK(InfoPro!B35),"",InfoPro!B35) -> Autogenerador Solar Palmira 2 | C41: =IF(ISBLANK(InfoPro!E35),"",InfoPro!E35) -> 9.9 | D41: =IF(ISBLANK(InfoPro!F35),"",InfoPro!F35) -> Solar FV | E41: =IF(ISBLANK(InfoPro!I35),"",YEAR(InfoPro!I35)-$H$3) -> 0 | F41: =IF(B41="","",VLOOKUP(D41,Tablas!$B$2:$E$13,2,FALSE)) -> 0.26 | G41: =IF(B41="","",VLOOKUP(D41,Tablas!$B$2:$H$13,7,FALSE)) -> 83577.2 | H41: 0.564831274 | I41: 22548.24 | J41: 2446028566 | K41: 2187860971 | L41: 1956941835 | M41: 1750395201 | N41: 1565648659 | O41: 1400401305 | P41: 1252595085 | Q41: 1120389164 | R41: 1002136998 | S41: 896365830 | T41: 801758345.3 | U41: 717136265.9 | V41: 641445676.1 | W41: 573743896.3 | X41: 513187742.7 | Y41: 1.882603554e+10 | Z41: 1901619.751
A42: =IF(ISBLANK(InfoPro!A36),"",InfoPro!A36) -> SC_1816_A1 | B42: =IF(ISBLANK(InfoPro!B36),"",InfoPro!B36) -> COG.001.2022 AZAHAR I 4.99 MW | C42: =IF(ISBLANK(InfoPro!E36),"",InfoPro!E36) -> 4.99 | D42: =IF(ISBLANK(InfoPro!F36),"",InfoPro!F36) -> Solar FV | E42: =IF(ISBLANK(InfoPro!I36),"",YEAR(InfoPro!I36)-$H$3) -> 1 | F42: =IF(B42="","",VLOOKUP(D42,Tablas!$B$2:$E$13,2,FALSE)) -> 0.26 | G42: =IF(B42="","",VLOOKUP(D42,Tablas!$B$2:$H$13,7,FALSE)) -> 83577.2 | H42: 0.564831274 | I42: 11365.224 | J42: 1102770328 | K42: 986377752.9 | L42: 882269904.2 | M42: 789150182.7 | N42: 705858839.6 | O42: 631358532.8 | P42: 564721406.8 | Q42: 505117537.3 | R42: 451804595.1 | S42: 404118600.3 | T42: 361465653.2 | U42: 323314537.8 | V42: 289190105.3 | W42: 258667357.2 | X42: 231366151.3 | Y42: 8487551484 | Z42: 1700912.121
A43: =IF(ISBLANK(InfoPro!A37),"",InfoPro!A37) -> SC_1816_A2 | B43: =IF(ISBLANK(InfoPro!B37),"",InfoPro!B37) -> COG.001.2022 AZAHAR I 4.99 MW | C43: =IF(ISBLANK(InfoPro!E37),"",InfoPro!E37) -> 4.99 | D43: =IF(ISBLANK(InfoPro!F37),"",InfoPro!F37) -> Solar FV | E43: =IF(ISBLANK(InfoPro!I37),"",YEAR(InfoPro!I37)-$H$3) -> 1 | F43: =IF(B43="","",VLOOKUP(D43,Tablas!$B$2:$E$13,2,FALSE)) -> 0.26 | G43: =IF(B43="","",VLOOKUP(D43,Tablas!$B$2:$H$13,7,FALSE)) -> 83577.2 | H43: 0.564831274 | I43: 11365.224 | J43: 1102770328 | K43: 986377752.9 | L43: 882269904.2 | M43: 789150182.7 | N43: 705858839.6 | O43: 631358532.8 | P43: 564721406.8 | Q43: 505117537.3 | R43: 451804595.1 | S43: 404118600.3 | T43: 361465653.2 | U43: 323314537.8 | V43: 289190105.3 | W43: 258667357.2 | X43: 231366151.3 | Y43: 8487551484 | Z43: 1700912.121
A44: =IF(ISBLANK(InfoPro!A38),"",InfoPro!A38) -> SC_2296_A2 | B44: =IF(ISBLANK(InfoPro!B38),"",InfoPro!B38) -> Parque Solar San Mateo 80 MW | C44: =IF(ISBLANK(InfoPro!E38),"",InfoPro!E38) -> 80 | D44: =IF(ISBLANK(InfoPro!F38),"",InfoPro!F38) -> Solar FV | E44: =IF(ISBLANK(InfoPro!I38),"",YEAR(InfoPro!I38)-$H$3) -> 2 | F44: =IF(B44="","",VLOOKUP(D44,Tablas!$B$2:$E$13,2,FALSE)) -> 0.26 | G44: =IF(B44="","",VLOOKUP(D44,Tablas!$B$2:$H$13,7,FALSE)) -> 83577.2 | H44: 0.564831274 | I44: 182208 | J44: 1.581367139e+10 | K44: 1.414460768e+10 | L44: 1.265170634e+10 | M44: 1.131637418e+10 | N44: 1.012198048e+10 | O44: 9053649808 | P44: 8098076751 | Q44: 7243360242 | R44: 6478855315 | S44: 5795040532 | T44: 5183399403 | U44: 4636314314 | V44: 4146971658 | W44: 3709276975 | X44: 3317779048 | Y44: 1.217110641e+11 | Z44: 1521388.302
A45: =IF(ISBLANK(InfoPro!A39),"",InfoPro!A39) -> SC_2228_A1 | B45: =IF(ISBLANK(InfoPro!B39),"",InfoPro!B39) -> MFC Solar | C45: =IF(ISBLANK(InfoPro!E39),"",InfoPro!E39) -> 250 | D45: =IF(ISBLANK(InfoPro!F39),"",InfoPro!F39) -> Solar FV | E45: =IF(ISBLANK(InfoPro!I39),"",YEAR(InfoPro!I39)-$H$3) -> 4 | F45: =IF(B45="","",VLOOKUP(D45,Tablas!$B$2:$E$13,2,FALSE)) -> 0.26 | G45: =IF(B45="","",VLOOKUP(D45,Tablas!$B$2:$H$13,7,FALSE)) -> 83577.2 | H45: 0.564831274 | I45: 569400 | J45: 3.95365823e+10 | K45: 3.536366932e+10 | L45: 3.163118902e+10 | M45: 2.829265565e+10 | N45: 2.530648985e+10 | O45: 2.263550076e+10 | P45: 2.024642286e+10 | Q45: 1.810950166e+10 | R45: 1.619812313e+10 | S45: 1.448848223e+10 | T45: 1.295928643e+10 | U45: 1.159149055e+10 | V45: 1.036805952e+10 | W45: 9273756282 | X45: 8294951952 | Y45: 3.042961615e+11 | Z45: 1217184.646
A46: =IF(ISBLANK(InfoPro!A40),"",InfoPro!A40) -> SC_2228_A2 | B46: =IF(ISBLANK(InfoPro!B40),"",InfoPro!B40) -> MFC Solar | C46: =IF(ISBLANK(InfoPro!E40),"",InfoPro!E40) -> 250 | D46: =IF(ISBLANK(InfoPro!F40),"",InfoPro!F40) -> Solar FV | E46: =IF(ISBLANK(InfoPro!I40),"",YEAR(InfoPro!I40)-$H$3) -> 4 | F46: =IF(B46="","",VLOOKUP(D46,Tablas!$B$2:$E$13,2,FALSE)) -> 0.26 | G46: =IF(B46="","",VLOOKUP(D46,Tablas!$B$2:$H$13,7,FALSE)) -> 83577.2 | H46: 0.564831274 | I46: 569400 | J46: 3.95365823e+10 | K46: 3.536366932e+10 | L46: 3.163118902e+10 | M46: 2.829265565e+10 | N46: 2.530648985e+10 | O46: 2.263550076e+10 | P46: 2.024642286e+10 | Q46: 1.810950166e+10 | R46: 1.619812313e+10 | S46: 1.448848223e+10 | T46: 1.295928643e+10 | U46: 1.159149055e+10 | V46: 1.036805952e+10 | W46: 9273756282 | X46: 8294951952 | Y46: 3.042961615e+11 | Z46: 1217184.646
A47: =IF(ISBLANK(InfoPro!A41),"",InfoPro!A41) -> SC_2113_A1 | B47: =IF(ISBLANK(InfoPro!B41),"",InfoPro!B41) -> Coloradas II 98 MW | C47: =IF(ISBLANK(InfoPro!E41),"",InfoPro!E41) -> 98 | D47: =IF(ISBLANK(InfoPro!F41),"",InfoPro!F41) -> Solar FV | E47: =IF(ISBLANK(InfoPro!I41),"",YEAR(InfoPro!I41)-$H$3) -> 3 | F47: =IF(B47="","",VLOOKUP(D47,Tablas!$B$2:$E$13,2,FALSE)) -> 0.26 | G47: =IF(B47="","",VLOOKUP(D47,Tablas!$B$2:$H$13,7,FALSE)) -> 83577.2 | H47: 0.564831274 | I47: 223204.8 | J47: 1.732714441e+10 | K47: 1.549834026e+10 | L47: 1.386255837e+10 | M47: 1.239942609e+10 | N47: 1.109072101e+10 | O47: 9920144020 | P47: 8873116297 | Q47: 7936597761 | R47: 7098924652 | S47: 6349664269 | T47: 5679485034 | U47: 5080040281 | V47: 4543864295 | W47: 4064279333 | X47: 3635312463 | Y47: 1.333596186e+11 | Z47: 1360812.434
A48: =IF(ISBLANK(InfoPro!A42),"",InfoPro!A42) -> SC_2315_A1 | B48: =IF(ISBLANK(InfoPro!B42),"",InfoPro!B42) -> HELIOS SAN MARCOS - 300 MW | C48: =IF(ISBLANK(InfoPro!E42),"",InfoPro!E42) -> 300 | D48: =IF(ISBLANK(InfoPro!F42),"",InfoPro!F42) -> Solar FV | E48: =IF(ISBLANK(InfoPro!I42),"",YEAR(InfoPro!I42)-$H$3) -> 2 | F48: =IF(B48="","",VLOOKUP(D48,Tablas!$B$2:$E$13,2,FALSE)) -> 0.26 | G48: =IF(B48="","",VLOOKUP(D48,Tablas!$B$2:$H$13,7,FALSE)) -> 83577.2 | H48: 0.564831274 | I48: 683280 | J48: =IF($I48="","",(1/(1+$C$3)^(J$6+$E48))*$I48*$C$2*$H48) -> 5.930126771e+10 | K48: 5.304227881e+10 | L48: 4.744389876e+10 | M48: 4.243640318e+10 | N48: 3.795742682e+10 | O48: 3.395118678e+10 | P48: 3.036778782e+10 | Q48: 2.716260091e+10 | R48: 2.429570743e+10 | S48: 2.1731402e+10 | T48: 1.943774776e+10 | U48: 1.738617868e+10 | V48: 1.555114372e+10 | W48: 1.390978866e+10 | X48: 1.244167143e+10 | Y48: 4.564164905e+11 | Z48: 1521388.302
A49: =IF(ISBLANK(InfoPro!A43),"",InfoPro!A43) -> SC_2315_A2 | B49: =IF(ISBLANK(InfoPro!B43),"",InfoPro!B43) -> HELIOS SAN MARCOS - 300 MW | C49: =IF(ISBLANK(InfoPro!E43),"",InfoPro!E43) -> 300 | D49: =IF(ISBLANK(InfoPro!F43),"",InfoPro!F43) -> Solar FV | E49: =IF(ISBLANK(InfoPro!I43),"",YEAR(InfoPro!I43)-$H$3) -> 2 | F49: =IF(B49="","",VLOOKUP(D49,Tablas!$B$2:$E$13,2,FALSE)) -> 0.26 | G49: =IF(B49="","",VLOOKUP(D49,Tablas!$B$2:$H$13,7,FALSE)) -> 83577.2 | H49: 0.564831274 | I49: 683280 | J49: 5.930126771e+10 | K49: 5.304227881e+10 | L49: 4.744389876e+10 | M49: 4.243640318e+10 | N49: 3.795742682e+10 | O49: 3.395118678e+10 | P49: 3.036778782e+10 | Q49: 2.716260091e+10 | R49: 2.429570743e+10 | S49: 2.1731402e+10 | T49: 1.943774776e+10 | U49: 1.738617868e+10 | V49: 1.555114372e+10 | W49: 1.390978866e+10 | X49: 1.244167143e+10 | Y49: 4.564164905e+11 | Z49: 1521388.302
A50: =IF(ISBLANK(InfoPro!A44),"",InfoPro!A44) ->  | B50: =IF(ISBLANK(InfoPro!B44),"",InfoPro!B44) ->  | C50: =IF(ISBLANK(InfoPro!E44),"",InfoPro!E44) ->  | D50: =IF(ISBLANK(InfoPro!F44),"",InfoPro!F44) ->  | E50: =IF(ISBLANK(InfoPro!I44),"",YEAR(InfoPro!I44)-$H$3) ->  | F50: =IF(B50="","",VLOOKUP(D50,Tablas!$B$2:$E$13,2,FALSE)) ->  | G50: =IF(B50="","",VLOOKUP(D50,Tablas!$B$2:$H$13,7,FALSE)) -> 
A51: =IF(ISBLANK(InfoPro!A45),"",InfoPro!A45) ->  | B51: =IF(ISBLANK(InfoPro!B45),"",InfoPro!B45) ->  | C51: =IF(ISBLANK(InfoPro!E45),"",InfoPro!E45) ->  | D51: =IF(ISBLANK(InfoPro!F45),"",InfoPro!F45) ->  | E51: =IF(ISBLANK(InfoPro!I45),"",YEAR(InfoPro!I45)-$H$3) ->  | F51: =IF(B51="","",VLOOKUP(D51,Tablas!$B$2:$E$13,2,FALSE)) ->  | G51: =IF(B51="","",VLOOKUP(D51,Tablas!$B$2:$H$13,7,FALSE)) -> 
A52: =IF(ISBLANK(InfoPro!A46),"",InfoPro!A46) ->  | B52: =IF(ISBLANK(InfoPro!B46),"",InfoPro!B46) ->  | C52: =IF(ISBLANK(InfoPro!E46),"",InfoPro!E46) ->  | D52: =IF(ISBLANK(InfoPro!F46),"",InfoPro!F46) ->  | E52: =IF(ISBLANK(InfoPro!I46),"",YEAR(InfoPro!I46)-$H$3) ->  | F52: =IF(B52="","",VLOOKUP(D52,Tablas!$B$2:$E$13,2,FALSE)) ->  | G52: =IF(B52="","",VLOOKUP(D52,Tablas!$B$2:$H$13,7,FALSE)) -> 
A53: =IF(ISBLANK(InfoPro!A47),"",InfoPro!A47) ->  | B53: =IF(ISBLANK(InfoPro!B47),"",InfoPro!B47) ->  | C53: =IF(ISBLANK(InfoPro!E47),"",InfoPro!E47) ->  | D53: =IF(ISBLANK(InfoPro!F47),"",InfoPro!F47) ->  | E53: =IF(ISBLANK(InfoPro!I47),"",YEAR(InfoPro!I47)-$H$3) ->  | F53: =IF(B53="","",VLOOKUP(D53,Tablas!$B$2:$E$13,2,FALSE)) ->  | G53: =IF(B53="","",VLOOKUP(D53,Tablas!$B$2:$H$13,7,FALSE)) -> 
A54: =IF(ISBLANK(InfoPro!A48),"",InfoPro!A48) ->  | B54: =IF(ISBLANK(InfoPro!B48),"",InfoPro!B48) ->  | C54: =IF(ISBLANK(InfoPro!E48),"",InfoPro!E48) ->  | D54: =IF(ISBLANK(InfoPro!F48),"",InfoPro!F48) ->  | E54: =IF(ISBLANK(InfoPro!I48),"",YEAR(InfoPro!I48)-$H$3) ->  | F54: =IF(B54="","",VLOOKUP(D54,Tablas!$B$2:$E$13,2,FALSE)) ->  | G54: =IF(B54="","",VLOOKUP(D54,Tablas!$B$2:$H$13,7,FALSE)) -> 
A55: =IF(ISBLANK(InfoPro!A49),"",InfoPro!A49) ->  | B55: =IF(ISBLANK(InfoPro!B49),"",InfoPro!B49) ->  | C55: =IF(ISBLANK(InfoPro!E49),"",InfoPro!E49) ->  | D55: =IF(ISBLANK(InfoPro!F49),"",InfoPro!F49) ->  | E55: =IF(ISBLANK(InfoPro!I49),"",YEAR(InfoPro!I49)-$H$3) ->  | F55: =IF(B55="","",VLOOKUP(D55,Tablas!$B$2:$E$13,2,FALSE)) ->  | G55: =IF(B55="","",VLOOKUP(D55,Tablas!$B$2:$H$13,7,FALSE)) -> 
A56: =IF(ISBLANK(InfoPro!A50),"",InfoPro!A50) ->  | B56: =IF(ISBLANK(InfoPro!B50),"",InfoPro!B50) ->  | C56: =IF(ISBLANK(InfoPro!E50),"",InfoPro!E50) ->  | D56: =IF(ISBLANK(InfoPro!F50),"",InfoPro!F50) ->  | E56: =IF(ISBLANK(InfoPro!I50),"",YEAR(InfoPro!I50)-$H$3) ->  | F56: =IF(B56="","",VLOOKUP(D56,Tablas!$B$2:$E$13,2,FALSE)) ->  | G56: =IF(B56="","",VLOOKUP(D56,Tablas!$B$2:$H$13,7,FALSE)) -> 
A57: =IF(ISBLANK(InfoPro!A51),"",InfoPro!A51) ->  | B57: =IF(ISBLANK(InfoPro!B51),"",InfoPro!B51) ->  | C57: =IF(ISBLANK(InfoPro!E51),"",InfoPro!E51) ->  | D57: =IF(ISBLANK(InfoPro!F51),"",InfoPro!F51) ->  | E57: =IF(ISBLANK(InfoPro!I51),"",YEAR(InfoPro!I51)-$H$3) ->  | F57: =IF(B57="","",VLOOKUP(D57,Tablas!$B$2:$E$13,2,FALSE)) ->  | G57: =IF(B57="","",VLOOKUP(D57,Tablas!$B$2:$H$13,7,FALSE)) -> 
A58: =IF(ISBLANK(InfoPro!A52),"",InfoPro!A52) ->  | B58: =IF(ISBLANK(InfoPro!B52),"",InfoPro!B52) ->  | C58: =IF(ISBLANK(InfoPro!E52),"",InfoPro!E52) ->  | D58: =IF(ISBLANK(InfoPro!F52),"",InfoPro!F52) ->  | E58: =IF(ISBLANK(InfoPro!I52),"",YEAR(InfoPro!I52)-$H$3) ->  | F58: =IF(B58="","",VLOOKUP(D58,Tablas!$B$2:$E$13,2,FALSE)) ->  | G58: =IF(B58="","",VLOOKUP(D58,Tablas!$B$2:$H$13,7,FALSE)) ->  | J58: =IF($I58="","",(1/(1+$C$3)^(J$6+$E58))*$I58*$C$2*$H58) -> 
A59: =IF(ISBLANK(InfoPro!A53),"",InfoPro!A53) ->  | B59: =IF(ISBLANK(InfoPro!B53),"",InfoPro!B53) ->  | C59: =IF(ISBLANK(InfoPro!E53),"",InfoPro!E53) ->  | D59: =IF(ISBLANK(InfoPro!F53),"",InfoPro!F53) ->  | E59: =IF(ISBLANK(InfoPro!I53),"",YEAR(InfoPro!I53)-$H$3) ->  | F59: =IF(B59="","",VLOOKUP(D59,Tablas!$B$2:$E$13,2,FALSE)) ->  | G59: =IF(B59="","",VLOOKUP(D59,Tablas!$B$2:$H$13,7,FALSE)) -> 
A60: =IF(ISBLANK(InfoPro!A54),"",InfoPro!A54) ->  | B60: =IF(ISBLANK(InfoPro!B54),"",InfoPro!B54) ->  | C60: =IF(ISBLANK(InfoPro!E54),"",InfoPro!E54) ->  | D60: =IF(ISBLANK(InfoPro!F54),"",InfoPro!F54) ->  | E60: =IF(ISBLANK(InfoPro!I54),"",YEAR(InfoPro!I54)-$H$3) ->  | F60: =IF(B60="","",VLOOKUP(D60,Tablas!$B$2:$E$13,2,FALSE)) ->  | G60: =IF(B60="","",VLOOKUP(D60,Tablas!$B$2:$H$13,7,FALSE)) -> 
A61: =IF(ISBLANK(InfoPro!A55),"",InfoPro!A55) ->  | B61: =IF(ISBLANK(InfoPro!B55),"",InfoPro!B55) ->  | C61: =IF(ISBLANK(InfoPro!E55),"",InfoPro!E55) ->  | D61: =IF(ISBLANK(InfoPro!F55),"",InfoPro!F55) ->  | E61: =IF(ISBLANK(InfoPro!I55),"",YEAR(InfoPro!I55)-$H$3) ->  | F61: =IF(B61="","",VLOOKUP(D61,Tablas!$B$2:$E$13,2,FALSE)) ->  | G61: =IF(B61="","",VLOOKUP(D61,Tablas!$B$2:$H$13,7,FALSE)) -> 
A62: =IF(ISBLANK(InfoPro!A56),"",InfoPro!A56) ->  | B62: =IF(ISBLANK(InfoPro!B56),"",InfoPro!B56) ->  | C62: =IF(ISBLANK(InfoPro!E56),"",InfoPro!E56) ->  | D62: =IF(ISBLANK(InfoPro!F56),"",InfoPro!F56) ->  | E62: =IF(ISBLANK(InfoPro!I56),"",YEAR(InfoPro!I56)-$H$3) ->  | F62: =IF(B62="","",VLOOKUP(D62,Tablas!$B$2:$E$13,2,FALSE)) ->  | G62: =IF(B62="","",VLOOKUP(D62,Tablas!$B$2:$H$13,7,FALSE)) -> 
A63: =IF(ISBLANK(InfoPro!A57),"",InfoPro!A57) ->  | B63: =IF(ISBLANK(InfoPro!B57),"",InfoPro!B57) ->  | C63: =IF(ISBLANK(InfoPro!E57),"",InfoPro!E57) ->  | D63: =IF(ISBLANK(InfoPro!F57),"",InfoPro!F57) ->  | E63: =IF(ISBLANK(InfoPro!I57),"",YEAR(InfoPro!I57)-$H$3) ->  | F63: =IF(B63="","",VLOOKUP(D63,Tablas!$B$2:$E$13,2,FALSE)) ->  | G63: =IF(B63="","",VLOOKUP(D63,Tablas!$B$2:$H$13,7,FALSE)) -> 
A64: =IF(ISBLANK(InfoPro!A58),"",InfoPro!A58) ->  | B64: =IF(ISBLANK(InfoPro!B58),"",InfoPro!B58) ->  | C64: =IF(ISBLANK(InfoPro!E58),"",InfoPro!E58) ->  | D64: =IF(ISBLANK(InfoPro!F58),"",InfoPro!F58) ->  | E64: =IF(ISBLANK(InfoPro!I58),"",YEAR(InfoPro!I58)-$H$3) ->  | F64: =IF(B64="","",VLOOKUP(D64,Tablas!$B$2:$E$13,2,FALSE)) ->  | G64: =IF(B64="","",VLOOKUP(D64,Tablas!$B$2:$H$13,7,FALSE)) -> 
A65: =IF(ISBLANK(InfoPro!A59),"",InfoPro!A59) ->  | B65: =IF(ISBLANK(InfoPro!B59),"",InfoPro!B59) ->  | C65: =IF(ISBLANK(InfoPro!E59),"",InfoPro!E59) ->  | D65: =IF(ISBLANK(InfoPro!F59),"",InfoPro!F59) ->  | E65: =IF(ISBLANK(InfoPro!I59),"",YEAR(InfoPro!I59)-$H$3) ->  | F65: =IF(B65="","",VLOOKUP(D65,Tablas!$B$2:$E$13,2,FALSE)) ->  | G65: =IF(B65="","",VLOOKUP(D65,Tablas!$B$2:$H$13,7,FALSE)) -> 
A66: =IF(ISBLANK(InfoPro!A60),"",InfoPro!A60) ->  | B66: =IF(ISBLANK(InfoPro!B60),"",InfoPro!B60) ->  | C66: =IF(ISBLANK(InfoPro!E60),"",InfoPro!E60) ->  | D66: =IF(ISBLANK(InfoPro!F60),"",InfoPro!F60) ->  | E66: =IF(ISBLANK(InfoPro!I60),"",YEAR(InfoPro!I60)-$H$3) ->  | F66: =IF(B66="","",VLOOKUP(D66,Tablas!$B$2:$E$13,2,FALSE)) ->  | G66: =IF(B66="","",VLOOKUP(D66,Tablas!$B$2:$H$13,7,FALSE)) -> 
A67: =IF(ISBLANK(InfoPro!A61),"",InfoPro!A61) ->  | B67: =IF(ISBLANK(InfoPro!B61),"",InfoPro!B61) ->  | C67: =IF(ISBLANK(InfoPro!E61),"",InfoPro!E61) ->  | D67: =IF(ISBLANK(InfoPro!F61),"",InfoPro!F61) ->  | E67: =IF(ISBLANK(InfoPro!I61),"",YEAR(InfoPro!I61)-$H$3) ->  | F67: =IF(B67="","",VLOOKUP(D67,Tablas!$B$2:$E$13,2,FALSE)) ->  | G67: =IF(B67="","",VLOOKUP(D67,Tablas!$B$2:$H$13,7,FALSE)) -> 
A68: =IF(ISBLANK(InfoPro!A62),"",InfoPro!A62) ->  | B68: =IF(ISBLANK(InfoPro!B62),"",InfoPro!B62) ->  | C68: =IF(ISBLANK(InfoPro!E62),"",InfoPro!E62) ->  | D68: =IF(ISBLANK(InfoPro!F62),"",InfoPro!F62) ->  | E68: =IF(ISBLANK(InfoPro!I62),"",YEAR(InfoPro!I62)-$H$3) ->  | F68: =IF(B68="","",VLOOKUP(D68,Tablas!$B$2:$E$13,2,FALSE)) ->  | G68: =IF(B68="","",VLOOKUP(D68,Tablas!$B$2:$H$13,7,FALSE)) ->  | J68: =IF($I68="","",(1/(1+$C$3)^(J$6+$E68))*$I68*$C$2*$H68) -> 
A69: =IF(ISBLANK(InfoPro!A63),"",InfoPro!A63) ->  | B69: =IF(ISBLANK(InfoPro!B63),"",InfoPro!B63) ->  | C69: =IF(ISBLANK(InfoPro!E63),"",InfoPro!E63) ->  | D69: =IF(ISBLANK(InfoPro!F63),"",InfoPro!F63) ->  | E69: =IF(ISBLANK(InfoPro!I63),"",YEAR(InfoPro!I63)-$H$3) ->  | F69: =IF(B69="","",VLOOKUP(D69,Tablas!$B$2:$E$13,2,FALSE)) ->  | G69: =IF(B69="","",VLOOKUP(D69,Tablas!$B$2:$H$13,7,FALSE)) -> 
A70: =IF(ISBLANK(InfoPro!A64),"",InfoPro!A64) ->  | B70: =IF(ISBLANK(InfoPro!B64),"",InfoPro!B64) ->  | C70: =IF(ISBLANK(InfoPro!E64),"",InfoPro!E64) ->  | D70: =IF(ISBLANK(InfoPro!F64),"",InfoPro!F64) ->  | E70: =IF(ISBLANK(InfoPro!I64),"",YEAR(InfoPro!I64)-$H$3) ->  | F70: =IF(B70="","",VLOOKUP(D70,Tablas!$B$2:$E$13,2,FALSE)) ->  | G70: =IF(B70="","",VLOOKUP(D70,Tablas!$B$2:$H$13,7,FALSE)) -> 
A71: =IF(ISBLANK(InfoPro!A65),"",InfoPro!A65) ->  | B71: =IF(ISBLANK(InfoPro!B65),"",InfoPro!B65) ->  | C71: =IF(ISBLANK(InfoPro!E65),"",InfoPro!E65) ->  | D71: =IF(ISBLANK(InfoPro!F65),"",InfoPro!F65) ->  | E71: =IF(ISBLANK(InfoPro!I65),"",YEAR(InfoPro!I65)-$H$3) ->  | F71: =IF(B71="","",VLOOKUP(D71,Tablas!$B$2:$E$13,2,FALSE)) ->  | G71: =IF(B71="","",VLOOKUP(D71,Tablas!$B$2:$H$13,7,FALSE)) -> 
A72: =IF(ISBLANK(InfoPro!A66),"",InfoPro!A66) ->  | B72: =IF(ISBLANK(InfoPro!B66),"",InfoPro!B66) ->  | C72: =IF(ISBLANK(InfoPro!E66),"",InfoPro!E66) ->  | D72: =IF(ISBLANK(InfoPro!F66),"",InfoPro!F66) ->  | E72: =IF(ISBLANK(InfoPro!I66),"",YEAR(InfoPro!I66)-$H$3) ->  | F72: =IF(B72="","",VLOOKUP(D72,Tablas!$B$2:$E$13,2,FALSE)) ->  | G72: =IF(B72="","",VLOOKUP(D72,Tablas!$B$2:$H$13,7,FALSE)) ->  | I72: =IF(C72="","",+C72*F72*24*365) -> 
A73: =IF(ISBLANK(InfoPro!A67),"",InfoPro!A67) ->  | B73: =IF(ISBLANK(InfoPro!B67),"",InfoPro!B67) ->  | C73: =IF(ISBLANK(InfoPro!E67),"",InfoPro!E67) ->  | D73: =IF(ISBLANK(InfoPro!F67),"",InfoPro!F67) ->  | E73: =IF(ISBLANK(InfoPro!I67),"",YEAR(InfoPro!I67)-$H$3) ->  | F73: =IF(B73="","",VLOOKUP(D73,Tablas!$B$2:$E$13,2,FALSE)) ->  | G73: =IF(B73="","",VLOOKUP(D73,Tablas!$B$2:$H$13,7,FALSE)) ->  | H73: =IF(B73="","",($C$2-(G73))/$C$2) ->  | Y73: =IF(X73="","",SUM(J73:X73)) ->  | Z73: =IF(C73=0,0,IF(Y73="","",Y73/(C73*1000))) -> 
A74: =IF(ISBLANK(InfoPro!A68),"",InfoPro!A68) ->  | B74: =IF(ISBLANK(InfoPro!B68),"",InfoPro!B68) ->  | C74: =IF(ISBLANK(InfoPro!E68),"",InfoPro!E68) ->  | D74: =IF(ISBLANK(InfoPro!F68),"",InfoPro!F68) ->  | E74: =IF(ISBLANK(InfoPro!I68),"",YEAR(InfoPro!I68)-$H$3) ->  | F74: =IF(B74="","",VLOOKUP(D74,Tablas!$B$2:$E$13,2,FALSE)) ->  | G74: =IF(B74="","",VLOOKUP(D74,Tablas!$B$2:$H$13,7,FALSE)) -> 
A75: =IF(ISBLANK(InfoPro!A69),"",InfoPro!A69) ->  | B75: =IF(ISBLANK(InfoPro!B69),"",InfoPro!B69) ->  | C75: =IF(ISBLANK(InfoPro!E69),"",InfoPro!E69) ->  | D75: =IF(ISBLANK(InfoPro!F69),"",InfoPro!F69) ->  | E75: =IF(ISBLANK(InfoPro!I69),"",YEAR(InfoPro!I69)-$H$3) ->  | F75: =IF(B75="","",VLOOKUP(D75,Tablas!$B$2:$E$13,2,FALSE)) ->  | G75: =IF(B75="","",VLOOKUP(D75,Tablas!$B$2:$H$13,7,FALSE)) -> 
A76: =IF(ISBLANK(InfoPro!A70),"",InfoPro!A70) ->  | B76: =IF(ISBLANK(InfoPro!B70),"",InfoPro!B70) ->  | C76: =IF(ISBLANK(InfoPro!E70),"",InfoPro!E70) ->  | D76: =IF(ISBLANK(InfoPro!F70),"",InfoPro!F70) ->  | E76: =IF(ISBLANK(InfoPro!I70),"",YEAR(InfoPro!I70)-$H$3) ->  | F76: =IF(B76="","",VLOOKUP(D76,Tablas!$B$2:$E$13,2,FALSE)) ->  | G76: =IF(B76="","",VLOOKUP(D76,Tablas!$B$2:$H$13,7,FALSE)) -> 
A77: =IF(ISBLANK(InfoPro!A71),"",InfoPro!A71) ->  | B77: =IF(ISBLANK(InfoPro!B71),"",InfoPro!B71) ->  | C77: =IF(ISBLANK(InfoPro!E71),"",InfoPro!E71) ->  | D77: =IF(ISBLANK(InfoPro!F71),"",InfoPro!F71) ->  | E77: =IF(ISBLANK(InfoPro!I71),"",YEAR(InfoPro!I71)-$H$3) ->  | F77: =IF(B77="","",VLOOKUP(D77,Tablas!$B$2:$E$13,2,FALSE)) ->  | G77: =IF(B77="","",VLOOKUP(D77,Tablas!$B$2:$H$13,7,FALSE)) -> 
A78: =IF(ISBLANK(InfoPro!A72),"",InfoPro!A72) ->  | B78: =IF(ISBLANK(InfoPro!B72),"",InfoPro!B72) ->  | C78: =IF(ISBLANK(InfoPro!E72),"",InfoPro!E72) ->  | D78: =IF(ISBLANK(InfoPro!F72),"",InfoPro!F72) ->  | E78: =IF(ISBLANK(InfoPro!I72),"",YEAR(InfoPro!I72)-$H$3) ->  | F78: =IF(B78="","",VLOOKUP(D78,Tablas!$B$2:$E$13,2,FALSE)) ->  | G78: =IF(B78="","",VLOOKUP(D78,Tablas!$B$2:$H$13,7,FALSE)) ->  | J78: =IF($I78="","",(1/(1+$C$3)^(J$6+$E78))*$I78*$C$2*$H78) -> 
A79: =IF(ISBLANK(InfoPro!A73),"",InfoPro!A73) ->  | B79: =IF(ISBLANK(InfoPro!B73),"",InfoPro!B73) ->  | C79: =IF(ISBLANK(InfoPro!E73),"",InfoPro!E73) ->  | D79: =IF(ISBLANK(InfoPro!F73),"",InfoPro!F73) ->  | E79: =IF(ISBLANK(InfoPro!I73),"",YEAR(InfoPro!I73)-$H$3) ->  | F79: =IF(B79="","",VLOOKUP(D79,Tablas!$B$2:$E$13,2,FALSE)) ->  | G79: =IF(B79="","",VLOOKUP(D79,Tablas!$B$2:$H$13,7,FALSE)) -> 
A80: =IF(ISBLANK(InfoPro!A74),"",InfoPro!A74) ->  | B80: =IF(ISBLANK(InfoPro!B74),"",InfoPro!B74) ->  | C80: =IF(ISBLANK(InfoPro!E74),"",InfoPro!E74) ->  | D80: =IF(ISBLANK(InfoPro!F74),"",InfoPro!F74) ->  | E80: =IF(ISBLANK(InfoPro!I74),"",YEAR(InfoPro!I74)-$H$3) ->  | F80: =IF(B80="","",VLOOKUP(D80,Tablas!$B$2:$E$13,2,FALSE)) ->  | G80: =IF(B80="","",VLOOKUP(D80,Tablas!$B$2:$H$13,7,FALSE)) -> 
A81: =IF(ISBLANK(InfoPro!A75),"",InfoPro!A75) ->  | B81: =IF(ISBLANK(InfoPro!B75),"",InfoPro!B75) ->  | C81: =IF(ISBLANK(InfoPro!E75),"",InfoPro!E75) ->  | D81: =IF(ISBLANK(InfoPro!F75),"",InfoPro!F75) ->  | E81: =IF(ISBLANK(InfoPro!I75),"",YEAR(InfoPro!I75)-$H$3) ->  | F81: =IF(B81="","",VLOOKUP(D81,Tablas!$B$2:$E$13,2,FALSE)) ->  | G81: =IF(B81="","",VLOOKUP(D81,Tablas!$B$2:$H$13,7,FALSE)) -> 
A82: =IF(ISBLANK(InfoPro!A76),"",InfoPro!A76) ->  | B82: =IF(ISBLANK(InfoPro!B76),"",InfoPro!B76) ->  | C82: =IF(ISBLANK(InfoPro!E76),"",InfoPro!E76) ->  | D82: =IF(ISBLANK(InfoPro!F76),"",InfoPro!F76) ->  | E82: =IF(ISBLANK(InfoPro!I76),"",YEAR(InfoPro!I76)-$H$3) ->  | F82: =IF(B82="","",VLOOKUP(D82,Tablas!$B$2:$E$13,2,FALSE)) ->  | G82: =IF(B82="","",VLOOKUP(D82,Tablas!$B$2:$H$13,7,FALSE)) -> 
A83: =IF(ISBLANK(InfoPro!A77),"",InfoPro!A77) ->  | B83: =IF(ISBLANK(InfoPro!B77),"",InfoPro!B77) ->  | C83: =IF(ISBLANK(InfoPro!E77),"",InfoPro!E77) ->  | D83: =IF(ISBLANK(InfoPro!F77),"",InfoPro!F77) ->  | E83: =IF(ISBLANK(InfoPro!I77),"",YEAR(InfoPro!I77)-$H$3) ->  | F83: =IF(B83="","",VLOOKUP(D83,Tablas!$B$2:$E$13,2,FALSE)) ->  | G83: =IF(B83="","",VLOOKUP(D83,Tablas!$B$2:$H$13,7,FALSE)) -> 
A84: =IF(ISBLANK(InfoPro!A78),"",InfoPro!A78) ->  | B84: =IF(ISBLANK(InfoPro!B78),"",InfoPro!B78) ->  | C84: =IF(ISBLANK(InfoPro!E78),"",InfoPro!E78) ->  | D84: =IF(ISBLANK(InfoPro!F78),"",InfoPro!F78) ->  | E84: =IF(ISBLANK(InfoPro!I78),"",YEAR(InfoPro!I78)-$H$3) ->  | F84: =IF(B84="","",VLOOKUP(D84,Tablas!$B$2:$E$13,2,FALSE)) ->  | G84: =IF(B84="","",VLOOKUP(D84,Tablas!$B$2:$H$13,7,FALSE)) -> 
A85: =IF(ISBLANK(InfoPro!A79),"",InfoPro!A79) ->  | B85: =IF(ISBLANK(InfoPro!B79),"",InfoPro!B79) ->  | C85: =IF(ISBLANK(InfoPro!E79),"",InfoPro!E79) ->  | D85: =IF(ISBLANK(InfoPro!F79),"",InfoPro!F79) ->  | E85: =IF(ISBLANK(InfoPro!I79),"",YEAR(InfoPro!I79)-$H$3) ->  | F85: =IF(B85="","",VLOOKUP(D85,Tablas!$B$2:$E$13,2,FALSE)) ->  | G85: =IF(B85="","",VLOOKUP(D85,Tablas!$B$2:$H$13,7,FALSE)) -> 
A86: =IF(ISBLANK(InfoPro!A80),"",InfoPro!A80) ->  | B86: =IF(ISBLANK(InfoPro!B80),"",InfoPro!B80) ->  | C86: =IF(ISBLANK(InfoPro!E80),"",InfoPro!E80) ->  | D86: =IF(ISBLANK(InfoPro!F80),"",InfoPro!F80) ->  | E86: =IF(ISBLANK(InfoPro!I80),"",YEAR(InfoPro!I80)-$H$3) ->  | F86: =IF(B86="","",VLOOKUP(D86,Tablas!$B$2:$E$13,2,FALSE)) ->  | G86: =IF(B86="","",VLOOKUP(D86,Tablas!$B$2:$H$13,7,FALSE)) -> 
A87: =IF(ISBLANK(InfoPro!A81),"",InfoPro!A81) ->  | B87: =IF(ISBLANK(InfoPro!B81),"",InfoPro!B81) ->  | C87: =IF(ISBLANK(InfoPro!E81),"",InfoPro!E81) ->  | D87: =IF(ISBLANK(InfoPro!F81),"",InfoPro!F81) ->  | E87: =IF(ISBLANK(InfoPro!I81),"",YEAR(InfoPro!I81)-$H$3) ->  | F87: =IF(B87="","",VLOOKUP(D87,Tablas!$B$2:$E$13,2,FALSE)) ->  | G87: =IF(B87="","",VLOOKUP(D87,Tablas!$B$2:$H$13,7,FALSE)) -> 
A88: =IF(ISBLANK(InfoPro!A82),"",InfoPro!A82) ->  | B88: =IF(ISBLANK(InfoPro!B82),"",InfoPro!B82) ->  | C88: =IF(ISBLANK(InfoPro!E82),"",InfoPro!E82) ->  | D88: =IF(ISBLANK(InfoPro!F82),"",InfoPro!F82) ->  | E88: =IF(ISBLANK(InfoPro!I82),"",YEAR(InfoPro!I82)-$H$3) ->  | F88: =IF(B88="","",VLOOKUP(D88,Tablas!$B$2:$E$13,2,FALSE)) ->  | G88: =IF(B88="","",VLOOKUP(D88,Tablas!$B$2:$H$13,7,FALSE)) ->  | J88: =IF($I88="","",(1/(1+$C$3)^(J$6+$E88))*$I88*$C$2*$H88) -> 
A89: =IF(ISBLANK(InfoPro!A83),"",InfoPro!A83) ->  | B89: =IF(ISBLANK(InfoPro!B83),"",InfoPro!B83) ->  | C89: =IF(ISBLANK(InfoPro!E83),"",InfoPro!E83) ->  | D89: =IF(ISBLANK(InfoPro!F83),"",InfoPro!F83) ->  | E89: =IF(ISBLANK(InfoPro!I83),"",YEAR(InfoPro!I83)-$H$3) ->  | F89: =IF(B89="","",VLOOKUP(D89,Tablas!$B$2:$E$13,2,FALSE)) ->  | G89: =IF(B89="","",VLOOKUP(D89,Tablas!$B$2:$H$13,7,FALSE)) -> 
A90: =IF(ISBLANK(InfoPro!A84),"",InfoPro!A84) ->  | B90: =IF(ISBLANK(InfoPro!B84),"",InfoPro!B84) ->  | C90: =IF(ISBLANK(InfoPro!E84),"",InfoPro!E84) ->  | D90: =IF(ISBLANK(InfoPro!F84),"",InfoPro!F84) ->  | E90: =IF(ISBLANK(InfoPro!I84),"",YEAR(InfoPro!I84)-$H$3) ->  | F90: =IF(B90="","",VLOOKUP(D90,Tablas!$B$2:$E$13,2,FALSE)) ->  | G90: =IF(B90="","",VLOOKUP(D90,Tablas!$B$2:$H$13,7,FALSE)) -> 
A91: =IF(ISBLANK(InfoPro!A85),"",InfoPro!A85) ->  | B91: =IF(ISBLANK(InfoPro!B85),"",InfoPro!B85) ->  | C91: =IF(ISBLANK(InfoPro!E85),"",InfoPro!E85) ->  | D91: =IF(ISBLANK(InfoPro!F85),"",InfoPro!F85) ->  | E91: =IF(ISBLANK(InfoPro!I85),"",YEAR(InfoPro!I85)-$H$3) ->  | F91: =IF(B91="","",VLOOKUP(D91,Tablas!$B$2:$E$13,2,FALSE)) ->  | G91: =IF(B91="","",VLOOKUP(D91,Tablas!$B$2:$H$13,7,FALSE)) -> 
A92: =IF(ISBLANK(InfoPro!A86),"",InfoPro!A86) ->  | B92: =IF(ISBLANK(InfoPro!B86),"",InfoPro!B86) ->  | C92: =IF(ISBLANK(InfoPro!E86),"",InfoPro!E86) ->  | D92: =IF(ISBLANK(InfoPro!F86),"",InfoPro!F86) ->  | E92: =IF(ISBLANK(InfoPro!I86),"",YEAR(InfoPro!I86)-$H$3) ->  | F92: =IF(B92="","",VLOOKUP(D92,Tablas!$B$2:$E$13,2,FALSE)) ->  | G92: =IF(B92="","",VLOOKUP(D92,Tablas!$B$2:$H$13,7,FALSE)) -> 
A93: =IF(ISBLANK(InfoPro!A87),"",InfoPro!A87) ->  | B93: =IF(ISBLANK(InfoPro!B87),"",InfoPro!B87) ->  | C93: =IF(ISBLANK(InfoPro!E87),"",InfoPro!E87) ->  | D93: =IF(ISBLANK(InfoPro!F87),"",InfoPro!F87) ->  | E93: =IF(ISBLANK(InfoPro!I87),"",YEAR(InfoPro!I87)-$H$3) ->  | F93: =IF(B93="","",VLOOKUP(D93,Tablas!$B$2:$E$13,2,FALSE)) ->  | G93: =IF(B93="","",VLOOKUP(D93,Tablas!$B$2:$H$13,7,FALSE)) -> 
A94: =IF(ISBLANK(InfoPro!A88),"",InfoPro!A88) ->  | B94: =IF(ISBLANK(InfoPro!B88),"",InfoPro!B88) ->  | C94: =IF(ISBLANK(InfoPro!E88),"",InfoPro!E88) ->  | D94: =IF(ISBLANK(InfoPro!F88),"",InfoPro!F88) ->  | E94: =IF(ISBLANK(InfoPro!I88),"",YEAR(InfoPro!I88)-$H$3) ->  | F94: =IF(B94="","",VLOOKUP(D94,Tablas!$B$2:$E$13,2,FALSE)) ->  | G94: =IF(B94="","",VLOOKUP(D94,Tablas!$B$2:$H$13,7,FALSE)) -> 
A95: =IF(ISBLANK(InfoPro!A89),"",InfoPro!A89) ->  | B95: =IF(ISBLANK(InfoPro!B89),"",InfoPro!B89) ->  | C95: =IF(ISBLANK(InfoPro!E89),"",InfoPro!E89) ->  | D95: =IF(ISBLANK(InfoPro!F89),"",InfoPro!F89) ->  | E95: =IF(ISBLANK(InfoPro!I89),"",YEAR(InfoPro!I89)-$H$3) ->  | F95: =IF(B95="","",VLOOKUP(D95,Tablas!$B$2:$E$13,2,FALSE)) ->  | G95: =IF(B95="","",VLOOKUP(D95,Tablas!$B$2:$H$13,7,FALSE)) -> 
A96: =IF(ISBLANK(InfoPro!A90),"",InfoPro!A90) ->  | B96: =IF(ISBLANK(InfoPro!B90),"",InfoPro!B90) ->  | C96: =IF(ISBLANK(InfoPro!E90),"",InfoPro!E90) ->  | D96: =IF(ISBLANK(InfoPro!F90),"",InfoPro!F90) ->  | E96: =IF(ISBLANK(InfoPro!I90),"",YEAR(InfoPro!I90)-$H$3) ->  | F96: =IF(B96="","",VLOOKUP(D96,Tablas!$B$2:$E$13,2,FALSE)) ->  | G96: =IF(B96="","",VLOOKUP(D96,Tablas!$B$2:$H$13,7,FALSE)) -> 
A97: =IF(ISBLANK(InfoPro!A91),"",InfoPro!A91) ->  | B97: =IF(ISBLANK(InfoPro!B91),"",InfoPro!B91) ->  | C97: =IF(ISBLANK(InfoPro!E91),"",InfoPro!E91) ->  | D97: =IF(ISBLANK(InfoPro!F91),"",InfoPro!F91) ->  | E97: =IF(ISBLANK(InfoPro!I91),"",YEAR(InfoPro!I91)-$H$3) ->  | F97: =IF(B97="","",VLOOKUP(D97,Tablas!$B$2:$E$13,2,FALSE)) ->  | G97: =IF(B97="","",VLOOKUP(D97,Tablas!$B$2:$H$13,7,FALSE)) -> 
A98: =IF(ISBLANK(InfoPro!A92),"",InfoPro!A92) ->  | B98: =IF(ISBLANK(InfoPro!B92),"",InfoPro!B92) ->  | C98: =IF(ISBLANK(InfoPro!E92),"",InfoPro!E92) ->  | D98: =IF(ISBLANK(InfoPro!F92),"",InfoPro!F92) ->  | E98: =IF(ISBLANK(InfoPro!I92),"",YEAR(InfoPro!I92)-$H$3) ->  | F98: =IF(B98="","",VLOOKUP(D98,Tablas!$B$2:$E$13,2,FALSE)) ->  | G98: =IF(B98="","",VLOOKUP(D98,Tablas!$B$2:$H$13,7,FALSE)) ->  | J98: =IF($I98="","",(1/(1+$C$3)^(J$6+$E98))*$I98*$C$2*$H98) -> 
A99: =IF(ISBLANK(InfoPro!A93),"",InfoPro!A93) ->  | B99: =IF(ISBLANK(InfoPro!B93),"",InfoPro!B93) ->  | C99: =IF(ISBLANK(InfoPro!E93),"",InfoPro!E93) ->  | D99: =IF(ISBLANK(InfoPro!F93),"",InfoPro!F93) ->  | E99: =IF(ISBLANK(InfoPro!I93),"",YEAR(InfoPro!I93)-$H$3) ->  | F99: =IF(B99="","",VLOOKUP(D99,Tablas!$B$2:$E$13,2,FALSE)) ->  | G99: =IF(B99="","",VLOOKUP(D99,Tablas!$B$2:$H$13,7,FALSE)) -> 
A100: =IF(ISBLANK(InfoPro!A94),"",InfoPro!A94) ->  | B100: =IF(ISBLANK(InfoPro!B94),"",InfoPro!B94) ->  | C100: =IF(ISBLANK(InfoPro!E94),"",InfoPro!E94) ->  | D100: =IF(ISBLANK(InfoPro!F94),"",InfoPro!F94) ->  | E100: =IF(ISBLANK(InfoPro!I94),"",YEAR(InfoPro!I94)-$H$3) ->  | F100: =IF(B100="","",VLOOKUP(D100,Tablas!$B$2:$E$13,2,FALSE)) ->  | G100: =IF(B100="","",VLOOKUP(D100,Tablas!$B$2:$H$13,7,FALSE)) -> 
A101: =IF(ISBLANK(InfoPro!A95),"",InfoPro!A95) ->  | B101: =IF(ISBLANK(InfoPro!B95),"",InfoPro!B95) ->  | C101: =IF(ISBLANK(InfoPro!E95),"",InfoPro!E95) ->  | D101: =IF(ISBLANK(InfoPro!F95),"",InfoPro!F95) ->  | E101: =IF(ISBLANK(InfoPro!I95),"",YEAR(InfoPro!I95)-$H$3) ->  | F101: =IF(B101="","",VLOOKUP(D101,Tablas!$B$2:$E$13,2,FALSE)) ->  | G101: =IF(B101="","",VLOOKUP(D101,Tablas!$B$2:$H$13,7,FALSE)) -> 
A102: =IF(ISBLANK(InfoPro!A96),"",InfoPro!A96) ->  | B102: =IF(ISBLANK(InfoPro!B96),"",InfoPro!B96) ->  | C102: =IF(ISBLANK(InfoPro!E96),"",InfoPro!E96) ->  | D102: =IF(ISBLANK(InfoPro!F96),"",InfoPro!F96) ->  | E102: =IF(ISBLANK(InfoPro!I96),"",YEAR(InfoPro!I96)-$H$3) ->  | F102: =IF(B102="","",VLOOKUP(D102,Tablas!$B$2:$E$13,2,FALSE)) ->  | G102: =IF(B102="","",VLOOKUP(D102,Tablas!$B$2:$H$13,7,FALSE)) -> 
A103: =IF(ISBLANK(InfoPro!A97),"",InfoPro!A97) ->  | B103: =IF(ISBLANK(InfoPro!B97),"",InfoPro!B97) ->  | C103: =IF(ISBLANK(InfoPro!E97),"",InfoPro!E97) ->  | D103: =IF(ISBLANK(InfoPro!F97),"",InfoPro!F97) ->  | E103: =IF(ISBLANK(InfoPro!I97),"",YEAR(InfoPro!I97)-$H$3) ->  | F103: =IF(B103="","",VLOOKUP(D103,Tablas!$B$2:$E$13,2,FALSE)) ->  | G103: =IF(B103="","",VLOOKUP(D103,Tablas!$B$2:$H$13,7,FALSE)) -> 
A104: =IF(ISBLANK(InfoPro!A98),"",InfoPro!A98) ->  | B104: =IF(ISBLANK(InfoPro!B98),"",InfoPro!B98) ->  | C104: =IF(ISBLANK(InfoPro!E98),"",InfoPro!E98) ->  | D104: =IF(ISBLANK(InfoPro!F98),"",InfoPro!F98) ->  | E104: =IF(ISBLANK(InfoPro!I98),"",YEAR(InfoPro!I98)-$H$3) ->  | F104: =IF(B104="","",VLOOKUP(D104,Tablas!$B$2:$E$13,2,FALSE)) ->  | G104: =IF(B104="","",VLOOKUP(D104,Tablas!$B$2:$H$13,7,FALSE)) -> 
A105: =IF(ISBLANK(InfoPro!A99),"",InfoPro!A99) ->  | B105: =IF(ISBLANK(InfoPro!B99),"",InfoPro!B99) ->  | C105: =IF(ISBLANK(InfoPro!E99),"",InfoPro!E99) ->  | D105: =IF(ISBLANK(InfoPro!F99),"",InfoPro!F99) ->  | E105: =IF(ISBLANK(InfoPro!I99),"",YEAR(InfoPro!I99)-$H$3) ->  | F105: =IF(B105="","",VLOOKUP(D105,Tablas!$B$2:$E$13,2,FALSE)) ->  | G105: =IF(B105="","",VLOOKUP(D105,Tablas!$B$2:$H$13,7,FALSE)) -> 
A106: =IF(ISBLANK(InfoPro!A100),"",InfoPro!A100) ->  | B106: =IF(ISBLANK(InfoPro!B100),"",InfoPro!B100) ->  | C106: =IF(ISBLANK(InfoPro!E100),"",InfoPro!E100) ->  | D106: =IF(ISBLANK(InfoPro!F100),"",InfoPro!F100) ->  | E106: =IF(ISBLANK(InfoPro!I100),"",YEAR(InfoPro!I100)-$H$3) ->  | F106: =IF(B106="","",VLOOKUP(D106,Tablas!$B$2:$E$13,2,FALSE)) ->  | G106: =IF(B106="","",VLOOKUP(D106,Tablas!$B$2:$H$13,7,FALSE)) -> 
A107: =IF(ISBLANK(InfoPro!A101),"",InfoPro!A101) ->  | B107: =IF(ISBLANK(InfoPro!B101),"",InfoPro!B101) ->  | C107: =IF(ISBLANK(InfoPro!E101),"",InfoPro!E101) ->  | D107: =IF(ISBLANK(InfoPro!F101),"",InfoPro!F101) ->  | E107: =IF(ISBLANK(InfoPro!I101),"",YEAR(InfoPro!I101)-$H$3) ->  | F107: =IF(B107="","",VLOOKUP(D107,Tablas!$B$2:$E$13,2,FALSE)) ->  | G107: =IF(B107="","",VLOOKUP(D107,Tablas!$B$2:$H$13,7,FALSE)) -> 
A108: =IF(ISBLANK(InfoPro!A102),"",InfoPro!A102) ->  | B108: =IF(ISBLANK(InfoPro!B102),"",InfoPro!B102) ->  | C108: =IF(ISBLANK(InfoPro!E102),"",InfoPro!E102) ->  | D108: =IF(ISBLANK(InfoPro!F102),"",InfoPro!F102) ->  | E108: =IF(ISBLANK(InfoPro!I102),"",YEAR(InfoPro!I102)-$H$3) ->  | F108: =IF(B108="","",VLOOKUP(D108,Tablas!$B$2:$E$13,2,FALSE)) ->  | G108: =IF(B108="","",VLOOKUP(D108,Tablas!$B$2:$H$13,7,FALSE)) ->  | H108: =IF(B108="","",($C$2-(G108))/$C$2) ->  | I108: =IF(C108="","",+C108*F108*24*365) ->  | Y108: =IF(X108="","",SUM(J108:X108)) ->  | Z108: =IF(C108=0,0,IF(Y108="","",Y108/(C108*1000))) -> 
A109: =IF(ISBLANK(InfoPro!A103),"",InfoPro!A103) ->  | B109: =IF(ISBLANK(InfoPro!B103),"",InfoPro!B103) ->  | C109: =IF(ISBLANK(InfoPro!E103),"",InfoPro!E103) ->  | D109: =IF(ISBLANK(InfoPro!F103),"",InfoPro!F103) ->  | E109: =IF(ISBLANK(InfoPro!I103),"",YEAR(InfoPro!I103)-$H$3) ->  | F109: =IF(B109="","",VLOOKUP(D109,Tablas!$B$2:$E$13,2,FALSE)) ->  | G109: =IF(B109="","",VLOOKUP(D109,Tablas!$B$2:$H$13,7,FALSE)) -> 
A110: =IF(ISBLANK(InfoPro!A104),"",InfoPro!A104) ->  | B110: =IF(ISBLANK(InfoPro!B104),"",InfoPro!B104) ->  | C110: =IF(ISBLANK(InfoPro!E104),"",InfoPro!E104) ->  | D110: =IF(ISBLANK(InfoPro!F104),"",InfoPro!F104) ->  | E110: =IF(ISBLANK(InfoPro!I104),"",YEAR(InfoPro!I104)-$H$3) ->  | F110: =IF(B110="","",VLOOKUP(D110,Tablas!$B$2:$E$13,2,FALSE)) ->  | G110: =IF(B110="","",VLOOKUP(D110,Tablas!$B$2:$H$13,7,FALSE)) -> 
A111: =IF(ISBLANK(InfoPro!A105),"",InfoPro!A105) ->  | B111: =IF(ISBLANK(InfoPro!B105),"",InfoPro!B105) ->  | C111: =IF(ISBLANK(InfoPro!E105),"",InfoPro!E105) ->  | D111: =IF(ISBLANK(InfoPro!F105),"",InfoPro!F105) ->  | E111: =IF(ISBLANK(InfoPro!I105),"",YEAR(InfoPro!I105)-$H$3) ->  | F111: =IF(B111="","",VLOOKUP(D111,Tablas!$B$2:$E$13,2,FALSE)) ->  | G111: =IF(B111="","",VLOOKUP(D111,Tablas!$B$2:$H$13,7,FALSE)) -> 
A112: =IF(ISBLANK(InfoPro!A106),"",InfoPro!A106) ->  | B112: =IF(ISBLANK(InfoPro!B106),"",InfoPro!B106) ->  | C112: =IF(ISBLANK(InfoPro!E106),"",InfoPro!E106) ->  | D112: =IF(ISBLANK(InfoPro!F106),"",InfoPro!F106) ->  | E112: =IF(ISBLANK(InfoPro!I106),"",YEAR(InfoPro!I106)-$H$3) ->  | F112: =IF(B112="","",VLOOKUP(D112,Tablas!$B$2:$E$13,2,FALSE)) ->  | G112: =IF(B112="","",VLOOKUP(D112,Tablas!$B$2:$H$13,7,FALSE)) -> 
A113: =IF(ISBLANK(InfoPro!A107),"",InfoPro!A107) ->  | B113: =IF(ISBLANK(InfoPro!B107),"",InfoPro!B107) ->  | C113: =IF(ISBLANK(InfoPro!E107),"",InfoPro!E107) ->  | D113: =IF(ISBLANK(InfoPro!F107),"",InfoPro!F107) ->  | E113: =IF(ISBLANK(InfoPro!I107),"",YEAR(InfoPro!I107)-$H$3) ->  | F113: =IF(B113="","",VLOOKUP(D113,Tablas!$B$2:$E$13,2,FALSE)) ->  | G113: =IF(B113="","",VLOOKUP(D113,Tablas!$B$2:$H$13,7,FALSE)) -> 
A114: =IF(ISBLANK(InfoPro!A108),"",InfoPro!A108) ->  | B114: =IF(ISBLANK(InfoPro!B108),"",InfoPro!B108) ->  | C114: =IF(ISBLANK(InfoPro!E108),"",InfoPro!E108) ->  | D114: =IF(ISBLANK(InfoPro!F108),"",InfoPro!F108) ->  | E114: =IF(ISBLANK(InfoPro!I108),"",YEAR(InfoPro!I108)-$H$3) ->  | F114: =IF(B114="","",VLOOKUP(D114,Tablas!$B$2:$E$13,2,FALSE)) ->  | G114: =IF(B114="","",VLOOKUP(D114,Tablas!$B$2:$H$13,7,FALSE)) ->  | J114: =IF($I114="","",(1/(1+$C$3)^(J$6+$E114))*$I114*$C$2*$H114) -> 
A115: =IF(ISBLANK(InfoPro!A109),"",InfoPro!A109) ->  | B115: =IF(ISBLANK(InfoPro!B109),"",InfoPro!B109) ->  | C115: =IF(ISBLANK(InfoPro!E109),"",InfoPro!E109) ->  | D115: =IF(ISBLANK(InfoPro!F109),"",InfoPro!F109) ->  | E115: =IF(ISBLANK(InfoPro!I109),"",YEAR(InfoPro!I109)-$H$3) ->  | F115: =IF(B115="","",VLOOKUP(D115,Tablas!$B$2:$E$13,2,FALSE)) ->  | G115: =IF(B115="","",VLOOKUP(D115,Tablas!$B$2:$H$13,7,FALSE)) -> 
A116: =IF(ISBLANK(InfoPro!A110),"",InfoPro!A110) ->  | B116: =IF(ISBLANK(InfoPro!B110),"",InfoPro!B110) ->  | C116: =IF(ISBLANK(InfoPro!E110),"",InfoPro!E110) ->  | D116: =IF(ISBLANK(InfoPro!F110),"",InfoPro!F110) ->  | E116: =IF(ISBLANK(InfoPro!I110),"",YEAR(InfoPro!I110)-$H$3) ->  | F116: =IF(B116="","",VLOOKUP(D116,Tablas!$B$2:$E$13,2,FALSE)) ->  | G116: =IF(B116="","",VLOOKUP(D116,Tablas!$B$2:$H$13,7,FALSE)) -> 
A117: =IF(ISBLANK(InfoPro!A111),"",InfoPro!A111) ->  | B117: =IF(ISBLANK(InfoPro!B111),"",InfoPro!B111) ->  | C117: =IF(ISBLANK(InfoPro!E111),"",InfoPro!E111) ->  | D117: =IF(ISBLANK(InfoPro!F111),"",InfoPro!F111) ->  | E117: =IF(ISBLANK(InfoPro!I111),"",YEAR(InfoPro!I111)-$H$3) ->  | F117: =IF(B117="","",VLOOKUP(D117,Tablas!$B$2:$E$13,2,FALSE)) ->  | G117: =IF(B117="","",VLOOKUP(D117,Tablas!$B$2:$H$13,7,FALSE)) -> 
A118: =IF(ISBLANK(InfoPro!A112),"",InfoPro!A112) ->  | B118: =IF(ISBLANK(InfoPro!B112),"",InfoPro!B112) ->  | C118: =IF(ISBLANK(InfoPro!E112),"",InfoPro!E112) ->  | D118: =IF(ISBLANK(InfoPro!F112),"",InfoPro!F112) ->  | E118: =IF(ISBLANK(InfoPro!I112),"",YEAR(InfoPro!I112)-$H$3) ->  | F118: =IF(B118="","",VLOOKUP(D118,Tablas!$B$2:$E$13,2,FALSE)) ->  | G118: =IF(B118="","",VLOOKUP(D118,Tablas!$B$2:$H$13,7,FALSE)) -> 
A119: =IF(ISBLANK(InfoPro!A113),"",InfoPro!A113) ->  | B119: =IF(ISBLANK(InfoPro!B113),"",InfoPro!B113) ->  | C119: =IF(ISBLANK(InfoPro!E113),"",InfoPro!E113) ->  | D119: =IF(ISBLANK(InfoPro!F113),"",InfoPro!F113) ->  | E119: =IF(ISBLANK(InfoPro!I113),"",YEAR(InfoPro!I113)-$H$3) ->  | F119: =IF(B119="","",VLOOKUP(D119,Tablas!$B$2:$E$13,2,FALSE)) ->  | G119: =IF(B119="","",VLOOKUP(D119,Tablas!$B$2:$H$13,7,FALSE)) -> 
A120: =IF(ISBLANK(InfoPro!A114),"",InfoPro!A114) ->  | B120: =IF(ISBLANK(InfoPro!B114),"",InfoPro!B114) ->  | C120: =IF(ISBLANK(InfoPro!E114),"",InfoPro!E114) ->  | D120: =IF(ISBLANK(InfoPro!F114),"",InfoPro!F114) ->  | E120: =IF(ISBLANK(InfoPro!I114),"",YEAR(InfoPro!I114)-$H$3) ->  | F120: =IF(B120="","",VLOOKUP(D120,Tablas!$B$2:$E$13,2,FALSE)) ->  | G120: =IF(B120="","",VLOOKUP(D120,Tablas!$B$2:$H$13,7,FALSE)) -> 
A121: =IF(ISBLANK(InfoPro!A115),"",InfoPro!A115) ->  | B121: =IF(ISBLANK(InfoPro!B115),"",InfoPro!B115) ->  | C121: =IF(ISBLANK(InfoPro!E115),"",InfoPro!E115) ->  | D121: =IF(ISBLANK(InfoPro!F115),"",InfoPro!F115) ->  | E121: =IF(ISBLANK(InfoPro!I115),"",YEAR(InfoPro!I115)-$H$3) ->  | F121: =IF(B121="","",VLOOKUP(D121,Tablas!$B$2:$E$13,2,FALSE)) ->  | G121: =IF(B121="","",VLOOKUP(D121,Tablas!$B$2:$H$13,7,FALSE)) -> 
A122: =IF(ISBLANK(InfoPro!A116),"",InfoPro!A116) ->  | B122: =IF(ISBLANK(InfoPro!B116),"",InfoPro!B116) ->  | C122: =IF(ISBLANK(InfoPro!E116),"",InfoPro!E116) ->  | D122: =IF(ISBLANK(InfoPro!F116),"",InfoPro!F116) ->  | E122: =IF(ISBLANK(InfoPro!I116),"",YEAR(InfoPro!I116)-$H$3) ->  | F122: =IF(B122="","",VLOOKUP(D122,Tablas!$B$2:$E$13,2,FALSE)) ->  | G122: =IF(B122="","",VLOOKUP(D122,Tablas!$B$2:$H$13,7,FALSE)) -> 
A123: =IF(ISBLANK(InfoPro!A117),"",InfoPro!A117) ->  | B123: =IF(ISBLANK(InfoPro!B117),"",InfoPro!B117) ->  | C123: =IF(ISBLANK(InfoPro!E117),"",InfoPro!E117) ->  | D123: =IF(ISBLANK(InfoPro!F117),"",InfoPro!F117) ->  | E123: =IF(ISBLANK(InfoPro!I117),"",YEAR(InfoPro!I117)-$H$3) ->  | F123: =IF(B123="","",VLOOKUP(D123,Tablas!$B$2:$E$13,2,FALSE)) ->  | G123: =IF(B123="","",VLOOKUP(D123,Tablas!$B$2:$H$13,7,FALSE)) -> 
A124: =IF(ISBLANK(InfoPro!A118),"",InfoPro!A118) ->  | B124: =IF(ISBLANK(InfoPro!B118),"",InfoPro!B118) ->  | C124: =IF(ISBLANK(InfoPro!E118),"",InfoPro!E118) ->  | D124: =IF(ISBLANK(InfoPro!F118),"",InfoPro!F118) ->  | E124: =IF(ISBLANK(InfoPro!I118),"",YEAR(InfoPro!I118)-$H$3) ->  | F124: =IF(B124="","",VLOOKUP(D124,Tablas!$B$2:$E$13,2,FALSE)) ->  | G124: =IF(B124="","",VLOOKUP(D124,Tablas!$B$2:$H$13,7,FALSE)) -> 
A125: =IF(ISBLANK(InfoPro!A119),"",InfoPro!A119) ->  | B125: =IF(ISBLANK(InfoPro!B119),"",InfoPro!B119) ->  | C125: =IF(ISBLANK(InfoPro!E119),"",InfoPro!E119) ->  | D125: =IF(ISBLANK(InfoPro!F119),"",InfoPro!F119) ->  | E125: =IF(ISBLANK(InfoPro!I119),"",YEAR(InfoPro!I119)-$H$3) ->  | F125: =IF(B125="","",VLOOKUP(D125,Tablas!$B$2:$E$13,2,FALSE)) ->  | G125: =IF(B125="","",VLOOKUP(D125,Tablas!$B$2:$H$13,7,FALSE)) -> 
A126: =IF(ISBLANK(InfoPro!A120),"",InfoPro!A120) ->  | B126: =IF(ISBLANK(InfoPro!B120),"",InfoPro!B120) ->  | C126: =IF(ISBLANK(InfoPro!E120),"",InfoPro!E120) ->  | D126: =IF(ISBLANK(InfoPro!F120),"",InfoPro!F120) ->  | E126: =IF(ISBLANK(InfoPro!I120),"",YEAR(InfoPro!I120)-$H$3) ->  | F126: =IF(B126="","",VLOOKUP(D126,Tablas!$B$2:$E$13,2,FALSE)) ->  | G126: =IF(B126="","",VLOOKUP(D126,Tablas!$B$2:$H$13,7,FALSE)) -> 
A127: =IF(ISBLANK(InfoPro!A121),"",InfoPro!A121) ->  | B127: =IF(ISBLANK(InfoPro!B121),"",InfoPro!B121) ->  | C127: =IF(ISBLANK(InfoPro!E121),"",InfoPro!E121) ->  | D127: =IF(ISBLANK(InfoPro!F121),"",InfoPro!F121) ->  | E127: =IF(ISBLANK(InfoPro!I121),"",YEAR(InfoPro!I121)-$H$3) ->  | F127: =IF(B127="","",VLOOKUP(D127,Tablas!$B$2:$E$13,2,FALSE)) ->  | G127: =IF(B127="","",VLOOKUP(D127,Tablas!$B$2:$H$13,7,FALSE)) -> 
A128: =IF(ISBLANK(InfoPro!A122),"",InfoPro!A122) ->  | B128: =IF(ISBLANK(InfoPro!B122),"",InfoPro!B122) ->  | C128: =IF(ISBLANK(InfoPro!E122),"",InfoPro!E122) ->  | D128: =IF(ISBLANK(InfoPro!F122),"",InfoPro!F122) ->  | E128: =IF(ISBLANK(InfoPro!I122),"",YEAR(InfoPro!I122)-$H$3) ->  | F128: =IF(B128="","",VLOOKUP(D128,Tablas!$B$2:$E$13,2,FALSE)) ->  | G128: =IF(B128="","",VLOOKUP(D128,Tablas!$B$2:$H$13,7,FALSE)) -> 
A129: =IF(ISBLANK(InfoPro!A123),"",InfoPro!A123) ->  | B129: =IF(ISBLANK(InfoPro!B123),"",InfoPro!B123) ->  | C129: =IF(ISBLANK(InfoPro!E123),"",InfoPro!E123) ->  | D129: =IF(ISBLANK(InfoPro!F123),"",InfoPro!F123) ->  | E129: =IF(ISBLANK(InfoPro!I123),"",YEAR(InfoPro!I123)-$H$3) ->  | F129: =IF(B129="","",VLOOKUP(D129,Tablas!$B$2:$E$13,2,FALSE)) ->  | G129: =IF(B129="","",VLOOKUP(D129,Tablas!$B$2:$H$13,7,FALSE)) -> 
A130: =IF(ISBLANK(InfoPro!A124),"",InfoPro!A124) ->  | B130: =IF(ISBLANK(InfoPro!B124),"",InfoPro!B124) ->  | C130: =IF(ISBLANK(InfoPro!E124),"",InfoPro!E124) ->  | D130: =IF(ISBLANK(InfoPro!F124),"",InfoPro!F124) ->  | E130: =IF(ISBLANK(InfoPro!I124),"",YEAR(InfoPro!I124)-$H$3) ->  | F130: =IF(B130="","",VLOOKUP(D130,Tablas!$B$2:$E$13,2,FALSE)) ->  | G130: =IF(B130="","",VLOOKUP(D130,Tablas!$B$2:$H$13,7,FALSE)) -> 
A131: =IF(ISBLANK(InfoPro!A125),"",InfoPro!A125) ->  | B131: =IF(ISBLANK(InfoPro!B125),"",InfoPro!B125) ->  | C131: =IF(ISBLANK(InfoPro!E125),"",InfoPro!E125) ->  | D131: =IF(ISBLANK(InfoPro!F125),"",InfoPro!F125) ->  | E131: =IF(ISBLANK(InfoPro!I125),"",YEAR(InfoPro!I125)-$H$3) ->  | F131: =IF(B131="","",VLOOKUP(D131,Tablas!$B$2:$E$13,2,FALSE)) ->  | G131: =IF(B131="","",VLOOKUP(D131,Tablas!$B$2:$H$13,7,FALSE)) ->  | J131: =IF($I131="","",(1/(1+$C$3)^(J$6+$E131))*$I131*$C$2*$H131) -> 
A132: =IF(ISBLANK(InfoPro!A126),"",InfoPro!A126) ->  | B132: =IF(ISBLANK(InfoPro!B126),"",InfoPro!B126) ->  | C132: =IF(ISBLANK(InfoPro!E126),"",InfoPro!E126) ->  | D132: =IF(ISBLANK(InfoPro!F126),"",InfoPro!F126) ->  | E132: =IF(ISBLANK(InfoPro!I126),"",YEAR(InfoPro!I126)-$H$3) ->  | F132: =IF(B132="","",VLOOKUP(D132,Tablas!$B$2:$E$13,2,FALSE)) ->  | G132: =IF(B132="","",VLOOKUP(D132,Tablas!$B$2:$H$13,7,FALSE)) -> 
A133: =IF(ISBLANK(InfoPro!A127),"",InfoPro!A127) ->  | B133: =IF(ISBLANK(InfoPro!B127),"",InfoPro!B127) ->  | C133: =IF(ISBLANK(InfoPro!E127),"",InfoPro!E127) ->  | D133: =IF(ISBLANK(InfoPro!F127),"",InfoPro!F127) ->  | E133: =IF(ISBLANK(InfoPro!I127),"",YEAR(InfoPro!I127)-$H$3) ->  | F133: =IF(B133="","",VLOOKUP(D133,Tablas!$B$2:$E$13,2,FALSE)) ->  | G133: =IF(B133="","",VLOOKUP(D133,Tablas!$B$2:$H$13,7,FALSE)) -> 
A134: =IF(ISBLANK(InfoPro!A128),"",InfoPro!A128) ->  | B134: =IF(ISBLANK(InfoPro!B128),"",InfoPro!B128) ->  | C134: =IF(ISBLANK(InfoPro!E128),"",InfoPro!E128) ->  | D134: =IF(ISBLANK(InfoPro!F128),"",InfoPro!F128) ->  | E134: =IF(ISBLANK(InfoPro!I128),"",YEAR(InfoPro!I128)-$H$3) ->  | F134: =IF(B134="","",VLOOKUP(D134,Tablas!$B$2:$E$13,2,FALSE)) ->  | G134: =IF(B134="","",VLOOKUP(D134,Tablas!$B$2:$H$13,7,FALSE)) -> 
A135: =IF(ISBLANK(InfoPro!A129),"",InfoPro!A129) ->  | B135: =IF(ISBLANK(InfoPro!B129),"",InfoPro!B129) ->  | C135: =IF(ISBLANK(InfoPro!E129),"",InfoPro!E129) ->  | D135: =IF(ISBLANK(InfoPro!F129),"",InfoPro!F129) ->  | E135: =IF(ISBLANK(InfoPro!I129),"",YEAR(InfoPro!I129)-$H$3) ->  | F135: =IF(B135="","",VLOOKUP(D135,Tablas!$B$2:$E$13,2,FALSE)) ->  | G135: =IF(B135="","",VLOOKUP(D135,Tablas!$B$2:$H$13,7,FALSE)) -> 
A136: =IF(ISBLANK(InfoPro!A130),"",InfoPro!A130) ->  | B136: =IF(ISBLANK(InfoPro!B130),"",InfoPro!B130) ->  | C136: =IF(ISBLANK(InfoPro!E130),"",InfoPro!E130) ->  | D136: =IF(ISBLANK(InfoPro!F130),"",InfoPro!F130) ->  | E136: =IF(ISBLANK(InfoPro!I130),"",YEAR(InfoPro!I130)-$H$3) ->  | F136: =IF(B136="","",VLOOKUP(D136,Tablas!$B$2:$E$13,2,FALSE)) ->  | G136: =IF(B136="","",VLOOKUP(D136,Tablas!$B$2:$H$13,7,FALSE)) -> 
A137: =IF(ISBLANK(InfoPro!A131),"",InfoPro!A131) ->  | B137: =IF(ISBLANK(InfoPro!B131),"",InfoPro!B131) ->  | C137: =IF(ISBLANK(InfoPro!E131),"",InfoPro!E131) ->  | D137: =IF(ISBLANK(InfoPro!F131),"",InfoPro!F131) ->  | E137: =IF(ISBLANK(InfoPro!I131),"",YEAR(InfoPro!I131)-$H$3) ->  | F137: =IF(B137="","",VLOOKUP(D137,Tablas!$B$2:$E$13,2,FALSE)) ->  | G137: =IF(B137="","",VLOOKUP(D137,Tablas!$B$2:$H$13,7,FALSE)) -> 
A138: =IF(ISBLANK(InfoPro!A132),"",InfoPro!A132) ->  | B138: =IF(ISBLANK(InfoPro!B132),"",InfoPro!B132) ->  | C138: =IF(ISBLANK(InfoPro!E132),"",InfoPro!E132) ->  | D138: =IF(ISBLANK(InfoPro!F132),"",InfoPro!F132) ->  | E138: =IF(ISBLANK(InfoPro!I132),"",YEAR(InfoPro!I132)-$H$3) ->  | F138: =IF(B138="","",VLOOKUP(D138,Tablas!$B$2:$E$13,2,FALSE)) ->  | G138: =IF(B138="","",VLOOKUP(D138,Tablas!$B$2:$H$13,7,FALSE)) -> 
A139: =IF(ISBLANK(InfoPro!A133),"",InfoPro!A133) ->  | B139: =IF(ISBLANK(InfoPro!B133),"",InfoPro!B133) ->  | C139: =IF(ISBLANK(InfoPro!E133),"",InfoPro!E133) ->  | D139: =IF(ISBLANK(InfoPro!F133),"",InfoPro!F133) ->  | E139: =IF(ISBLANK(InfoPro!I133),"",YEAR(InfoPro!I133)-$H$3) ->  | F139: =IF(B139="","",VLOOKUP(D139,Tablas!$B$2:$E$13,2,FALSE)) ->  | G139: =IF(B139="","",VLOOKUP(D139,Tablas!$B$2:$H$13,7,FALSE)) -> 
A140: =IF(ISBLANK(InfoPro!A134),"",InfoPro!A134) ->  | B140: =IF(ISBLANK(InfoPro!B134),"",InfoPro!B134) ->  | C140: =IF(ISBLANK(InfoPro!E134),"",InfoPro!E134) ->  | D140: =IF(ISBLANK(InfoPro!F134),"",InfoPro!F134) ->  | E140: =IF(ISBLANK(InfoPro!I134),"",YEAR(InfoPro!I134)-$H$3) ->  | F140: =IF(B140="","",VLOOKUP(D140,Tablas!$B$2:$E$13,2,FALSE)) ->  | G140: =IF(B140="","",VLOOKUP(D140,Tablas!$B$2:$H$13,7,FALSE)) -> 
A141: =IF(ISBLANK(InfoPro!A135),"",InfoPro!A135) ->  | B141: =IF(ISBLANK(InfoPro!B135),"",InfoPro!B135) ->  | C141: =IF(ISBLANK(InfoPro!E135),"",InfoPro!E135) ->  | D141: =IF(ISBLANK(InfoPro!F135),"",InfoPro!F135) ->  | E141: =IF(ISBLANK(InfoPro!I135),"",YEAR(InfoPro!I135)-$H$3) ->  | F141: =IF(B141="","",VLOOKUP(D141,Tablas!$B$2:$E$13,2,FALSE)) ->  | G141: =IF(B141="","",VLOOKUP(D141,Tablas!$B$2:$H$13,7,FALSE)) -> 
A142: =IF(ISBLANK(InfoPro!A136),"",InfoPro!A136) ->  | B142: =IF(ISBLANK(InfoPro!B136),"",InfoPro!B136) ->  | C142: =IF(ISBLANK(InfoPro!E136),"",InfoPro!E136) ->  | D142: =IF(ISBLANK(InfoPro!F136),"",InfoPro!F136) ->  | E142: =IF(ISBLANK(InfoPro!I136),"",YEAR(InfoPro!I136)-$H$3) ->  | F142: =IF(B142="","",VLOOKUP(D142,Tablas!$B$2:$E$13,2,FALSE)) ->  | G142: =IF(B142="","",VLOOKUP(D142,Tablas!$B$2:$H$13,7,FALSE)) -> 
A143: =IF(ISBLANK(InfoPro!A137),"",InfoPro!A137) ->  | B143: =IF(ISBLANK(InfoPro!B137),"",InfoPro!B137) ->  | C143: =IF(ISBLANK(InfoPro!E137),"",InfoPro!E137) ->  | D143: =IF(ISBLANK(InfoPro!F137),"",InfoPro!F137) ->  | E143: =IF(ISBLANK(InfoPro!I137),"",YEAR(InfoPro!I137)-$H$3) ->  | F143: =IF(B143="","",VLOOKUP(D143,Tablas!$B$2:$E$13,2,FALSE)) ->  | G143: =IF(B143="","",VLOOKUP(D143,Tablas!$B$2:$H$13,7,FALSE)) -> 
A144: =IF(ISBLANK(InfoPro!A138),"",InfoPro!A138) ->  | B144: =IF(ISBLANK(InfoPro!B138),"",InfoPro!B138) ->  | C144: =IF(ISBLANK(InfoPro!E138),"",InfoPro!E138) ->  | D144: =IF(ISBLANK(InfoPro!F138),"",InfoPro!F138) ->  | E144: =IF(ISBLANK(InfoPro!I138),"",YEAR(InfoPro!I138)-$H$3) ->  | F144: =IF(B144="","",VLOOKUP(D144,Tablas!$B$2:$E$13,2,FALSE)) ->  | G144: =IF(B144="","",VLOOKUP(D144,Tablas!$B$2:$H$13,7,FALSE)) -> 
A145: =IF(ISBLANK(InfoPro!A139),"",InfoPro!A139) ->  | B145: =IF(ISBLANK(InfoPro!B139),"",InfoPro!B139) ->  | C145: =IF(ISBLANK(InfoPro!E139),"",InfoPro!E139) ->  | D145: =IF(ISBLANK(InfoPro!F139),"",InfoPro!F139) ->  | E145: =IF(ISBLANK(InfoPro!I139),"",YEAR(InfoPro!I139)-$H$3) ->  | F145: =IF(B145="","",VLOOKUP(D145,Tablas!$B$2:$E$13,2,FALSE)) ->  | G145: =IF(B145="","",VLOOKUP(D145,Tablas!$B$2:$H$13,7,FALSE)) -> 
A146: =IF(ISBLANK(InfoPro!A140),"",InfoPro!A140) ->  | B146: =IF(ISBLANK(InfoPro!B140),"",InfoPro!B140) ->  | C146: =IF(ISBLANK(InfoPro!E140),"",InfoPro!E140) ->  | D146: =IF(ISBLANK(InfoPro!F140),"",InfoPro!F140) ->  | E146: =IF(ISBLANK(InfoPro!I140),"",YEAR(InfoPro!I140)-$H$3) ->  | F146: =IF(B146="","",VLOOKUP(D146,Tablas!$B$2:$E$13,2,FALSE)) ->  | G146: =IF(B146="","",VLOOKUP(D146,Tablas!$B$2:$H$13,7,FALSE)) -> 
A147: =IF(ISBLANK(InfoPro!A141),"",InfoPro!A141) ->  | B147: =IF(ISBLANK(InfoPro!B141),"",InfoPro!B141) ->  | C147: =IF(ISBLANK(InfoPro!E141),"",InfoPro!E141) ->  | D147: =IF(ISBLANK(InfoPro!F141),"",InfoPro!F141) ->  | E147: =IF(ISBLANK(InfoPro!I141),"",YEAR(InfoPro!I141)-$H$3) ->  | F147: =IF(B147="","",VLOOKUP(D147,Tablas!$B$2:$E$13,2,FALSE)) ->  | G147: =IF(B147="","",VLOOKUP(D147,Tablas!$B$2:$H$13,7,FALSE)) -> 
A148: =IF(ISBLANK(InfoPro!A142),"",InfoPro!A142) ->  | B148: =IF(ISBLANK(InfoPro!B142),"",InfoPro!B142) ->  | C148: =IF(ISBLANK(InfoPro!E142),"",InfoPro!E142) ->  | D148: =IF(ISBLANK(InfoPro!F142),"",InfoPro!F142) ->  | E148: =IF(ISBLANK(InfoPro!I142),"",YEAR(InfoPro!I142)-$H$3) ->  | F148: =IF(B148="","",VLOOKUP(D148,Tablas!$B$2:$E$13,2,FALSE)) ->  | G148: =IF(B148="","",VLOOKUP(D148,Tablas!$B$2:$H$13,7,FALSE)) ->  | J148: =IF($I148="","",(1/(1+$C$3)^(J$6+$E148))*$I148*$C$2*$H148) -> 
A149: =IF(ISBLANK(InfoPro!A143),"",InfoPro!A143) ->  | B149: =IF(ISBLANK(InfoPro!B143),"",InfoPro!B143) ->  | C149: =IF(ISBLANK(InfoPro!E143),"",InfoPro!E143) ->  | D149: =IF(ISBLANK(InfoPro!F143),"",InfoPro!F143) ->  | E149: =IF(ISBLANK(InfoPro!I143),"",YEAR(InfoPro!I143)-$H$3) ->  | F149: =IF(B149="","",VLOOKUP(D149,Tablas!$B$2:$E$13,2,FALSE)) ->  | G149: =IF(B149="","",VLOOKUP(D149,Tablas!$B$2:$H$13,7,FALSE)) -> 
A150: =IF(ISBLANK(InfoPro!A144),"",InfoPro!A144) ->  | B150: =IF(ISBLANK(InfoPro!B144),"",InfoPro!B144) ->  | C150: =IF(ISBLANK(InfoPro!E144),"",InfoPro!E144) ->  | D150: =IF(ISBLANK(InfoPro!F144),"",InfoPro!F144) ->  | E150: =IF(ISBLANK(InfoPro!I144),"",YEAR(InfoPro!I144)-$H$3) ->  | F150: =IF(B150="","",VLOOKUP(D150,Tablas!$B$2:$E$13,2,FALSE)) ->  | G150: =IF(B150="","",VLOOKUP(D150,Tablas!$B$2:$H$13,7,FALSE)) -> 

Sheet EC-Per
B2: Precio promedio de bolsa | C2: ='EC-RP'!C2*1000 -> 192057000 | D2: COP/GWh
B3: Tasa de descuento | C3: 0.118 | E3: Año de Referencia | F3: 2023
E4: Mínimo | F4: =MIN(W8:W354) -> -5824534.152
G6: 0 | H6: 1 | I6: 2 | J6: 3 | K6: 4 | L6: 5 | M6: 6 | N6: 7 | O6: 8 | P6: 9 | Q6: 10 | R6: 11 | S6: 12 | T6: 13 | U6: 14
A7: Codigo | B7: Nombre | C7: capacidad | D7: Tipo | E7: Año de entrada | F7: Pérdidas STN | G7: Flujo Descontado 0 | H7: Flujo Descontado 1 | I7: Flujo Descontado 2 | J7: Flujo Descontado 3 | K7: Flujo Descontado 4 | L7: Flujo Descontado 5 | M7: Flujo Descontado 6 | N7: Flujo Descontado 7 | O7: Flujo Descontado 8 | P7: Flujo Descontado 9 | Q7: Flujo Descontado 10 | R7: Flujo Descontado 11 | S7: Flujo Descontado 12 | T7: Flujo Descontado 13 | U7: Flujo Descontado 14 | V7: VPN | W7: Beneficio/kW
A8: =IF(ISBLANK(InfoPro!A2),"",InfoPro!A2) -> SC_487_A1 | B8: =IF(ISBLANK(InfoPro!B2),"",InfoPro!B2) -> PARQUE SOLAR EL VALLE 80 MW | C8: =IF(ISBLANK(InfoPro!E2),"",InfoPro!E2) -> 80 | D8: =IF(ISBLANK(InfoPro!F2),"",InfoPro!F2) -> Solar FV | E8: =IF(ISBLANK(InfoPro!I2),"",YEAR(InfoPro!I2)-$F$3) -> 2 | F8: =IF(ISBLANK(InfoPro!P2),"",InfoPro!P2) -> -33.5658 | G8: =IF($F8="","",(1/(1+$C$3)^(G$6+$E8))*$F8*$C$2) -> -5157551060 | H8: =IF($F8="","",(1/(1+$C$3)^(H$6+$E8))*$F8*$C$2) -> -4613194150 | I8: =IF($F8="","",(1/(1+$C$3)^(I$6+$E8))*$F8*$C$2) -> -4126291726 | J8: -3690779719 | K8: -3301234096 | L8: -2952803306 | M8: -2641147859 | N8: -2362386278 | O8: -2113046760 | P8: -1890023936 | Q8: -1690540193 | R8: -1512111085 | S8: -1352514387 | T8: -1209762421 | U8: -1082077300 | V8: =IF(U8="","",SUM(G8:U8)) -> -3.969546428e+10 | W8: =IF(C8=0,0,IF(V8="","",V8/(C8*1000))) -> -496193.3034
A9: =IF(ISBLANK(InfoPro!A3),"",InfoPro!A3) -> SC_1140_A2 | B9: =IF(ISBLANK(InfoPro!B3),"",InfoPro!B3) -> Zarzal Solar 100 MW | C9: =IF(ISBLANK(InfoPro!E3),"",InfoPro!E3) -> 100 | D9: =IF(ISBLANK(InfoPro!F3),"",InfoPro!F3) -> Solar FV | E9: =IF(ISBLANK(InfoPro!I3),"",YEAR(InfoPro!I3)-$F$3) -> 4 | F9: =IF(ISBLANK(InfoPro!P3),"",InfoPro!P3) -> -46.61127 | G9: -5729989982 | H9: -5125214653 | I9: -4584270710 | J9: -4100421028 | K9: -3667639560 | L9: -3280536279 | M9: -2934290053 | N9: -2624588598 | O9: -2347574775 | P9: -2099798546 | Q9: -1878174013 | R9: -1679940978 | S9: -1502630570 | T9: -1344034499 | U9: -1202177549 | V9: =IF(U9="","",SUM(G9:U9)) -> -4.410128179e+10 | W9: =IF(C9=0,0,IF(V9="","",V9/(C9*1000))) -> -441012.8179
A10: =IF(ISBLANK(InfoPro!A4),"",InfoPro!A4) -> SC_1259_A1 | B10: =IF(ISBLANK(InfoPro!B4),"",InfoPro!B4) -> DOMINICA DE 99.9 MW | C10: =IF(ISBLANK(InfoPro!E4),"",InfoPro!E4) -> 99.9 | D10: =IF(ISBLANK(InfoPro!F4),"",InfoPro!F4) -> Solar FV | E10: =IF(ISBLANK(InfoPro!I4),"",YEAR(InfoPro!I4)-$F$3) -> 3 | F10: =IF(ISBLANK(InfoPro!P4),"",InfoPro!P4) -> -4.64 | G10: -637709241.4 | H10: -570401826 | I10: -510198413.2 | J10: -456349206.8 | K10: -408183548.1 | L10: -365101563.6 | M10: -326566693.7 | N10: -292099010.5 | O10: -261269240.2 | P10: -233693417 | Q10: -209028101 | R10: -186966101.1 | S10: -167232648.6 | T10: -149581975.5 | U10: -133794253.6 | V10: -4908175240 | W10: -49130.88329
A11: =IF(ISBLANK(InfoPro!A5),"",InfoPro!A5) -> SC_1259_A2 | B11: =IF(ISBLANK(InfoPro!B5),"",InfoPro!B5) -> DOMINICA DE 99.9 MW | C11: =IF(ISBLANK(InfoPro!E5),"",InfoPro!E5) -> 99.9 | D11: =IF(ISBLANK(InfoPro!F5),"",InfoPro!F5) -> Solar FV | E11: =IF(ISBLANK(InfoPro!I5),"",YEAR(InfoPro!I5)-$F$3) -> 3 | F11: =IF(ISBLANK(InfoPro!P5),"",InfoPro!P5) -> -5.064 | G11: -695982672.1 | H11: -622524751.4 | I11: -556819992.3 | J11: -498050082.6 | K11: -445483079.2 | L11: -398464292.7 | M11: -356408133 | N11: -318790816.6 | O11: -285143843.1 | P11: -255048160.2 | Q11: -228128944.8 | R11: -204050934.5 | S11: -182514252.7 | T11: -163250673.2 | U11: -146020280.2 | V11: -5356680909 | W11: -53620.42952
A12: =IF(ISBLANK(InfoPro!A6),"",InfoPro!A6) -> SC_1265_A1 | B12: =IF(ISBLANK(InfoPro!B6),"",InfoPro!B6) -> LANZAROTE de 80 MW | C12: =IF(ISBLANK(InfoPro!E6),"",InfoPro!E6) -> 80 | D12: =IF(ISBLANK(InfoPro!F6),"",InfoPro!F6) -> Solar FV | E12: =IF(ISBLANK(InfoPro!I6),"",YEAR(InfoPro!I6)-$F$3) -> 3 | F12: =IF(ISBLANK(InfoPro!P6),"",InfoPro!P6) -> -5.256 | G12: -722370640.7 | H12: -646127585.6 | I12: -577931650.8 | J12: -516933498 | K12: -462373433 | L12: -413571943.6 | M12: -369921237.6 | N12: -330877672.2 | O12: -295954984.1 | P12: -264718232.7 | Q12: -236778383.4 | R12: -211787462.8 | S12: -189434224.3 | T12: -169440272.2 | U12: -151556594.1 | V12: -5559777815 | W12: -69497.22269
A13: =IF(ISBLANK(InfoPro!A7),"",InfoPro!A7) -> SC_1265_A2 | B13: =IF(ISBLANK(InfoPro!B7),"",InfoPro!B7) -> LANZAROTE de 80 MW | C13: =IF(ISBLANK(InfoPro!E7),"",InfoPro!E7) -> 80 | D13: =IF(ISBLANK(InfoPro!F7),"",InfoPro!F7) -> Solar FV | E13: =IF(ISBLANK(InfoPro!I7),"",YEAR(InfoPro!I7)-$F$3) -> 3 | F13: =IF(ISBLANK(InfoPro!P7),"",InfoPro!P7) -> -5.376 | G13: -738863121.1 | H13: -660879357 | I13: -591126437.4 | J13: -528735632.7 | K13: -472929904 | L13: -423014225.4 | M13: -378366927.9 | N13: -338431957 | O13: -302711947.2 | P13: -270762027.9 | Q13: -242184282.6 | R13: -216622793 | S13: -193759206.6 | T13: -173308771.6 | U13: -155016790.3 | V13: -5686713382 | W13: -71083.91727
A14: =IF(ISBLANK(InfoPro!A8),"",InfoPro!A8) -> SC_612_A1 | B14: =IF(ISBLANK(InfoPro!B8),"",InfoPro!B8) -> PARQUE SOLAR SAN JOSE | C14: =IF(ISBLANK(InfoPro!E8),"",InfoPro!E8) -> 9.9 | D14: =IF(ISBLANK(InfoPro!F8),"",InfoPro!F8) -> Solar FV | E14: =IF(ISBLANK(InfoPro!I8),"",YEAR(InfoPro!I8)-$F$3) -> 1 | F14: =IF(ISBLANK(InfoPro!P8),"",InfoPro!P8) -> -0.0004344 | G14: -74623.93631 | H14: -66747.7069 | I14: -59702.77898 | J14: -53401.41233 | K14: -47765.1273 | L14: -42723.72746 | M14: -38214.42528 | N14: -34181.06018 | O14: -30573.39909 | P14: -27346.51081 | Q14: -24460.20645 | R14: -21878.53886 | S14: -19569.35498 | T14: -17503.89533 | U14: -15656.43589 | V14: -574348.5162 | W14: -58.01500163
A15: =IF(ISBLANK(InfoPro!A9),"",InfoPro!A9) -> SC_612_A2 | B15: =IF(ISBLANK(InfoPro!B9),"",InfoPro!B9) -> PARQUE SOLAR SAN JOSE | C15: =IF(ISBLANK(InfoPro!E9),"",InfoPro!E9) -> 9.9 | D15: =IF(ISBLANK(InfoPro!F9),"",InfoPro!F9) -> Solar FV | E15: =IF(ISBLANK(InfoPro!I9),"",YEAR(InfoPro!I9)-$F$3) -> 1 | F15: =IF(ISBLANK(InfoPro!P9),"",InfoPro!P9) -> -0.0004327 | G15: -74331.89973 | H15: -66486.4935 | I15: -59469.13551 | J15: -53192.4289 | K15: -47578.20116 | L15: -42556.53056 | M15: -38064.87527 | N15: -34047.29452 | O15: -30453.75181 | P15: -27239.49178 | Q15: -24364.48281 | R15: -21792.91843 | S15: -19492.77141 | T15: -17435.39482 | U15: -15595.16531 | V15: -572100.8355 | W15: -57.78796318
A16: =IF(ISBLANK(InfoPro!A10),"",InfoPro!A10) -> SC_1254_A1 | B16: =IF(ISBLANK(InfoPro!B10),"",InfoPro!B10) -> Solar La Victoria 3 de 19.9 MW | C16: =IF(ISBLANK(InfoPro!E10),"",InfoPro!E10) -> 19.9 | D16: =IF(ISBLANK(InfoPro!F10),"",InfoPro!F10) -> Solar FV | E16: =IF(ISBLANK(InfoPro!I10),"",YEAR(InfoPro!I10)-$F$3) -> 0 | F16: =IF(ISBLANK(InfoPro!P10),"",InfoPro!P10) -> -1.1318 | G16: -217370112.6 | H16: -194427649.9 | I16: -173906663.6 | J16: -155551577.5 | K16: -139133790.2 | L16: -124448828.5 | M16: -111313800.1 | N16: -99565116.33 | O16: -89056454.68 | P16: -79656936.2 | Q16: -71249495.71 | R16: -63729423.71 | S16: -57003062.35 | T16: -50986638.96 | U16: -45605222.68 | V16: -1673004773 | W16: -84070.5916
A17: =IF(ISBLANK(InfoPro!A11),"",InfoPro!A11) -> SC_1292_A1 | B17: =IF(ISBLANK(InfoPro!B11),"",InfoPro!B11) -> Solar El Carmelo 2 | C17: =IF(ISBLANK(InfoPro!E11),"",InfoPro!E11) -> 19.9 | D17: =IF(ISBLANK(InfoPro!F11),"",InfoPro!F11) -> Solar FV | E17: =IF(ISBLANK(InfoPro!I11),"",YEAR(InfoPro!I11)-$F$3) -> 0 | F17: =IF(ISBLANK(InfoPro!P11),"",InfoPro!P11) -> -1.1019 | G17: -211627608.3 | H17: -189291241.8 | I17: -169312380.8 | J17: -151442201.1 | K17: -135458140.5 | L17: -121161127.5 | M17: -108373101.5 | N17: -96934795.62 | O17: -86703752.79 | P17: -77552551.69 | Q17: -69367219.76 | R17: -62045813.74 | S17: -55497150.03 | T17: -49639669.08 | U17: -44400419.57 | V17: -1628807174 | W17: -81849.60672
A18: =IF(ISBLANK(InfoPro!A12),"",InfoPro!A12) -> SC_1401_A1 | B18: =IF(ISBLANK(InfoPro!B12),"",InfoPro!B12) -> CSF CONTINUA OBANDO 90MW | C18: =IF(ISBLANK(InfoPro!E12),"",InfoPro!E12) -> 90 | D18: =IF(ISBLANK(InfoPro!F12),"",InfoPro!F12) -> Solar FV | E18: =IF(ISBLANK(InfoPro!I12),"",YEAR(InfoPro!I12)-$F$3) -> 2 | F18: =IF(ISBLANK(InfoPro!P12),"",InfoPro!P12) -> 0.3 | G18: =IF($F18="","",(1/(1+$C$3)^(G$6+$E18))*$F18*$C$2) -> 46096482.67 | H18: 41231200.95 | I18: 36879428.4 | J18: 32986966.37 | K18: 29505336.65 | L18: 26391177.68 | M18: 23605704.54 | N18: 21114225.89 | O18: 18885711.89 | P18: 16892407.77 | Q18: 15109488.17 | R18: 13514747.91 | S18: 12088325.5 | T18: 10812455.73 | U18: 9671248.414 | V18: 354784908.5 | W18: 3942.054539
A19: =IF(ISBLANK(InfoPro!A13),"",InfoPro!A13) -> SC_1401_A2 | B19: =IF(ISBLANK(InfoPro!B13),"",InfoPro!B13) -> CSF CONTINUA OBANDO 90MW | C19: =IF(ISBLANK(InfoPro!E13),"",InfoPro!E13) -> 90 | D19: =IF(ISBLANK(InfoPro!F13),"",InfoPro!F13) -> Solar FV | E19: =IF(ISBLANK(InfoPro!I13),"",YEAR(InfoPro!I13)-$F$3) -> 2 | F19: =IF(ISBLANK(InfoPro!P13),"",InfoPro!P13) -> 0.33 | G19: 50706130.93 | H19: 45354321.05 | I19: 40567371.24 | J19: 36285663.01 | K19: 32455870.31 | L19: 29030295.45 | M19: 25966275 | N19: 23225648.48 | O19: 20774283.07 | P19: 18581648.55 | Q19: 16620436.98 | R19: 14866222.7 | S19: 13297158.05 | T19: 11893701.3 | U19: 10638373.26 | V19: 390263399.4 | W19: 4336.259993
A20: =IF(ISBLANK(InfoPro!A14),"",InfoPro!A14) -> SC_1413_A1 | B20: =IF(ISBLANK(InfoPro!B14),"",InfoPro!B14) -> CSF CONTINUA LA VIRGINIA 120MW | C20: =IF(ISBLANK(InfoPro!E14),"",InfoPro!E14) -> 120 | D20: =IF(ISBLANK(InfoPro!F14),"",InfoPro!F14) -> Solar FV | E20: =IF(ISBLANK(InfoPro!I14),"",YEAR(InfoPro!I14)-$F$3) -> 3 | F20: =IF(ISBLANK(InfoPro!P14),"",InfoPro!P14) -> 0.734 | G20: 100879005 | H20: 90231668.16 | I20: 80708111.05 | J20: 72189723.66 | K20: 64570414.72 | L20: 57755290.45 | M20: 51659472.67 | N20: 46207041.75 | O20: 41330091.01 | P20: 36967881.05 | Q20: 33066083.23 | R20: 29576103.06 | S20: 26454475.01 | T20: 23662321.12 | U20: 21164866.83 | V20: 776422548.8 | W20: 6470.187906
A21: =IF(ISBLANK(InfoPro!A15),"",InfoPro!A15) -> SC_1454_A1 | B21: =IF(ISBLANK(InfoPro!B15),"",InfoPro!B15) -> CE SAN MARCOS 80MW | C21: =IF(ISBLANK(InfoPro!E15),"",InfoPro!E15) -> 80 | D21: =IF(ISBLANK(InfoPro!F15),"",InfoPro!F15) -> Eólico Onshore | E21: =IF(ISBLANK(InfoPro!I15),"",YEAR(InfoPro!I15)-$F$3) -> 4 | F21: =IF(ISBLANK(InfoPro!P15),"",InfoPro!P15) -> -11.289 | G21: -1387772891 | H21: -1241299545 | I21: -1110285818 | J21: -993100016.1 | K21: -888282662 | L21: -794528320.2 | M21: -710669338.3 | N21: -635661304.4 | O21: -568570039.7 | P21: -508559963.9 | Q21: -454883688.7 | R21: -406872709 | S21: -363929077.8 | T21: -325517958.7 | U21: -291160964.8 | V21: -1.06810943e+10 | W21: -133513.6787
A22: =IF(ISBLANK(InfoPro!A16),"",InfoPro!A16) -> SC_1454_A2 | B22: =IF(ISBLANK(InfoPro!B16),"",InfoPro!B16) -> CE SAN MARCOS 80MW | C22: =IF(ISBLANK(InfoPro!E16),"",InfoPro!E16) -> 80 | D22: =IF(ISBLANK(InfoPro!F16),"",InfoPro!F16) -> Eólico Onshore | E22: =IF(ISBLANK(InfoPro!I16),"",YEAR(InfoPro!I16)-$F$3) -> 4 | F22: =IF(ISBLANK(InfoPro!P16),"",InfoPro!P16) -> -8.0919 | G22: -994748822.3 | H22: -889757443.9 | I22: -795847445.4 | J22: -711849235.6 | K22: -636716668.7 | L22: -569514014.9 | M22: -509404306.7 | N22: -455638914.8 | O22: -407548224.3 | P22: -364533295.4 | Q22: -326058403.8 | R22: -291644368.3 | S22: -260862583.5 | T22: -233329681.1 | U22: -208702755.9 | V22: -7656156165 | W22: -95701.95206
A23: =IF(ISBLANK(InfoPro!A17),"",InfoPro!A17) -> SC_1325_A1 | B23: =IF(ISBLANK(InfoPro!B17),"",InfoPro!B17) -> Solar El Carmelo 3 | C23: =IF(ISBLANK(InfoPro!E17),"",InfoPro!E17) -> 19.9 | D23: =IF(ISBLANK(InfoPro!F17),"",InfoPro!F17) -> Solar FV | E23: =IF(ISBLANK(InfoPro!I17),"",YEAR(InfoPro!I17)-$F$3) -> 2 | F23: =IF(ISBLANK(InfoPro!P17),"",InfoPro!P17) -> -0.6114 | G23: -93944631.67 | H23: -84029187.54 | I23: -75160275.08 | J23: -67227437.46 | K23: -60131876.08 | L23: -53785220.11 | M23: -48108425.86 | N23: -43030792.36 | O23: -38489080.82 | P23: -34426727.03 | Q23: -30793136.88 | R23: -27543056.25 | S23: -24636007.37 | T23: -22035784.77 | U23: -19710004.27 | V23: -723051643.6 | W23: -36334.25345
A24: =IF(ISBLANK(InfoPro!A18),"",InfoPro!A18) -> SC_1517_A1 | B24: =IF(ISBLANK(InfoPro!B18),"",InfoPro!B18) -> Autogenerador Solar Palmira 3 | C24: =IF(ISBLANK(InfoPro!E18),"",InfoPro!E18) -> 7.3 | D24: =IF(ISBLANK(InfoPro!F18),"",InfoPro!F18) -> Solar FV | E24: =IF(ISBLANK(InfoPro!I18),"",YEAR(InfoPro!I18)-$F$3) -> 2 | F24: =IF(ISBLANK(InfoPro!P18),"",InfoPro!P18) -> -0.217 | G24: -33343122.46 | H24: -29823902.02 | I24: -26676119.88 | J24: -23860572.34 | K24: -21342193.51 | L24: -19089618.52 | M24: -17074792.95 | N24: -15272623.39 | O24: -13660664.93 | P24: -12218841.62 | Q24: -10929196.44 | R24: -9775667.657 | S24: -8743888.78 | T24: -7821009.643 | U24: -6995536.353 | V24: -256627750.5 | W24: -35154.48637
A25: =IF(ISBLANK(InfoPro!A19),"",InfoPro!A19) -> SC_1502_A1 | B25: =IF(ISBLANK(InfoPro!B19),"",InfoPro!B19) -> Solar El Carmelo 5 | C25: =IF(ISBLANK(InfoPro!E19),"",InfoPro!E19) -> 19.9 | D25: =IF(ISBLANK(InfoPro!F19),"",InfoPro!F19) -> Solar FV | E25: =IF(ISBLANK(InfoPro!I19),"",YEAR(InfoPro!I19)-$F$3) -> 2 | F25: =IF(ISBLANK(InfoPro!P19),"",InfoPro!P19) -> -0.6299 | G25: -96787248.1 | H25: -86571778.27 | I25: -77434506.5 | J25: -69261633.72 | K25: -61951371.84 | L25: -55412676.07 | M25: -49564110.97 | N25: -44332836.29 | O25: -39653699.72 | P25: -35468425.51 | Q25: -31724888.65 | R25: -28376465.7 | S25: -25381454.11 | T25: -22702552.88 | U25: -20306397.92 | V25: -744930046.3 | W25: -37433.67067
A26: =IF(ISBLANK(InfoPro!A20),"",InfoPro!A20) -> SC_1503_A1 | B26: =IF(ISBLANK(InfoPro!B20),"",InfoPro!B20) -> Solar El Carmelo 6 | C26: =IF(ISBLANK(InfoPro!E20),"",InfoPro!E20) -> 19.9 | D26: =IF(ISBLANK(InfoPro!F20),"",InfoPro!F20) -> Solar FV | E26: =IF(ISBLANK(InfoPro!I20),"",YEAR(InfoPro!I20)-$F$3) -> 2 | F26: =IF(ISBLANK(InfoPro!P20),"",InfoPro!P20) -> -0.631 | G26: -96956268.54 | H26: -86722959.34 | I26: -77569731.07 | J26: -69382585.93 | K26: -62059558.08 | L26: -55509443.72 | M26: -49650665.22 | N26: -44410255.12 | O26: -39722947.33 | P26: -35530364.34 | Q26: -31780290.11 | R26: -28426019.78 | S26: -25425777.97 | T26: -22742198.55 | U26: -20341859.16 | V26: -746230924.3 | W26: -37499.04142
A27: =IF(ISBLANK(InfoPro!A21),"",InfoPro!A21) -> SC_1601_A1 | B27: =IF(ISBLANK(InfoPro!B21),"",InfoPro!B21) -> Autogenerador Solar Palmira 1 de 19,9MW | C27: =IF(ISBLANK(InfoPro!E21),"",InfoPro!E21) -> 19.9 | D27: =IF(ISBLANK(InfoPro!F21),"",InfoPro!F21) -> Solar FV | E27: =IF(ISBLANK(InfoPro!I21),"",YEAR(InfoPro!I21)-$F$3) -> 0 | F27: =IF(ISBLANK(InfoPro!P21),"",InfoPro!P21) -> 0 | G27: 0 | H27: 0 | I27: 0 | J27: 0 | K27: 0 | L27: 0 | M27: 0 | N27: 0 | O27: 0 | P27: 0 | Q27: 0 | R27: 0 | S27: 0 | T27: 0 | U27: 0 | V27: 0 | W27: 0
A28: =IF(ISBLANK(InfoPro!A22),"",InfoPro!A22) -> SC_1658_A2 | B28: =IF(ISBLANK(InfoPro!B22),"",InfoPro!B22) -> Parque Solar Fotovoltaico La Virginia I | C28: =IF(ISBLANK(InfoPro!E22),"",InfoPro!E22) -> 100 | D28: =IF(ISBLANK(InfoPro!F22),"",InfoPro!F22) -> Solar FV | E28: =IF(ISBLANK(InfoPro!I22),"",YEAR(InfoPro!I22)-$F$3) -> 4 | F28: =IF(ISBLANK(InfoPro!P22),"",InfoPro!P22) -> -1.90144 | G28: =IF($F28="","",(1/(1+$C$3)^(G$6+$E28))*$F28*$C$2) -> -233746734.5 | H28: -209075791.1 | I28: -187008757.7 | J28: -167270803 | K28: -149616102.8 | L28: -133824778.9 | M28: -119700160 | N28: -107066332.8 | O28: -95765950.59 | P28: -85658274.23 | Q28: -76617418.81 | R28: -68530786.06 | S28: -61297661.95 | T28: -54827962.39 | U28: -49041111.26 | V28: -1799048626 | W28: -17990.48626
A29: =IF(ISBLANK(InfoPro!A23),"",InfoPro!A23) -> SC_1572_A1 | B29: =IF(ISBLANK(InfoPro!B23),"",InfoPro!B23) -> CONDOR - 165 MW | C29: =IF(ISBLANK(InfoPro!E23),"",InfoPro!E23) -> 165 | D29: =IF(ISBLANK(InfoPro!F23),"",InfoPro!F23) -> Eólico Onshore | E29: =IF(ISBLANK(InfoPro!I23),"",YEAR(InfoPro!I23)-$F$3) -> 3 | F29: =IF(ISBLANK(InfoPro!P23),"",InfoPro!P23) -> -7.76 | G29: -1066513731 | H29: -953947881.3 | I29: -853262863.4 | J29: -763204707.9 | K29: -682651796 | L29: -610600890.9 | M29: -546154643 | N29: -488510414.1 | O29: -436950281 | P29: -390832093.9 | Q29: -349581479.3 | R29: -312684686.3 | S29: -279682188.1 | T29: -250162959 | U29: -223759355.1 | V29: -8208499971 | W29: -49748.48467
A30: =IF(ISBLANK(InfoPro!A24),"",InfoPro!A24) -> SC_1572_A2 | B30: =IF(ISBLANK(InfoPro!B24),"",InfoPro!B24) -> CONDOR - 165 MW | C30: =IF(ISBLANK(InfoPro!E24),"",InfoPro!E24) -> 165 | D30: =IF(ISBLANK(InfoPro!F24),"",InfoPro!F24) -> Eólico Onshore | E30: =IF(ISBLANK(InfoPro!I24),"",YEAR(InfoPro!I24)-$F$3) -> 3 | F30: =IF(ISBLANK(InfoPro!P24),"",InfoPro!P24) -> -7.17 | G30: -985425702.8 | H30: -881418338.8 | I30: -788388496.3 | J30: -705177545.8 | K30: -630749146.6 | L30: -564176338.6 | M30: -504629998.7 | N30: -451368514.1 | O30: -403728545.7 | P30: -361116767.2 | Q30: -323002475.1 | R30: -288910979.5 | S30: -258417691.9 | T30: -231142837.1 | U30: -206746723.7 | V30: -7584400102 | W30: -45966.06122
A31: =IF(ISBLANK(InfoPro!A25),"",InfoPro!A25) -> SC_1501_A1 | B31: =IF(ISBLANK(InfoPro!B25),"",InfoPro!B25) -> Autogenerador Solar Palmira 4 | C31: =IF(ISBLANK(InfoPro!E25),"",InfoPro!E25) -> 19.9 | D31: =IF(ISBLANK(InfoPro!F25),"",InfoPro!F25) -> Solar FV | E31: =IF(ISBLANK(InfoPro!I25),"",YEAR(InfoPro!I25)-$F$3) -> 2 | F31: =IF(ISBLANK(InfoPro!P25),"",InfoPro!P25) -> -98.01 | G31: -1.505972089e+10 | H31: -1.347023335e+10 | I31: -1.204850926e+10 | J31: -1.077684191e+10 | K31: -9639393482 | L31: -8621997748 | M31: -7711983674 | N31: -6898017598 | O31: -6169962073 | P31: -5518749618 | Q31: -4936269784 | R31: -4415268143 | S31: -3949255942 | T31: -3532429286 | U31: -3159596857 | V31: -1.159082296e+11 | W31: -5824534.152
A32: =IF(ISBLANK(InfoPro!A26),"",InfoPro!A26) -> SC_1490_A1 | B32: =IF(ISBLANK(InfoPro!B26),"",InfoPro!B26) -> Farallones Solar DE 50 mw | C32: =IF(ISBLANK(InfoPro!E26),"",InfoPro!E26) -> 50 | D32: =IF(ISBLANK(InfoPro!F26),"",InfoPro!F26) -> Solar FV | E32: =IF(ISBLANK(InfoPro!I26),"",YEAR(InfoPro!I26)-$F$3) -> 3 | F32: =IF(ISBLANK(InfoPro!P26),"",InfoPro!P26) -> -0.56511 | G32: -77667213.24 | H32: -69469779.28 | I32: -62137548.55 | J32: -55579202.64 | K32: -49713061.4 | L32: -44466065.65 | M32: -39772867.31 | N32: -35575015.48 | O32: -31820228.52 | P32: -28461742.86 | Q32: -25457730.64 | R32: -22770778.75 | S32: -20367422.85 | T32: -18217730.64 | U32: -16294929.01 | V32: -597771316.8 | W32: -11955.42634
A33: =IF(ISBLANK(InfoPro!A27),"",InfoPro!A27) -> SC_1883_A1 | B33: =IF(ISBLANK(InfoPro!B27),"",InfoPro!B27) -> Parque Eólico Valle | C33: =IF(ISBLANK(InfoPro!E27),"",InfoPro!E27) -> 250 | D33: =IF(ISBLANK(InfoPro!F27),"",InfoPro!F27) -> Eólico Onshore | E33: =IF(ISBLANK(InfoPro!I27),"",YEAR(InfoPro!I27)-$F$3) -> 4 | F33: =IF(ISBLANK(InfoPro!P27),"",InfoPro!P27) -> -44.95957 | G33: -5526944143 | H33: -4943599412 | I33: -4421824161 | J33: -3955120001 | K33: -3537674419 | L33: -3164288389 | M33: -2830311619 | N33: -2531584632 | O33: -2264386970 | P33: -2025390849 | Q33: -1811619722 | R33: -1620411200 | S33: -1449383900 | T33: -1296407782 | U33: -1159577623 | V33: -4.253852482e+10 | W33: -170154.0993
A34: =IF(ISBLANK(InfoPro!A28),"",InfoPro!A28) -> SC_1883_A2 | B34: =IF(ISBLANK(InfoPro!B28),"",InfoPro!B28) -> Parque Eólico Valle | C34: =IF(ISBLANK(InfoPro!E28),"",InfoPro!E28) -> 250 | D34: =IF(ISBLANK(InfoPro!F28),"",InfoPro!F28) -> Eólico Onshore | E34: =IF(ISBLANK(InfoPro!I28),"",YEAR(InfoPro!I28)-$F$3) -> 4 | F34: =IF(ISBLANK(InfoPro!P28),"",InfoPro!P28) -> -48.08708 | G34: -5911413413 | H34: -5287489636 | I34: -4729418279 | J34: -4230248908 | K34: -3783764676 | L34: -3384404898 | M34: -3027195794 | N34: -2707688546 | O34: -2421903887 | P34: -2166282547 | Q34: -1937640918 | R34: -1733131412 | S34: -1550206987 | T34: -1386589434 | U34: -1240240997 | V34: -4.549762033e+10 | W34: -181990.4813
A35: =IF(ISBLANK(InfoPro!A29),"",InfoPro!A29) -> SC_1947_A1 | B35: =IF(ISBLANK(InfoPro!B29),"",InfoPro!B29) -> Solar La Victoria 4 de 19.9MW | C35: =IF(ISBLANK(InfoPro!E29),"",InfoPro!E29) -> 19.9 | D35: =IF(ISBLANK(InfoPro!F29),"",InfoPro!F29) -> Solar FV | E35: =IF(ISBLANK(InfoPro!I29),"",YEAR(InfoPro!I29)-$F$3) -> 0 | F35: =IF(ISBLANK(InfoPro!P29),"",InfoPro!P29) -> -0.6047 | G35: -116136867.9 | H35: -103879130.5 | I35: -92915143.56 | J35: -83108357.39 | K35: -74336634.52 | L35: -66490728.55 | M35: -59472923.57 | N35: -53195817.14 | O35: -47581231.79 | P35: -42559241.32 | Q35: -38067299.93 | R35: -34049463.26 | S35: -30455691.65 | T35: -27241226.88 | U35: -24366034.77 | V35: -893855792.7 | W35: -44917.37652
A36: =IF(ISBLANK(InfoPro!A30),"",InfoPro!A30) -> SC_1950_A1 | B36: =IF(ISBLANK(InfoPro!B30),"",InfoPro!B30) -> Autogenerador Solar Candelaria | C36: =IF(ISBLANK(InfoPro!E30),"",InfoPro!E30) -> 19.9 | D36: =IF(ISBLANK(InfoPro!F30),"",InfoPro!F30) -> Solar FV | E36: =IF(ISBLANK(InfoPro!I30),"",YEAR(InfoPro!I30)-$F$3) -> 2 | F36: =IF(ISBLANK(InfoPro!P30),"",InfoPro!P30) -> -0.295 | G36: -45328207.96 | H36: -40544014.27 | I36: -36264771.26 | J36: -32437183.6 | K36: -29013581.04 | L36: -25951324.72 | M36: -23212276.13 | N36: -20762322.12 | O36: -18570950.02 | P36: -16610867.64 | Q36: -14857663.36 | R36: -13289502.11 | S36: -11886853.41 | T36: -10632248.13 | U36: -9510060.941 | V36: -348871826.7 | W36: -17531.24757
A37: =IF(ISBLANK(InfoPro!A31),"",InfoPro!A31) -> SC_2008_A1 | B37: =IF(ISBLANK(InfoPro!B31),"",InfoPro!B31) -> Solar Ginebra | C37: =IF(ISBLANK(InfoPro!E31),"",InfoPro!E31) -> 9.9 | D37: =IF(ISBLANK(InfoPro!F31),"",InfoPro!F31) -> Solar FV | E37: =IF(ISBLANK(InfoPro!I31),"",YEAR(InfoPro!I31)-$F$3) -> 0 | F37: =IF(ISBLANK(InfoPro!P31),"",InfoPro!P31) -> -0.505 | G37: -96988785 | H37: -86752043.83 | I37: -77595745.82 | J37: -69405854.94 | K37: -62080371.14 | L37: -55528060.06 | M37: -49667316.69 | N37: -44425149.09 | O37: -39736269.32 | P37: -35542280.25 | Q37: -31790948.34 | R37: -28435553.08 | S37: -25434305.08 | T37: -22749825.65 | U37: -20348681.26 | V37: -746481189.5 | W37: -75402.14036
A38: =IF(ISBLANK(InfoPro!A32),"",InfoPro!A32) -> SC_2098_A1 | B38: =IF(ISBLANK(InfoPro!B32),"",InfoPro!B32) -> Solar El Cerrito 1 | C38: =IF(ISBLANK(InfoPro!E32),"",InfoPro!E32) -> 19.9 | D38: =IF(ISBLANK(InfoPro!F32),"",InfoPro!F32) -> Solar FV | E38: =IF(ISBLANK(InfoPro!I32),"",YEAR(InfoPro!I32)-$F$3) -> 2 | F38: =IF(ISBLANK(InfoPro!P32),"",InfoPro!P32) -> -0.826 | G38: =IF($F38="","",(1/(1+$C$3)^(G$6+$E38))*$F38*$C$2) -> -126918982.3 | H38: -113523240 | I38: -101541359.5 | J38: -90824114.07 | K38: -81238026.9 | L38: -72663709.21 | M38: -64994373.18 | N38: -58134501.95 | O38: -51998660.06 | P38: -46510429.39 | Q38: -41601457.42 | R38: -37210605.92 | S38: -33283189.55 | T38: -29770294.77 | U38: -26628170.63 | V38: -976841114.8 | W38: -49087.49321
A39: =IF(ISBLANK(InfoPro!A33),"",InfoPro!A33) -> SC_2208_A1 | B39: =IF(ISBLANK(InfoPro!B33),"",InfoPro!B33) -> Solar El Carmelo 4 19.9 | C39: =IF(ISBLANK(InfoPro!E33),"",InfoPro!E33) -> 19.9 | D39: =IF(ISBLANK(InfoPro!F33),"",InfoPro!F33) -> Solar FV | E39: =IF(ISBLANK(InfoPro!I33),"",YEAR(InfoPro!I33)-$F$3) -> 2 | F39: =IF(ISBLANK(InfoPro!P33),"",InfoPro!P33) -> -0.6856 | G39: -105345828.4 | H39: -94227037.91 | I39: -84281787.04 | J39: -75386213.81 | K39: -67429529.35 | L39: -60312638.06 | M39: -53946903.45 | N39: -48253044.23 | O39: -43160146.9 | P39: -38604782.56 | Q39: -34530216.96 | R39: -30885703.9 | S39: -27625853.22 | T39: -24710065.49 | U39: -22102026.38 | V39: -810801777.6 | W39: -40743.80792
A40: =IF(ISBLANK(InfoPro!A34),"",InfoPro!A34) -> SC_2210_A1 | B40: =IF(ISBLANK(InfoPro!B34),"",InfoPro!B34) -> Solar La Victoria 5 19.9 | C40: =IF(ISBLANK(InfoPro!E34),"",InfoPro!E34) -> 19.9 | D40: =IF(ISBLANK(InfoPro!F34),"",InfoPro!F34) -> Solar FV | E40: =IF(ISBLANK(InfoPro!I34),"",YEAR(InfoPro!I34)-$F$3) -> 0 | F40: =IF(ISBLANK(InfoPro!P34),"",InfoPro!P34) -> -0.687 | G40: -131943159 | H40: -118017136.9 | I40: -105560945.3 | J40: -94419450.18 | K40: -84453891.04 | L40: -75540152.99 | M40: -67567220.92 | N40: -60435796.89 | O40: -54057063.41 | P40: -48351577.29 | Q40: -43248280.22 | R40: -38683613.79 | S40: -34600727.9 | T40: -30948772.72 | U40: -27682265.4 | V40: -1015510054 | W40: -51030.65597
A41: =IF(ISBLANK(InfoPro!A35),"",InfoPro!A35) -> SC_2214_A1 | B41: =IF(ISBLANK(InfoPro!B35),"",InfoPro!B35) -> Autogenerador Solar Palmira 2 | C41: =IF(ISBLANK(InfoPro!E35),"",InfoPro!E35) -> 9.9 | D41: =IF(ISBLANK(InfoPro!F35),"",InfoPro!F35) -> Solar FV | E41: =IF(ISBLANK(InfoPro!I35),"",YEAR(InfoPro!I35)-$F$3) -> 0 | F41: =IF(ISBLANK(InfoPro!P35),"",InfoPro!P35) -> -0.54 | G41: -103710780 | H41: -92764561.72 | I41: -82973668.8 | J41: -74216161.72 | K41: -66382971.12 | L41: -59376539.47 | M41: -53109605.96 | N41: -47504119.82 | O41: -42490268.18 | P41: -38005606.6 | Q41: -33994281.4 | R41: -30406333.99 | S41: -27197078.7 | T41: -24326546.24 | U41: -21758985.91 | V41: -798217509.6 | W41: -80628.03127
A42: =IF(ISBLANK(InfoPro!A36),"",InfoPro!A36) -> SC_1816_A1 | B42: =IF(ISBLANK(InfoPro!B36),"",InfoPro!B36) -> COG.001.2022 AZAHAR I 4.99 MW | C42: =IF(ISBLANK(InfoPro!E36),"",InfoPro!E36) -> 4.99 | D42: =IF(ISBLANK(InfoPro!F36),"",InfoPro!F36) -> Solar FV | E42: =IF(ISBLANK(InfoPro!I36),"",YEAR(InfoPro!I36)-$F$3) -> 1 | F42: =IF(ISBLANK(InfoPro!P36),"",InfoPro!P36) -> 0.00010528 | G42: 18085.65381 | H42: 16176.79232 | I42: 14469.40279 | J42: 12942.22074 | K42: 11576.22606 | L42: 10354.40614 | M42: 9261.543954 | N42: 8284.028581 | O42: 7409.685672 | P42: 6627.625825 | Q42: 5928.108967 | R42: 5302.423047 | S42: 4742.775534 | T42: 4242.196363 | U42: 3794.45113 | V42: 139197.5409 | W42: 27.89529878
A43: =IF(ISBLANK(InfoPro!A37),"",InfoPro!A37) -> SC_1816_A2 | B43: =IF(ISBLANK(InfoPro!B37),"",InfoPro!B37) -> COG.001.2022 AZAHAR I 4.99 MW | C43: =IF(ISBLANK(InfoPro!E37),"",InfoPro!E37) -> 4.99 | D43: =IF(ISBLANK(InfoPro!F37),"",InfoPro!F37) -> Solar FV | E43: =IF(ISBLANK(InfoPro!I37),"",YEAR(InfoPro!I37)-$F$3) -> 1 | F43: =IF(ISBLANK(InfoPro!P37),"",InfoPro!P37) -> 3.614e-05 | G43: 6208.354186 | H43: 5553.089612 | I43: 4966.985342 | J43: 4442.741808 | K43: 3973.829882 | L43: 3554.409555 | M43: 3179.257205 | N43: 2843.700541 | O43: 2543.560412 | P43: 2275.098759 | Q43: 2034.972056 | R43: 1820.189674 | S43: 1628.076632 | T43: 1456.240279 | U43: 1302.5405 | V43: 47783.04644 | W43: 9.57576081
A44: =IF(ISBLANK(InfoPro!A38),"",InfoPro!A38) -> SC_2296_A2 | B44: =IF(ISBLANK(InfoPro!B38),"",InfoPro!B38) -> Parque Solar San Mateo 80 MW | C44: =IF(ISBLANK(InfoPro!E38),"",InfoPro!E38) -> 80 | D44: =IF(ISBLANK(InfoPro!F38),"",InfoPro!F38) -> Solar FV | E44: =IF(ISBLANK(InfoPro!I38),"",YEAR(InfoPro!I38)-$F$3) -> 2 | F44: =IF(ISBLANK(InfoPro!P38),"",InfoPro!P38) -> -1.047 | G44: -160876724.5 | H44: -143896891.3 | I44: -128709205.1 | J44: -115124512.6 | K44: -102973624.9 | L44: -92105210.1 | M44: -82383908.86 | N44: -73688648.35 | O44: -65911134.48 | P44: -58954503.12 | Q44: -52732113.7 | R44: -47166470.21 | S44: -42188256.01 | T44: -37735470.49 | U44: -33752656.97 | V44: -1238199331 | W44: -15477.49163
A45: =IF(ISBLANK(InfoPro!A39),"",InfoPro!A39) -> SC_2228_A1 | B45: =IF(ISBLANK(InfoPro!B39),"",InfoPro!B39) -> MFC Solar | C45: =IF(ISBLANK(InfoPro!E39),"",InfoPro!E39) -> 250 | D45: =IF(ISBLANK(InfoPro!F39),"",InfoPro!F39) -> Solar FV | E45: =IF(ISBLANK(InfoPro!I39),"",YEAR(InfoPro!I39)-$F$3) -> 4 | F45: =IF(ISBLANK(InfoPro!P39),"",InfoPro!P39) -> -15.72 | G45: -1932482048 | H45: -1728517038 | I45: -1546079640 | J45: -1382897710 | K45: -1236938918 | L45: -1106385437 | M45: -989611302.8 | N45: -885162167.1 | O45: -791737179.9 | P45: -708172790.6 | Q45: -633428256.4 | R45: -566572680.1 | S45: -506773416.9 | T45: -453285703.9 | U45: -405443384.5 | V45: -1.487348767e+10 | W45: -59493.95069
A46: =IF(ISBLANK(InfoPro!A40),"",InfoPro!A40) -> SC_2228_A2 | B46: =IF(ISBLANK(InfoPro!B40),"",InfoPro!B40) -> MFC Solar | C46: =IF(ISBLANK(InfoPro!E40),"",InfoPro!E40) -> 250 | D46: =IF(ISBLANK(InfoPro!F40),"",InfoPro!F40) -> Solar FV | E46: =IF(ISBLANK(InfoPro!I40),"",YEAR(InfoPro!I40)-$F$3) -> 4 | F46: =IF(ISBLANK(InfoPro!P40),"",InfoPro!P40) -> -18.306 | G46: -2250382721 | H46: -2012864688 | I46: -1800415642 | J46: -1610389662 | K46: -1440420091 | L46: -1288390064 | M46: -1152406139 | N46: -1030774722 | O46: -921980967.9 | P46: -824669917.6 | Q46: -737629622.2 | R46: -659776048.5 | S46: -590139578.2 | T46: -527852932.2 | U46: -472140368.7 | V46: -1.732023316e+10 | W46: -69280.93266
A47: =IF(ISBLANK(InfoPro!A41),"",InfoPro!A41) -> SC_2113_A1 | B47: =IF(ISBLANK(InfoPro!B41),"",InfoPro!B41) -> Coloradas II 98 MW | C47: =IF(ISBLANK(InfoPro!E41),"",InfoPro!E41) -> 98 | D47: =IF(ISBLANK(InfoPro!F41),"",InfoPro!F41) -> Solar FV | E47: =IF(ISBLANK(InfoPro!I41),"",YEAR(InfoPro!I41)-$F$3) -> 3 | F47: =IF(ISBLANK(InfoPro!P41),"",InfoPro!P41) -> -2.367 | G47: -325314175.5 | H47: -290978690.1 | I47: -260267164.7 | J47: -232797106.1 | K47: -208226391.9 | L47: -186249008.9 | M47: -166591242.3 | N47: -149008266.8 | O47: -133281097.3 | P47: -119213861.6 | Q47: -106631361 | R47: -95376888.22 | S47: -85310275.69 | T47: -76306149.99 | U47: -68252370.29 | V47: -2503804050 | W47: -25549.02092
A48: =IF(ISBLANK(InfoPro!A42),"",InfoPro!A42) -> SC_2315_A1 | B48: =IF(ISBLANK(InfoPro!B42),"",InfoPro!B42) -> HELIOS SAN MARCOS - 300 MW | C48: =IF(ISBLANK(InfoPro!E42),"",InfoPro!E42) -> 300 | D48: =IF(ISBLANK(InfoPro!F42),"",InfoPro!F42) -> Solar FV | E48: =IF(ISBLANK(InfoPro!I42),"",YEAR(InfoPro!I42)-$F$3) -> 2 | F48: =IF(ISBLANK(InfoPro!P42),"",InfoPro!P42) -> 23.198179 | G48: =IF($F48="","",(1/(1+$C$3)^(G$6+$E48))*$F48*$C$2) -> 3564514854 | H48: 3188295934 | I48: 2851785272 | J48: 2550791835 | K48: 2281566937 | L48: 2040757546 | M48: 1825364531 | N48: 1632705305 | O48: 1460380416 | P48: 1306243664 | Q48: 1168375370 | R48: 1045058471 | S48: 934757129.4 | T48: 836097611.3 | U48: 747851172.9 | V48: 2.743454605e+10 | W48: 91448.48683
A49: =IF(ISBLANK(InfoPro!A43),"",InfoPro!A43) -> SC_2315_A2 | B49: =IF(ISBLANK(InfoPro!B43),"",InfoPro!B43) -> HELIOS SAN MARCOS - 300 MW | C49: =IF(ISBLANK(InfoPro!E43),"",InfoPro!E43) -> 300 | D49: =IF(ISBLANK(InfoPro!F43),"",InfoPro!F43) -> Solar FV | E49: =IF(ISBLANK(InfoPro!I43),"",YEAR(InfoPro!I43)-$F$3) -> 2 | F49: =IF(ISBLANK(InfoPro!P43),"",InfoPro!P43) -> 22.878459 | G49: 3515388296 | H49: 3144354468 | I49: 2812481635 | J49: 2515636525 | K49: 2250122116 | L49: 2012631588 | M49: 1800207145 | N49: 1610203171 | O49: 1440253284 | P49: 1288240862 | Q49: 1152272685 | R49: 1030655353 | S49: 921874198 | T49: 824574416.8 | U49: 737544201.1 | V49: 2.705643995e+10 | W49: 90188.13315
A50: =IF(ISBLANK(InfoPro!A44),"",InfoPro!A44) ->  | B50: =IF(ISBLANK(InfoPro!B44),"",InfoPro!B44) ->  | C50: =IF(ISBLANK(InfoPro!E44),"",InfoPro!E44) ->  | D50: =IF(ISBLANK(InfoPro!F44),"",InfoPro!F44) ->  | E50: =IF(ISBLANK(InfoPro!I44),"",YEAR(InfoPro!I44)-$F$3) ->  | F50: =IF(ISBLANK(InfoPro!P44),"",InfoPro!P44) -> 
A51: =IF(ISBLANK(InfoPro!A45),"",InfoPro!A45) ->  | B51: =IF(ISBLANK(InfoPro!B45),"",InfoPro!B45) ->  | C51: =IF(ISBLANK(InfoPro!E45),"",InfoPro!E45) ->  | D51: =IF(ISBLANK(InfoPro!F45),"",InfoPro!F45) ->  | E51: =IF(ISBLANK(InfoPro!I45),"",YEAR(InfoPro!I45)-$F$3) ->  | F51: =IF(ISBLANK(InfoPro!P45),"",InfoPro!P45) -> 
A52: =IF(ISBLANK(InfoPro!A46),"",InfoPro!A46) ->  | B52: =IF(ISBLANK(InfoPro!B46),"",InfoPro!B46) ->  | C52: =IF(ISBLANK(InfoPro!E46),"",InfoPro!E46) ->  | D52: =IF(ISBLANK(InfoPro!F46),"",InfoPro!F46) ->  | E52: =IF(ISBLANK(InfoPro!I46),"",YEAR(InfoPro!I46)-$F$3) ->  | F52: =IF(ISBLANK(InfoPro!P46),"",InfoPro!P46) -> 
A53: =IF(ISBLANK(InfoPro!A47),"",InfoPro!A47) ->  | B53: =IF(ISBLANK(InfoPro!B47),"",InfoPro!B47) ->  | C53: =IF(ISBLANK(InfoPro!E47),"",InfoPro!E47) ->  | D53: =IF(ISBLANK(InfoPro!F47),"",InfoPro!F47) ->  | E53: =IF(ISBLANK(InfoPro!I47),"",YEAR(InfoPro!I47)-$F$3) ->  | F53: =IF(ISBLANK(InfoPro!P47),"",InfoPro!P47) -> 
A54: =IF(ISBLANK(InfoPro!A48),"",InfoPro!A48) ->  | B54: =IF(ISBLANK(InfoPro!B48),"",InfoPro!B48) ->  | C54: =IF(ISBLANK(InfoPro!E48),"",InfoPro!E48) ->  | D54: =IF(ISBLANK(InfoPro!F48),"",InfoPro!F48) ->  | E54: =IF(ISBLANK(InfoPro!I48),"",YEAR(InfoPro!I48)-$F$3) ->  | F54: =IF(ISBLANK(InfoPro!P48),"",InfoPro!P48) -> 
A55: =IF(ISBLANK(InfoPro!A49),"",InfoPro!A49) ->  | B55: =IF(ISBLANK(InfoPro!B49),"",InfoPro!B49) ->  | C55: =IF(ISBLANK(InfoPro!E49),"",InfoPro!E49) ->  | D55: =IF(ISBLANK(InfoPro!F49),"",InfoPro!F49) ->  | E55: =IF(ISBLANK(InfoPro!I49),"",YEAR(InfoPro!I49)-$F$3) ->  | F55: =IF(ISBLANK(InfoPro!P49),"",InfoPro!P49) -> 
A56: =IF(ISBLANK(InfoPro!A50),"",InfoPro!A50) ->  | B56: =IF(ISBLANK(InfoPro!B50),"",InfoPro!B50) ->  | C56: =IF(ISBLANK(InfoPro!E50),"",InfoPro!E50) ->  | D56: =IF(ISBLANK(InfoPro!F50),"",InfoPro!F50) ->  | E56: =IF(ISBLANK(InfoPro!I50),"",YEAR(InfoPro!I50)-$F$3) ->  | F56: =IF(ISBLANK(InfoPro!P50),"",InfoPro!P50) -> 
A57: =IF(ISBLANK(InfoPro!A51),"",InfoPro!A51) ->  | B57: =IF(ISBLANK(InfoPro!B51),"",InfoPro!B51) ->  | C57: =IF(ISBLANK(InfoPro!E51),"",InfoPro!E51) ->  | D57: =IF(ISBLANK(InfoPro!F51),"",InfoPro!F51) ->  | E57: =IF(ISBLANK(InfoPro!I51),"",YEAR(InfoPro!I51)-$F$3) ->  | F57: =IF(ISBLANK(InfoPro!P51),"",InfoPro!P51) -> 
A58: =IF(ISBLANK(InfoPro!A52),"",InfoPro!A52) ->  | B58: =IF(ISBLANK(InfoPro!B52),"",InfoPro!B52) ->  | C58: =IF(ISBLANK(InfoPro!E52),"",InfoPro!E52) ->  | D58: =IF(ISBLANK(InfoPro!F52),"",InfoPro!F52) ->  | E58: =IF(ISBLANK(InfoPro!I52),"",YEAR(InfoPro!I52)-$F$3) ->  | F58: =IF(ISBLANK(InfoPro!P52),"",InfoPro!P52) ->  | G58: =IF($F58="","",(1/(1+$C$3)^(G$6+$E58))*$F58*$C$2) -> 
A59: =IF(ISBLANK(InfoPro!A53),"",InfoPro!A53) ->  | B59: =IF(ISBLANK(InfoPro!B53),"",InfoPro!B53) ->  | C59: =IF(ISBLANK(InfoPro!E53),"",InfoPro!E53) ->  | D59: =IF(ISBLANK(InfoPro!F53),"",InfoPro!F53) ->  | E59: =IF(ISBLANK(InfoPro!I53),"",YEAR(InfoPro!I53)-$F$3) ->  | F59: =IF(ISBLANK(InfoPro!P53),"",InfoPro!P53) -> 
A60: =IF(ISBLANK(InfoPro!A54),"",InfoPro!A54) ->  | B60: =IF(ISBLANK(InfoPro!B54),"",InfoPro!B54) ->  | C60: =IF(ISBLANK(InfoPro!E54),"",InfoPro!E54) ->  | D60: =IF(ISBLANK(InfoPro!F54),"",InfoPro!F54) ->  | E60: =IF(ISBLANK(InfoPro!I54),"",YEAR(InfoPro!I54)-$F$3) ->  | F60: =IF(ISBLANK(InfoPro!P54),"",InfoPro!P54) -> 
A61: =IF(ISBLANK(InfoPro!A55),"",InfoPro!A55) ->  | B61: =IF(ISBLANK(InfoPro!B55),"",InfoPro!B55) ->  | C61: =IF(ISBLANK(InfoPro!E55),"",InfoPro!E55) ->  | D61: =IF(ISBLANK(InfoPro!F55),"",InfoPro!F55) ->  | E61: =IF(ISBLANK(InfoPro!I55),"",YEAR(InfoPro!I55)-$F$3) ->  | F61: =IF(ISBLANK(InfoPro!P55),"",InfoPro!P55) -> 
A62: =IF(ISBLANK(InfoPro!A56),"",InfoPro!A56) ->  | B62: =IF(ISBLANK(InfoPro!B56),"",InfoPro!B56) ->  | C62: =IF(ISBLANK(InfoPro!E56),"",InfoPro!E56) ->  | D62: =IF(ISBLANK(InfoPro!F56),"",InfoPro!F56) ->  | E62: =IF(ISBLANK(InfoPro!I56),"",YEAR(InfoPro!I56)-$F$3) ->  | F62: =IF(ISBLANK(InfoPro!P56),"",InfoPro!P56) -> 
A63: =IF(ISBLANK(InfoPro!A57),"",InfoPro!A57) ->  | B63: =IF(ISBLANK(InfoPro!B57),"",InfoPro!B57) ->  | C63: =IF(ISBLANK(InfoPro!E57),"",InfoPro!E57) ->  | D63: =IF(ISBLANK(InfoPro!F57),"",InfoPro!F57) ->  | E63: =IF(ISBLANK(InfoPro!I57),"",YEAR(InfoPro!I57)-$F$3) ->  | F63: =IF(ISBLANK(InfoPro!P57),"",InfoPro!P57) -> 
A64: =IF(ISBLANK(InfoPro!A58),"",InfoPro!A58) ->  | B64: =IF(ISBLANK(InfoPro!B58),"",InfoPro!B58) ->  | C64: =IF(ISBLANK(InfoPro!E58),"",InfoPro!E58) ->  | D64: =IF(ISBLANK(InfoPro!F58),"",InfoPro!F58) ->  | E64: =IF(ISBLANK(InfoPro!I58),"",YEAR(InfoPro!I58)-$F$3) ->  | F64: =IF(ISBLANK(InfoPro!P58),"",InfoPro!P58) -> 
A65: =IF(ISBLANK(InfoPro!A59),"",InfoPro!A59) ->  | B65: =IF(ISBLANK(InfoPro!B59),"",InfoPro!B59) ->  | C65: =IF(ISBLANK(InfoPro!E59),"",InfoPro!E59) ->  | D65: =IF(ISBLANK(InfoPro!F59),"",InfoPro!F59) ->  | E65: =IF(ISBLANK(InfoPro!I59),"",YEAR(InfoPro!I59)-$F$3) ->  | F65: =IF(ISBLANK(InfoPro!P59),"",InfoPro!P59) -> 
A66: =IF(ISBLANK(InfoPro!A60),"",InfoPro!A60) ->  | B66: =IF(ISBLANK(InfoPro!B60),"",InfoPro!B60) ->  | C66: =IF(ISBLANK(InfoPro!E60),"",InfoPro!E60) ->  | D66: =IF(ISBLANK(InfoPro!F60),"",InfoPro!F60) ->  | E66: =IF(ISBLANK(InfoPro!I60),"",YEAR(InfoPro!I60)-$F$3) ->  | F66: =IF(ISBLANK(InfoPro!P60),"",InfoPro!P60) -> 
A67: =IF(ISBLANK(InfoPro!A61),"",InfoPro!A61) ->  | B67: =IF(ISBLANK(InfoPro!B61),"",InfoPro!B61) ->  | C67: =IF(ISBLANK(InfoPro!E61),"",InfoPro!E61) ->  | D67: =IF(ISBLANK(InfoPro!F61),"",InfoPro!F61) ->  | E67: =IF(ISBLANK(InfoPro!I61),"",YEAR(InfoPro!I61)-$F$3) ->  | F67: =IF(ISBLANK(InfoPro!P61),"",InfoPro!P61) -> 
A68: =IF(ISBLANK(InfoPro!A62),"",InfoPro!A62) ->  | B68: =IF(ISBLANK(InfoPro!B62),"",InfoPro!B62) ->  | C68: =IF(ISBLANK(InfoPro!E62),"",InfoPro!E62) ->  | D68: =IF(ISBLANK(InfoPro!F62),"",InfoPro!F62) ->  | E68: =IF(ISBLANK(InfoPro!I62),"",YEAR(InfoPro!I62)-$F$3) ->  | F68: =IF(ISBLANK(InfoPro!P62),"",InfoPro!P62) ->  | G68: =IF($F68="","",(1/(1+$C$3)^(G$6+$E68))*$F68*$C$2) -> 
A69: =IF(ISBLANK(InfoPro!A63),"",InfoPro!A63) ->  | B69: =IF(ISBLANK(InfoPro!B63),"",InfoPro!B63) ->  | C69: =IF(ISBLANK(InfoPro!E63),"",InfoPro!E63) ->  | D69: =IF(ISBLANK(InfoPro!F63),"",InfoPro!F63) ->  | E69: =IF(ISBLANK(InfoPro!I63),"",YEAR(InfoPro!I63)-$F$3) ->  | F69: =IF(ISBLANK(InfoPro!P63),"",InfoPro!P63) -> 
A70: =IF(ISBLANK(InfoPro!A64),"",InfoPro!A64) ->  | B70: =IF(ISBLANK(InfoPro!B64),"",InfoPro!B64) ->  | C70: =IF(ISBLANK(InfoPro!E64),"",InfoPro!E64) ->  | D70: =IF(ISBLANK(InfoPro!F64),"",InfoPro!F64) ->  | E70: =IF(ISBLANK(InfoPro!I64),"",YEAR(InfoPro!I64)-$F$3) ->  | F70: =IF(ISBLANK(InfoPro!P64),"",InfoPro!P64) -> 
A71: =IF(ISBLANK(InfoPro!A65),"",InfoPro!A65) ->  | B71: =IF(ISBLANK(InfoPro!B65),"",InfoPro!B65) ->  | C71: =IF(ISBLANK(InfoPro!E65),"",InfoPro!E65) ->  | D71: =IF(ISBLANK(InfoPro!F65),"",InfoPro!F65) ->  | E71: =IF(ISBLANK(InfoPro!I65),"",YEAR(InfoPro!I65)-$F$3) ->  | F71: =IF(ISBLANK(InfoPro!P65),"",InfoPro!P65) -> 
A72: =IF(ISBLANK(InfoPro!A66),"",InfoPro!A66) ->  | B72: =IF(ISBLANK(InfoPro!B66),"",InfoPro!B66) ->  | C72: =IF(ISBLANK(InfoPro!E66),"",InfoPro!E66) ->  | D72: =IF(ISBLANK(InfoPro!F66),"",InfoPro!F66) ->  | E72: =IF(ISBLANK(InfoPro!I66),"",YEAR(InfoPro!I66)-$F$3) ->  | F72: =IF(ISBLANK(InfoPro!P66),"",InfoPro!P66) -> 
A73: =IF(ISBLANK(InfoPro!A67),"",InfoPro!A67) ->  | B73: =IF(ISBLANK(InfoPro!B67),"",InfoPro!B67) ->  | C73: =IF(ISBLANK(InfoPro!E67),"",InfoPro!E67) ->  | D73: =IF(ISBLANK(InfoPro!F67),"",InfoPro!F67) ->  | E73: =IF(ISBLANK(InfoPro!I67),"",YEAR(InfoPro!I67)-$F$3) ->  | F73: =IF(ISBLANK(InfoPro!P67),"",InfoPro!P67) ->  | V73: =IF(U73="","",SUM(G73:U73)) ->  | W73: =IF(C73=0,0,IF(V73="","",V73/(C73*1000))) -> 
A74: =IF(ISBLANK(InfoPro!A68),"",InfoPro!A68) ->  | B74: =IF(ISBLANK(InfoPro!B68),"",InfoPro!B68) ->  | C74: =IF(ISBLANK(InfoPro!E68),"",InfoPro!E68) ->  | D74: =IF(ISBLANK(InfoPro!F68),"",InfoPro!F68) ->  | E74: =IF(ISBLANK(InfoPro!I68),"",YEAR(InfoPro!I68)-$F$3) ->  | F74: =IF(ISBLANK(InfoPro!P68),"",InfoPro!P68) -> 
A75: =IF(ISBLANK(InfoPro!A69),"",InfoPro!A69) ->  | B75: =IF(ISBLANK(InfoPro!B69),"",InfoPro!B69) ->  | C75: =IF(ISBLANK(InfoPro!E69),"",InfoPro!E69) ->  | D75: =IF(ISBLANK(InfoPro!F69),"",InfoPro!F69) ->  | E75: =IF(ISBLANK(InfoPro!I69),"",YEAR(InfoPro!I69)-$F$3) ->  | F75: =IF(ISBLANK(InfoPro!P69),"",InfoPro!P69) -> 
A76: =IF(ISBLANK(InfoPro!A70),"",InfoPro!A70) ->  | B76: =IF(ISBLANK(InfoPro!B70),"",InfoPro!B70) ->  | C76: =IF(ISBLANK(InfoPro!E70),"",InfoPro!E70) ->  | D76: =IF(ISBLANK(InfoPro!F70),"",InfoPro!F70) ->  | E76: =IF(ISBLANK(InfoPro!I70),"",YEAR(InfoPro!I70)-$F$3) ->  | F76: =IF(ISBLANK(InfoPro!P70),"",InfoPro!P70) -> 
A77: =IF(ISBLANK(InfoPro!A71),"",InfoPro!A71) ->  | B77: =IF(ISBLANK(InfoPro!B71),"",InfoPro!B71) ->  | C77: =IF(ISBLANK(InfoPro!E71),"",InfoPro!E71) ->  | D77: =IF(ISBLANK(InfoPro!F71),"",InfoPro!F71) ->  | E77: =IF(ISBLANK(InfoPro!I71),"",YEAR(InfoPro!I71)-$F$3) ->  | F77: =IF(ISBLANK(InfoPro!P71),"",InfoPro!P71) -> 
A78: =IF(ISBLANK(InfoPro!A72),"",InfoPro!A72) ->  | B78: =IF(ISBLANK(InfoPro!B72),"",InfoPro!B72) ->  | C78: =IF(ISBLANK(InfoPro!E72),"",InfoPro!E72) ->  | D78: =IF(ISBLANK(InfoPro!F72),"",InfoPro!F72) ->  | E78: =IF(ISBLANK(InfoPro!I72),"",YEAR(InfoPro!I72)-$F$3) ->  | F78: =IF(ISBLANK(InfoPro!P72),"",InfoPro!P72) ->  | G78: =IF($F78="","",(1/(1+$C$3)^(G$6+$E78))*$F78*$C$2) -> 
A79: =IF(ISBLANK(InfoPro!A73),"",InfoPro!A73) ->  | B79: =IF(ISBLANK(InfoPro!B73),"",InfoPro!B73) ->  | C79: =IF(ISBLANK(InfoPro!E73),"",InfoPro!E73) ->  | D79: =IF(ISBLANK(InfoPro!F73),"",InfoPro!F73) ->  | E79: =IF(ISBLANK(InfoPro!I73),"",YEAR(InfoPro!I73)-$F$3) ->  | F79: =IF(ISBLANK(InfoPro!P73),"",InfoPro!P73) -> 
A80: =IF(ISBLANK(InfoPro!A74),"",InfoPro!A74) ->  | B80: =IF(ISBLANK(InfoPro!B74),"",InfoPro!B74) ->  | C80: =IF(ISBLANK(InfoPro!E74),"",InfoPro!E74) ->  | D80: =IF(ISBLANK(InfoPro!F74),"",InfoPro!F74) ->  | E80: =IF(ISBLANK(InfoPro!I74),"",YEAR(InfoPro!I74)-$F$3) ->  | F80: =IF(ISBLANK(InfoPro!P74),"",InfoPro!P74) -> 
A81: =IF(ISBLANK(InfoPro!A75),"",InfoPro!A75) ->  | B81: =IF(ISBLANK(InfoPro!B75),"",InfoPro!B75) ->  | C81: =IF(ISBLANK(InfoPro!E75),"",InfoPro!E75) ->  | D81: =IF(ISBLANK(InfoPro!F75),"",InfoPro!F75) ->  | E81: =IF(ISBLANK(InfoPro!I75),"",YEAR(InfoPro!I75)-$F$3) ->  | F81: =IF(ISBLANK(InfoPro!P75),"",InfoPro!P75) -> 
A82: =IF(ISBLANK(InfoPro!A76),"",InfoPro!A76) ->  | B82: =IF(ISBLANK(InfoPro!B76),"",InfoPro!B76) ->  | C82: =IF(ISBLANK(InfoPro!E76),"",InfoPro!E76) ->  | D82: =IF(ISBLANK(InfoPro!F76),"",InfoPro!F76) ->  | E82: =IF(ISBLANK(InfoPro!I76),"",YEAR(InfoPro!I76)-$F$3) ->  | F82: =IF(ISBLANK(InfoPro!P76),"",InfoPro!P76) -> 
A83: =IF(ISBLANK(InfoPro!A77),"",InfoPro!A77) ->  | B83: =IF(ISBLANK(InfoPro!B77),"",InfoPro!B77) ->  | C83: =IF(ISBLANK(InfoPro!E77),"",InfoPro!E77) ->  | D83: =IF(ISBLANK(InfoPro!F77),"",InfoPro!F77) ->  | E83: =IF(ISBLANK(InfoPro!I77),"",YEAR(InfoPro!I77)-$F$3) ->  | F83: =IF(ISBLANK(InfoPro!P77),"",InfoPro!P77) -> 
A84: =IF(ISBLANK(InfoPro!A78),"",InfoPro!A78) ->  | B84: =IF(ISBLANK(InfoPro!B78),"",InfoPro!B78) ->  | C84: =IF(ISBLANK(InfoPro!E78),"",InfoPro!E78) ->  | D84: =IF(ISBLANK(InfoPro!F78),"",InfoPro!F78) ->  | E84: =IF(ISBLANK(InfoPro!I78),"",YEAR(InfoPro!I78)-$F$3) ->  | F84: =IF(ISBLANK(InfoPro!P78),"",InfoPro!P78) -> 
A85: =IF(ISBLANK(InfoPro!A79),"",InfoPro!A79) ->  | B85: =IF(ISBLANK(InfoPro!B79),"",InfoPro!B79) ->  | C85: =IF(ISBLANK(InfoPro!E79),"",InfoPro!E79) ->  | D85: =IF(ISBLANK(InfoPro!F79),"",InfoPro!F79) ->  | E85: =IF(ISBLANK(InfoPro!I79),"",YEAR(InfoPro!I79)-$F$3) ->  | F85: =IF(ISBLANK(InfoPro!P79),"",InfoPro!P79) -> 
A86: =IF(ISBLANK(InfoPro!A80),"",InfoPro!A80) ->  | B86: =IF(ISBLANK(InfoPro!B80),"",InfoPro!B80) ->  | C86: =IF(ISBLANK(InfoPro!E80),"",InfoPro!E80) ->  | D86: =IF(ISBLANK(InfoPro!F80),"",InfoPro!F80) ->  | E86: =IF(ISBLANK(InfoPro!I80),"",YEAR(InfoPro!I80)-$F$3) ->  | F86: =IF(ISBLANK(InfoPro!P80),"",InfoPro!P80) -> 
A87: =IF(ISBLANK(InfoPro!A81),"",InfoPro!A81) ->  | B87: =IF(ISBLANK(InfoPro!B81),"",InfoPro!B81) ->  | C87: =IF(ISBLANK(InfoPro!E81),"",InfoPro!E81) ->  | D87: =IF(ISBLANK(InfoPro!F81),"",InfoPro!F81) ->  | E87: =IF(ISBLANK(InfoPro!I81),"",YEAR(InfoPro!I81)-$F$3) ->  | F87: =IF(ISBLANK(InfoPro!P81),"",InfoPro!P81) -> 
A88: =IF(ISBLANK(InfoPro!A82),"",InfoPro!A82) ->  | B88: =IF(ISBLANK(InfoPro!B82),"",InfoPro!B82) ->  | C88: =IF(ISBLANK(InfoPro!E82),"",InfoPro!E82) ->  | D88: =IF(ISBLANK(InfoPro!F82),"",InfoPro!F82) ->  | E88: =IF(ISBLANK(InfoPro!I82),"",YEAR(InfoPro!I82)-$F$3) ->  | F88: =IF(ISBLANK(InfoPro!P82),"",InfoPro!P82) ->  | G88: =IF($F88="","",(1/(1+$C$3)^(G$6+$E88))*$F88*$C$2) -> 
A89: =IF(ISBLANK(InfoPro!A83),"",InfoPro!A83) ->  | B89: =IF(ISBLANK(InfoPro!B83),"",InfoPro!B83) ->  | C89: =IF(ISBLANK(InfoPro!E83),"",InfoPro!E83) ->  | D89: =IF(ISBLANK(InfoPro!F83),"",InfoPro!F83) ->  | E89: =IF(ISBLANK(InfoPro!I83),"",YEAR(InfoPro!I83)-$F$3) ->  | F89: =IF(ISBLANK(InfoPro!P83),"",InfoPro!P83) -> 
A90: =IF(ISBLANK(InfoPro!A84),"",InfoPro!A84) ->  | B90: =IF(ISBLANK(InfoPro!B84),"",InfoPro!B84) ->  | C90: =IF(ISBLANK(InfoPro!E84),"",InfoPro!E84) ->  | D90: =IF(ISBLANK(InfoPro!F84),"",InfoPro!F84) ->  | E90: =IF(ISBLANK(InfoPro!I84),"",YEAR(InfoPro!I84)-$F$3) ->  | F90: =IF(ISBLANK(InfoPro!P84),"",InfoPro!P84) -> 
A91: =IF(ISBLANK(InfoPro!A85),"",InfoPro!A85) ->  | B91: =IF(ISBLANK(InfoPro!B85),"",InfoPro!B85) ->  | C91: =IF(ISBLANK(InfoPro!E85),"",InfoPro!E85) ->  | D91: =IF(ISBLANK(InfoPro!F85),"",InfoPro!F85) ->  | E91: =IF(ISBLANK(InfoPro!I85),"",YEAR(InfoPro!I85)-$F$3) ->  | F91: =IF(ISBLANK(InfoPro!P85),"",InfoPro!P85) -> 
A92: =IF(ISBLANK(InfoPro!A86),"",InfoPro!A86) ->  | B92: =IF(ISBLANK(InfoPro!B86),"",InfoPro!B86) ->  | C92: =IF(ISBLANK(InfoPro!E86),"",InfoPro!E86) ->  | D92: =IF(ISBLANK(InfoPro!F86),"",InfoPro!F86) ->  | E92: =IF(ISBLANK(InfoPro!I86),"",YEAR(InfoPro!I86)-$F$3) ->  | F92: =IF(ISBLANK(InfoPro!P86),"",InfoPro!P86) -> 
A93: =IF(ISBLANK(InfoPro!A87),"",InfoPro!A87) ->  | B93: =IF(ISBLANK(InfoPro!B87),"",InfoPro!B87) ->  | C93: =IF(ISBLANK(InfoPro!E87),"",InfoPro!E87) ->  | D93: =IF(ISBLANK(InfoPro!F87),"",InfoPro!F87) ->  | E93: =IF(ISBLANK(InfoPro!I87),"",YEAR(InfoPro!I87)-$F$3) ->  | F93: =IF(ISBLANK(InfoPro!P87),"",InfoPro!P87) -> 
A94: =IF(ISBLANK(InfoPro!A88),"",InfoPro!A88) ->  | B94: =IF(ISBLANK(InfoPro!B88),"",InfoPro!B88) ->  | C94: =IF(ISBLANK(InfoPro!E88),"",InfoPro!E88) ->  | D94: =IF(ISBLANK(InfoPro!F88),"",InfoPro!F88) ->  | E94: =IF(ISBLANK(InfoPro!I88),"",YEAR(InfoPro!I88)-$F$3) ->  | F94: =IF(ISBLANK(InfoPro!P88),"",InfoPro!P88) -> 
A95: =IF(ISBLANK(InfoPro!A89),"",InfoPro!A89) ->  | B95: =IF(ISBLANK(InfoPro!B89),"",InfoPro!B89) ->  | C95: =IF(ISBLANK(InfoPro!E89),"",InfoPro!E89) ->  | D95: =IF(ISBLANK(InfoPro!F89),"",InfoPro!F89) ->  | E95: =IF(ISBLANK(InfoPro!I89),"",YEAR(InfoPro!I89)-$F$3) ->  | F95: =IF(ISBLANK(InfoPro!P89),"",InfoPro!P89) -> 
A96: =IF(ISBLANK(InfoPro!A90),"",InfoPro!A90) ->  | B96: =IF(ISBLANK(InfoPro!B90),"",InfoPro!B90) ->  | C96: =IF(ISBLANK(InfoPro!E90),"",InfoPro!E90) ->  | D96: =IF(ISBLANK(InfoPro!F90),"",InfoPro!F90) ->  | E96: =IF(ISBLANK(InfoPro!I90),"",YEAR(InfoPro!I90)-$F$3) ->  | F96: =IF(ISBLANK(InfoPro!P90),"",InfoPro!P90) -> 
A97: =IF(ISBLANK(InfoPro!A91),"",InfoPro!A91) ->  | B97: =IF(ISBLANK(InfoPro!B91),"",InfoPro!B91) ->  | C97: =IF(ISBLANK(InfoPro!E91),"",InfoPro!E91) ->  | D97: =IF(ISBLANK(InfoPro!F91),"",InfoPro!F91) ->  | E97: =IF(ISBLANK(InfoPro!I91),"",YEAR(InfoPro!I91)-$F$3) ->  | F97: =IF(ISBLANK(InfoPro!P91),"",InfoPro!P91) -> 
A98: =IF(ISBLANK(InfoPro!A92),"",InfoPro!A92) ->  | B98: =IF(ISBLANK(InfoPro!B92),"",InfoPro!B92) ->  | C98: =IF(ISBLANK(InfoPro!E92),"",InfoPro!E92) ->  | D98: =IF(ISBLANK(InfoPro!F92),"",InfoPro!F92) ->  | E98: =IF(ISBLANK(InfoPro!I92),"",YEAR(InfoPro!I92)-$F$3) ->  | F98: =IF(ISBLANK(InfoPro!P92),"",InfoPro!P92) ->  | G98: =IF($F98="","",(1/(1+$C$3)^(G$6+$E98))*$F98*$C$2) -> 
A99: =IF(ISBLANK(InfoPro!A93),"",InfoPro!A93) ->  | B99: =IF(ISBLANK(InfoPro!B93),"",InfoPro!B93) ->  | C99: =IF(ISBLANK(InfoPro!E93),"",InfoPro!E93) ->  | D99: =IF(ISBLANK(InfoPro!F93),"",InfoPro!F93) ->  | E99: =IF(ISBLANK(InfoPro!I93),"",YEAR(InfoPro!I93)-$F$3) ->  | F99: =IF(ISBLANK(InfoPro!P93),"",InfoPro!P93) -> 
A100: =IF(ISBLANK(InfoPro!A94),"",InfoPro!A94) ->  | B100: =IF(ISBLANK(InfoPro!B94),"",InfoPro!B94) ->  | C100: =IF(ISBLANK(InfoPro!E94),"",InfoPro!E94) ->  | D100: =IF(ISBLANK(InfoPro!F94),"",InfoPro!F94) ->  | E100: =IF(ISBLANK(InfoPro!I94),"",YEAR(InfoPro!I94)-$F$3) ->  | F100: =IF(ISBLANK(InfoPro!P94),"",InfoPro!P94) -> 
A101: =IF(ISBLANK(InfoPro!A95),"",InfoPro!A95) ->  | B101: =IF(ISBLANK(InfoPro!B95),"",InfoPro!B95) ->  | C101: =IF(ISBLANK(InfoPro!E95),"",InfoPro!E95) ->  | D101: =IF(ISBLANK(InfoPro!F95),"",InfoPro!F95) ->  | E101: =IF(ISBLANK(InfoPro!I95),"",YEAR(InfoPro!I95)-$F$3) ->  | F101: =IF(ISBLANK(InfoPro!P95),"",InfoPro!P95) -> 
A102: =IF(ISBLANK(InfoPro!A96),"",InfoPro!A96) ->  | B102: =IF(ISBLANK(InfoPro!B96),"",InfoPro!B96) ->  | C102: =IF(ISBLANK(InfoPro!E96),"",InfoPro!E96) ->  | D102: =IF(ISBLANK(InfoPro!F96),"",InfoPro!F96) ->  | E102: =IF(ISBLANK(InfoPro!I96),"",YEAR(InfoPro!I96)-$F$3) ->  | F102: =IF(ISBLANK(InfoPro!P96),"",InfoPro!P96) -> 
A103: =IF(ISBLANK(InfoPro!A97),"",InfoPro!A97) ->  | B103: =IF(ISBLANK(InfoPro!B97),"",InfoPro!B97) ->  | C103: =IF(ISBLANK(InfoPro!E97),"",InfoPro!E97) ->  | D103: =IF(ISBLANK(InfoPro!F97),"",InfoPro!F97) ->  | E103: =IF(ISBLANK(InfoPro!I97),"",YEAR(InfoPro!I97)-$F$3) ->  | F103: =IF(ISBLANK(InfoPro!P97),"",InfoPro!P97) -> 
A104: =IF(ISBLANK(InfoPro!A98),"",InfoPro!A98) ->  | B104: =IF(ISBLANK(InfoPro!B98),"",InfoPro!B98) ->  | C104: =IF(ISBLANK(InfoPro!E98),"",InfoPro!E98) ->  | D104: =IF(ISBLANK(InfoPro!F98),"",InfoPro!F98) ->  | E104: =IF(ISBLANK(InfoPro!I98),"",YEAR(InfoPro!I98)-$F$3) ->  | F104: =IF(ISBLANK(InfoPro!P98),"",InfoPro!P98) -> 
A105: =IF(ISBLANK(InfoPro!A99),"",InfoPro!A99) ->  | B105: =IF(ISBLANK(InfoPro!B99),"",InfoPro!B99) ->  | C105: =IF(ISBLANK(InfoPro!E99),"",InfoPro!E99) ->  | D105: =IF(ISBLANK(InfoPro!F99),"",InfoPro!F99) ->  | E105: =IF(ISBLANK(InfoPro!I99),"",YEAR(InfoPro!I99)-$F$3) ->  | F105: =IF(ISBLANK(InfoPro!P99),"",InfoPro!P99) -> 
A106: =IF(ISBLANK(InfoPro!A100),"",InfoPro!A100) ->  | B106: =IF(ISBLANK(InfoPro!B100),"",InfoPro!B100) ->  | C106: =IF(ISBLANK(InfoPro!E100),"",InfoPro!E100) ->  | D106: =IF(ISBLANK(InfoPro!F100),"",InfoPro!F100) ->  | E106: =IF(ISBLANK(InfoPro!I100),"",YEAR(InfoPro!I100)-$F$3) ->  | F106: =IF(ISBLANK(InfoPro!P100),"",InfoPro!P100) -> 
A107: =IF(ISBLANK(InfoPro!A101),"",InfoPro!A101) ->  | B107: =IF(ISBLANK(InfoPro!B101),"",InfoPro!B101) ->  | C107: =IF(ISBLANK(InfoPro!E101),"",InfoPro!E101) ->  | D107: =IF(ISBLANK(InfoPro!F101),"",InfoPro!F101) ->  | E107: =IF(ISBLANK(InfoPro!I101),"",YEAR(InfoPro!I101)-$F$3) ->  | F107: =IF(ISBLANK(InfoPro!P101),"",InfoPro!P101) -> 
A108: =IF(ISBLANK(InfoPro!A102),"",InfoPro!A102) ->  | B108: =IF(ISBLANK(InfoPro!B102),"",InfoPro!B102) ->  | C108: =IF(ISBLANK(InfoPro!E102),"",InfoPro!E102) ->  | D108: =IF(ISBLANK(InfoPro!F102),"",InfoPro!F102) ->  | E108: =IF(ISBLANK(InfoPro!I102),"",YEAR(InfoPro!I102)-$F$3) ->  | F108: =IF(ISBLANK(InfoPro!P102),"",InfoPro!P102) -> 
A109: =IF(ISBLANK(InfoPro!A103),"",InfoPro!A103) ->  | B109: =IF(ISBLANK(InfoPro!B103),"",InfoPro!B103) ->  | C109: =IF(ISBLANK(InfoPro!E103),"",InfoPro!E103) ->  | D109: =IF(ISBLANK(InfoPro!F103),"",InfoPro!F103) ->  | E109: =IF(ISBLANK(InfoPro!I103),"",YEAR(InfoPro!I103)-$F$3) ->  | F109: =IF(ISBLANK(InfoPro!P103),"",InfoPro!P103) -> 
A110: =IF(ISBLANK(InfoPro!A104),"",InfoPro!A104) ->  | B110: =IF(ISBLANK(InfoPro!B104),"",InfoPro!B104) ->  | C110: =IF(ISBLANK(InfoPro!E104),"",InfoPro!E104) ->  | D110: =IF(ISBLANK(InfoPro!F104),"",InfoPro!F104) ->  | E110: =IF(ISBLANK(InfoPro!I104),"",YEAR(InfoPro!I104)-$F$3) ->  | F110: =IF(ISBLANK(InfoPro!P104),"",InfoPro!P104) -> 
A111: =IF(ISBLANK(InfoPro!A105),"",InfoPro!A105) ->  | B111: =IF(ISBLANK(InfoPro!B105),"",InfoPro!B105) ->  | C111: =IF(ISBLANK(InfoPro!E105),"",InfoPro!E105) ->  | D111: =IF(ISBLANK(InfoPro!F105),"",InfoPro!F105) ->  | E111: =IF(ISBLANK(InfoPro!I105),"",YEAR(InfoPro!I105)-$F$3) ->  | F111: =IF(ISBLANK(InfoPro!P105),"",InfoPro!P105) -> 
A112: =IF(ISBLANK(InfoPro!A106),"",InfoPro!A106) ->  | B112: =IF(ISBLANK(InfoPro!B106),"",InfoPro!B106) ->  | C112: =IF(ISBLANK(InfoPro!E106),"",InfoPro!E106) ->  | D112: =IF(ISBLANK(InfoPro!F106),"",InfoPro!F106) ->  | E112: =IF(ISBLANK(InfoPro!I106),"",YEAR(InfoPro!I106)-$F$3) ->  | F112: =IF(ISBLANK(InfoPro!P106),"",InfoPro!P106) ->  | V112: =IF(U112="","",SUM(G112:U112)) ->  | W112: =IF(C112=0,0,IF(V112="","",V112/(C112*1000))) -> 
A113: =IF(ISBLANK(InfoPro!A107),"",InfoPro!A107) ->  | B113: =IF(ISBLANK(InfoPro!B107),"",InfoPro!B107) ->  | C113: =IF(ISBLANK(InfoPro!E107),"",InfoPro!E107) ->  | D113: =IF(ISBLANK(InfoPro!F107),"",InfoPro!F107) ->  | E113: =IF(ISBLANK(InfoPro!I107),"",YEAR(InfoPro!I107)-$F$3) ->  | F113: =IF(ISBLANK(InfoPro!P107),"",InfoPro!P107) -> 
A114: =IF(ISBLANK(InfoPro!A108),"",InfoPro!A108) ->  | B114: =IF(ISBLANK(InfoPro!B108),"",InfoPro!B108) ->  | C114: =IF(ISBLANK(InfoPro!E108),"",InfoPro!E108) ->  | D114: =IF(ISBLANK(InfoPro!F108),"",InfoPro!F108) ->  | E114: =IF(ISBLANK(InfoPro!I108),"",YEAR(InfoPro!I108)-$F$3) ->  | F114: =IF(ISBLANK(InfoPro!P108),"",InfoPro!P108) ->  | G114: =IF($F114="","",(1/(1+$C$3)^(G$6+$E114))*$F114*$C$2) -> 
A115: =IF(ISBLANK(InfoPro!A109),"",InfoPro!A109) ->  | B115: =IF(ISBLANK(InfoPro!B109),"",InfoPro!B109) ->  | C115: =IF(ISBLANK(InfoPro!E109),"",InfoPro!E109) ->  | D115: =IF(ISBLANK(InfoPro!F109),"",InfoPro!F109) ->  | E115: =IF(ISBLANK(InfoPro!I109),"",YEAR(InfoPro!I109)-$F$3) ->  | F115: =IF(ISBLANK(InfoPro!P109),"",InfoPro!P109) -> 
A116: =IF(ISBLANK(InfoPro!A110),"",InfoPro!A110) ->  | B116: =IF(ISBLANK(InfoPro!B110),"",InfoPro!B110) ->  | C116: =IF(ISBLANK(InfoPro!E110),"",InfoPro!E110) ->  | D116: =IF(ISBLANK(InfoPro!F110),"",InfoPro!F110) ->  | E116: =IF(ISBLANK(InfoPro!I110),"",YEAR(InfoPro!I110)-$F$3) ->  | F116: =IF(ISBLANK(InfoPro!P110),"",InfoPro!P110) -> 
A117: =IF(ISBLANK(InfoPro!A111),"",InfoPro!A111) ->  | B117: =IF(ISBLANK(InfoPro!B111),"",InfoPro!B111) ->  | C117: =IF(ISBLANK(InfoPro!E111),"",InfoPro!E111) ->  | D117: =IF(ISBLANK(InfoPro!F111),"",InfoPro!F111) ->  | E117: =IF(ISBLANK(InfoPro!I111),"",YEAR(InfoPro!I111)-$F$3) ->  | F117: =IF(ISBLANK(InfoPro!P111),"",InfoPro!P111) -> 
A118: =IF(ISBLANK(InfoPro!A112),"",InfoPro!A112) ->  | B118: =IF(ISBLANK(InfoPro!B112),"",InfoPro!B112) ->  | C118: =IF(ISBLANK(InfoPro!E112),"",InfoPro!E112) ->  | D118: =IF(ISBLANK(InfoPro!F112),"",InfoPro!F112) ->  | E118: =IF(ISBLANK(InfoPro!I112),"",YEAR(InfoPro!I112)-$F$3) ->  | F118: =IF(ISBLANK(InfoPro!P112),"",InfoPro!P112) -> 
A119: =IF(ISBLANK(InfoPro!A113),"",InfoPro!A113) ->  | B119: =IF(ISBLANK(InfoPro!B113),"",InfoPro!B113) ->  | C119: =IF(ISBLANK(InfoPro!E113),"",InfoPro!E113) ->  | D119: =IF(ISBLANK(InfoPro!F113),"",InfoPro!F113) ->  | E119: =IF(ISBLANK(InfoPro!I113),"",YEAR(InfoPro!I113)-$F$3) ->  | F119: =IF(ISBLANK(InfoPro!P113),"",InfoPro!P113) -> 
A120: =IF(ISBLANK(InfoPro!A114),"",InfoPro!A114) ->  | B120: =IF(ISBLANK(InfoPro!B114),"",InfoPro!B114) ->  | C120: =IF(ISBLANK(InfoPro!E114),"",InfoPro!E114) ->  | D120: =IF(ISBLANK(InfoPro!F114),"",InfoPro!F114) ->  | E120: =IF(ISBLANK(InfoPro!I114),"",YEAR(InfoPro!I114)-$F$3) ->  | F120: =IF(ISBLANK(InfoPro!P114),"",InfoPro!P114) -> 
A121: =IF(ISBLANK(InfoPro!A115),"",InfoPro!A115) ->  | B121: =IF(ISBLANK(InfoPro!B115),"",InfoPro!B115) ->  | C121: =IF(ISBLANK(InfoPro!E115),"",InfoPro!E115) ->  | D121: =IF(ISBLANK(InfoPro!F115),"",InfoPro!F115) ->  | E121: =IF(ISBLANK(InfoPro!I115),"",YEAR(InfoPro!I115)-$F$3) ->  | F121: =IF(ISBLANK(InfoPro!P115),"",InfoPro!P115) -> 
A122: =IF(ISBLANK(InfoPro!A116),"",InfoPro!A116) ->  | B122: =IF(ISBLANK(InfoPro!B116),"",InfoPro!B116) ->  | C122: =IF(ISBLANK(InfoPro!E116),"",InfoPro!E116) ->  | D122: =IF(ISBLANK(InfoPro!F116),"",InfoPro!F116) ->  | E122: =IF(ISBLANK(InfoPro!I116),"",YEAR(InfoPro!I116)-$F$3) ->  | F122: =IF(ISBLANK(InfoPro!P116),"",InfoPro!P116) -> 
A123: =IF(ISBLANK(InfoPro!A117),"",InfoPro!A117) ->  | B123: =IF(ISBLANK(InfoPro!B117),"",InfoPro!B117) ->  | C123: =IF(ISBLANK(InfoPro!E117),"",InfoPro!E117) ->  | D123: =IF(ISBLANK(InfoPro!F117),"",InfoPro!F117) ->  | E123: =IF(ISBLANK(InfoPro!I117),"",YEAR(InfoPro!I117)-$F$3) ->  | F123: =IF(ISBLANK(InfoPro!P117),"",InfoPro!P117) -> 
A124: =IF(ISBLANK(InfoPro!A118),"",InfoPro!A118) ->  | B124: =IF(ISBLANK(InfoPro!B118),"",InfoPro!B118) ->  | C124: =IF(ISBLANK(InfoPro!E118),"",InfoPro!E118) ->  | D124: =IF(ISBLANK(InfoPro!F118),"",InfoPro!F118) ->  | E124: =IF(ISBLANK(InfoPro!I118),"",YEAR(InfoPro!I118)-$F$3) ->  | F124: =IF(ISBLANK(InfoPro!P118),"",InfoPro!P118) -> 
A125: =IF(ISBLANK(InfoPro!A119),"",InfoPro!A119) ->  | B125: =IF(ISBLANK(InfoPro!B119),"",InfoPro!B119) ->  | C125: =IF(ISBLANK(InfoPro!E119),"",InfoPro!E119) ->  | D125: =IF(ISBLANK(InfoPro!F119),"",InfoPro!F119) ->  | E125: =IF(ISBLANK(InfoPro!I119),"",YEAR(InfoPro!I119)-$F$3) ->  | F125: =IF(ISBLANK(InfoPro!P119),"",InfoPro!P119) -> 
A126: =IF(ISBLANK(InfoPro!A120),"",InfoPro!A120) ->  | B126: =IF(ISBLANK(InfoPro!B120),"",InfoPro!B120) ->  | C126: =IF(ISBLANK(InfoPro!E120),"",InfoPro!E120) ->  | D126: =IF(ISBLANK(InfoPro!F120),"",InfoPro!F120) ->  | E126: =IF(ISBLANK(InfoPro!I120),"",YEAR(InfoPro!I120)-$F$3) ->  | F126: =IF(ISBLANK(InfoPro!P120),"",InfoPro!P120) -> 
A127: =IF(ISBLANK(InfoPro!A121),"",InfoPro!A121) ->  | B127: =IF(ISBLANK(InfoPro!B121),"",InfoPro!B121) ->  | C127: =IF(ISBLANK(InfoPro!E121),"",InfoPro!E121) ->  | D127: =IF(ISBLANK(InfoPro!F121),"",InfoPro!F121) ->  | E127: =IF(ISBLANK(InfoPro!I121),"",YEAR(InfoPro!I121)-$F$3) ->  | F127: =IF(ISBLANK(InfoPro!P121),"",InfoPro!P121) -> 
A128: =IF(ISBLANK(InfoPro!A122),"",InfoPro!A122) ->  | B128: =IF(ISBLANK(InfoPro!B122),"",InfoPro!B122) ->  | C128: =IF(ISBLANK(InfoPro!E122),"",InfoPro!E122) ->  | D128: =IF(ISBLANK(InfoPro!F122),"",InfoPro!F122) ->  | E128: =IF(ISBLANK(InfoPro!I122),"",YEAR(InfoPro!I122)-$F$3) ->  | F128: =IF(ISBLANK(InfoPro!P122),"",InfoPro!P122) -> 
A129: =IF(ISBLANK(InfoPro!A123),"",InfoPro!A123) ->  | B129: =IF(ISBLANK(InfoPro!B123),"",InfoPro!B123) ->  | C129: =IF(ISBLANK(InfoPro!E123),"",InfoPro!E123) ->  | D129: =IF(ISBLANK(InfoPro!F123),"",InfoPro!F123) ->  | E129: =IF(ISBLANK(InfoPro!I123),"",YEAR(InfoPro!I123)-$F$3) ->  | F129: =IF(ISBLANK(InfoPro!P123),"",InfoPro!P123) -> 
A130: =IF(ISBLANK(InfoPro!A124),"",InfoPro!A124) ->  | B130: =IF(ISBLANK(InfoPro!B124),"",InfoPro!B124) ->  | C130: =IF(ISBLANK(InfoPro!E124),"",InfoPro!E124) ->  | D130: =IF(ISBLANK(InfoPro!F124),"",InfoPro!F124) ->  | E130: =IF(ISBLANK(InfoPro!I124),"",YEAR(InfoPro!I124)-$F$3) ->  | F130: =IF(ISBLANK(InfoPro!P124),"",InfoPro!P124) -> 
A131: =IF(ISBLANK(InfoPro!A125),"",InfoPro!A125) ->  | B131: =IF(ISBLANK(InfoPro!B125),"",InfoPro!B125) ->  | C131: =IF(ISBLANK(InfoPro!E125),"",InfoPro!E125) ->  | D131: =IF(ISBLANK(InfoPro!F125),"",InfoPro!F125) ->  | E131: =IF(ISBLANK(InfoPro!I125),"",YEAR(InfoPro!I125)-$F$3) ->  | F131: =IF(ISBLANK(InfoPro!P125),"",InfoPro!P125) ->  | G131: =IF($F131="","",(1/(1+$C$3)^(G$6+$E131))*$F131*$C$2) -> 
A132: =IF(ISBLANK(InfoPro!A126),"",InfoPro!A126) ->  | B132: =IF(ISBLANK(InfoPro!B126),"",InfoPro!B126) ->  | C132: =IF(ISBLANK(InfoPro!E126),"",InfoPro!E126) ->  | D132: =IF(ISBLANK(InfoPro!F126),"",InfoPro!F126) ->  | E132: =IF(ISBLANK(InfoPro!I126),"",YEAR(InfoPro!I126)-$F$3) ->  | F132: =IF(ISBLANK(InfoPro!P126),"",InfoPro!P126) -> 
A133: =IF(ISBLANK(InfoPro!A127),"",InfoPro!A127) ->  | B133: =IF(ISBLANK(InfoPro!B127),"",InfoPro!B127) ->  | C133: =IF(ISBLANK(InfoPro!E127),"",InfoPro!E127) ->  | D133: =IF(ISBLANK(InfoPro!F127),"",InfoPro!F127) ->  | E133: =IF(ISBLANK(InfoPro!I127),"",YEAR(InfoPro!I127)-$F$3) ->  | F133: =IF(ISBLANK(InfoPro!P127),"",InfoPro!P127) -> 
A134: =IF(ISBLANK(InfoPro!A128),"",InfoPro!A128) ->  | B134: =IF(ISBLANK(InfoPro!B128),"",InfoPro!B128) ->  | C134: =IF(ISBLANK(InfoPro!E128),"",InfoPro!E128) ->  | D134: =IF(ISBLANK(InfoPro!F128),"",InfoPro!F128) ->  | E134: =IF(ISBLANK(InfoPro!I128),"",YEAR(InfoPro!I128)-$F$3) ->  | F134: =IF(ISBLANK(InfoPro!P128),"",InfoPro!P128) -> 
A135: =IF(ISBLANK(InfoPro!A129),"",InfoPro!A129) ->  | B135: =IF(ISBLANK(InfoPro!B129),"",InfoPro!B129) ->  | C135: =IF(ISBLANK(InfoPro!E129),"",InfoPro!E129) ->  | D135: =IF(ISBLANK(InfoPro!F129),"",InfoPro!F129) ->  | E135: =IF(ISBLANK(InfoPro!I129),"",YEAR(InfoPro!I129)-$F$3) ->  | F135: =IF(ISBLANK(InfoPro!P129),"",InfoPro!P129) -> 
A136: =IF(ISBLANK(InfoPro!A130),"",InfoPro!A130) ->  | B136: =IF(ISBLANK(InfoPro!B130),"",InfoPro!B130) ->  | C136: =IF(ISBLANK(InfoPro!E130),"",InfoPro!E130) ->  | D136: =IF(ISBLANK(InfoPro!F130),"",InfoPro!F130) ->  | E136: =IF(ISBLANK(InfoPro!I130),"",YEAR(InfoPro!I130)-$F$3) ->  | F136: =IF(ISBLANK(InfoPro!P130),"",InfoPro!P130) -> 
A137: =IF(ISBLANK(InfoPro!A131),"",InfoPro!A131) ->  | B137: =IF(ISBLANK(InfoPro!B131),"",InfoPro!B131) ->  | C137: =IF(ISBLANK(InfoPro!E131),"",InfoPro!E131) ->  | D137: =IF(ISBLANK(InfoPro!F131),"",InfoPro!F131) ->  | E137: =IF(ISBLANK(InfoPro!I131),"",YEAR(InfoPro!I131)-$F$3) ->  | F137: =IF(ISBLANK(InfoPro!P131),"",InfoPro!P131) -> 
A138: =IF(ISBLANK(InfoPro!A132),"",InfoPro!A132) ->  | B138: =IF(ISBLANK(InfoPro!B132),"",InfoPro!B132) ->  | C138: =IF(ISBLANK(InfoPro!E132),"",InfoPro!E132) ->  | D138: =IF(ISBLANK(InfoPro!F132),"",InfoPro!F132) ->  | E138: =IF(ISBLANK(InfoPro!I132),"",YEAR(InfoPro!I132)-$F$3) ->  | F138: =IF(ISBLANK(InfoPro!P132),"",InfoPro!P132) -> 
A139: =IF(ISBLANK(InfoPro!A133),"",InfoPro!A133) ->  | B139: =IF(ISBLANK(InfoPro!B133),"",InfoPro!B133) ->  | C139: =IF(ISBLANK(InfoPro!E133),"",InfoPro!E133) ->  | D139: =IF(ISBLANK(InfoPro!F133),"",InfoPro!F133) ->  | E139: =IF(ISBLANK(InfoPro!I133),"",YEAR(InfoPro!I133)-$F$3) ->  | F139: =IF(ISBLANK(InfoPro!P133),"",InfoPro!P133) -> 
A140: =IF(ISBLANK(InfoPro!A134),"",InfoPro!A134) ->  | B140: =IF(ISBLANK(InfoPro!B134),"",InfoPro!B134) ->  | C140: =IF(ISBLANK(InfoPro!E134),"",InfoPro!E134) ->  | D140: =IF(ISBLANK(InfoPro!F134),"",InfoPro!F134) ->  | E140: =IF(ISBLANK(InfoPro!I134),"",YEAR(InfoPro!I134)-$F$3) ->  | F140: =IF(ISBLANK(InfoPro!P134),"",InfoPro!P134) -> 
A141: =IF(ISBLANK(InfoPro!A135),"",InfoPro!A135) ->  | B141: =IF(ISBLANK(InfoPro!B135),"",InfoPro!B135) ->  | C141: =IF(ISBLANK(InfoPro!E135),"",InfoPro!E135) ->  | D141: =IF(ISBLANK(InfoPro!F135),"",InfoPro!F135) ->  | E141: =IF(ISBLANK(InfoPro!I135),"",YEAR(InfoPro!I135)-$F$3) ->  | F141: =IF(ISBLANK(InfoPro!P135),"",InfoPro!P135) -> 
A142: =IF(ISBLANK(InfoPro!A136),"",InfoPro!A136) ->  | B142: =IF(ISBLANK(InfoPro!B136),"",InfoPro!B136) ->  | C142: =IF(ISBLANK(InfoPro!E136),"",InfoPro!E136) ->  | D142: =IF(ISBLANK(InfoPro!F136),"",InfoPro!F136) ->  | E142: =IF(ISBLANK(InfoPro!I136),"",YEAR(InfoPro!I136)-$F$3) ->  | F142: =IF(ISBLANK(InfoPro!P136),"",InfoPro!P136) -> 
A143: =IF(ISBLANK(InfoPro!A137),"",InfoPro!A137) ->  | B143: =IF(ISBLANK(InfoPro!B137),"",InfoPro!B137) ->  | C143: =IF(ISBLANK(InfoPro!E137),"",InfoPro!E137) ->  | D143: =IF(ISBLANK(InfoPro!F137),"",InfoPro!F137) ->  | E143: =IF(ISBLANK(InfoPro!I137),"",YEAR(InfoPro!I137)-$F$3) ->  | F143: =IF(ISBLANK(InfoPro!P137),"",InfoPro!P137) -> 
A144: =IF(ISBLANK(InfoPro!A138),"",InfoPro!A138) ->  | B144: =IF(ISBLANK(InfoPro!B138),"",InfoPro!B138) ->  | C144: =IF(ISBLANK(InfoPro!E138),"",InfoPro!E138) ->  | D144: =IF(ISBLANK(InfoPro!F138),"",InfoPro!F138) ->  | E144: =IF(ISBLANK(InfoPro!I138),"",YEAR(InfoPro!I138)-$F$3) ->  | F144: =IF(ISBLANK(InfoPro!P138),"",InfoPro!P138) -> 
A145: =IF(ISBLANK(InfoPro!A139),"",InfoPro!A139) ->  | B145: =IF(ISBLANK(InfoPro!B139),"",InfoPro!B139) ->  | C145: =IF(ISBLANK(InfoPro!E139),"",InfoPro!E139) ->  | D145: =IF(ISBLANK(InfoPro!F139),"",InfoPro!F139) ->  | E145: =IF(ISBLANK(InfoPro!I139),"",YEAR(InfoPro!I139)-$F$3) ->  | F145: =IF(ISBLANK(InfoPro!P139),"",InfoPro!P139) -> 
A146: =IF(ISBLANK(InfoPro!A140),"",InfoPro!A140) ->  | B146: =IF(ISBLANK(InfoPro!B140),"",InfoPro!B140) ->  | C146: =IF(ISBLANK(InfoPro!E140),"",InfoPro!E140) ->  | D146: =IF(ISBLANK(InfoPro!F140),"",InfoPro!F140) ->  | E146: =IF(ISBLANK(InfoPro!I140),"",YEAR(InfoPro!I140)-$F$3) ->  | F146: =IF(ISBLANK(InfoPro!P140),"",InfoPro!P140) -> 
A147: =IF(ISBLANK(InfoPro!A141),"",InfoPro!A141) ->  | B147: =IF(ISBLANK(InfoPro!B141),"",InfoPro!B141) ->  | C147: =IF(ISBLANK(InfoPro!E141),"",InfoPro!E141) ->  | D147: =IF(ISBLANK(InfoPro!F141),"",InfoPro!F141) ->  | E147: =IF(ISBLANK(InfoPro!I141),"",YEAR(InfoPro!I141)-$F$3) ->  | F147: =IF(ISBLANK(InfoPro!P141),"",InfoPro!P141) -> 
